Workbook

Sheet CycleTime
L1: ↓ W～AQ 「表示しない」列 ↓ ↓ W～AQ 「表示しない」列 ↓ ↓ W～AQ 「表示しない」列 ↓ ↓ W～AQ 「表示しない」列 ↓ ↓ W～AQ 「表示しない」列 ↓ ↓ W～AQ 「表示しない」列 ↓ ↓ W～AQ 「表示しない」列 ↓ ↓ W～AQ 「表示しない」列 ↓ ↓ W～AQ 「表示しない」列 ↓W～AQ 「表示しない」列 | AT1: 残す列 | AV1: 残す列
L2: 参考表示
L3: Vmax[㎜/s] | N3: =SQRT(D14*(2*N4*N5)/(N4+N5)) -> 313.1557121 | AB3: feedforward | AE3: 物理計算用変換係数
A4: <a> | B4: シリーズ | C4: RCA- | L4: =IF(AE33=0,"加速度[㎜/s^2]","加速度[deg/s^2]") -> 加速度[㎜/s^2] | N4: =D20*AH5*1000 -> 1961.33 | AB4: =AF45/100 -> 0 | AE4: ﾓｰﾀ軸角速度及び角加速度 | AH4: Ｇ
L5: =IF(AE33=0,"減速度[㎜/s^2]","減速度[deg/s^2]") -> 減速度[㎜/s^2] | N5: =D22*AH5*1000 -> 1961.33 | AB5: Kf | AC5: =IF( AB4=1,1,1-EXP(-((N11/(1-AB4))-N11)*N8) ) -> 0 | AE5: =IF(AE33=0,1000,360/(2*PI())) -> 1000 | AH5: =LeadData!$A$1 -> 9.80665
A6: <b> | B6: 型式 | C6: RCA-SA4C-20 | L6: 最高速度[㎜/s] | N6: =IF(D18<N3,D18,N3) -> 165 | AO6: (Tkp+2Kf) | AP6: =($N$8*$N$11+2*$AB$4) -> 0.006752736464
L7: 分割数 | N7: =ROUND(3200/(AP18+AP20*10)*AP18,0) -> 1720 | AO7: (Tkp-2Kf) | AP7: =($N$8*$N$11-2*$AB$4) -> 0.006752736464
A8: <c> | B8: =IF(AE33=0,"リード","減速比") -> リード | C8: 2.5 | D8: =IF(AE33=0,"㎜","：1") -> ㎜ | L8: ⊿ｔ[s] | N8: =AT32-AT31 -> 0.0002250912155 | AO8: (2+TKp) | AP8: =(2+$N$8*$N$11) -> 2.006752736
L9: 最終時刻[s] | N9: =AT3231 -> 0.7202918895 | AO9: (2-TKp) | AP9: =(2-$N$8*$N$11) -> 1.993247264
A10: <d> | B10: ストローク | C10: 50 | D10: ㎜ | L10: 最終位置[㎜] | N10: =AV3231 -> 49.99990846 | AO10: 減速時間 | AP10: =N6/N5 -> 0.08412658757 | AQ10: s
L11: 位置ｹﾞｲﾝ | N11: =AE45 -> 30 | AO11: 減速距離 | AP11: =N5*AP10*AP10/2 -> 6.940443475 | AQ11: ㎜
A12: <e> | B12: 設置姿勢 | C12: 水平 | L12: 速度制御帯域 | N12: =AG45 -> 160 | AO12: 加速時間 | AP12: =N6/N4 -> 0.08412658757 | AQ12: s
AO13: 加速距離 | AP13: =N4*AP12*AP12/2 -> 6.940443475 | AQ13: ㎜
A14: <1> | B14: 移動距離[㎜] | D14: 50 | L14: 移動可能距離[㎜] | N14: =X45+Y45 -> 50 | AO14: 等速時間 | AP14: =IF(D18<N3,(D14-AP13-AP11)/D18,0) -> 0.2189037155 | AQ14: s
AO15: 等速距離 | AP15: =AP14*N6 -> 36.11911305 | AQ15: ㎜
A16: <2> | B16: =IF(AE33=0,"搬送質量[kg]","搬送ｲﾅｰｼｬ[kgm^2]") -> 搬送質量[kg] | D16: 8 | AO16: 減速時刻 | AP16: =AP12+AP14 -> 0.303030303 | AQ16: s
AO17: 減速位置 | AP17: =AP13+AP15 -> 43.05955653 | AQ17: ㎜
A18: <3> | B18: 速度[㎜/s] | D18: 165 | G18: ●計算結果 | AO18: TotalTime | AP18: =AP14+AP12+AP10 -> 0.3871568906 | AQ18: s
AE19: 運転姿勢 | AF19: →初期値 | AO19: Spdτ | AP19: =1/N12 -> 0.00625 | AQ19: s
A20: <4> | B20: 加速度[G] | D20: 0.2 | G20: 位置決め時間 [s] | I20: =LOOKUP((D14-D24),AV31:AV3231,AT31:AT3231) -> 0.4868722991 | AE20: 水平 | AF20: 水平 | AO20: Posτ | AP20: =1/N11 -> 0.03333333333 | AQ20: s
AE21: 垂直 | AO21: 収束時間 | AP21: =I20-AP18 -> 0.09971540845 | AQ21: s
A22: <5> | B22: 減速度[G] | D22: 0.2
A24: <6> | B24: 位置決め幅 [㎜] | D24: 0.1 | F24: =IF(N9<=I20,"位置決め時間を正しく計算できていません","※位置決め幅に到達するまでの時間を表します。") -> ※位置決め幅に到達するまでの時間を表します。
F25: =IF(N10<=I21,"","※計算結果は参考値です。 負荷状況により実際の位置決め時間とは異なる場合があります。 ※ゲイン調整により計算結果より早く位置決めできる場合があります。 詳しくは使用するコントローラーの取扱説明書をご確認ください。") -> ※計算結果は参考値です。 負荷状況により実際の位置決め時間とは異なる場合があります。 ※ゲイン調整により計算結果より早く位置決めできる場合があります。 詳しくは使用するコントローラーの取扱説明書をご確認ください。
A28: 1 | B28: =A28+1 -> 2 | C28: 3 | D28: 4 | E28: 5 | F28: 6 | G28: 7 | H28: 8 | I28: 9 | J28: 10 | K28: =J28+1 -> 11 | L28: 12 | M28: 13 | N28: 14 | O28: 15 | P28: =O28+1 -> 16 | Q28: =P28+1 -> 17 | R28: =Q28+1 -> 18 | S28: =R28+1 -> 19 | T28: 20 | U28: 21 | V28: 22 | W28: 23 | X28: 24 | Y28: 25 | Z28: 26 | AA28: 27 | AB28: 28 | AC28: 29 | AD28: 30 | AE28: 31 | AF28: 32 | AG28: 33 | AH28: 34 | AI28: 35 | AJ28: 36 | AK28: =AJ28+1 -> 37 | AL28: 38 | AM28: 39 | AN28: 40 | AO28: 41 | AP28: 42 | AQ28: 43 | AR28: 44 | AS28: 45 | AT28: 46 | AU28: 47 | AV28: 48
O29: ↓↓↓↓↓↓↓↓ フォント色を白にする列 O29～U193 ↓↓↓↓↓↓↓↓ | AS29: ↓↓↓↓↓↓↓↓↓↓↓↓↓↓↓ フォント色を白に、数式は非表示に、する列 A29～J3231 ↓↓↓↓↓↓↓↓↓↓↓↓↓↓↓
B30: 可搬質量 | C30: 加減速度 | D30: 最高速度 | E30: 実加速度 | F30: 到達速度 | G30: 運転時間 | H30: 三角速度 | O30: № | P30: メカ型式リスト | Q30: 絞込み | R30: ﾀｲﾌﾟﾘｽﾄ | S30: ﾘｰﾄﾞﾘｽﾄ | T30: ｽﾄﾛｰｸﾘｽﾄ | U30: 型式総数 | W30: =DataSerch!B1 -> メカ機種データレコード | AS30: № | AT30: 時刻 | AU30: 位置計画 | AV30: 位置
A31: =A30+1 -> 1 | B31: 8 | C31: 0.2 | D31: 165 | E31: 1961.33 | F31: 165 | G31: 0.3871568906 | H31: 313.1557121 | O31: 1 | P31: RCA2-SA3C | Q31: RCA-SA4C-20 | R31: RCA- | S31: 2.5 | T31: 50 | U31: 107 | W31: ﾚｺｰﾄﾞ№ | X31: =DataSerch!$C$2 -> ｱｸﾁｭｴｰﾀ型式 | Z31: =DataSerch!$E$2 -> 0 | AA31: =DataSerch!$F$2 -> 0 | AB31: =DataSerch!$G$2 -> 0 | AC31: =DataSerch!$H$2 -> 最小ｽﾄﾛｰｸ | AD31: =DataSerch!$I$2 -> 最大ｽﾄﾛｰｸ | AE31: =DataSerch!$J$2 -> 動作種別 | AF31: =DataSerch!$K$2 -> 0 | AS31: 0 | AT31: =$AP$18/$N$7*AS31 -> 0 | AU31: 0 | AV31: 0
A32: 2 | B32: -1 | C32: -1 | D32: -1 | E32: -1 | F32: -1 | G32: -1 | H32: -1 | O32: =O31+1 -> 2 | P32: RCA2-SA4C | Q32: RCA-SA5C-20 | R32: RCA2 | S32: 5 | T32: 100 | U32: 絞込み数 | W32: =DataSerch!$B$3 -> 9 | X32: =DataSerch!$C$3 -> RCA-SA4C-20 | Z32: =DataSerch!$E$4 -> [kg] | AA32: =DataSerch!$F$4 -> [mm] | AB32: =DataSerch!$G$4 -> [mm] | AC32: =DataSerch!$H$4 -> [mm] | AD32: =DataSerch!$I$4 -> [mm] | AE32: =DataSerch!$J$4 -> 0/1 | AF32: =DataSerch!$K$4 -> [K] | AS32: =AS31+1 -> 1 | AT32: 0.0002250912155 | AU32: =IF(($N$4*AT32^2/2)<=$AP$13,($N$4*AT32^2/2), IF(($AP$13+$N$6*(AT32-$AP$12))<=$AP$17, ($AP$13+$N$6*(AT32-$AP$12)), IF(AU31<$D$14, ($AP$17+($N$6-$N$5*(AT32-$AP$16)/2)*(AT32-$AP$16)), $D$14))) -> 4.96864271e-05 | AV32: =( $AP$6*AU32 + $AP$7*AU31 + $AP$9*AV31 )/$AP$8 -> 1.671951616e-07
A33: 3 | B33: -1 | C33: -1 | D33: -1 | E33: -1 | F33: -1 | G33: -1 | H33: -1 | O33: =O32+1 -> 3 | P33: RCA2-SA5C | Q33: RCA-SA6C-30 | R33: RCL | S33: 10 | T33: 150 | U33: 42 | AC33: =DataSerch!$H$5 -> 50 | AD33: =DataSerch!$I$5 -> 400 | AE33: =DataSerch!$J$5 -> 0 | AS33: =AS32+1 -> 2 | AT33: 0.0004501824309 | AU33: 0.0001987457084 | AV33: =( $AP$6*AU33 + $AP$7*AU32 + $AP$9*AV32 )/$AP$8 -> 1.002045744e-06
A34: 4 | B34: -1 | C34: -1 | D34: -1 | E34: -1 | F34: -1 | G34: -1 | H34: -1 | O34: 4 | P34: RCA2-SA6C | Q34: RCA-SA4D-20 | R34: RCA-SA | S34: - - - | T34: 200 | AS34: 3 | AT34: 0.0006752736464 | AU34: 0.0004471778439 | AV34: 3.168839063e-06
A35: 5 | B35: -1 | C35: -1 | D35: -1 | E35: -1 | F35: -1 | G35: -1 | H35: -1 | O35: 5 | P35: RCA2-SA3R | Q35: RCA-SA5D-20 | R35: RCA-SS | S35: - - - | T35: 250 | U35: ﾘｰﾄﾞ総数 | W35: リードデータレコード | AS35: 4 | AT35: 0.0009003648619 | AU35: 0.0007949828336 | AV35: 7.327391773e-06
A36: 6 | B36: -1 | C36: -1 | D36: -1 | E36: -1 | F36: -1 | G36: -1 | H36: -1 | O36: 6 | P36: RCA2-SA4R | Q36: RCA-SA6D-30 | R36: RCA-R | S36: - - - | T36: 300 | U36: 3 | W36: リスト№ | X36: =DataSerch!$F$24 -> ﾘｰﾄﾞ長 | Y36: =DataSerch!$G$24 -> 0 | Z36: =DataSerch!$H$24 -> 水平定格加速度 | AA36: =DataSerch!$I$24 -> 垂直定格加速度 | AB36: =DataSerch!$J$24 -> 水平最大加速度 | AC36: =DataSerch!$K$24 -> 垂直最大加速度 | AD36: =DataSerch!$L$24 -> 0 | AE36: =DataSerch!$M$24 -> 0 | AF36: =DataSerch!$N$24 -> 0 | AG36: =DataSerch!$O$24 -> ｷﾞｱ比分子 | AH36: =DataSerch!$P$24 -> ｷﾞｱ比分母 | AI36: =DataSerch!$Q$24 -> 0 | AJ36: =DataSerch!$R$24 -> ｽﾄﾛｰｸ刻み | AS36: 5 | AT36: 0.001125456077 | AU36: 0.001242160678 | AV36: 1.413307995e-05
A37: 7 | B37: -1 | C37: -1 | D37: -1 | E37: -1 | F37: -1 | G37: -1 | H37: -1 | O37: 7 | P37: RCA2-SA5R | Q37: RCA-SS4D-20 | R37: RCA-SR | S37: - - - | T37: 350 | AS37: 6 | AT37: 0.001350547293 | AU37: 0.001788711376 | AV37: 2.423686899e-05
A38: 8 | B38: -1 | C38: -1 | D38: -1 | E38: -1 | F38: -1 | G38: -1 | H38: -1 | O38: 8 | P38: RCA2-SA6R | Q38: RCA-SS5D-20 | R38: RCA-A | S38: - - - | T38: 400 | U38: ｽﾄﾛｰｸ総数 | W38: =DataSerch!$D$35 -> 1 | X38: =DataSerch!$F$25 -> [mm] | Y38: =DataSerch!$G$25 -> [kgm^2] | Z38: =DataSerch!$H$25 -> [m/s^2] | AA38: =DataSerch!$I$25 -> [m/s^2] | AB38: =DataSerch!$J$25 -> [m/s^2] | AC38: =DataSerch!$K$25 -> [m/s^2] | AD38: =DataSerch!$L$25 -> [Nm] | AE38: =DataSerch!$M$25 -> [Nms] | AF38: =DataSerch!$N$25 -> [Nm] | AG38: =DataSerch!$O$25 -> 0 | AH38: =DataSerch!$P$25 -> 0 | AI38: =DataSerch!$Q$25 -> 0 | AJ38: =DataSerch!$R$25 -> [mm] | AS38: 7 | AT38: 0.001575638508 | AU38: 0.002434634928 | AV38: 3.828534327e-05
A39: 9 | B39: -1 | C39: -1 | D39: -1 | E39: -1 | F39: -1 | G39: -1 | H39: -1 | O39: 9 | P39: RCA-SA4C-20 | Q39: RCA-SS6D-30 | R39: RCA2-SA | T39: - - - | U39: 8 | X39: =LOOKUP(W38,DataSerch!$B$26:$B$33,DataSerch!$F$26:$F$33) -> 2.5 | Z39: =LOOKUP(W38,DataSerch!$B$26:$B$33,DataSerch!$H$26:$H$33) -> 1.96133 | AA39: =LOOKUP(W38,DataSerch!$B$26:$B$33,DataSerch!$I$26:$I$33) -> 1.96133 | AB39: =LOOKUP(W38,DataSerch!$B$26:$B$33,DataSerch!$J$26:$J$33) -> 1.96133 | AC39: =LOOKUP(W38,DataSerch!$B$26:$B$33,DataSerch!$K$26:$K$33) -> 1.96133 | AG39: =LOOKUP(W38,DataSerch!$B$26:$B$33,DataSerch!$O$26:$O$33) -> 1 | AH39: =LOOKUP(W38,DataSerch!$B$26:$B$33,DataSerch!$P$26:$P$33) -> 1 | AJ39: =LOOKUP(W38,DataSerch!$B$26:$B$33,DataSerch!$R$26:$R$33) -> 50 | AS39: 8 | AT39: 0.001800729724 | AU39: 0.003179931334 | AV39: 5.692073566e-05
A40: 10 | B40: -1 | C40: -1 | D40: -1 | E40: -1 | F40: -1 | G40: -1 | H40: -1 | O40: 10 | P40: RCA-SA5C-20 | Q40: RCA-SA4R-20 | R40: RCA2-R | T40: - - - | AS40: 9 | AT40: 0.002025820939 | AU40: 0.004024600595 | AV40: 8.078095677e-05
A41: 11 | B41: -1 | C41: -1 | D41: -1 | E41: -1 | F41: -1 | G41: -1 | H41: -1 | O41: 11 | P41: RCA-SA6C-30 | Q41: RCA-SA5R-20 | R41: RCA2-G | T41: - - - | W41: ストロークデータレコード | AS41: 10 | AT41: 0.002250912155 | AU41: 0.00496864271 | AV41: 0.0001104996241
A42: 12 | B42: -1 | C42: -1 | D42: -1 | E42: -1 | F42: -1 | G42: -1 | H42: -1 | O42: 12 | P42: RCA-SA4D-20 | Q42: RCA-SA6R-30 | R42: RCA2-SD | T42: - - - | W42: リスト№ | X42: =DataSerch!$E$58 -> ｽﾄﾛｰｸ長 | Y42: =DataSerch!$G$58 -> 有効ｽﾄﾛｰｸ補正 | Z42: =DataSerch!$H$58 -> 0 | AA42: =DataSerch!$I$58 -> 基準ｹﾞｲﾝ用搬送質量 | AB42: =DataSerch!$J$58 -> 水平可搬質量 | AC42: =DataSerch!$K$58 -> 垂直可搬質量 | AD42: =DataSerch!$L$58 -> 最大速度 | AE42: =DataSerch!$M$58 -> 位置ｹﾞｲﾝ | AF42: =DataSerch!$N$58 -> FFｹﾞｲﾝ | AG42: =DataSerch!$O$58 -> 速度制御帯域 | AH42: =DataSerch!$P$58 -> 0 | AI42: =DataSerch!$Q$58 -> 0 | AJ42: =DataSerch!$R$58 -> 0 | AK42: =DataSerch!$S$58 -> 0 | AL42: =DataSerch!$T$58 -> 0 | AS42: 11 | AT42: 0.00247600337 | AU42: 0.006012057679 | AV42: 0.0001467060908
A43: 13 | B43: -1 | C43: -1 | D43: -1 | E43: -1 | F43: -1 | G43: -1 | H43: -1 | O43: 13 | P43: RCA-SA5D-20 | Q43: RCA-RA3C-20 | R43: RCA2-T | T43: - - - | AS43: 12 | AT43: 0.002701094586 | AU43: 0.007154845503 | AV43: 0.0001900254747
A44: 14 | B44: -1 | C44: -1 | D44: -1 | E44: -1 | F44: -1 | G44: -1 | H44: -1 | O44: 14 | P44: RCA-SA6D-30 | Q44: RCA-RA4C-20 | R44: RCD | T44: - - - | W44: =MATCH(C10,DataSerch!$E$60:$E$109,0) -> 1 | X44: =DataSerch!$E$59 -> [mm] | Y44: =DataSerch!$G$59 -> [mm] | Z44: =DataSerch!$H$59 -> [kg/mm] | AA44: =DataSerch!$I$59 -> [kg] | AB44: =DataSerch!$J$59 -> [kg] | AC44: =DataSerch!$K$59 -> [kg] | AD44: =DataSerch!$L$59 -> [mm/s] | AE44: =DataSerch!$M$59 -> [1/s] | AF44: =DataSerch!$N$59 -> [%] | AG44: =DataSerch!$O$59 -> [rad/s] | AH44: =DataSerch!$P$59 -> 0 | AI44: =DataSerch!$Q$59 -> [s] | AJ44: =DataSerch!$R$59 -> 0 | AK44: =DataSerch!$S$59 -> 0 | AL44: =DataSerch!$T$59 -> [Nm/rad] | AS44: 13 | AT44: 0.002926185801 | AU44: 0.00839700618 | AV44: 0.0002410786863
A45: 15 | B45: -1 | C45: -1 | D45: -1 | E45: -1 | F45: -1 | G45: -1 | H45: -1 | O45: 15 | P45: RCA-SS4D-20 | Q45: RCA-RA4C-30 | T45: - - - | X45: =LOOKUP(W44,DataSerch!$D$60:$D$109,DataSerch!$E$60:$E$109) -> 50 | Y45: =LOOKUP(W44,DataSerch!$D$60:$D$109,DataSerch!$G$60:$G$109) -> 0 | AA45: =LOOKUP(W44,DataSerch!$D$60:$D$109,DataSerch!$I$60:$I$109) -> 8 | AB45: =LOOKUP(W44,DataSerch!$D$60:$D$109,DataSerch!$J$60:$J$109) -> 8 | AC45: =LOOKUP(W44,DataSerch!$D$60:$D$109,DataSerch!$K$60:$K$109) -> 4.5 | AD45: =LOOKUP(W44,DataSerch!$D$60:$D$109,DataSerch!$L$60:$L$109) -> 165 | AE45: =LOOKUP(W44,DataSerch!$D$60:$D$109,DataSerch!$M$60:$M$109) -> 30 | AF45: =LOOKUP(W44,DataSerch!$D$60:$D$109,DataSerch!$N$60:$N$109) -> 0 | AG45: =LOOKUP(W44,DataSerch!$D$60:$D$109,DataSerch!$O$60:$O$109) -> 160 | AS45: 14 | AT45: 0.003151277017 | AU45: 0.009738539712 | AV45: 0.0003004824575
A46: 16 | B46: -1 | C46: -1 | D46: -1 | E46: -1 | F46: -1 | G46: -1 | H46: -1 | O46: 16 | P46: RCA-SS5D-20 | Q46: RCA-RA3D-20 | T46: - - - | AS46: 15 | AT46: 0.003376368232 | AU46: 0.0111794461 | AV46: 0.0003688493695
A47: 17 | B47: -1 | C47: -1 | D47: -1 | E47: -1 | F47: -1 | G47: -1 | H47: -1 | O47: 17 | P47: RCA-SS6D-30 | Q47: RCA-RA4D-20 | T47: - - - | AS47: 16 | AT47: 0.003601459447 | AU47: 0.01271972534 | AV47: 0.000446787881
A48: 18 | B48: -1 | C48: -1 | D48: -1 | E48: -1 | F48: -1 | G48: -1 | H48: -1 | O48: 18 | P48: RCA-SA4R-20 | Q48: RCA-RA4D-30 | T48: - - - | AS48: 17 | AT48: 0.003826550663 | AU48: 0.01435937743 | AV48: 0.0005349023556
A49: 19 | B49: -1 | C49: -1 | D49: -1 | E49: -1 | F49: -1 | G49: -1 | H49: -1 | O49: 19 | P49: RCA-SA5R-20 | Q49: RCA-RA3R-20 | T49: - - - | AS49: 18 | AT49: 0.004051641878 | AU49: 0.01609840238 | AV49: 0.0006337930896
A50: 20 | B50: -1 | C50: -1 | D50: -1 | E50: -1 | F50: -1 | G50: -1 | H50: -1 | O50: 20 | P50: RCA-SA6R-30 | Q50: RCA-RA4R-20 | T50: - - - | U50: リンクリスト総数 | AS50: 19 | AT50: 0.004276733094 | AU50: 0.01793680018 | AV50: 0.0007440563393
A51: 21 | B51: -1 | C51: -1 | D51: -1 | E51: -1 | F51: -1 | G51: -1 | H51: -1 | O51: 21 | P51: RCA2-RN3NA-10 | Q51: RCA-RA4R-30 | T51: - - - | U51: 1 | AS51: 20 | AT51: 0.004501824309 | AU51: 0.01987457084 | AV51: 0.0008662843481
A52: 22 | B52: -1 | C52: -1 | D52: -1 | E52: -1 | F52: -1 | G52: -1 | H52: -1 | O52: 22 | P52: RCA2-RN3NA-10-*S | Q52: RCA-SRA4R-20 | T52: - - - | AS52: 21 | AT52: 0.004726915525 | AU52: 0.02191171435 | AV52: 0.001001065374
A53: 23 | B53: -1 | C53: -1 | D53: -1 | E53: -1 | F53: -1 | G53: -1 | H53: -1 | O53: 23 | P53: RCA2-RN4NA-20 | Q53: RCA-RGS3C-20 | T53: - - - | AS53: 22 | AT53: 0.00495200674 | AU53: 0.02404823072 | AV53: 0.001148983715
A54: 24 | B54: -1 | C54: -1 | D54: -1 | E54: -1 | F54: -1 | G54: -1 | H54: -1 | O54: 24 | P54: RCA2-RN4NA-20-*S | Q54: RCA-RGS4C-20 | T54: - - - | AS54: 23 | AT54: 0.005177097956 | AU54: 0.02628411994 | AV54: 0.001310619738
A55: 25 | B55: -1 | C55: -1 | D55: -1 | E55: -1 | F55: -1 | G55: -1 | H55: -1 | O55: 25 | P55: RCA2-RP3NA-10 | Q55: RCA-RGS4C-30 | T55: - - - | AS55: 24 | AT55: 0.005402189171 | AU55: 0.02861938201 | AV55: 0.001486549903
A56: 26 | B56: -1 | C56: -1 | D56: -1 | E56: -1 | F56: -1 | G56: -1 | H56: -1 | O56: 26 | P56: RCA2-RP3NA-10-*S | Q56: RCA-RGS3D-20 | T56: - - - | AS56: 25 | AT56: 0.005627280387 | AU56: 0.03105401694 | AV56: 0.001677346791
A57: 27 | B57: -1 | C57: -1 | D57: -1 | E57: -1 | F57: -1 | G57: -1 | H57: -1 | O57: 27 | P57: RCA2-RP4NA-20 | Q57: RCA-RGS4D-20 | T57: - - - | AS57: 26 | AT57: 0.005852371602 | AU57: 0.03358802472 | AV57: 0.00188357913
A58: 28 | B58: -1 | C58: -1 | D58: -1 | E58: -1 | F58: -1 | G58: -1 | H58: -1 | O58: 28 | P58: RCA2-RP4NA-20-*S | Q58: RCA-RGS4D-30 | T58: - - - | AS58: 27 | AT58: 0.006077462818 | AU58: 0.03622140536 | AV58: 0.002105811819
A59: 29 | B59: -1 | C59: -1 | D59: -1 | E59: -1 | F59: -1 | G59: -1 | H59: -1 | O59: 29 | P59: RCA2-GS3NA-10 | Q59: RCA-SRGS4R-20 | T59: - - - | AS59: 28 | AT59: 0.006302554033 | AU59: 0.03895415885 | AV59: 0.002344605956
A60: 30 | B60: -1 | C60: -1 | D60: -1 | E60: -1 | F60: -1 | G60: -1 | H60: -1 | O60: 30 | P60: RCA2-GS3NA-10-*S | Q60: RCA-RGD3C-20 | T60: - - - | AS60: 29 | AT60: 0.006527645249 | AU60: 0.04178628519 | AV60: 0.002600518864
A61: 31 | B61: -1 | C61: -1 | D61: -1 | E61: -1 | F61: -1 | G61: -1 | H61: -1 | O61: 31 | P61: RCA2-GS4NA-20 | Q61: RCA-RGD4C-20 | T61: - - - | AS61: 30 | AT61: 0.006752736464 | AU61: 0.04471778439 | AV61: 0.002874104114
A62: 32 | B62: -1 | C62: -1 | D62: -1 | E62: -1 | F62: -1 | G62: -1 | H62: -1 | O62: 32 | P62: RCA2-GS4NA-20-*S | Q62: RCA-RGD4C-30 | T62: - - - | AS62: 31 | AT62: 0.006977827679 | AU62: 0.04774865644 | AV62: 0.00316591155
A63: 33 | B63: -1 | C63: -1 | D63: -1 | E63: -1 | F63: -1 | G63: -1 | H63: -1 | O63: 33 | P63: RCA2-GD3NA-10 | Q63: RCA-RGD3D-20 | T63: - - - | AS63: 32 | AT63: 0.007202918895 | AU63: 0.05087890135 | AV63: 0.003476487318
A64: 34 | B64: -1 | C64: -1 | D64: -1 | E64: -1 | F64: -1 | G64: -1 | H64: -1 | O64: 34 | P64: RCA2-GD3NA-10-*S | Q64: RCA-RGD4D-20 | T64: - - - | AS64: 33 | AT64: 0.00742801011 | AU64: 0.05410851911 | AV64: 0.003806373888
A65: 35 | B65: -1 | C65: -1 | D65: -1 | E65: -1 | F65: -1 | G65: -1 | H65: -1 | O65: 35 | P65: RCA2-GD4NA-20 | Q65: RCA-RGD4D-30 | T65: - - - | AS65: 34 | AT65: 0.007653101326 | AU65: 0.05743750973 | AV65: 0.004156110079
A66: 36 | B66: -1 | C66: -1 | D66: -1 | E66: -1 | F66: -1 | G66: -1 | H66: -1 | O66: 36 | P66: RCA2-GD4NA-20-*S | Q66: RCA-RGD3R-20 | T66: - - - | AS66: 35 | AT66: 0.007878192541 | AU66: 0.0608658732 | AV66: 0.004526231082
A67: 37 | B67: -1 | C67: -1 | D67: -1 | E67: -1 | F67: -1 | G67: -1 | H67: -1 | O67: 37 | P67: RCA2-SD3NA-10 | Q67: RCA-RGD4R-20 | T67: - - - | AS67: 36 | AT67: 0.008103283757 | AU67: 0.06439360952 | AV67: 0.004917268488
A68: 38 | B68: -1 | C68: -1 | D68: -1 | E68: -1 | F68: -1 | G68: -1 | H68: -1 | O68: 38 | P68: RCA2-SD3NA-10-*S | Q68: RCA-RGD4R-30 | T68: - - - | AS68: 37 | AT68: 0.008328374972 | AU68: 0.0680207187 | AV68: 0.00532975031
A69: 39 | B69: -1 | C69: -1 | D69: -1 | E69: -1 | F69: -1 | G69: -1 | H69: -1 | O69: 39 | P69: RCA2-SD4NA-20 | Q69: RCA-SRGD4R-20 | T69: - - - | AS69: 38 | AT69: 0.008553466188 | AU69: 0.07174720073 | AV69: 0.005764201009
A70: 40 | B70: -1 | C70: -1 | D70: -1 | E70: -1 | F70: -1 | G70: -1 | H70: -1 | O70: 40 | P70: RCA2-SD4NA-20-*S | Q70: RCA-A4R-20 | T70: - - - | AS70: 39 | AT70: 0.008778557403 | AU70: 0.07557305562 | AV70: 0.006221141512
A71: 41 | B71: -1 | C71: -1 | D71: -1 | E71: -1 | F71: -1 | G71: -1 | H71: -1 | O71: 41 | P71: RCA-RA3C-20 | Q71: RCA-A5R-20 | T71: - - - | AS71: 40 | AT71: 0.009003648619 | AU71: 0.07949828336 | AV71: 0.006701089246
A72: 42 | B72: -1 | C72: -1 | D72: -1 | E72: -1 | F72: -1 | G72: -1 | H72: -1 | O72: 42 | P72: RCA-RA4C-20 | Q72: RCA-A6R-30 | T72: - - - | AS72: 41 | AT72: 0.009228739834 | AU72: 0.08352288396 | AV72: 0.00720455815
A73: 43 | B73: -1 | C73: -1 | D73: -1 | E73: -1 | F73: -1 | G73: -1 | H73: -1 | O73: 43 | P73: RCA-RA4C-30 | Q73: - - - | T73: - - - | AS73: 42 | AT73: 0.00945383105 | AU73: 0.08764685741 | AV73: 0.007732058708
A74: 44 | B74: -1 | C74: -1 | D74: -1 | E74: -1 | F74: -1 | G74: -1 | H74: -1 | O74: 44 | P74: RCA-RA3D-20 | Q74: - - - | T74: - - - | AS74: 43 | AT74: 0.009678922265 | AU74: 0.09187020371 | AV74: 0.008284097968
A75: 45 | B75: -1 | C75: -1 | D75: -1 | E75: -1 | F75: -1 | G75: -1 | H75: -1 | O75: 45 | P75: RCA-RA4D-20 | Q75: - - - | T75: - - - | AS75: 44 | AT75: 0.00990401348 | AU75: 0.09619292287 | AV75: 0.008861179564
A76: 46 | B76: -1 | C76: -1 | D76: -1 | E76: -1 | F76: -1 | G76: -1 | H76: -1 | O76: 46 | P76: RCA-RA4D-30 | Q76: - - - | T76: - - - | AS76: 45 | AT76: 0.0101291047 | AU76: 0.1006150149 | AV76: 0.009463803741
A77: 47 | B77: -1 | C77: -1 | D77: -1 | E77: -1 | F77: -1 | G77: -1 | H77: -1 | O77: 47 | P77: RCA-RA3R-20 | Q77: - - - | T77: - - - | AS77: 46 | AT77: 0.01035419591 | AU77: 0.1051364797 | AV77: 0.01009246738
A78: 48 | B78: -1 | C78: -1 | D78: -1 | E78: -1 | F78: -1 | G78: -1 | H78: -1 | O78: 48 | P78: RCA-RA4R-20 | Q78: - - - | T78: - - - | AS78: 47 | AT78: 0.01057928713 | AU78: 0.1097573175 | AV78: 0.01074766401
A79: 49 | B79: -1 | C79: -1 | D79: -1 | E79: -1 | F79: -1 | G79: -1 | H79: -1 | O79: 49 | P79: RCA-RA4R-30 | Q79: - - - | T79: - - - | AS79: 48 | AT79: 0.01080437834 | AU79: 0.114477528 | AV79: 0.01142988385
A80: 50 | B80: -1 | C80: -1 | D80: -1 | E80: -1 | F80: -1 | G80: -1 | H80: -1 | O80: 50 | P80: RCA-SRA4R-20 | Q80: - - - | T80: - - - | AS80: 49 | AT80: 0.01102946956 | AU80: 0.1192971115 | AV80: 0.01213961382
A81: 51 | B81: -1 | C81: -1 | D81: -1 | E81: -1 | F81: -1 | G81: -1 | H81: -1 | O81: 51 | P81: RCA-RGS3C-20 | Q81: - - - | AS81: 50 | AT81: 0.01125456077 | AU81: 0.1242160678 | AV81: 0.01287733754
A82: 52 | B82: -1 | C82: -1 | D82: -1 | E82: -1 | F82: -1 | G82: -1 | H82: -1 | O82: 52 | P82: RCA-RGS4C-20 | Q82: - - - | AS82: 51 | AT82: 0.01147965199 | AU82: 0.1292343969 | AV82: 0.0136435354
A83: 53 | B83: -1 | C83: -1 | D83: -1 | E83: -1 | F83: -1 | G83: -1 | H83: -1 | O83: 53 | P83: RCA-RGS4C-30 | Q83: - - - | AS83: 52 | AT83: 0.0117047432 | AU83: 0.1343520989 | AV83: 0.01443868456
A84: 54 | B84: -1 | C84: -1 | D84: -1 | E84: -1 | F84: -1 | G84: -1 | H84: -1 | O84: 54 | P84: RCA-RGS3D-20 | Q84: - - - | AS84: 53 | AT84: 0.01192983442 | AU84: 0.1395691737 | AV84: 0.01526325894
A85: 55 | B85: -1 | C85: -1 | D85: -1 | E85: -1 | F85: -1 | G85: -1 | H85: -1 | O85: 55 | P85: RCA-RGS4D-20 | Q85: - - - | AS85: 54 | AT85: 0.01215492564 | AU85: 0.1448856214 | AV85: 0.0161177293
A86: 56 | B86: -1 | C86: -1 | D86: -1 | E86: -1 | F86: -1 | G86: -1 | H86: -1 | O86: 56 | P86: RCA-RGS4D-30 | Q86: - - - | AS86: 55 | AT86: 0.01238001685 | AU86: 0.150301442 | AV86: 0.01700256322
A87: 57 | B87: -1 | C87: -1 | D87: -1 | E87: -1 | F87: -1 | G87: -1 | H87: -1 | O87: 57 | P87: RCA-SRGS4R-20 | Q87: - - - | AS87: 56 | AT87: 0.01260510807 | AU87: 0.1558166354 | AV87: 0.01791822513
A88: 58 | B88: -1 | C88: -1 | D88: -1 | E88: -1 | F88: -1 | G88: -1 | H88: -1 | O88: 58 | P88: RCA-RGD3C-20 | Q88: - - - | AS88: 57 | AT88: 0.01283019928 | AU88: 0.1614312017 | AV88: 0.01886517635
A89: 59 | B89: -1 | C89: -1 | D89: -1 | E89: -1 | F89: -1 | G89: -1 | H89: -1 | O89: 59 | P89: RCA-RGD4C-20 | Q89: - - - | AS89: 58 | AT89: 0.0130552905 | AU89: 0.1671451408 | AV89: 0.01984387506
A90: 60 | B90: -1 | C90: -1 | D90: -1 | E90: -1 | F90: -1 | G90: -1 | H90: -1 | O90: 60 | P90: RCA-RGD4C-30 | Q90: - - - | AS90: 59 | AT90: 0.01328038171 | AU90: 0.1729584527 | AV90: 0.02085477639
A91: 61 | B91: -1 | C91: -1 | D91: -1 | E91: -1 | F91: -1 | G91: -1 | H91: -1 | O91: 61 | P91: RCA-RGD3D-20 | Q91: - - - | AS91: 60 | AT91: 0.01350547293 | AU91: 0.1788711376 | AV91: 0.02189833241
A92: 62 | B92: -1 | C92: -1 | D92: -1 | E92: -1 | F92: -1 | G92: -1 | H92: -1 | O92: 62 | P92: RCA-RGD4D-20 | Q92: - - - | AS92: 61 | AT92: 0.01373056414 | AU92: 0.1848831952 | AV92: 0.02297499211
A93: 63 | B93: -1 | C93: -1 | D93: -1 | E93: -1 | F93: -1 | G93: -1 | H93: -1 | O93: 63 | P93: RCA-RGD4D-30 | Q93: - - - | AS93: 62 | AT93: 0.01395565536 | AU93: 0.1909946258 | AV93: 0.0240852015
A94: 64 | B94: -1 | C94: -1 | D94: -1 | E94: -1 | F94: -1 | G94: -1 | H94: -1 | O94: 64 | P94: RCA-RGD3R-20 | Q94: - - - | AS94: 63 | AT94: 0.01418074657 | AU94: 0.1972054292 | AV94: 0.02522940357
A95: =A94+1 -> 65 | B95: -1 | C95: -1 | D95: -1 | E95: -1 | F95: -1 | G95: -1 | H95: -1 | O95: 65 | P95: RCA-RGD4R-20 | Q95: - - - | AS95: 64 | AT95: =$AP$18/$N$7*AS95 -> 0.01440583779 | AU95: 0.2035156054 | AV95: 0.02640803832
A96: 66 | B96: -1 | C96: -1 | D96: -1 | E96: -1 | F96: -1 | G96: -1 | H96: -1 | O96: 66 | P96: RCA-RGD4R-30 | Q96: - - - | AS96: 65 | AT96: 0.01463092901 | AU96: =IF(($N$4*AT96^2/2)<=$AP$13,($N$4*AT96^2/2), IF(($AP$13+$N$6*(AT96-$AP$12))<=$AP$17, ($AP$13+$N$6*(AT96-$AP$12)), IF(AU95<$D$14, ($AP$17+($N$6-$N$5*(AT96-$AP$16)/2)*(AT96-$AP$16)), $D$14))) -> 0.2099251545 | AV96: 0.02762154281
A97: 67 | B97: -1 | C97: -1 | D97: -1 | E97: -1 | F97: -1 | G97: -1 | H97: -1 | O97: =O96+1 -> 67 | P97: RCA-SRGD4R-20 | Q97: - - - | AS97: =AS96+1 -> 66 | AT97: 0.01485602022 | AU97: 0.2164340765 | AV97: =( $AP$6*AU97 + $AP$7*AU96 + $AP$9*AV96 )/$AP$8 -> 0.02887035114
A98: 68 | B98: -1 | C98: -1 | D98: -1 | E98: -1 | F98: -1 | G98: -1 | H98: -1 | O98: 68 | P98: RCA2-TCA3NA-10 | Q98: - - - | AS98: 67 | AT98: 0.01508111144 | AU98: 0.2230423713 | AV98: 0.03015489449
A99: 69 | B99: -1 | C99: -1 | D99: -1 | E99: -1 | F99: -1 | G99: -1 | H99: -1 | O99: 69 | P99: RCA2-TCA3NA-10-*S | Q99: - - - | AS99: 68 | AT99: 0.01530620265 | AU99: 0.2297500389 | AV99: 0.03147560115
A100: 70 | B100: -1 | C100: -1 | D100: -1 | E100: -1 | F100: -1 | G100: -1 | H100: -1 | O100: 70 | P100: RCA2-TCA4NA-20 | Q100: - - - | AS100: 69 | AT100: 0.01553129387 | AU100: 0.2365570794 | AV100: 0.03283289652
A101: 71 | B101: -1 | C101: -1 | D101: -1 | E101: -1 | F101: -1 | G101: -1 | H101: -1 | O101: 71 | P101: RCA2-TCA4NA-20-*S | Q101: - - - | AS101: 70 | AT101: 0.01575638508 | AU101: 0.2434634928 | AV101: 0.03422720314
A102: 72 | B102: -1 | C102: -1 | D102: -1 | E102: -1 | F102: -1 | G102: -1 | H102: -1 | O102: 72 | P102: RCA2-TWA3NA-10 | Q102: - - - | AS102: 71 | AT102: 0.0159814763 | AU102: 0.250469279 | AV102: 0.03565894071
A103: 73 | B103: -1 | C103: -1 | D103: -1 | E103: -1 | F103: -1 | G103: -1 | H103: -1 | O103: 73 | P103: RCA2-TWA3NA-10-*S | Q103: - - - | AS103: 72 | AT103: 0.01620656751 | AU103: 0.2575744381 | AV103: 0.03712852608
A104: 74 | B104: -1 | C104: -1 | D104: -1 | E104: -1 | F104: -1 | G104: -1 | H104: -1 | O104: 74 | P104: RCA2-TWA4NA-20 | Q104: - - - | AS104: 73 | AT104: 0.01643165873 | AU104: 0.26477897 | AV104: 0.03863637334
A105: 75 | B105: -1 | C105: -1 | D105: -1 | E105: -1 | F105: -1 | G105: -1 | H105: -1 | O105: 75 | P105: RCA2-TWA4NA-20-*S | Q105: - - - | AS105: 74 | AT105: 0.01665674994 | AU105: 0.2720828748 | AV105: 0.04018289375
A106: 76 | B106: -1 | C106: -1 | D106: -1 | E106: -1 | F106: -1 | G106: -1 | H106: -1 | O106: 76 | P106: RCA2-TFA3NA-10 | Q106: - - - | AS106: 75 | AT106: 0.01688184116 | AU106: 0.2794861524 | AV106: 0.04176849582
A107: 77 | B107: -1 | C107: -1 | D107: -1 | E107: -1 | F107: -1 | G107: -1 | H107: -1 | O107: 77 | P107: RCA2-TFA3NA-10-*S | Q107: - - - | AS107: 76 | AT107: 0.01710693238 | AU107: 0.2869888029 | AV107: 0.04339358532
A108: 78 | B108: -1 | C108: -1 | D108: -1 | E108: -1 | F108: -1 | G108: -1 | H108: -1 | O108: 78 | P108: RCA2-TFA4NA-20 | Q108: - - - | AS108: 77 | AT108: 0.01733202359 | AU108: 0.2945908263 | AV108: 0.04505856527
A109: 79 | B109: -1 | C109: -1 | D109: -1 | E109: -1 | F109: -1 | G109: -1 | H109: -1 | O109: 79 | P109: RCA2-TFA4NA-20-*S | Q109: - - - | AS109: 78 | AT109: 0.01755711481 | AU109: 0.3022922225 | AV109: 0.046763836
A110: 80 | B110: -1 | C110: -1 | D110: -1 | E110: -1 | F110: -1 | G110: -1 | H110: -1 | O110: 80 | P110: RCA2-TA4C | Q110: - - - | AS110: 79 | AT110: 0.01778220602 | AU110: 0.3100929915 | AV110: 0.04850979512
A111: 81 | B111: -1 | C111: -1 | D111: -1 | E111: -1 | F111: -1 | G111: -1 | H111: -1 | O111: 81 | P111: RCA2-TA5C | Q111: - - - | AS111: 80 | AT111: 0.01800729724 | AU111: 0.3179931334 | AV111: 0.05029683758
A112: 82 | B112: -1 | C112: -1 | D112: -1 | E112: -1 | F112: -1 | G112: -1 | H112: -1 | O112: 82 | P112: RCA2-TA6C | Q112: - - - | AS112: 81 | AT112: 0.01823238845 | AU112: 0.3259926482 | AV112: 0.05212535568
A113: 83 | B113: -1 | C113: -1 | D113: -1 | E113: -1 | F113: -1 | G113: -1 | H113: -1 | O113: 83 | P113: RCA2-TA7C | Q113: - - - | AS113: 82 | AT113: 0.01845747967 | AU113: 0.3340915358 | AV113: 0.05399573905
A114: 84 | B114: -1 | C114: -1 | D114: -1 | E114: -1 | F114: -1 | G114: -1 | H114: -1 | O114: 84 | P114: RCA2-TA4R | Q114: - - - | AS114: 83 | AT114: 0.01868257088 | AU114: 0.3422897963 | AV114: 0.05590837474
A115: 85 | B115: -1 | C115: -1 | D115: -1 | E115: -1 | F115: -1 | G115: -1 | H115: -1 | O115: 85 | P115: RCA2-TA5R | Q115: - - - | AS115: 84 | AT115: 0.0189076621 | AU115: 0.3505874296 | AV115: 0.05786364715
A116: 86 | B116: -1 | C116: -1 | D116: -1 | E116: -1 | F116: -1 | G116: -1 | H116: -1 | O116: 86 | P116: RCA2-TA6R | Q116: - - - | AS116: 85 | AT116: 0.01913275331 | AU116: 0.3589844358 | AV116: 0.05986193813
A117: 87 | B117: -1 | C117: -1 | D117: -1 | E117: -1 | F117: -1 | G117: -1 | H117: -1 | O117: 87 | P117: RCA2-TA7R | Q117: - - - | AS117: 86 | AT117: 0.01935784453 | AU117: 0.3674808148 | AV117: 0.06190362694
A118: 88 | B118: -1 | C118: -1 | D118: -1 | E118: -1 | F118: -1 | G118: -1 | H118: -1 | O118: 88 | P118: RCA-A4R-20 | Q118: - - - | AS118: 87 | AT118: 0.01958293575 | AU118: 0.3760765667 | AV118: 0.06398909029
A119: 89 | B119: -1 | C119: -1 | D119: -1 | E119: -1 | F119: -1 | G119: -1 | H119: -1 | O119: 89 | P119: RCA-A5R-20 | Q119: - - - | AS119: 88 | AT119: 0.01980802696 | AU119: 0.3847716915 | AV119: 0.06611870236
A120: 90 | B120: -1 | C120: -1 | D120: -1 | E120: -1 | F120: -1 | G120: -1 | H120: -1 | O120: 90 | P120: RCA-A6R-30 | Q120: - - - | AS120: 89 | AT120: 0.02003311818 | AU120: 0.3935661891 | AV120: 0.06829283481
A121: 91 | B121: -1 | C121: -1 | D121: -1 | E121: -1 | F121: -1 | G121: -1 | H121: -1 | O121: 91 | P121: RCL-SA1L | Q121: - - - | AS121: 90 | AT121: 0.02025820939 | AU121: 0.4024600595 | AV121: 0.07051185679
A122: 92 | B122: -1 | C122: -1 | D122: -1 | E122: -1 | F122: -1 | G122: -1 | H122: -1 | O122: 92 | P122: RCL-SA2L | Q122: - - - | AS122: 91 | AT122: 0.02048330061 | AU122: 0.4114533028 | AV122: 0.07277613499
A123: 93 | B123: -1 | C123: -1 | D123: -1 | E123: -1 | F123: -1 | G123: -1 | H123: -1 | O123: 93 | P123: RCL-SA3L | Q123: - - - | AS123: 92 | AT123: 0.02070839182 | AU123: 0.420545919 | AV123: 0.0750860336
A124: 94 | B124: -1 | C124: -1 | D124: -1 | E124: -1 | F124: -1 | G124: -1 | H124: -1 | O124: 94 | P124: RCL-SA4L | Q124: - - - | AS124: 93 | AT124: 0.02093348304 | AU124: 0.429737908 | AV124: 0.07744191439
A125: 95 | B125: -1 | C125: -1 | D125: -1 | E125: -1 | F125: -1 | G125: -1 | H125: -1 | O125: 95 | P125: RCL-SM4L | Q125: - - - | AS125: 94 | AT125: 0.02115857425 | AU125: 0.4390292699 | AV125: 0.07984413666
A126: 96 | B126: -1 | C126: -1 | D126: -1 | E126: -1 | F126: -1 | G126: -1 | H126: -1 | O126: 96 | P126: RCL-SA5L | Q126: - - - | AS126: 95 | AT126: 0.02138366547 | AU126: 0.4484200046 | AV126: 0.08229305733
A127: 97 | B127: -1 | C127: -1 | D127: -1 | E127: -1 | F127: -1 | G127: -1 | H127: -1 | O127: 97 | P127: RCL-SM5L | Q127: - - - | AS127: 96 | AT127: 0.02160875668 | AU127: 0.4579101122 | AV127: 0.08478903089
A128: 98 | B128: -1 | C128: -1 | D128: -1 | E128: -1 | F128: -1 | G128: -1 | H128: -1 | O128: 98 | P128: RCL-SA6L | Q128: - - - | AS128: 97 | AT128: 0.0218338479 | AU128: 0.4674995926 | AV128: 0.08733240945
A129: 99 | B129: -1 | C129: -1 | D129: -1 | E129: -1 | F129: -1 | G129: -1 | H129: -1 | O129: 99 | P129: RCL-SM6L | Q129: - - - | AS129: 98 | AT129: 0.02205893912 | AU129: 0.4771884459 | AV129: 0.08992354277
A130: 100 | B130: -1 | C130: -1 | D130: -1 | E130: -1 | F130: -1 | G130: -1 | H130: -1 | O130: 100 | P130: RCL-RA1L | Q130: - - - | AS130: 99 | AT130: 0.02228403033 | AU130: 0.486976672 | AV130: 0.09256277823
A131: 101 | B131: -1 | C131: -1 | D131: -1 | E131: -1 | F131: -1 | G131: -1 | H131: -1 | O131: 101 | P131: RCL-RA2L | Q131: - - - | AS131: 100 | AT131: 0.02250912155 | AU131: 0.496864271 | AV131: 0.09525046088
A132: 102 | B132: -1 | C132: -1 | D132: -1 | E132: -1 | F132: -1 | G132: -1 | H132: -1 | O132: 102 | P132: RCL-RA3L | Q132: - - - | AS132: =AS131+1 -> 101 | AT132: 0.02273421276 | AU132: 0.5068512429 | AV132: 0.09798693345
A133: 103 | B133: -1 | C133: -1 | D133: -1 | E133: -1 | F133: -1 | G133: -1 | H133: -1 | O133: 103 | P133: RCA2-SA2AC | Q133: - - - | AS133: 102 | AT133: 0.02295930398 | AU133: 0.5169375876 | AV133: 0.1007725364
A134: 104 | B134: -1 | C134: -1 | D134: -1 | E134: -1 | F134: -1 | G134: -1 | H134: -1 | O134: 104 | P134: RCA2-SA2AR | Q134: - - - | AS134: 103 | AT134: 0.02318439519 | AU134: 0.5271233051 | AV134: 0.1036076078
A135: 105 | B135: -1 | C135: -1 | D135: -1 | E135: -1 | F135: -1 | G135: -1 | H135: -1 | O135: 105 | P135: RCA2-RA2AC | Q135: - - - | AS135: 104 | AT135: 0.02340948641 | AU135: 0.5374083955 | AV135: 0.1064924835
A136: 106 | B136: -1 | C136: -1 | D136: -1 | E136: -1 | F136: -1 | G136: -1 | H136: -1 | O136: 106 | P136: RCA2-RA2AR | Q136: - - - | AS136: 105 | AT136: 0.02363457762 | AU136: 0.5477928588 | AV136: 0.1094274972
A137: 107 | B137: -1 | C137: -1 | D137: -1 | E137: -1 | F137: -1 | G137: -1 | H137: -1 | O137: 107 | P137: RCD-RA1D | AS137: 106 | AT137: 0.02385966884 | AU137: 0.5582766949 | AV137: 0.1124129802
A138: 108 | B138: -1 | C138: -1 | D138: -1 | E138: -1 | F138: -1 | G138: -1 | H138: -1 | AS138: 107 | AT138: 0.02408476005 | AU138: 0.5688599039 | AV138: 0.1154492615
A139: 109 | B139: -1 | C139: -1 | D139: -1 | E139: -1 | F139: -1 | G139: -1 | H139: -1 | AS139: 108 | AT139: 0.02430985127 | AU139: 0.5795424857 | AV139: 0.1185366682
A140: 110 | B140: -1 | C140: -1 | D140: -1 | E140: -1 | F140: -1 | G140: -1 | H140: -1 | AS140: 109 | AT140: 0.02453494249 | AU140: 0.5903244404 | AV140: 0.1216755249
A141: 111 | B141: -1 | C141: -1 | D141: -1 | E141: -1 | F141: -1 | G141: -1 | H141: -1 | AS141: 110 | AT141: 0.0247600337 | AU141: 0.6012057679 | AV141: 0.1248661542
A142: 112 | B142: -1 | C142: -1 | D142: -1 | E142: -1 | F142: -1 | G142: -1 | H142: -1 | AS142: 111 | AT142: 0.02498512492 | AU142: 0.6121864683 | AV142: 0.1281088763
A143: 113 | B143: -1 | C143: -1 | D143: -1 | E143: -1 | F143: -1 | G143: -1 | H143: -1 | AS143: 112 | AT143: 0.02521021613 | AU143: 0.6232665416 | AV143: 0.1314040096
A144: 114 | B144: -1 | C144: -1 | D144: -1 | E144: -1 | F144: -1 | G144: -1 | H144: -1 | AS144: 113 | AT144: 0.02543530735 | AU144: 0.6344459877 | AV144: 0.1347518699
A145: 115 | B145: -1 | C145: -1 | D145: -1 | E145: -1 | F145: -1 | G145: -1 | H145: -1 | AS145: 114 | AT145: 0.02566039856 | AU145: 0.6457248066 | AV145: 0.1381527714
A146: 116 | B146: -1 | C146: -1 | D146: -1 | E146: -1 | F146: -1 | G146: -1 | H146: -1 | AS146: 115 | AT146: 0.02588548978 | AU146: 0.6571029984 | AV146: 0.1416070257
A147: 117 | B147: -1 | C147: -1 | D147: -1 | E147: -1 | F147: -1 | G147: -1 | H147: -1 | AS147: 116 | AT147: 0.02611058099 | AU147: 0.6685805631 | AV147: 0.1451149426
A148: 118 | B148: -1 | C148: -1 | D148: -1 | E148: -1 | F148: -1 | G148: -1 | H148: -1 | AS148: 117 | AT148: 0.02633567221 | AU148: 0.6801575006 | AV148: 0.1486768297
A149: 119 | B149: -1 | C149: -1 | D149: -1 | E149: -1 | F149: -1 | G149: -1 | H149: -1 | AS149: 118 | AT149: 0.02656076342 | AU149: 0.691833811 | AV149: 0.1522929927
A150: 120 | B150: -1 | C150: -1 | D150: -1 | E150: -1 | F150: -1 | G150: -1 | H150: -1 | AS150: 119 | AT150: 0.02678585464 | AU150: 0.7036094942 | AV150: 0.1559637349
A151: 121 | B151: -1 | C151: -1 | D151: -1 | E151: -1 | F151: -1 | G151: -1 | H151: -1 | AS151: 120 | AT151: 0.02701094586 | AU151: 0.7154845503 | AV151: 0.1596893579
A152: 122 | B152: -1 | C152: -1 | D152: -1 | E152: -1 | F152: -1 | G152: -1 | H152: -1 | AS152: 121 | AT152: 0.02723603707 | AU152: 0.7274589792 | AV152: 0.163470161
A153: 123 | B153: -1 | C153: -1 | D153: -1 | E153: -1 | F153: -1 | G153: -1 | H153: -1 | AS153: 122 | AT153: 0.02746112829 | AU153: 0.739532781 | AV153: 0.1673064418
A154: 124 | B154: -1 | C154: -1 | D154: -1 | E154: -1 | F154: -1 | G154: -1 | H154: -1 | AS154: 123 | AT154: 0.0276862195 | AU154: 0.7517059556 | AV154: 0.1711984956
A155: 125 | B155: -1 | C155: -1 | D155: -1 | E155: -1 | F155: -1 | G155: -1 | H155: -1 | AS155: 124 | AT155: 0.02791131072 | AU155: 0.7639785031 | AV155: 0.1751466158
A156: 126 | B156: -1 | C156: -1 | D156: -1 | E156: -1 | F156: -1 | G156: -1 | H156: -1 | AS156: 125 | AT156: 0.02813640193 | AU156: 0.7763504235 | AV156: 0.1791510939
A157: 127 | B157: -1 | C157: -1 | D157: -1 | E157: -1 | F157: -1 | G157: -1 | H157: -1 | AS157: 126 | AT157: 0.02836149315 | AU157: 0.7888217167 | AV157: 0.1832122194
A158: 128 | B158: -1 | C158: -1 | D158: -1 | E158: -1 | F158: -1 | G158: -1 | H158: -1 | AS158: 127 | AT158: 0.02858658436 | AU158: 0.8013923827 | AV158: 0.1873302799
A159: =A158+1 -> 129 | B159: -1 | C159: -1 | D159: -1 | E159: -1 | F159: -1 | G159: -1 | H159: -1 | AS159: 128 | AT159: =$AP$18/$N$7*AS159 -> 0.02881167558 | AU159: 0.8140624216 | AV159: 0.1915055609
A160: 130 | B160: -1 | C160: -1 | D160: -1 | E160: -1 | F160: -1 | G160: -1 | H160: -1 | AS160: 129 | AT160: 0.0290367668 | AU160: =IF(($N$4*AT160^2/2)<=$AP$13,($N$4*AT160^2/2), IF(($AP$13+$N$6*(AT160-$AP$12))<=$AP$17, ($AP$13+$N$6*(AT160-$AP$12)), IF(AU159<$D$14, ($AP$17+($N$6-$N$5*(AT160-$AP$16)/2)*(AT160-$AP$16)), $D$14))) -> 0.8268318334 | AV160: 0.1957383461
A161: 131 | B161: -1 | C161: -1 | D161: -1 | E161: -1 | F161: -1 | G161: -1 | H161: -1 | AS161: 130 | AT161: 0.02926185801 | AU161: 0.839700618 | AV161: =( $AP$6*AU161 + $AP$7*AU160 + $AP$9*AV160 )/$AP$8 -> 0.2000289173
A162: 132 | B162: -1 | C162: -1 | D162: -1 | E162: -1 | F162: -1 | G162: -1 | H162: -1 | AS162: 131 | AT162: 0.02948694923 | AU162: 0.8526687755 | AV162: 0.2043775544
A163: 133 | B163: -1 | C163: -1 | D163: -1 | E163: -1 | F163: -1 | G163: -1 | H163: -1 | AS163: 132 | AT163: 0.02971204044 | AU163: 0.8657363058 | AV163: 0.2087845353
A164: 134 | B164: -1 | C164: -1 | D164: -1 | E164: -1 | F164: -1 | G164: -1 | H164: -1 | AS164: 133 | AT164: 0.02993713166 | AU164: 0.878903209 | AV164: 0.2132501363
A165: 135 | B165: -1 | C165: -1 | D165: -1 | E165: -1 | F165: -1 | G165: -1 | H165: -1 | AS165: 134 | AT165: 0.03016222287 | AU165: 0.892169485 | AV165: 0.2177746316
A166: 136 | B166: -1 | C166: -1 | D166: -1 | E166: -1 | F166: -1 | G166: -1 | H166: -1 | AS166: 135 | AT166: 0.03038731409 | AU166: 0.9055351339 | AV166: 0.2223582935
A167: 137 | B167: -1 | C167: -1 | D167: -1 | E167: -1 | F167: -1 | G167: -1 | H167: -1 | AS167: 136 | AT167: 0.0306124053 | AU167: 0.9190001557 | AV167: 0.2270013927
A168: 138 | B168: -1 | C168: -1 | D168: -1 | E168: -1 | F168: -1 | G168: -1 | H168: -1 | AS168: 137 | AT168: 0.03083749652 | AU168: 0.9325645503 | AV168: 0.231704198
A169: 139 | B169: -1 | C169: -1 | D169: -1 | E169: -1 | F169: -1 | G169: -1 | H169: -1 | AS169: 138 | AT169: 0.03106258773 | AU169: 0.9462283177 | AV169: 0.2364669763
A170: 140 | B170: -1 | C170: -1 | D170: -1 | E170: -1 | F170: -1 | G170: -1 | H170: -1 | AS170: 139 | AT170: 0.03128767895 | AU170: 0.959991458 | AV170: 0.2412899927
A171: 141 | B171: -1 | C171: -1 | D171: -1 | E171: -1 | F171: -1 | G171: -1 | H171: -1 | AS171: 140 | AT171: 0.03151277017 | AU171: 0.9738539712 | AV171: 0.2461735107
A172: 142 | B172: -1 | C172: -1 | D172: -1 | E172: -1 | F172: -1 | G172: -1 | H172: -1 | AS172: 141 | AT172: 0.03173786138 | AU172: 0.9878158572 | AV172: 0.2511177918
A173: 143 | B173: -1 | C173: -1 | D173: -1 | E173: -1 | F173: -1 | G173: -1 | H173: -1 | AS173: 142 | AT173: 0.0319629526 | AU173: 1.001877116 | AV173: 0.256123096
A174: 144 | B174: -1 | C174: -1 | D174: -1 | E174: -1 | F174: -1 | G174: -1 | H174: -1 | AS174: 143 | AT174: 0.03218804381 | AU174: 1.016037748 | AV174: 0.2611896812
A175: 145 | B175: -1 | C175: -1 | D175: -1 | E175: -1 | F175: -1 | G175: -1 | H175: -1 | AS175: 144 | AT175: 0.03241313503 | AU175: 1.030297752 | AV175: 0.2663178038
A176: 146 | B176: -1 | C176: -1 | D176: -1 | E176: -1 | F176: -1 | G176: -1 | H176: -1 | AS176: 145 | AT176: 0.03263822624 | AU176: 1.04465713 | AV176: 0.2715077186
A177: 147 | B177: -1 | C177: -1 | D177: -1 | E177: -1 | F177: -1 | G177: -1 | H177: -1 | AS177: 146 | AT177: 0.03286331746 | AU177: 1.05911588 | AV177: 0.2767596783
A178: 148 | B178: -1 | C178: -1 | D178: -1 | E178: -1 | F178: -1 | G178: -1 | H178: -1 | AS178: 147 | AT178: 0.03308840867 | AU178: 1.073674003 | AV178: 0.2820739343
A179: 149 | B179: -1 | C179: -1 | D179: -1 | E179: -1 | F179: -1 | G179: -1 | H179: -1 | AS179: 148 | AT179: 0.03331349989 | AU179: 1.088331499 | AV179: 0.287450736
A180: 150 | B180: -1 | C180: -1 | D180: -1 | E180: -1 | F180: -1 | G180: -1 | H180: -1 | AS180: 149 | AT180: 0.0335385911 | AU180: 1.103088368 | AV180: 0.2928903312
A181: 151 | B181: -1 | C181: -1 | D181: -1 | E181: -1 | F181: -1 | G181: -1 | H181: -1 | AS181: 150 | AT181: 0.03376368232 | AU181: 1.11794461 | AV181: 0.2983929663
A182: 152 | B182: -1 | C182: -1 | D182: -1 | E182: -1 | F182: -1 | G182: -1 | H182: -1 | AS182: 151 | AT182: 0.03398877354 | AU182: 1.132900224 | AV182: 0.3039588856
A183: 153 | B183: -1 | C183: -1 | D183: -1 | E183: -1 | F183: -1 | G183: -1 | H183: -1 | AS183: =AS182+1 -> 152 | AT183: 0.03421386475 | AU183: 1.147955212 | AV183: 0.3095883321
A184: 154 | B184: -1 | C184: -1 | D184: -1 | E184: -1 | F184: -1 | G184: -1 | H184: -1 | AS184: 153 | AT184: 0.03443895597 | AU184: 1.163109572 | AV184: 0.315281547
A185: 155 | B185: -1 | C185: -1 | D185: -1 | E185: -1 | F185: -1 | G185: -1 | H185: -1 | AS185: 154 | AT185: 0.03466404718 | AU185: 1.178363305 | AV185: 0.32103877
A186: 156 | B186: -1 | C186: -1 | D186: -1 | E186: -1 | F186: -1 | G186: -1 | H186: -1 | AS186: 155 | AT186: 0.0348891384 | AU186: 1.193716411 | AV186: 0.3268602389
A187: 157 | B187: -1 | C187: -1 | D187: -1 | E187: -1 | F187: -1 | G187: -1 | H187: -1 | AS187: 156 | AT187: 0.03511422961 | AU187: 1.20916889 | AV187: 0.3327461903
A188: 158 | B188: -1 | C188: -1 | D188: -1 | E188: -1 | F188: -1 | G188: -1 | H188: -1 | AS188: 157 | AT188: 0.03533932083 | AU188: 1.224720742 | AV188: 0.338696859
A189: 159 | B189: -1 | C189: -1 | D189: -1 | E189: -1 | F189: -1 | G189: -1 | H189: -1 | AS189: 158 | AT189: 0.03556441204 | AU189: 1.240371966 | AV189: 0.3447124781
A190: 160 | B190: -1 | C190: -1 | D190: -1 | E190: -1 | F190: -1 | G190: -1 | H190: -1 | AS190: 159 | AT190: 0.03578950326 | AU190: 1.256122564 | AV190: 0.3507932794
A191: 161 | B191: -1 | C191: -1 | D191: -1 | E191: -1 | F191: -1 | G191: -1 | H191: -1 | AS191: 160 | AT191: 0.03601459447 | AU191: 1.271972534 | AV191: 0.3569394929
A192: 162 | B192: -1 | C192: -1 | D192: -1 | E192: -1 | F192: -1 | G192: -1 | H192: -1 | AS192: 161 | AT192: 0.03623968569 | AU192: 1.287921877 | AV192: 0.3631513472
A193: 163 | B193: -1 | C193: -1 | D193: -1 | E193: -1 | F193: -1 | G193: -1 | H193: -1 | AS193: 162 | AT193: 0.03646477691 | AU193: 1.303970593 | AV193: 0.3694290694
A194: 164 | B194: -1 | C194: -1 | D194: -1 | E194: -1 | F194: -1 | G194: -1 | H194: -1 | AS194: 163 | AT194: 0.03668986812 | AU194: 1.320118682 | AV194: 0.3757728849
A195: 165 | B195: -1 | C195: -1 | D195: -1 | E195: -1 | F195: -1 | G195: -1 | H195: -1 | AS195: 164 | AT195: 0.03691495934 | AU195: 1.336366143 | AV195: 0.3821830176
A196: 166 | B196: -1 | C196: -1 | D196: -1 | E196: -1 | F196: -1 | G196: -1 | H196: -1 | AS196: 165 | AT196: 0.03714005055 | AU196: 1.352712978 | AV196: 0.3886596901
A197: 167 | B197: -1 | C197: -1 | D197: -1 | E197: -1 | F197: -1 | G197: -1 | H197: -1 | AS197: 166 | AT197: 0.03736514177 | AU197: 1.369159185 | AV197: 0.3952031233
A198: 168 | B198: -1 | C198: -1 | D198: -1 | E198: -1 | F198: -1 | G198: -1 | H198: -1 | AS198: 167 | AT198: 0.03759023298 | AU198: 1.385704765 | AV198: 0.4018135367
A199: 169 | B199: -1 | C199: -1 | D199: -1 | E199: -1 | F199: -1 | G199: -1 | H199: -1 | AS199: 168 | AT199: 0.0378153242 | AU199: 1.402349718 | AV199: 0.4084911483
A200: 170 | B200: -1 | C200: -1 | D200: -1 | E200: -1 | F200: -1 | G200: -1 | H200: -1 | AS200: 169 | AT200: 0.03804041541 | AU200: 1.419094044 | AV200: 0.4152361746
A201: 171 | B201: -1 | C201: -1 | D201: -1 | E201: -1 | F201: -1 | G201: -1 | H201: -1 | AS201: 170 | AT201: 0.03826550663 | AU201: 1.435937743 | AV201: 0.4220488307
A202: 172 | B202: -1 | C202: -1 | D202: -1 | E202: -1 | F202: -1 | G202: -1 | H202: -1 | AS202: 171 | AT202: 0.03849059784 | AU202: 1.452880815 | AV202: 0.4289293303
A203: 173 | B203: -1 | C203: -1 | D203: -1 | E203: -1 | F203: -1 | G203: -1 | H203: -1 | AS203: 172 | AT203: 0.03871568906 | AU203: 1.469923259 | AV203: 0.4358778855
... 922 more rows

Sheet DataSerch (hidden)
A1: 選択型式 | B1: メカ機種データレコード | M1: :$110 | N1: ：「メカ機種データ」範囲検索
A2: =CycleTime!C6 -> RCA-SA4C-20 | B2: № | C2: =ModelData!$B$2 -> ｱｸﾁｭｴｰﾀ型式 | H2: =ModelData!$C$2 -> 最小ｽﾄﾛｰｸ | I2: =ModelData!$D$2 -> 最大ｽﾄﾛｰｸ | J2: =ModelData!$E$2 -> 動作種別 | N2: ：「モータ機種データ」範囲検索
B3: =MATCH(A2,ModelData!$B$4:$B$110,0) -> 9 | C3: =LOOKUP(B3,ModelData!$A$4:$A$110,ModelData!$B$4:$B$110) -> RCA-SA4C-20 | H3: =LOOKUP(B3,ModelData!$A$4:$A$110,ModelData!$C$4:$C$110) -> 50 | I3: =LOOKUP(B3,ModelData!$A$4:$A$110,ModelData!$D$4:$D$110) -> 400 | J3: =LOOKUP(B3,ModelData!$A$4:$A$110,ModelData!$E$4:$E$110) -> 0 | M3: :$294 | N3: ：「リードデータ」範囲検索
A4: リード | E4: [kg] | F4: [mm] | G4: [mm] | H4: [mm] | I4: [mm] | J4: 0/1 | K4: [K] | M4: :$404 | N4: ：「ストロークデータ」範囲検索
A5: =CycleTime!C8 -> 2.5 | H5: =H3 -> 50 | I5: =I3 -> 400 | J5: =J3 -> 0 | M5: :$618 | N5: ：「搬送負荷データ」範囲検索
M6: :$618 | N6: ：「加減速・速度データ」範囲検索
A7: ストローク | B7: モータ機種レコード
A8: =CycleTime!C10 -> 50
A10: 設置姿勢 | D10: [Nm/A] | E10: [A] | F10: [kgm^2] | G10: [Nm] | H10: [Nm] | I10: [rad/s] | J10: [rad/s] | K10: [rad/s] | L10: [Nm/(rad/s)] | M10: [K] | N10: [K] | O10: [s]
A11: =IF(CycleTime!C12=CycleTime!AE20,0,1) -> 0
A13: 搬送負荷質量 | B13: リレーション | F13: リードデータレコード | I13: =LOOKUP(C15,LeadData!$A$4:$A$294,LeadData!$J$4:$J$294) -> RCA-SA4C-20
A14: =CycleTime!B31 -> 8 | C14: ﾘｰﾄﾞ№ | D14: ｽﾄﾛｰｸ№ | E14: 負荷№ | F14: =LeadData!$B$2 -> ﾘｰﾄﾞ長 | H14: =LeadData!$C$2 -> 水平定格加速度 | I14: =LeadData!$D$2 -> 垂直定格加速度 | J14: =LeadData!$E$2 -> 水平最大加速度 | K14: =LeadData!$F$2 -> 垂直最大加速度 | O14: =LeadData!$G$2 -> ｷﾞｱ比分子 | P14: =LeadData!$H$2 -> ｷﾞｱ比分母 | R14: =LeadData!$I$2 -> ｽﾄﾛｰｸ刻み
B15: =ModelData!$F$2 -> リンク[0] | C15: =LOOKUP(B3,ModelData!$A$4:$A$110,ModelData!$F$4:$F$110) -> 25 | D15: =LOOKUP(B3,ModelData!$A$4:$A$110,ModelData!$G$4:$G$110) -> 85 | E15: =LOOKUP(B3,ModelData!$A$4:$A$110,ModelData!$H$4:$H$110) -> 49 | F15: =LOOKUP(C15,LeadData!$A$4:$A$294,LeadData!$B$4:$B$294) -> 2500 | H15: =LOOKUP(C15,LeadData!$A$4:$A$294,LeadData!$C$4:$C$294) -> 1961330 | I15: =LOOKUP(C15,LeadData!$A$4:$A$294,LeadData!$D$4:$D$294) -> 1961330 | J15: =LOOKUP(C15,LeadData!$A$4:$A$294,LeadData!$E$4:$E$294) -> 1961330 | K15: =LOOKUP(C15,LeadData!$A$4:$A$294,LeadData!$F$4:$F$294) -> 1961330 | O15: =LOOKUP(C15,LeadData!$A$4:$A$294,LeadData!$G$4:$G$294) -> 1 | P15: =LOOKUP(C15,LeadData!$A$4:$A$294,LeadData!$H$4:$H$294) -> 1 | R15: =LOOKUP(C15,LeadData!$A$4:$A$294,LeadData!$I$4:$I$294) -> 50
B16: =ModelData!$I$2 -> リンク[1] | C16: =LOOKUP(B3,ModelData!$A$4:$A$110,ModelData!$I$4:$I$110) -> 26 | D16: =LOOKUP(B3,ModelData!$A$4:$A$110,ModelData!$J$4:$J$110) -> 86 | E16: =LOOKUP(B3,ModelData!$A$4:$A$110,ModelData!$K$4:$K$110) -> 51 | F16: =LOOKUP(C16,LeadData!$A$4:$A$294,LeadData!$B$4:$B$294) -> 5000 | H16: =LOOKUP(C16,LeadData!$A$4:$A$294,LeadData!$C$4:$C$294) -> 2941995 | I16: =LOOKUP(C16,LeadData!$A$4:$A$294,LeadData!$D$4:$D$294) -> 2941995 | J16: =LOOKUP(C16,LeadData!$A$4:$A$294,LeadData!$E$4:$E$294) -> 2941995 | K16: =LOOKUP(C16,LeadData!$A$4:$A$294,LeadData!$F$4:$F$294) -> 2941995 | O16: =LOOKUP(C16,LeadData!$A$4:$A$294,LeadData!$G$4:$G$294) -> 1 | P16: =LOOKUP(C16,LeadData!$A$4:$A$294,LeadData!$H$4:$H$294) -> 1 | R16: =LOOKUP(C16,LeadData!$A$4:$A$294,LeadData!$I$4:$I$294) -> 50
B17: =ModelData!$L$2 -> リンク[2] | C17: =LOOKUP(B3,ModelData!$A$4:$A$110,ModelData!$L$4:$L$110) -> 27 | D17: =LOOKUP(B3,ModelData!$A$4:$A$110,ModelData!$M$4:$M$110) -> 87 | E17: =LOOKUP(B3,ModelData!$A$4:$A$110,ModelData!$N$4:$N$110) -> 53 | F17: =LOOKUP(C17,LeadData!$A$4:$A$294,LeadData!$B$4:$B$294) -> 10000 | H17: =LOOKUP(C17,LeadData!$A$4:$A$294,LeadData!$C$4:$C$294) -> 2941995 | I17: =LOOKUP(C17,LeadData!$A$4:$A$294,LeadData!$D$4:$D$294) -> 2941995 | J17: =LOOKUP(C17,LeadData!$A$4:$A$294,LeadData!$E$4:$E$294) -> 2941995 | K17: =LOOKUP(C17,LeadData!$A$4:$A$294,LeadData!$F$4:$F$294) -> 2941995 | O17: =LOOKUP(C17,LeadData!$A$4:$A$294,LeadData!$G$4:$G$294) -> 1 | P17: =LOOKUP(C17,LeadData!$A$4:$A$294,LeadData!$H$4:$H$294) -> 1 | R17: =LOOKUP(C17,LeadData!$A$4:$A$294,LeadData!$I$4:$I$294) -> 50
B18: =ModelData!$O$2 -> リンク[3] | C18: =LOOKUP(B3,ModelData!$A$4:$A$110,ModelData!$O$4:$O$110) -> -1 | D18: =LOOKUP(B3,ModelData!$A$4:$A$110,ModelData!$P$4:$P$110) -> -1 | E18: =LOOKUP(B3,ModelData!$A$4:$A$110,ModelData!$Q$4:$Q$110) -> -1 | F18: =LOOKUP(C18,LeadData!$A$4:$A$294,LeadData!$B$4:$B$294) ->  | H18: =LOOKUP(C18,LeadData!$A$4:$A$294,LeadData!$C$4:$C$294) ->  | I18: =LOOKUP(C18,LeadData!$A$4:$A$294,LeadData!$D$4:$D$294) ->  | J18: =LOOKUP(C18,LeadData!$A$4:$A$294,LeadData!$E$4:$E$294) ->  | K18: =LOOKUP(C18,LeadData!$A$4:$A$294,LeadData!$F$4:$F$294) ->  | O18: =LOOKUP(C18,LeadData!$A$4:$A$294,LeadData!$G$4:$G$294) ->  | P18: =LOOKUP(C18,LeadData!$A$4:$A$294,LeadData!$H$4:$H$294) ->  | R18: =LOOKUP(C18,LeadData!$A$4:$A$294,LeadData!$I$4:$I$294) -> 
B19: =ModelData!$R$2 -> リンク[4] | C19: =LOOKUP(B3,ModelData!$A$4:$A$110,ModelData!$R$4:$R$110) -> -1 | D19: =LOOKUP(B3,ModelData!$A$4:$A$110,ModelData!$S$4:$S$110) -> -1 | E19: =LOOKUP(B3,ModelData!$A$4:$A$110,ModelData!$T$4:$T$110) -> -1 | F19: =LOOKUP(C19,LeadData!$A$4:$A$294,LeadData!$B$4:$B$294) ->  | H19: =LOOKUP(C19,LeadData!$A$4:$A$294,LeadData!$C$4:$C$294) ->  | I19: =LOOKUP(C19,LeadData!$A$4:$A$294,LeadData!$D$4:$D$294) ->  | J19: =LOOKUP(C19,LeadData!$A$4:$A$294,LeadData!$E$4:$E$294) ->  | K19: =LOOKUP(C19,LeadData!$A$4:$A$294,LeadData!$F$4:$F$294) ->  | O19: =LOOKUP(C19,LeadData!$A$4:$A$294,LeadData!$G$4:$G$294) ->  | P19: =LOOKUP(C19,LeadData!$A$4:$A$294,LeadData!$H$4:$H$294) ->  | R19: =LOOKUP(C19,LeadData!$A$4:$A$294,LeadData!$I$4:$I$294) -> 
B20: =ModelData!$U$2 -> リンク[5] | C20: =LOOKUP(B3,ModelData!$A$4:$A$110,ModelData!$U$4:$U$110) -> -1 | D20: =LOOKUP(B3,ModelData!$A$4:$A$110,ModelData!$V$4:$V$110) -> -1 | E20: =LOOKUP(B3,ModelData!$A$4:$A$110,ModelData!$W$4:$W$110) -> -1 | F20: =LOOKUP(C20,LeadData!$A$4:$A$294,LeadData!$B$4:$B$294) ->  | H20: =LOOKUP(C20,LeadData!$A$4:$A$294,LeadData!$C$4:$C$294) ->  | I20: =LOOKUP(C20,LeadData!$A$4:$A$294,LeadData!$D$4:$D$294) ->  | J20: =LOOKUP(C20,LeadData!$A$4:$A$294,LeadData!$E$4:$E$294) ->  | K20: =LOOKUP(C20,LeadData!$A$4:$A$294,LeadData!$F$4:$F$294) ->  | O20: =LOOKUP(C20,LeadData!$A$4:$A$294,LeadData!$G$4:$G$294) ->  | P20: =LOOKUP(C20,LeadData!$A$4:$A$294,LeadData!$H$4:$H$294) ->  | R20: =LOOKUP(C20,LeadData!$A$4:$A$294,LeadData!$I$4:$I$294) -> 
B21: =ModelData!$X$2 -> リンク[6] | C21: =LOOKUP(B3,ModelData!$A$4:$A$110,ModelData!$X$4:$X$110) -> -1 | D21: =LOOKUP(B3,ModelData!$A$4:$A$110,ModelData!$Y$4:$Y$110) -> -1 | E21: =LOOKUP(B3,ModelData!$A$4:$A$110,ModelData!$Z$4:$Z$110) -> -1 | F21: =LOOKUP(C21,LeadData!$A$4:$A$294,LeadData!$B$4:$B$294) ->  | H21: =LOOKUP(C21,LeadData!$A$4:$A$294,LeadData!$C$4:$C$294) ->  | I21: =LOOKUP(C21,LeadData!$A$4:$A$294,LeadData!$D$4:$D$294) ->  | J21: =LOOKUP(C21,LeadData!$A$4:$A$294,LeadData!$E$4:$E$294) ->  | K21: =LOOKUP(C21,LeadData!$A$4:$A$294,LeadData!$F$4:$F$294) ->  | O21: =LOOKUP(C21,LeadData!$A$4:$A$294,LeadData!$G$4:$G$294) ->  | P21: =LOOKUP(C21,LeadData!$A$4:$A$294,LeadData!$H$4:$H$294) ->  | R21: =LOOKUP(C21,LeadData!$A$4:$A$294,LeadData!$I$4:$I$294) -> 
B22: =ModelData!$AA$2 -> リンク[7] | C22: =LOOKUP(B3,ModelData!$A$4:$A$110,ModelData!$AA$4:$AA$110) -> -1 | D22: =LOOKUP(B3,ModelData!$A$4:$A$110,ModelData!$AB$4:$AB$110) -> -1 | E22: =LOOKUP(B3,ModelData!$A$4:$A$110,ModelData!$AC$4:$AC$110) -> -1 | F22: =LOOKUP(C22,LeadData!$A$4:$A$294,LeadData!$B$4:$B$294) ->  | H22: =LOOKUP(C22,LeadData!$A$4:$A$294,LeadData!$C$4:$C$294) ->  | I22: =LOOKUP(C22,LeadData!$A$4:$A$294,LeadData!$D$4:$D$294) ->  | J22: =LOOKUP(C22,LeadData!$A$4:$A$294,LeadData!$E$4:$E$294) ->  | K22: =LOOKUP(C22,LeadData!$A$4:$A$294,LeadData!$F$4:$F$294) ->  | O22: =LOOKUP(C22,LeadData!$A$4:$A$294,LeadData!$G$4:$G$294) ->  | P22: =LOOKUP(C22,LeadData!$A$4:$A$294,LeadData!$H$4:$H$294) ->  | R22: =LOOKUP(C22,LeadData!$A$4:$A$294,LeadData!$I$4:$I$294) -> 
B23: リードリストとリレーション | F23: リードデータレコードの物理量変換
B24: ﾘｰﾄﾞﾘｽﾄ | D24: リンク | F24: =LeadData!$B$2 -> ﾘｰﾄﾞ長 | H24: =LeadData!$C$2 -> 水平定格加速度 | I24: =LeadData!$D$2 -> 垂直定格加速度 | J24: =LeadData!$E$2 -> 水平最大加速度 | K24: =LeadData!$F$2 -> 垂直最大加速度 | O24: =LeadData!$G$2 -> ｷﾞｱ比分子 | P24: =LeadData!$H$2 -> ｷﾞｱ比分母 | R24: =LeadData!$I$2 -> ｽﾄﾛｰｸ刻み
B25: № | C25: ﾃﾞｰﾀ | D25: =D14 -> ｽﾄﾛｰｸ№ | E25: =E14 -> 負荷№ | F25: [mm] | G25: [kgm^2] | H25: [m/s^2] | I25: [m/s^2] | J25: [m/s^2] | K25: [m/s^2] | L25: [Nm] | M25: [Nms] | N25: [Nm] | R25: [mm]
B26: 1 | C26: =IF(C15=-1,"- - -",IF(F26<=0,P26/O26,F26)) -> 2.5 | D26: =D15 -> 85 | E26: 49 | F26: =F15/1000 -> 2.5 | H26: =H15*0.000001 -> 1.96133 | I26: 1.96133 | J26: 1.96133 | K26: 1.96133 | O26: =O15 -> 1 | P26: =P15 -> 1 | R26: =R15 -> 50
B27: =B26+1 -> 2 | C27: 5 | D27: 86 | E27: 51 | F27: 5 | H27: 2.941995 | I27: 2.941995 | J27: 2.941995 | K27: 2.941995 | O27: =O16 -> 1 | P27: 1 | R27: =R16 -> 50
B28: =B27+1 -> 3 | C28: 10 | D28: 87 | E28: 53 | F28: 10 | H28: 2.941995 | I28: 2.941995 | J28: 2.941995 | K28: 2.941995 | O28: 1 | P28: 1 | R28: 50
B29: 4 | C29: - - - | D29: -1 | E29: -1
B30: 5 | C30: - - - | D30: -1 | E30: -1
B31: 6 | C31: - - - | D31: -1 | E31: -1
B32: 7 | C32: - - - | D32: -1 | E32: -1
B33: 8 | C33: - - - | D33: -1 | E33: -1
B35: リードリスト選択№ | D35: =MATCH(A5,C26:C33,0) -> 1 | E35: ストロークデータレコード | H35: =LOOKUP(C37,StrokeData!$A$4:$A$404,StrokeData!$M$4:$M$404) -> RCA-SA4C-20-2.5
B36: № | C36: stﾚｺｰﾄﾞ№ | D36: =StrokeData!$B$2 -> ｽﾄﾛｰｸ長 | E36: =StrokeData!$C$2 -> 有効ｽﾄﾛｰｸ補正 | G36: =StrokeData!$D$2 -> 基準ｹﾞｲﾝ用搬送質量 | H36: =StrokeData!$E$2 -> 水平可搬質量 | I36: =StrokeData!$F$2 -> 垂直可搬質量 | J36: =StrokeData!$G$2 -> 最大速度 | K36: =StrokeData!$H$2 -> 位置ｹﾞｲﾝ | L36: =StrokeData!$I$2 -> FFｹﾞｲﾝ | M36: =StrokeData!$J$2 -> 速度制御帯域 | S36: =StrokeData!$K$2 -> 前ﾃﾞｰﾀ№ | T36: =StrokeData!$L$2 -> 次ﾃﾞｰﾀ№
B37: 1 | C37: =LOOKUP(D35,B26:B33,D26:D33) -> 85 | D37: =LOOKUP(C37,StrokeData!$A$4:$A$404,StrokeData!$B$4:$B$404) -> 400 | E37: =LOOKUP(C37,StrokeData!$A$4:$A$404,StrokeData!$C$4:$C$404) -> 0 | G37: =LOOKUP(C37,StrokeData!$A$4:$A$404,StrokeData!$D$4:$D$404) -> 8000 | H37: =LOOKUP(C37,StrokeData!$A$4:$A$404,StrokeData!$E$4:$E$404) -> 8000 | I37: =LOOKUP(C37,StrokeData!$A$4:$A$404,StrokeData!$F$4:$F$404) -> 4500 | J37: =LOOKUP(C37,StrokeData!$A$4:$A$404,StrokeData!$G$4:$G$404) -> 165 | K37: =LOOKUP(C37,StrokeData!$A$4:$A$404,StrokeData!$H$4:$H$404) -> 30 | L37: =LOOKUP(C37,StrokeData!$A$4:$A$404,StrokeData!$I$4:$I$404) -> 0 | M37: =LOOKUP(C37,StrokeData!$A$4:$A$404,StrokeData!$J$4:$J$404) -> 160 | S37: =LOOKUP(C37,StrokeData!$A$4:$A$404,StrokeData!$K$4:$K$404) -> -1 | T37: =LOOKUP(C37,StrokeData!$A$4:$A$404,StrokeData!$L$4:$L$404) -> -1
B38: =B37+1 -> 2 | C38: =IF(C37=-1,-1,LOOKUP(C37,StrokeData!$A$4:$A$404,StrokeData!$L$4:$L$404)) -> -1 | D38: =LOOKUP(C38,StrokeData!$A$4:$A$404,StrokeData!$B$4:$B$404) ->  | E38: =LOOKUP(C38,StrokeData!$A$4:$A$404,StrokeData!$C$4:$C$404) ->  | G38: =LOOKUP(C38,StrokeData!$A$4:$A$404,StrokeData!$D$4:$D$404) ->  | H38: =LOOKUP(C38,StrokeData!$A$4:$A$404,StrokeData!$E$4:$E$404) ->  | I38: =LOOKUP(C38,StrokeData!$A$4:$A$404,StrokeData!$F$4:$F$404) ->  | J38: =LOOKUP(C38,StrokeData!$A$4:$A$404,StrokeData!$G$4:$G$404) ->  | K38: =LOOKUP(C38,StrokeData!$A$4:$A$404,StrokeData!$H$4:$H$404) ->  | L38: =LOOKUP(C38,StrokeData!$A$4:$A$404,StrokeData!$I$4:$I$404) ->  | M38: =LOOKUP(C38,StrokeData!$A$4:$A$404,StrokeData!$J$4:$J$404) ->  | S38: =LOOKUP(C38,StrokeData!$A$4:$A$404,StrokeData!$K$4:$K$404) ->  | T38: =LOOKUP(C38,StrokeData!$A$4:$A$404,StrokeData!$L$4:$L$404) -> 
B39: =B38+1 -> 3 | C39: =IF(C38=-1,-1,LOOKUP(C38,StrokeData!$A$4:$A$404,StrokeData!$L$4:$L$404)) -> -1 | D39: =LOOKUP(C39,StrokeData!$A$4:$A$404,StrokeData!$B$4:$B$404) ->  | E39: =LOOKUP(C39,StrokeData!$A$4:$A$404,StrokeData!$C$4:$C$404) ->  | G39: =LOOKUP(C39,StrokeData!$A$4:$A$404,StrokeData!$D$4:$D$404) ->  | H39: =LOOKUP(C39,StrokeData!$A$4:$A$404,StrokeData!$E$4:$E$404) ->  | I39: =LOOKUP(C39,StrokeData!$A$4:$A$404,StrokeData!$F$4:$F$404) ->  | J39: =LOOKUP(C39,StrokeData!$A$4:$A$404,StrokeData!$G$4:$G$404) ->  | K39: =LOOKUP(C39,StrokeData!$A$4:$A$404,StrokeData!$H$4:$H$404) ->  | L39: =LOOKUP(C39,StrokeData!$A$4:$A$404,StrokeData!$I$4:$I$404) ->  | M39: =LOOKUP(C39,StrokeData!$A$4:$A$404,StrokeData!$J$4:$J$404) ->  | S39: =LOOKUP(C39,StrokeData!$A$4:$A$404,StrokeData!$K$4:$K$404) ->  | T39: =LOOKUP(C39,StrokeData!$A$4:$A$404,StrokeData!$L$4:$L$404) -> 
B40: 4 | C40: =IF(C39=-1,-1,LOOKUP(C39,StrokeData!$A$4:$A$404,StrokeData!$L$4:$L$404)) -> -1 | D40: =LOOKUP(C40,StrokeData!$A$4:$A$404,StrokeData!$B$4:$B$404) ->  | E40: =LOOKUP(C40,StrokeData!$A$4:$A$404,StrokeData!$C$4:$C$404) ->  | G40: =LOOKUP(C40,StrokeData!$A$4:$A$404,StrokeData!$D$4:$D$404) ->  | H40: =LOOKUP(C40,StrokeData!$A$4:$A$404,StrokeData!$E$4:$E$404) ->  | I40: =LOOKUP(C40,StrokeData!$A$4:$A$404,StrokeData!$F$4:$F$404) ->  | J40: =LOOKUP(C40,StrokeData!$A$4:$A$404,StrokeData!$G$4:$G$404) ->  | K40: =LOOKUP(C40,StrokeData!$A$4:$A$404,StrokeData!$H$4:$H$404) ->  | L40: =LOOKUP(C40,StrokeData!$A$4:$A$404,StrokeData!$I$4:$I$404) ->  | M40: =LOOKUP(C40,StrokeData!$A$4:$A$404,StrokeData!$J$4:$J$404) ->  | S40: =LOOKUP(C40,StrokeData!$A$4:$A$404,StrokeData!$K$4:$K$404) ->  | T40: =LOOKUP(C40,StrokeData!$A$4:$A$404,StrokeData!$L$4:$L$404) -> 
B41: 5 | C41: =IF(C40=-1,-1,LOOKUP(C40,StrokeData!$A$4:$A$404,StrokeData!$L$4:$L$404)) -> -1 | D41: =LOOKUP(C41,StrokeData!$A$4:$A$404,StrokeData!$B$4:$B$404) ->  | E41: =LOOKUP(C41,StrokeData!$A$4:$A$404,StrokeData!$C$4:$C$404) ->  | G41: =LOOKUP(C41,StrokeData!$A$4:$A$404,StrokeData!$D$4:$D$404) ->  | H41: =LOOKUP(C41,StrokeData!$A$4:$A$404,StrokeData!$E$4:$E$404) ->  | I41: =LOOKUP(C41,StrokeData!$A$4:$A$404,StrokeData!$F$4:$F$404) ->  | J41: =LOOKUP(C41,StrokeData!$A$4:$A$404,StrokeData!$G$4:$G$404) ->  | K41: =LOOKUP(C41,StrokeData!$A$4:$A$404,StrokeData!$H$4:$H$404) ->  | L41: =LOOKUP(C41,StrokeData!$A$4:$A$404,StrokeData!$I$4:$I$404) ->  | M41: =LOOKUP(C41,StrokeData!$A$4:$A$404,StrokeData!$J$4:$J$404) ->  | S41: =LOOKUP(C41,StrokeData!$A$4:$A$404,StrokeData!$K$4:$K$404) ->  | T41: =LOOKUP(C41,StrokeData!$A$4:$A$404,StrokeData!$L$4:$L$404) -> 
B42: 6 | C42: =IF(C41=-1,-1,LOOKUP(C41,StrokeData!$A$4:$A$404,StrokeData!$L$4:$L$404)) -> -1 | D42: =LOOKUP(C42,StrokeData!$A$4:$A$404,StrokeData!$B$4:$B$404) ->  | E42: =LOOKUP(C42,StrokeData!$A$4:$A$404,StrokeData!$C$4:$C$404) ->  | G42: =LOOKUP(C42,StrokeData!$A$4:$A$404,StrokeData!$D$4:$D$404) ->  | H42: =LOOKUP(C42,StrokeData!$A$4:$A$404,StrokeData!$E$4:$E$404) ->  | I42: =LOOKUP(C42,StrokeData!$A$4:$A$404,StrokeData!$F$4:$F$404) ->  | J42: =LOOKUP(C42,StrokeData!$A$4:$A$404,StrokeData!$G$4:$G$404) ->  | K42: =LOOKUP(C42,StrokeData!$A$4:$A$404,StrokeData!$H$4:$H$404) ->  | L42: =LOOKUP(C42,StrokeData!$A$4:$A$404,StrokeData!$I$4:$I$404) ->  | M42: =LOOKUP(C42,StrokeData!$A$4:$A$404,StrokeData!$J$4:$J$404) ->  | S42: =LOOKUP(C42,StrokeData!$A$4:$A$404,StrokeData!$K$4:$K$404) ->  | T42: =LOOKUP(C42,StrokeData!$A$4:$A$404,StrokeData!$L$4:$L$404) -> 
B43: 7 | C43: =IF(C42=-1,-1,LOOKUP(C42,StrokeData!$A$4:$A$404,StrokeData!$L$4:$L$404)) -> -1 | D43: =LOOKUP(C43,StrokeData!$A$4:$A$404,StrokeData!$B$4:$B$404) ->  | E43: =LOOKUP(C43,StrokeData!$A$4:$A$404,StrokeData!$C$4:$C$404) ->  | G43: =LOOKUP(C43,StrokeData!$A$4:$A$404,StrokeData!$D$4:$D$404) ->  | H43: =LOOKUP(C43,StrokeData!$A$4:$A$404,StrokeData!$E$4:$E$404) ->  | I43: =LOOKUP(C43,StrokeData!$A$4:$A$404,StrokeData!$F$4:$F$404) ->  | J43: =LOOKUP(C43,StrokeData!$A$4:$A$404,StrokeData!$G$4:$G$404) ->  | K43: =LOOKUP(C43,StrokeData!$A$4:$A$404,StrokeData!$H$4:$H$404) ->  | L43: =LOOKUP(C43,StrokeData!$A$4:$A$404,StrokeData!$I$4:$I$404) ->  | M43: =LOOKUP(C43,StrokeData!$A$4:$A$404,StrokeData!$J$4:$J$404) ->  | S43: =LOOKUP(C43,StrokeData!$A$4:$A$404,StrokeData!$K$4:$K$404) ->  | T43: =LOOKUP(C43,StrokeData!$A$4:$A$404,StrokeData!$L$4:$L$404) -> 
B44: 8 | C44: =IF(C43=-1,-1,LOOKUP(C43,StrokeData!$A$4:$A$404,StrokeData!$L$4:$L$404)) -> -1 | D44: =LOOKUP(C44,StrokeData!$A$4:$A$404,StrokeData!$B$4:$B$404) ->  | E44: =LOOKUP(C44,StrokeData!$A$4:$A$404,StrokeData!$C$4:$C$404) ->  | G44: =LOOKUP(C44,StrokeData!$A$4:$A$404,StrokeData!$D$4:$D$404) ->  | H44: =LOOKUP(C44,StrokeData!$A$4:$A$404,StrokeData!$E$4:$E$404) ->  | I44: =LOOKUP(C44,StrokeData!$A$4:$A$404,StrokeData!$F$4:$F$404) ->  | J44: =LOOKUP(C44,StrokeData!$A$4:$A$404,StrokeData!$G$4:$G$404) ->  | K44: =LOOKUP(C44,StrokeData!$A$4:$A$404,StrokeData!$H$4:$H$404) ->  | L44: =LOOKUP(C44,StrokeData!$A$4:$A$404,StrokeData!$I$4:$I$404) ->  | M44: =LOOKUP(C44,StrokeData!$A$4:$A$404,StrokeData!$J$4:$J$404) ->  | S44: =LOOKUP(C44,StrokeData!$A$4:$A$404,StrokeData!$K$4:$K$404) ->  | T44: =LOOKUP(C44,StrokeData!$A$4:$A$404,StrokeData!$L$4:$L$404) -> 
B45: 9 | C45: =IF(C44=-1,-1,LOOKUP(C44,StrokeData!$A$4:$A$404,StrokeData!$L$4:$L$404)) -> -1 | D45: =LOOKUP(C45,StrokeData!$A$4:$A$404,StrokeData!$B$4:$B$404) ->  | E45: =LOOKUP(C45,StrokeData!$A$4:$A$404,StrokeData!$C$4:$C$404) ->  | G45: =LOOKUP(C45,StrokeData!$A$4:$A$404,StrokeData!$D$4:$D$404) ->  | H45: =LOOKUP(C45,StrokeData!$A$4:$A$404,StrokeData!$E$4:$E$404) ->  | I45: =LOOKUP(C45,StrokeData!$A$4:$A$404,StrokeData!$F$4:$F$404) ->  | J45: =LOOKUP(C45,StrokeData!$A$4:$A$404,StrokeData!$G$4:$G$404) ->  | K45: =LOOKUP(C45,StrokeData!$A$4:$A$404,StrokeData!$H$4:$H$404) ->  | L45: =LOOKUP(C45,StrokeData!$A$4:$A$404,StrokeData!$I$4:$I$404) ->  | M45: =LOOKUP(C45,StrokeData!$A$4:$A$404,StrokeData!$J$4:$J$404) ->  | S45: =LOOKUP(C45,StrokeData!$A$4:$A$404,StrokeData!$K$4:$K$404) ->  | T45: =LOOKUP(C45,StrokeData!$A$4:$A$404,StrokeData!$L$4:$L$404) -> 
B46: 10 | C46: =IF(C45=-1,-1,LOOKUP(C45,StrokeData!$A$4:$A$404,StrokeData!$L$4:$L$404)) -> -1 | D46: =LOOKUP(C46,StrokeData!$A$4:$A$404,StrokeData!$B$4:$B$404) ->  | E46: =LOOKUP(C46,StrokeData!$A$4:$A$404,StrokeData!$C$4:$C$404) ->  | G46: =LOOKUP(C46,StrokeData!$A$4:$A$404,StrokeData!$D$4:$D$404) ->  | H46: =LOOKUP(C46,StrokeData!$A$4:$A$404,StrokeData!$E$4:$E$404) ->  | I46: =LOOKUP(C46,StrokeData!$A$4:$A$404,StrokeData!$F$4:$F$404) ->  | J46: =LOOKUP(C46,StrokeData!$A$4:$A$404,StrokeData!$G$4:$G$404) ->  | K46: =LOOKUP(C46,StrokeData!$A$4:$A$404,StrokeData!$H$4:$H$404) ->  | L46: =LOOKUP(C46,StrokeData!$A$4:$A$404,StrokeData!$I$4:$I$404) ->  | M46: =LOOKUP(C46,StrokeData!$A$4:$A$404,StrokeData!$J$4:$J$404) ->  | S46: =LOOKUP(C46,StrokeData!$A$4:$A$404,StrokeData!$K$4:$K$404) ->  | T46: =LOOKUP(C46,StrokeData!$A$4:$A$404,StrokeData!$L$4:$L$404) -> 
B47: 11 | C47: =IF(C46=-1,-1,LOOKUP(C46,StrokeData!$A$4:$A$404,StrokeData!$L$4:$L$404)) -> -1 | D47: =LOOKUP(C47,StrokeData!$A$4:$A$404,StrokeData!$B$4:$B$404) ->  | E47: =LOOKUP(C47,StrokeData!$A$4:$A$404,StrokeData!$C$4:$C$404) ->  | G47: =LOOKUP(C47,StrokeData!$A$4:$A$404,StrokeData!$D$4:$D$404) ->  | H47: =LOOKUP(C47,StrokeData!$A$4:$A$404,StrokeData!$E$4:$E$404) ->  | I47: =LOOKUP(C47,StrokeData!$A$4:$A$404,StrokeData!$F$4:$F$404) ->  | J47: =LOOKUP(C47,StrokeData!$A$4:$A$404,StrokeData!$G$4:$G$404) ->  | K47: =LOOKUP(C47,StrokeData!$A$4:$A$404,StrokeData!$H$4:$H$404) ->  | L47: =LOOKUP(C47,StrokeData!$A$4:$A$404,StrokeData!$I$4:$I$404) ->  | M47: =LOOKUP(C47,StrokeData!$A$4:$A$404,StrokeData!$J$4:$J$404) ->  | S47: =LOOKUP(C47,StrokeData!$A$4:$A$404,StrokeData!$K$4:$K$404) ->  | T47: =LOOKUP(C47,StrokeData!$A$4:$A$404,StrokeData!$L$4:$L$404) -> 
B48: 12 | C48: =IF(C47=-1,-1,LOOKUP(C47,StrokeData!$A$4:$A$404,StrokeData!$L$4:$L$404)) -> -1 | D48: =LOOKUP(C48,StrokeData!$A$4:$A$404,StrokeData!$B$4:$B$404) ->  | E48: =LOOKUP(C48,StrokeData!$A$4:$A$404,StrokeData!$C$4:$C$404) ->  | G48: =LOOKUP(C48,StrokeData!$A$4:$A$404,StrokeData!$D$4:$D$404) ->  | H48: =LOOKUP(C48,StrokeData!$A$4:$A$404,StrokeData!$E$4:$E$404) ->  | I48: =LOOKUP(C48,StrokeData!$A$4:$A$404,StrokeData!$F$4:$F$404) ->  | J48: =LOOKUP(C48,StrokeData!$A$4:$A$404,StrokeData!$G$4:$G$404) ->  | K48: =LOOKUP(C48,StrokeData!$A$4:$A$404,StrokeData!$H$4:$H$404) ->  | L48: =LOOKUP(C48,StrokeData!$A$4:$A$404,StrokeData!$I$4:$I$404) ->  | M48: =LOOKUP(C48,StrokeData!$A$4:$A$404,StrokeData!$J$4:$J$404) ->  | S48: =LOOKUP(C48,StrokeData!$A$4:$A$404,StrokeData!$K$4:$K$404) ->  | T48: =LOOKUP(C48,StrokeData!$A$4:$A$404,StrokeData!$L$4:$L$404) -> 
B49: 13 | C49: =IF(C48=-1,-1,LOOKUP(C48,StrokeData!$A$4:$A$404,StrokeData!$L$4:$L$404)) -> -1 | D49: =LOOKUP(C49,StrokeData!$A$4:$A$404,StrokeData!$B$4:$B$404) ->  | E49: =LOOKUP(C49,StrokeData!$A$4:$A$404,StrokeData!$C$4:$C$404) ->  | G49: =LOOKUP(C49,StrokeData!$A$4:$A$404,StrokeData!$D$4:$D$404) ->  | H49: =LOOKUP(C49,StrokeData!$A$4:$A$404,StrokeData!$E$4:$E$404) ->  | I49: =LOOKUP(C49,StrokeData!$A$4:$A$404,StrokeData!$F$4:$F$404) ->  | J49: =LOOKUP(C49,StrokeData!$A$4:$A$404,StrokeData!$G$4:$G$404) ->  | K49: =LOOKUP(C49,StrokeData!$A$4:$A$404,StrokeData!$H$4:$H$404) ->  | L49: =LOOKUP(C49,StrokeData!$A$4:$A$404,StrokeData!$I$4:$I$404) ->  | M49: =LOOKUP(C49,StrokeData!$A$4:$A$404,StrokeData!$J$4:$J$404) ->  | S49: =LOOKUP(C49,StrokeData!$A$4:$A$404,StrokeData!$K$4:$K$404) ->  | T49: =LOOKUP(C49,StrokeData!$A$4:$A$404,StrokeData!$L$4:$L$404) -> 
B50: 14 | C50: =IF(C49=-1,-1,LOOKUP(C49,StrokeData!$A$4:$A$404,StrokeData!$L$4:$L$404)) -> -1 | D50: =LOOKUP(C50,StrokeData!$A$4:$A$404,StrokeData!$B$4:$B$404) ->  | E50: =LOOKUP(C50,StrokeData!$A$4:$A$404,StrokeData!$C$4:$C$404) ->  | G50: =LOOKUP(C50,StrokeData!$A$4:$A$404,StrokeData!$D$4:$D$404) ->  | H50: =LOOKUP(C50,StrokeData!$A$4:$A$404,StrokeData!$E$4:$E$404) ->  | I50: =LOOKUP(C50,StrokeData!$A$4:$A$404,StrokeData!$F$4:$F$404) ->  | J50: =LOOKUP(C50,StrokeData!$A$4:$A$404,StrokeData!$G$4:$G$404) ->  | K50: =LOOKUP(C50,StrokeData!$A$4:$A$404,StrokeData!$H$4:$H$404) ->  | L50: =LOOKUP(C50,StrokeData!$A$4:$A$404,StrokeData!$I$4:$I$404) ->  | M50: =LOOKUP(C50,StrokeData!$A$4:$A$404,StrokeData!$J$4:$J$404) ->  | S50: =LOOKUP(C50,StrokeData!$A$4:$A$404,StrokeData!$K$4:$K$404) ->  | T50: =LOOKUP(C50,StrokeData!$A$4:$A$404,StrokeData!$L$4:$L$404) -> 
B51: 15 | C51: =IF(C50=-1,-1,LOOKUP(C50,StrokeData!$A$4:$A$404,StrokeData!$L$4:$L$404)) -> -1 | D51: =LOOKUP(C51,StrokeData!$A$4:$A$404,StrokeData!$B$4:$B$404) ->  | E51: =LOOKUP(C51,StrokeData!$A$4:$A$404,StrokeData!$C$4:$C$404) ->  | G51: =LOOKUP(C51,StrokeData!$A$4:$A$404,StrokeData!$D$4:$D$404) ->  | H51: =LOOKUP(C51,StrokeData!$A$4:$A$404,StrokeData!$E$4:$E$404) ->  | I51: =LOOKUP(C51,StrokeData!$A$4:$A$404,StrokeData!$F$4:$F$404) ->  | J51: =LOOKUP(C51,StrokeData!$A$4:$A$404,StrokeData!$G$4:$G$404) ->  | K51: =LOOKUP(C51,StrokeData!$A$4:$A$404,StrokeData!$H$4:$H$404) ->  | L51: =LOOKUP(C51,StrokeData!$A$4:$A$404,StrokeData!$I$4:$I$404) ->  | M51: =LOOKUP(C51,StrokeData!$A$4:$A$404,StrokeData!$J$4:$J$404) ->  | S51: =LOOKUP(C51,StrokeData!$A$4:$A$404,StrokeData!$K$4:$K$404) ->  | T51: =LOOKUP(C51,StrokeData!$A$4:$A$404,StrokeData!$L$4:$L$404) -> 
B52: 16 | C52: =IF(C51=-1,-1,LOOKUP(C51,StrokeData!$A$4:$A$404,StrokeData!$L$4:$L$404)) -> -1 | D52: =LOOKUP(C52,StrokeData!$A$4:$A$404,StrokeData!$B$4:$B$404) ->  | E52: =LOOKUP(C52,StrokeData!$A$4:$A$404,StrokeData!$C$4:$C$404) ->  | G52: =LOOKUP(C52,StrokeData!$A$4:$A$404,StrokeData!$D$4:$D$404) ->  | H52: =LOOKUP(C52,StrokeData!$A$4:$A$404,StrokeData!$E$4:$E$404) ->  | I52: =LOOKUP(C52,StrokeData!$A$4:$A$404,StrokeData!$F$4:$F$404) ->  | J52: =LOOKUP(C52,StrokeData!$A$4:$A$404,StrokeData!$G$4:$G$404) ->  | K52: =LOOKUP(C52,StrokeData!$A$4:$A$404,StrokeData!$H$4:$H$404) ->  | L52: =LOOKUP(C52,StrokeData!$A$4:$A$404,StrokeData!$I$4:$I$404) ->  | M52: =LOOKUP(C52,StrokeData!$A$4:$A$404,StrokeData!$J$4:$J$404) ->  | S52: =LOOKUP(C52,StrokeData!$A$4:$A$404,StrokeData!$K$4:$K$404) ->  | T52: =LOOKUP(C52,StrokeData!$A$4:$A$404,StrokeData!$L$4:$L$404) -> 
B53: 17 | C53: =IF(C52=-1,-1,LOOKUP(C52,StrokeData!$A$4:$A$404,StrokeData!$L$4:$L$404)) -> -1 | D53: =LOOKUP(C53,StrokeData!$A$4:$A$404,StrokeData!$B$4:$B$404) ->  | E53: =LOOKUP(C53,StrokeData!$A$4:$A$404,StrokeData!$C$4:$C$404) ->  | G53: =LOOKUP(C53,StrokeData!$A$4:$A$404,StrokeData!$D$4:$D$404) ->  | H53: =LOOKUP(C53,StrokeData!$A$4:$A$404,StrokeData!$E$4:$E$404) ->  | I53: =LOOKUP(C53,StrokeData!$A$4:$A$404,StrokeData!$F$4:$F$404) ->  | J53: =LOOKUP(C53,StrokeData!$A$4:$A$404,StrokeData!$G$4:$G$404) ->  | K53: =LOOKUP(C53,StrokeData!$A$4:$A$404,StrokeData!$H$4:$H$404) ->  | L53: =LOOKUP(C53,StrokeData!$A$4:$A$404,StrokeData!$I$4:$I$404) ->  | M53: =LOOKUP(C53,StrokeData!$A$4:$A$404,StrokeData!$J$4:$J$404) ->  | S53: =LOOKUP(C53,StrokeData!$A$4:$A$404,StrokeData!$K$4:$K$404) ->  | T53: =LOOKUP(C53,StrokeData!$A$4:$A$404,StrokeData!$L$4:$L$404) -> 
B54: 18 | C54: =IF(C53=-1,-1,LOOKUP(C53,StrokeData!$A$4:$A$404,StrokeData!$L$4:$L$404)) -> -1 | D54: =LOOKUP(C54,StrokeData!$A$4:$A$404,StrokeData!$B$4:$B$404) ->  | E54: =LOOKUP(C54,StrokeData!$A$4:$A$404,StrokeData!$C$4:$C$404) ->  | G54: =LOOKUP(C54,StrokeData!$A$4:$A$404,StrokeData!$D$4:$D$404) ->  | H54: =LOOKUP(C54,StrokeData!$A$4:$A$404,StrokeData!$E$4:$E$404) ->  | I54: =LOOKUP(C54,StrokeData!$A$4:$A$404,StrokeData!$F$4:$F$404) ->  | J54: =LOOKUP(C54,StrokeData!$A$4:$A$404,StrokeData!$G$4:$G$404) ->  | K54: =LOOKUP(C54,StrokeData!$A$4:$A$404,StrokeData!$H$4:$H$404) ->  | L54: =LOOKUP(C54,StrokeData!$A$4:$A$404,StrokeData!$I$4:$I$404) ->  | M54: =LOOKUP(C54,StrokeData!$A$4:$A$404,StrokeData!$J$4:$J$404) ->  | S54: =LOOKUP(C54,StrokeData!$A$4:$A$404,StrokeData!$K$4:$K$404) ->  | T54: =LOOKUP(C54,StrokeData!$A$4:$A$404,StrokeData!$L$4:$L$404) -> 
B55: 19 | C55: =IF(C54=-1,-1,LOOKUP(C54,StrokeData!$A$4:$A$404,StrokeData!$L$4:$L$404)) -> -1 | D55: =LOOKUP(C55,StrokeData!$A$4:$A$404,StrokeData!$B$4:$B$404) ->  | E55: =LOOKUP(C55,StrokeData!$A$4:$A$404,StrokeData!$C$4:$C$404) ->  | G55: =LOOKUP(C55,StrokeData!$A$4:$A$404,StrokeData!$D$4:$D$404) ->  | H55: =LOOKUP(C55,StrokeData!$A$4:$A$404,StrokeData!$E$4:$E$404) ->  | I55: =LOOKUP(C55,StrokeData!$A$4:$A$404,StrokeData!$F$4:$F$404) ->  | J55: =LOOKUP(C55,StrokeData!$A$4:$A$404,StrokeData!$G$4:$G$404) ->  | K55: =LOOKUP(C55,StrokeData!$A$4:$A$404,StrokeData!$H$4:$H$404) ->  | L55: =LOOKUP(C55,StrokeData!$A$4:$A$404,StrokeData!$I$4:$I$404) ->  | M55: =LOOKUP(C55,StrokeData!$A$4:$A$404,StrokeData!$J$4:$J$404) ->  | S55: =LOOKUP(C55,StrokeData!$A$4:$A$404,StrokeData!$K$4:$K$404) ->  | T55: =LOOKUP(C55,StrokeData!$A$4:$A$404,StrokeData!$L$4:$L$404) -> 
B56: 20 | C56: =IF(C55=-1,-1,LOOKUP(C55,StrokeData!$A$4:$A$404,StrokeData!$L$4:$L$404)) -> -1 | D56: =LOOKUP(C56,StrokeData!$A$4:$A$404,StrokeData!$B$4:$B$404) ->  | E56: =LOOKUP(C56,StrokeData!$A$4:$A$404,StrokeData!$C$4:$C$404) ->  | G56: =LOOKUP(C56,StrokeData!$A$4:$A$404,StrokeData!$D$4:$D$404) ->  | H56: =LOOKUP(C56,StrokeData!$A$4:$A$404,StrokeData!$E$4:$E$404) ->  | I56: =LOOKUP(C56,StrokeData!$A$4:$A$404,StrokeData!$F$4:$F$404) ->  | J56: =LOOKUP(C56,StrokeData!$A$4:$A$404,StrokeData!$G$4:$G$404) ->  | K56: =LOOKUP(C56,StrokeData!$A$4:$A$404,StrokeData!$H$4:$H$404) ->  | L56: =LOOKUP(C56,StrokeData!$A$4:$A$404,StrokeData!$I$4:$I$404) ->  | M56: =LOOKUP(C56,StrokeData!$A$4:$A$404,StrokeData!$J$4:$J$404) ->  | S56: =LOOKUP(C56,StrokeData!$A$4:$A$404,StrokeData!$K$4:$K$404) ->  | T56: =LOOKUP(C56,StrokeData!$A$4:$A$404,StrokeData!$L$4:$L$404) -> 
D57: ストローク | E57: =H5 -> 50 | F57: mm | G57: ～ | H57: =I5 -> 400 | I57: mm | K57: 刻み | L57: =LOOKUP(D35,B26:B33,R26:R33) -> 50 | M57: mm | O57: 慣性係数 | P57: =IF($J$5=1,0.000001,0.001) -> 0.001 | Q57: 有効桁数 | R57: =IF($J$5=1,6,3) -> 3
B58: stﾘｽﾄ検索用(降順) | D58: № | E58: =StrokeData!$B$2 -> ｽﾄﾛｰｸ長 | F58: stﾘｽﾄ№ | G58: =StrokeData!$C$2 -> 有効ｽﾄﾛｰｸ補正 | I58: =StrokeData!$D$2 -> 基準ｹﾞｲﾝ用搬送質量 | J58: =StrokeData!$E$2 -> 水平可搬質量 | K58: =StrokeData!$F$2 -> 垂直可搬質量 | L58: =StrokeData!$G$2 -> 最大速度 | M58: =StrokeData!$H$2 -> 位置ｹﾞｲﾝ | N58: =StrokeData!$I$2 -> FFｹﾞｲﾝ | O58: =StrokeData!$J$2 -> 速度制御帯域
B59: =B36 -> № | C59: =D36 -> ｽﾄﾛｰｸ長 | D59: 0 | E59: =H4 -> [mm] | G59: [mm] | H59: [kg/mm] | I59: =IF(J5=1,"[kgm^2]","[kg]") -> [kg] | J59: =IF(J5=1,"[kgm^2]","[kg]") -> [kg] | K59: =IF(J5=1,"[kgm^2]","[kg]") -> [kg] | L59: [mm/s] | M59: [1/s] | N59: [%] | O59: [rad/s] | Q59: [s] | T59: [Nm/rad]
B60: =B56 -> 20 | C60: =D56 ->  | D60: 1 | E60: =IF( (E57+L57*D59)<=H57,(E57+L57*D59),"- - -") -> 50 | F60: =(B60+1)-MATCH(E60,C60:C79,-1) -> 1 | G60: =LOOKUP(F60,B37:B56,E37:E56) -> 0 | I60: =LOOKUP(F60,B37:B56,G37:G56)*$P$57 -> 8 | J60: =LOOKUP(F60,B37:B56,H37:H56)*$P$57 -> 8 | K60: =LOOKUP(F60,B37:B56,I37:I56)*$P$57 -> 4.5 | L60: =LOOKUP(F60,B37:B56,J37:J56) -> 165 | M60: =LOOKUP(F60,B37:B56,K37:K56) -> 30 | N60: =LOOKUP(F60,B37:B56,L37:L56) -> 0 | O60: =LOOKUP(F60,B37:B56,M37:M56) -> 160
B61: =B55 -> 19 | C61: =D55 ->  | D61: =D60+1 -> 2 | E61: =IF( (E57+L57*D60)<=H57,(E57+L57*D60),"- - -") -> 100 | F61: =(B60+1)-MATCH(E61,C60:C79,-1) -> 1 | G61: =LOOKUP(F61,B37:B56,E37:E56) -> 0 | I61: =LOOKUP(F61,B37:B56,G37:G56)*$P$57 -> 8 | J61: =LOOKUP(F61,B37:B56,H37:H56)*$P$57 -> 8 | K61: =LOOKUP(F61,B37:B56,I37:I56)*$P$57 -> 4.5 | L61: =LOOKUP(F61,B37:B56,J37:J56) -> 165 | M61: =LOOKUP(F61,B37:B56,K37:K56) -> 30 | N61: =LOOKUP(F61,B37:B56,L37:L56) -> 0 | O61: =LOOKUP(F61,B37:B56,M37:M56) -> 160
B62: =B54 -> 18 | C62: =D54 ->  | D62: =D61+1 -> 3 | E62: =IF( (E57+L57*D61)<=H57,(E57+L57*D61),"- - -") -> 150 | F62: =(B60+1)-MATCH(E62,C60:C79,-1) -> 1 | G62: =LOOKUP(F62,B37:B56,E37:E56) -> 0 | I62: =LOOKUP(F62,B37:B56,G37:G56)*$P$57 -> 8 | J62: =LOOKUP(F62,B37:B56,H37:H56)*$P$57 -> 8 | K62: =LOOKUP(F62,B37:B56,I37:I56)*$P$57 -> 4.5 | L62: =LOOKUP(F62,B37:B56,J37:J56) -> 165 | M62: =LOOKUP(F62,B37:B56,K37:K56) -> 30 | N62: =LOOKUP(F62,B37:B56,L37:L56) -> 0 | O62: =LOOKUP(F62,B37:B56,M37:M56) -> 160
B63: =B53 -> 17 | C63: =D53 ->  | D63: 4 | E63: =IF( (E57+L57*D62)<=H57,(E57+L57*D62),"- - -") -> 200 | F63: =(B60+1)-MATCH(E63,C60:C79,-1) -> 1 | G63: =LOOKUP(F63,B37:B56,E37:E56) -> 0 | I63: =LOOKUP(F63,B37:B56,G37:G56)*$P$57 -> 8 | J63: =LOOKUP(F63,B37:B56,H37:H56)*$P$57 -> 8 | K63: =LOOKUP(F63,B37:B56,I37:I56)*$P$57 -> 4.5 | L63: =LOOKUP(F63,B37:B56,J37:J56) -> 165 | M63: =LOOKUP(F63,B37:B56,K37:K56) -> 30 | N63: =LOOKUP(F63,B37:B56,L37:L56) -> 0 | O63: =LOOKUP(F63,B37:B56,M37:M56) -> 160
B64: =B52 -> 16 | C64: =D52 ->  | D64: 5 | E64: =IF( (E57+L57*D63)<=H57,(E57+L57*D63),"- - -") -> 250 | F64: =(B60+1)-MATCH(E64,C60:C79,-1) -> 1 | G64: =LOOKUP(F64,B37:B56,E37:E56) -> 0 | I64: =LOOKUP(F64,B37:B56,G37:G56)*$P$57 -> 8 | J64: =LOOKUP(F64,B37:B56,H37:H56)*$P$57 -> 8 | K64: =LOOKUP(F64,B37:B56,I37:I56)*$P$57 -> 4.5 | L64: =LOOKUP(F64,B37:B56,J37:J56) -> 165 | M64: =LOOKUP(F64,B37:B56,K37:K56) -> 30 | N64: =LOOKUP(F64,B37:B56,L37:L56) -> 0 | O64: =LOOKUP(F64,B37:B56,M37:M56) -> 160
B65: =B51 -> 15 | C65: =D51 ->  | D65: 6 | E65: =IF( (E57+L57*D64)<=H57,(E57+L57*D64),"- - -") -> 300 | F65: =(B60+1)-MATCH(E65,C60:C79,-1) -> 1 | G65: =LOOKUP(F65,B37:B56,E37:E56) -> 0 | I65: =LOOKUP(F65,B37:B56,G37:G56)*$P$57 -> 8 | J65: =LOOKUP(F65,B37:B56,H37:H56)*$P$57 -> 8 | K65: =LOOKUP(F65,B37:B56,I37:I56)*$P$57 -> 4.5 | L65: =LOOKUP(F65,B37:B56,J37:J56) -> 165 | M65: =LOOKUP(F65,B37:B56,K37:K56) -> 30 | N65: =LOOKUP(F65,B37:B56,L37:L56) -> 0 | O65: =LOOKUP(F65,B37:B56,M37:M56) -> 160
B66: =B50 -> 14 | C66: =D50 ->  | D66: 7 | E66: =IF( (E57+L57*D65)<=H57,(E57+L57*D65),"- - -") -> 350 | F66: =(B60+1)-MATCH(E66,C60:C79,-1) -> 1 | G66: =LOOKUP(F66,B37:B56,E37:E56) -> 0 | I66: =LOOKUP(F66,B37:B56,G37:G56)*$P$57 -> 8 | J66: =LOOKUP(F66,B37:B56,H37:H56)*$P$57 -> 8 | K66: =LOOKUP(F66,B37:B56,I37:I56)*$P$57 -> 4.5 | L66: =LOOKUP(F66,B37:B56,J37:J56) -> 165 | M66: =LOOKUP(F66,B37:B56,K37:K56) -> 30 | N66: =LOOKUP(F66,B37:B56,L37:L56) -> 0 | O66: =LOOKUP(F66,B37:B56,M37:M56) -> 160
B67: =B49 -> 13 | C67: =D49 ->  | D67: 8 | E67: =IF( (E57+L57*D66)<=H57,(E57+L57*D66),"- - -") -> 400 | F67: =(B60+1)-MATCH(E67,C60:C79,-1) -> 1 | G67: =LOOKUP(F67,B37:B56,E37:E56) -> 0 | I67: =LOOKUP(F67,B37:B56,G37:G56)*$P$57 -> 8 | J67: =LOOKUP(F67,B37:B56,H37:H56)*$P$57 -> 8 | K67: =LOOKUP(F67,B37:B56,I37:I56)*$P$57 -> 4.5 | L67: =LOOKUP(F67,B37:B56,J37:J56) -> 165 | M67: =LOOKUP(F67,B37:B56,K37:K56) -> 30 | N67: =LOOKUP(F67,B37:B56,L37:L56) -> 0 | O67: =LOOKUP(F67,B37:B56,M37:M56) -> 160
B68: =B48 -> 12 | C68: =D48 ->  | D68: 9 | E68: =IF( (E57+L57*D67)<=H57,(E57+L57*D67),"- - -") -> - - - | F68: =(B60+1)-MATCH(E68,C60:C79,-1) ->  | G68: =LOOKUP(F68,B37:B56,E37:E56) ->  | I68: =LOOKUP(F68,B37:B56,G37:G56)*$P$57 ->  | J68: =LOOKUP(F68,B37:B56,H37:H56)*$P$57 ->  | K68: =LOOKUP(F68,B37:B56,I37:I56)*$P$57 ->  | L68: =LOOKUP(F68,B37:B56,J37:J56) ->  | M68: =LOOKUP(F68,B37:B56,K37:K56) ->  | N68: =LOOKUP(F68,B37:B56,L37:L56) ->  | O68: =LOOKUP(F68,B37:B56,M37:M56) -> 
B69: =B47 -> 11 | C69: =D47 ->  | D69: 10 | E69: =IF( (E57+L57*D68)<=H57,(E57+L57*D68),"- - -") -> - - - | F69: =(B60+1)-MATCH(E69,C60:C79,-1) ->  | G69: =LOOKUP(F69,B37:B56,E37:E56) ->  | I69: =LOOKUP(F69,B37:B56,G37:G56)*$P$57 ->  | J69: =LOOKUP(F69,B37:B56,H37:H56)*$P$57 ->  | K69: =LOOKUP(F69,B37:B56,I37:I56)*$P$57 ->  | L69: =LOOKUP(F69,B37:B56,J37:J56) ->  | M69: =LOOKUP(F69,B37:B56,K37:K56) ->  | N69: =LOOKUP(F69,B37:B56,L37:L56) ->  | O69: =LOOKUP(F69,B37:B56,M37:M56) -> 
B70: =B46 -> 10 | C70: =D46 ->  | D70: 11 | E70: =IF( (E57+L57*D69)<=H57,(E57+L57*D69),"- - -") -> - - - | F70: =(B60+1)-MATCH(E70,C60:C79,-1) ->  | G70: =LOOKUP(F70,B37:B56,E37:E56) ->  | I70: =LOOKUP(F70,B37:B56,G37:G56)*$P$57 ->  | J70: =LOOKUP(F70,B37:B56,H37:H56)*$P$57 ->  | K70: =LOOKUP(F70,B37:B56,I37:I56)*$P$57 ->  | L70: =LOOKUP(F70,B37:B56,J37:J56) ->  | M70: =LOOKUP(F70,B37:B56,K37:K56) ->  | N70: =LOOKUP(F70,B37:B56,L37:L56) ->  | O70: =LOOKUP(F70,B37:B56,M37:M56) -> 
B71: =B45 -> 9 | C71: =D45 ->  | D71: 12 | E71: =IF( (E57+L57*D70)<=H57,(E57+L57*D70),"- - -") -> - - - | F71: =(B60+1)-MATCH(E71,C60:C79,-1) ->  | G71: =LOOKUP(F71,B37:B56,E37:E56) ->  | I71: =LOOKUP(F71,B37:B56,G37:G56)*$P$57 ->  | J71: =LOOKUP(F71,B37:B56,H37:H56)*$P$57 ->  | K71: =LOOKUP(F71,B37:B56,I37:I56)*$P$57 ->  | L71: =LOOKUP(F71,B37:B56,J37:J56) ->  | M71: =LOOKUP(F71,B37:B56,K37:K56) ->  | N71: =LOOKUP(F71,B37:B56,L37:L56) ->  | O71: =LOOKUP(F71,B37:B56,M37:M56) -> 
B72: =B44 -> 8 | C72: =D44 ->  | D72: 13 | E72: =IF( (E57+L57*D71)<=H57,(E57+L57*D71),"- - -") -> - - - | F72: =(B60+1)-MATCH(E72,C60:C79,-1) ->  | G72: =LOOKUP(F72,B37:B56,E37:E56) ->  | I72: =LOOKUP(F72,B37:B56,G37:G56)*$P$57 ->  | J72: =LOOKUP(F72,B37:B56,H37:H56)*$P$57 ->  | K72: =LOOKUP(F72,B37:B56,I37:I56)*$P$57 ->  | L72: =LOOKUP(F72,B37:B56,J37:J56) ->  | M72: =LOOKUP(F72,B37:B56,K37:K56) ->  | N72: =LOOKUP(F72,B37:B56,L37:L56) ->  | O72: =LOOKUP(F72,B37:B56,M37:M56) -> 
B73: =B43 -> 7 | C73: =D43 ->  | D73: 14 | E73: =IF( (E57+L57*D72)<=H57,(E57+L57*D72),"- - -") -> - - - | F73: =(B60+1)-MATCH(E73,C60:C79,-1) ->  | G73: =LOOKUP(F73,B37:B56,E37:E56) ->  | I73: =LOOKUP(F73,B37:B56,G37:G56)*$P$57 ->  | J73: =LOOKUP(F73,B37:B56,H37:H56)*$P$57 ->  | K73: =LOOKUP(F73,B37:B56,I37:I56)*$P$57 ->  | L73: =LOOKUP(F73,B37:B56,J37:J56) ->  | M73: =LOOKUP(F73,B37:B56,K37:K56) ->  | N73: =LOOKUP(F73,B37:B56,L37:L56) ->  | O73: =LOOKUP(F73,B37:B56,M37:M56) -> 
B74: =B42 -> 6 | C74: =D42 ->  | D74: 15 | E74: =IF( (E57+L57*D73)<=H57,(E57+L57*D73),"- - -") -> - - - | F74: =(B60+1)-MATCH(E74,C60:C79,-1) ->  | G74: =LOOKUP(F74,B37:B56,E37:E56) ->  | I74: =LOOKUP(F74,B37:B56,G37:G56)*$P$57 ->  | J74: =LOOKUP(F74,B37:B56,H37:H56)*$P$57 ->  | K74: =LOOKUP(F74,B37:B56,I37:I56)*$P$57 ->  | L74: =LOOKUP(F74,B37:B56,J37:J56) ->  | M74: =LOOKUP(F74,B37:B56,K37:K56) ->  | N74: =LOOKUP(F74,B37:B56,L37:L56) ->  | O74: =LOOKUP(F74,B37:B56,M37:M56) -> 
B75: =B41 -> 5 | C75: =D41 ->  | D75: 16 | E75: =IF( (E57+L57*D74)<=H57,(E57+L57*D74),"- - -") -> - - - | F75: =(B60+1)-MATCH(E75,C60:C79,-1) ->  | G75: =LOOKUP(F75,B37:B56,E37:E56) ->  | I75: =LOOKUP(F75,B37:B56,G37:G56)*$P$57 ->  | J75: =LOOKUP(F75,B37:B56,H37:H56)*$P$57 ->  | K75: =LOOKUP(F75,B37:B56,I37:I56)*$P$57 ->  | L75: =LOOKUP(F75,B37:B56,J37:J56) ->  | M75: =LOOKUP(F75,B37:B56,K37:K56) ->  | N75: =LOOKUP(F75,B37:B56,L37:L56) ->  | O75: =LOOKUP(F75,B37:B56,M37:M56) -> 
B76: =B40 -> 4 | C76: =D40 ->  | D76: 17 | E76: =IF( (E57+L57*D75)<=H57,(E57+L57*D75),"- - -") -> - - - | F76: =(B60+1)-MATCH(E76,C60:C79,-1) ->  | G76: =LOOKUP(F76,B37:B56,E37:E56) ->  | I76: =LOOKUP(F76,B37:B56,G37:G56)*$P$57 ->  | J76: =LOOKUP(F76,B37:B56,H37:H56)*$P$57 ->  | K76: =LOOKUP(F76,B37:B56,I37:I56)*$P$57 ->  | L76: =LOOKUP(F76,B37:B56,J37:J56) ->  | M76: =LOOKUP(F76,B37:B56,K37:K56) ->  | N76: =LOOKUP(F76,B37:B56,L37:L56) ->  | O76: =LOOKUP(F76,B37:B56,M37:M56) -> 
B77: =B39 -> 3 | C77: =D39 ->  | D77: 18 | E77: =IF( (E57+L57*D76)<=H57,(E57+L57*D76),"- - -") -> - - - | F77: =(B60+1)-MATCH(E77,C60:C79,-1) ->  | G77: =LOOKUP(F77,B37:B56,E37:E56) ->  | I77: =LOOKUP(F77,B37:B56,G37:G56)*$P$57 ->  | J77: =LOOKUP(F77,B37:B56,H37:H56)*$P$57 ->  | K77: =LOOKUP(F77,B37:B56,I37:I56)*$P$57 ->  | L77: =LOOKUP(F77,B37:B56,J37:J56) ->  | M77: =LOOKUP(F77,B37:B56,K37:K56) ->  | N77: =LOOKUP(F77,B37:B56,L37:L56) ->  | O77: =LOOKUP(F77,B37:B56,M37:M56) -> 
B78: =B38 -> 2 | C78: =D38 ->  | D78: 19 | E78: =IF( (E57+L57*D77)<=H57,(E57+L57*D77),"- - -") -> - - - | F78: =(B60+1)-MATCH(E78,C60:C79,-1) ->  | G78: =LOOKUP(F78,B37:B56,E37:E56) ->  | I78: =LOOKUP(F78,B37:B56,G37:G56)*$P$57 ->  | J78: =LOOKUP(F78,B37:B56,H37:H56)*$P$57 ->  | K78: =LOOKUP(F78,B37:B56,I37:I56)*$P$57 ->  | L78: =LOOKUP(F78,B37:B56,J37:J56) ->  | M78: =LOOKUP(F78,B37:B56,K37:K56) ->  | N78: =LOOKUP(F78,B37:B56,L37:L56) ->  | O78: =LOOKUP(F78,B37:B56,M37:M56) -> 
B79: =B37 -> 1 | C79: =D37 -> 400 | D79: 20 | E79: =IF( (E57+L57*D78)<=H57,(E57+L57*D78),"- - -") -> - - - | F79: =(B60+1)-MATCH(E79,C60:C79,-1) ->  | G79: =LOOKUP(F79,B37:B56,E37:E56) ->  | I79: =LOOKUP(F79,B37:B56,G37:G56)*$P$57 ->  | J79: =LOOKUP(F79,B37:B56,H37:H56)*$P$57 ->  | K79: =LOOKUP(F79,B37:B56,I37:I56)*$P$57 ->  | L79: =LOOKUP(F79,B37:B56,J37:J56) ->  | M79: =LOOKUP(F79,B37:B56,K37:K56) ->  | N79: =LOOKUP(F79,B37:B56,L37:L56) ->  | O79: =LOOKUP(F79,B37:B56,M37:M56) -> 
D80: 21 | E80: =IF( (E57+L57*D79)<=H57,(E57+L57*D79),"- - -") -> - - - | F80: =(B60+1)-MATCH(E80,C60:C79,-1) ->  | G80: =LOOKUP(F80,B37:B56,E37:E56) ->  | I80: =LOOKUP(F80,B37:B56,G37:G56)*$P$57 ->  | J80: =LOOKUP(F80,B37:B56,H37:H56)*$P$57 ->  | K80: =LOOKUP(F80,B37:B56,I37:I56)*$P$57 ->  | L80: =LOOKUP(F80,B37:B56,J37:J56) ->  | M80: =LOOKUP(F80,B37:B56,K37:K56) ->  | N80: =LOOKUP(F80,B37:B56,L37:L56) ->  | O80: =LOOKUP(F80,B37:B56,M37:M56) -> 
D81: 22 | E81: =IF( (E57+L57*D80)<=H57,(E57+L57*D80),"- - -") -> - - - | F81: =(B60+1)-MATCH(E81,C60:C79,-1) ->  | G81: =LOOKUP(F81,B37:B56,E37:E56) ->  | I81: =LOOKUP(F81,B37:B56,G37:G56)*$P$57 ->  | J81: =LOOKUP(F81,B37:B56,H37:H56)*$P$57 ->  | K81: =LOOKUP(F81,B37:B56,I37:I56)*$P$57 ->  | L81: =LOOKUP(F81,B37:B56,J37:J56) ->  | M81: =LOOKUP(F81,B37:B56,K37:K56) ->  | N81: =LOOKUP(F81,B37:B56,L37:L56) ->  | O81: =LOOKUP(F81,B37:B56,M37:M56) -> 
D82: 23 | E82: =IF( (E57+L57*D81)<=H57,(E57+L57*D81),"- - -") -> - - - | F82: =(B60+1)-MATCH(E82,C60:C79,-1) ->  | G82: =LOOKUP(F82,B37:B56,E37:E56) ->  | I82: =LOOKUP(F82,B37:B56,G37:G56)*$P$57 ->  | J82: =LOOKUP(F82,B37:B56,H37:H56)*$P$57 ->  | K82: =LOOKUP(F82,B37:B56,I37:I56)*$P$57 ->  | L82: =LOOKUP(F82,B37:B56,J37:J56) ->  | M82: =LOOKUP(F82,B37:B56,K37:K56) ->  | N82: =LOOKUP(F82,B37:B56,L37:L56) ->  | O82: =LOOKUP(F82,B37:B56,M37:M56) -> 
D83: 24 | E83: =IF( (E57+L57*D82)<=H57,(E57+L57*D82),"- - -") -> - - - | F83: =(B60+1)-MATCH(E83,C60:C79,-1) ->  | G83: =LOOKUP(F83,B37:B56,E37:E56) ->  | I83: =LOOKUP(F83,B37:B56,G37:G56)*$P$57 ->  | J83: =LOOKUP(F83,B37:B56,H37:H56)*$P$57 ->  | K83: =LOOKUP(F83,B37:B56,I37:I56)*$P$57 ->  | L83: =LOOKUP(F83,B37:B56,J37:J56) ->  | M83: =LOOKUP(F83,B37:B56,K37:K56) ->  | N83: =LOOKUP(F83,B37:B56,L37:L56) ->  | O83: =LOOKUP(F83,B37:B56,M37:M56) -> 
D84: 25 | E84: =IF( (E57+L57*D83)<=H57,(E57+L57*D83),"- - -") -> - - - | F84: =(B60+1)-MATCH(E84,C60:C79,-1) ->  | G84: =LOOKUP(F84,B37:B56,E37:E56) ->  | I84: =LOOKUP(F84,B37:B56,G37:G56)*$P$57 ->  | J84: =LOOKUP(F84,B37:B56,H37:H56)*$P$57 ->  | K84: =LOOKUP(F84,B37:B56,I37:I56)*$P$57 ->  | L84: =LOOKUP(F84,B37:B56,J37:J56) ->  | M84: =LOOKUP(F84,B37:B56,K37:K56) ->  | N84: =LOOKUP(F84,B37:B56,L37:L56) ->  | O84: =LOOKUP(F84,B37:B56,M37:M56) -> 
D85: 26 | E85: =IF( (E57+L57*D84)<=H57,(E57+L57*D84),"- - -") -> - - - | F85: =(B60+1)-MATCH(E85,C60:C79,-1) ->  | G85: =LOOKUP(F85,B37:B56,E37:E56) ->  | I85: =LOOKUP(F85,B37:B56,G37:G56)*$P$57 ->  | J85: =LOOKUP(F85,B37:B56,H37:H56)*$P$57 ->  | K85: =LOOKUP(F85,B37:B56,I37:I56)*$P$57 ->  | L85: =LOOKUP(F85,B37:B56,J37:J56) ->  | M85: =LOOKUP(F85,B37:B56,K37:K56) ->  | N85: =LOOKUP(F85,B37:B56,L37:L56) ->  | O85: =LOOKUP(F85,B37:B56,M37:M56) -> 
D86: 27 | E86: =IF( (E57+L57*D85)<=H57,(E57+L57*D85),"- - -") -> - - - | F86: =(B60+1)-MATCH(E86,C60:C79,-1) ->  | G86: =LOOKUP(F86,B37:B56,E37:E56) ->  | I86: =LOOKUP(F86,B37:B56,G37:G56)*$P$57 ->  | J86: =LOOKUP(F86,B37:B56,H37:H56)*$P$57 ->  | K86: =LOOKUP(F86,B37:B56,I37:I56)*$P$57 ->  | L86: =LOOKUP(F86,B37:B56,J37:J56) ->  | M86: =LOOKUP(F86,B37:B56,K37:K56) ->  | N86: =LOOKUP(F86,B37:B56,L37:L56) ->  | O86: =LOOKUP(F86,B37:B56,M37:M56) -> 
D87: 28 | E87: =IF( (E57+L57*D86)<=H57,(E57+L57*D86),"- - -") -> - - - | F87: =(B60+1)-MATCH(E87,C60:C79,-1) ->  | G87: =LOOKUP(F87,B37:B56,E37:E56) ->  | I87: =LOOKUP(F87,B37:B56,G37:G56)*$P$57 ->  | J87: =LOOKUP(F87,B37:B56,H37:H56)*$P$57 ->  | K87: =LOOKUP(F87,B37:B56,I37:I56)*$P$57 ->  | L87: =LOOKUP(F87,B37:B56,J37:J56) ->  | M87: =LOOKUP(F87,B37:B56,K37:K56) ->  | N87: =LOOKUP(F87,B37:B56,L37:L56) ->  | O87: =LOOKUP(F87,B37:B56,M37:M56) -> 
D88: 29 | E88: =IF( (E57+L57*D87)<=H57,(E57+L57*D87),"- - -") -> - - - | F88: =(B60+1)-MATCH(E88,C60:C79,-1) ->  | G88: =LOOKUP(F88,B37:B56,E37:E56) ->  | I88: =LOOKUP(F88,B37:B56,G37:G56)*$P$57 ->  | J88: =LOOKUP(F88,B37:B56,H37:H56)*$P$57 ->  | K88: =LOOKUP(F88,B37:B56,I37:I56)*$P$57 ->  | L88: =LOOKUP(F88,B37:B56,J37:J56) ->  | M88: =LOOKUP(F88,B37:B56,K37:K56) ->  | N88: =LOOKUP(F88,B37:B56,L37:L56) ->  | O88: =LOOKUP(F88,B37:B56,M37:M56) -> 
D89: 30 | E89: =IF( (E57+L57*D88)<=H57,(E57+L57*D88),"- - -") -> - - - | F89: =(B60+1)-MATCH(E89,C60:C79,-1) ->  | G89: =LOOKUP(F89,B37:B56,E37:E56) ->  | I89: =LOOKUP(F89,B37:B56,G37:G56)*$P$57 ->  | J89: =LOOKUP(F89,B37:B56,H37:H56)*$P$57 ->  | K89: =LOOKUP(F89,B37:B56,I37:I56)*$P$57 ->  | L89: =LOOKUP(F89,B37:B56,J37:J56) ->  | M89: =LOOKUP(F89,B37:B56,K37:K56) ->  | N89: =LOOKUP(F89,B37:B56,L37:L56) ->  | O89: =LOOKUP(F89,B37:B56,M37:M56) -> 
D90: =D89+1 -> 31 | E90: =IF( (E57+L57*D89)<=H57,(E57+L57*D89),"- - -") -> - - - | F90: =(B60+1)-MATCH(E90,C60:C79,-1) ->  | G90: =LOOKUP(F90,B37:B56,E37:E56) ->  | I90: =LOOKUP(F90,B37:B56,G37:G56)*$P$57 ->  | J90: =LOOKUP(F90,B37:B56,H37:H56)*$P$57 ->  | K90: =LOOKUP(F90,B37:B56,I37:I56)*$P$57 ->  | L90: =LOOKUP(F90,B37:B56,J37:J56) ->  | M90: =LOOKUP(F90,B37:B56,K37:K56) ->  | N90: =LOOKUP(F90,B37:B56,L37:L56) ->  | O90: =LOOKUP(F90,B37:B56,M37:M56) -> 
D91: 32 | E91: =IF( (E57+L57*D90)<=H57,(E57+L57*D90),"- - -") -> - - - | F91: =(B60+1)-MATCH(E91,C60:C79,-1) ->  | G91: =LOOKUP(F91,B37:B56,E37:E56) ->  | I91: =LOOKUP(F91,B37:B56,G37:G56)*$P$57 ->  | J91: =LOOKUP(F91,B37:B56,H37:H56)*$P$57 ->  | K91: =LOOKUP(F91,B37:B56,I37:I56)*$P$57 ->  | L91: =LOOKUP(F91,B37:B56,J37:J56) ->  | M91: =LOOKUP(F91,B37:B56,K37:K56) ->  | N91: =LOOKUP(F91,B37:B56,L37:L56) ->  | O91: =LOOKUP(F91,B37:B56,M37:M56) -> 
D92: 33 | E92: =IF( (E57+L57*D91)<=H57,(E57+L57*D91),"- - -") -> - - - | F92: =(B60+1)-MATCH(E92,C60:C79,-1) ->  | G92: =LOOKUP(F92,B37:B56,E37:E56) ->  | I92: =LOOKUP(F92,B37:B56,G37:G56)*$P$57 ->  | J92: =LOOKUP(F92,B37:B56,H37:H56)*$P$57 ->  | K92: =LOOKUP(F92,B37:B56,I37:I56)*$P$57 ->  | L92: =LOOKUP(F92,B37:B56,J37:J56) ->  | M92: =LOOKUP(F92,B37:B56,K37:K56) ->  | N92: =LOOKUP(F92,B37:B56,L37:L56) ->  | O92: =LOOKUP(F92,B37:B56,M37:M56) -> 
D93: 34 | E93: =IF( (E57+L57*D92)<=H57,(E57+L57*D92),"- - -") -> - - - | F93: =(B60+1)-MATCH(E93,C60:C79,-1) ->  | G93: =LOOKUP(F93,B37:B56,E37:E56) ->  | I93: =LOOKUP(F93,B37:B56,G37:G56)*$P$57 ->  | J93: =LOOKUP(F93,B37:B56,H37:H56)*$P$57 ->  | K93: =LOOKUP(F93,B37:B56,I37:I56)*$P$57 ->  | L93: =LOOKUP(F93,B37:B56,J37:J56) ->  | M93: =LOOKUP(F93,B37:B56,K37:K56) ->  | N93: =LOOKUP(F93,B37:B56,L37:L56) ->  | O93: =LOOKUP(F93,B37:B56,M37:M56) -> 
D94: 35 | E94: =IF( (E57+L57*D93)<=H57,(E57+L57*D93),"- - -") -> - - - | F94: =(B60+1)-MATCH(E94,C60:C79,-1) ->  | G94: =LOOKUP(F94,B37:B56,E37:E56) ->  | I94: =LOOKUP(F94,B37:B56,G37:G56)*$P$57 ->  | J94: =LOOKUP(F94,B37:B56,H37:H56)*$P$57 ->  | K94: =LOOKUP(F94,B37:B56,I37:I56)*$P$57 ->  | L94: =LOOKUP(F94,B37:B56,J37:J56) ->  | M94: =LOOKUP(F94,B37:B56,K37:K56) ->  | N94: =LOOKUP(F94,B37:B56,L37:L56) ->  | O94: =LOOKUP(F94,B37:B56,M37:M56) -> 
D95: 36 | E95: =IF( (E57+L57*D94)<=H57,(E57+L57*D94),"- - -") -> - - - | F95: =(B60+1)-MATCH(E95,C60:C79,-1) ->  | G95: =LOOKUP(F95,B37:B56,E37:E56) ->  | I95: =LOOKUP(F95,B37:B56,G37:G56)*$P$57 ->  | J95: =LOOKUP(F95,B37:B56,H37:H56)*$P$57 ->  | K95: =LOOKUP(F95,B37:B56,I37:I56)*$P$57 ->  | L95: =LOOKUP(F95,B37:B56,J37:J56) ->  | M95: =LOOKUP(F95,B37:B56,K37:K56) ->  | N95: =LOOKUP(F95,B37:B56,L37:L56) ->  | O95: =LOOKUP(F95,B37:B56,M37:M56) -> 
D96: 37 | E96: =IF( (E57+L57*D95)<=H57,(E57+L57*D95),"- - -") -> - - - | F96: =(B60+1)-MATCH(E96,C60:C79,-1) ->  | G96: =LOOKUP(F96,B37:B56,E37:E56) ->  | I96: =LOOKUP(F96,B37:B56,G37:G56)*$P$57 ->  | J96: =LOOKUP(F96,B37:B56,H37:H56)*$P$57 ->  | K96: =LOOKUP(F96,B37:B56,I37:I56)*$P$57 ->  | L96: =LOOKUP(F96,B37:B56,J37:J56) ->  | M96: =LOOKUP(F96,B37:B56,K37:K56) ->  | N96: =LOOKUP(F96,B37:B56,L37:L56) ->  | O96: =LOOKUP(F96,B37:B56,M37:M56) -> 
D97: 38 | E97: =IF( (E57+L57*D96)<=H57,(E57+L57*D96),"- - -") -> - - - | F97: =(B60+1)-MATCH(E97,C60:C79,-1) ->  | G97: =LOOKUP(F97,B37:B56,E37:E56) ->  | I97: =LOOKUP(F97,B37:B56,G37:G56)*$P$57 ->  | J97: =LOOKUP(F97,B37:B56,H37:H56)*$P$57 ->  | K97: =LOOKUP(F97,B37:B56,I37:I56)*$P$57 ->  | L97: =LOOKUP(F97,B37:B56,J37:J56) ->  | M97: =LOOKUP(F97,B37:B56,K37:K56) ->  | N97: =LOOKUP(F97,B37:B56,L37:L56) ->  | O97: =LOOKUP(F97,B37:B56,M37:M56) -> 
D98: 39 | E98: =IF( (E57+L57*D97)<=H57,(E57+L57*D97),"- - -") -> - - - | F98: =(B60+1)-MATCH(E98,C60:C79,-1) ->  | G98: =LOOKUP(F98,B37:B56,E37:E56) ->  | I98: =LOOKUP(F98,B37:B56,G37:G56)*$P$57 ->  | J98: =LOOKUP(F98,B37:B56,H37:H56)*$P$57 ->  | K98: =LOOKUP(F98,B37:B56,I37:I56)*$P$57 ->  | L98: =LOOKUP(F98,B37:B56,J37:J56) ->  | M98: =LOOKUP(F98,B37:B56,K37:K56) ->  | N98: =LOOKUP(F98,B37:B56,L37:L56) ->  | O98: =LOOKUP(F98,B37:B56,M37:M56) -> 
D99: 40 | E99: =IF( (E57+L57*D98)<=H57,(E57+L57*D98),"- - -") -> - - - | F99: =(B60+1)-MATCH(E99,C60:C79,-1) ->  | G99: =LOOKUP(F99,B37:B56,E37:E56) ->  | I99: =LOOKUP(F99,B37:B56,G37:G56)*$P$57 ->  | J99: =LOOKUP(F99,B37:B56,H37:H56)*$P$57 ->  | K99: =LOOKUP(F99,B37:B56,I37:I56)*$P$57 ->  | L99: =LOOKUP(F99,B37:B56,J37:J56) ->  | M99: =LOOKUP(F99,B37:B56,K37:K56) ->  | N99: =LOOKUP(F99,B37:B56,L37:L56) ->  | O99: =LOOKUP(F99,B37:B56,M37:M56) -> 
D100: 41 | E100: =IF( (E57+L57*D99)<=H57,(E57+L57*D99),"- - -") -> - - - | F100: =(B60+1)-MATCH(E100,C60:C79,-1) ->  | G100: =LOOKUP(F100,B37:B56,E37:E56) ->  | I100: =LOOKUP(F100,B37:B56,G37:G56)*$P$57 ->  | J100: =LOOKUP(F100,B37:B56,H37:H56)*$P$57 ->  | K100: =LOOKUP(F100,B37:B56,I37:I56)*$P$57 ->  | L100: =LOOKUP(F100,B37:B56,J37:J56) ->  | M100: =LOOKUP(F100,B37:B56,K37:K56) ->  | N100: =LOOKUP(F100,B37:B56,L37:L56) ->  | O100: =LOOKUP(F100,B37:B56,M37:M56) -> 
D101: 42 | E101: =IF( (E57+L57*D100)<=H57,(E57+L57*D100),"- - -") -> - - - | F101: =(B60+1)-MATCH(E101,C60:C79,-1) ->  | G101: =LOOKUP(F101,B37:B56,E37:E56) ->  | I101: =LOOKUP(F101,B37:B56,G37:G56)*$P$57 ->  | J101: =LOOKUP(F101,B37:B56,H37:H56)*$P$57 ->  | K101: =LOOKUP(F101,B37:B56,I37:I56)*$P$57 ->  | L101: =LOOKUP(F101,B37:B56,J37:J56) ->  | M101: =LOOKUP(F101,B37:B56,K37:K56) ->  | N101: =LOOKUP(F101,B37:B56,L37:L56) ->  | O101: =LOOKUP(F101,B37:B56,M37:M56) -> 
D102: 43 | E102: =IF( (E57+L57*D101)<=H57,(E57+L57*D101),"- - -") -> - - - | F102: =(B60+1)-MATCH(E102,C60:C79,-1) ->  | G102: =LOOKUP(F102,B37:B56,E37:E56) ->  | I102: =LOOKUP(F102,B37:B56,G37:G56)*$P$57 ->  | J102: =LOOKUP(F102,B37:B56,H37:H56)*$P$57 ->  | K102: =LOOKUP(F102,B37:B56,I37:I56)*$P$57 ->  | L102: =LOOKUP(F102,B37:B56,J37:J56) ->  | M102: =LOOKUP(F102,B37:B56,K37:K56) ->  | N102: =LOOKUP(F102,B37:B56,L37:L56) ->  | O102: =LOOKUP(F102,B37:B56,M37:M56) -> 
D103: 44 | E103: =IF( (E57+L57*D102)<=H57,(E57+L57*D102),"- - -") -> - - - | F103: =(B60+1)-MATCH(E103,C60:C79,-1) ->  | G103: =LOOKUP(F103,B37:B56,E37:E56) ->  | I103: =LOOKUP(F103,B37:B56,G37:G56)*$P$57 ->  | J103: =LOOKUP(F103,B37:B56,H37:H56)*$P$57 ->  | K103: =LOOKUP(F103,B37:B56,I37:I56)*$P$57 ->  | L103: =LOOKUP(F103,B37:B56,J37:J56) ->  | M103: =LOOKUP(F103,B37:B56,K37:K56) ->  | N103: =LOOKUP(F103,B37:B56,L37:L56) ->  | O103: =LOOKUP(F103,B37:B56,M37:M56) -> 
D104: 45 | E104: =IF( (E57+L57*D103)<=H57,(E57+L57*D103),"- - -") -> - - - | F104: =(B60+1)-MATCH(E104,C60:C79,-1) ->  | G104: =LOOKUP(F104,B37:B56,E37:E56) ->  | I104: =LOOKUP(F104,B37:B56,G37:G56)*$P$57 ->  | J104: =LOOKUP(F104,B37:B56,H37:H56)*$P$57 ->  | K104: =LOOKUP(F104,B37:B56,I37:I56)*$P$57 ->  | L104: =LOOKUP(F104,B37:B56,J37:J56) ->  | M104: =LOOKUP(F104,B37:B56,K37:K56) ->  | N104: =LOOKUP(F104,B37:B56,L37:L56) ->  | O104: =LOOKUP(F104,B37:B56,M37:M56) -> 
D105: 46 | E105: =IF( (E57+L57*D104)<=H57,(E57+L57*D104),"- - -") -> - - - | F105: =(B60+1)-MATCH(E105,C60:C79,-1) ->  | G105: =LOOKUP(F105,B37:B56,E37:E56) ->  | I105: =LOOKUP(F105,B37:B56,G37:G56)*$P$57 ->  | J105: =LOOKUP(F105,B37:B56,H37:H56)*$P$57 ->  | K105: =LOOKUP(F105,B37:B56,I37:I56)*$P$57 ->  | L105: =LOOKUP(F105,B37:B56,J37:J56) ->  | M105: =LOOKUP(F105,B37:B56,K37:K56) ->  | N105: =LOOKUP(F105,B37:B56,L37:L56) ->  | O105: =LOOKUP(F105,B37:B56,M37:M56) -> 
D106: 47 | E106: =IF( (E57+L57*D105)<=H57,(E57+L57*D105),"- - -") -> - - - | F106: =(B60+1)-MATCH(E106,C60:C79,-1) ->  | G106: =LOOKUP(F106,B37:B56,E37:E56) ->  | I106: =LOOKUP(F106,B37:B56,G37:G56)*$P$57 ->  | J106: =LOOKUP(F106,B37:B56,H37:H56)*$P$57 ->  | K106: =LOOKUP(F106,B37:B56,I37:I56)*$P$57 ->  | L106: =LOOKUP(F106,B37:B56,J37:J56) ->  | M106: =LOOKUP(F106,B37:B56,K37:K56) ->  | N106: =LOOKUP(F106,B37:B56,L37:L56) ->  | O106: =LOOKUP(F106,B37:B56,M37:M56) -> 
D107: 48 | E107: =IF( (E57+L57*D106)<=H57,(E57+L57*D106),"- - -") -> - - - | F107: =(B60+1)-MATCH(E107,C60:C79,-1) ->  | G107: =LOOKUP(F107,B37:B56,E37:E56) ->  | I107: =LOOKUP(F107,B37:B56,G37:G56)*$P$57 ->  | J107: =LOOKUP(F107,B37:B56,H37:H56)*$P$57 ->  | K107: =LOOKUP(F107,B37:B56,I37:I56)*$P$57 ->  | L107: =LOOKUP(F107,B37:B56,J37:J56) ->  | M107: =LOOKUP(F107,B37:B56,K37:K56) ->  | N107: =LOOKUP(F107,B37:B56,L37:L56) ->  | O107: =LOOKUP(F107,B37:B56,M37:M56) -> 
D108: 49 | E108: =IF( (E57+L57*D107)<=H57,(E57+L57*D107),"- - -") -> - - - | F108: =(B60+1)-MATCH(E108,C60:C79,-1) ->  | G108: =LOOKUP(F108,B37:B56,E37:E56) ->  | I108: =LOOKUP(F108,B37:B56,G37:G56)*$P$57 ->  | J108: =LOOKUP(F108,B37:B56,H37:H56)*$P$57 ->  | K108: =LOOKUP(F108,B37:B56,I37:I56)*$P$57 ->  | L108: =LOOKUP(F108,B37:B56,J37:J56) ->  | M108: =LOOKUP(F108,B37:B56,K37:K56) ->  | N108: =LOOKUP(F108,B37:B56,L37:L56) ->  | O108: =LOOKUP(F108,B37:B56,M37:M56) -> 
D109: 50 | E109: =IF( (E57+L57*D108)<=H57,(E57+L57*D108),"- - -") -> - - - | F109: =(B60+1)-MATCH(E109,C60:C79,-1) ->  | G109: =LOOKUP(F109,B37:B56,E37:E56) ->  | I109: =LOOKUP(F109,B37:B56,G37:G56)*$P$57 ->  | J109: =LOOKUP(F109,B37:B56,H37:H56)*$P$57 ->  | K109: =LOOKUP(F109,B37:B56,I37:I56)*$P$57 ->  | L109: =LOOKUP(F109,B37:B56,J37:J56) ->  | M109: =LOOKUP(F109,B37:B56,K37:K56) ->  | N109: =LOOKUP(F109,B37:B56,L37:L56) ->  | O109: =LOOKUP(F109,B37:B56,M37:M56) -> 
B112: 搬送負荷データレコード | E112: =LOOKUP(C114,MassDataLink!$A$4:$A$618,MassDataLink!$G$4:$G$618) -> RCA-SA4C-20-2.5-水平 | J112: 設置姿勢で絞込み | L112: - - - | N112: 加減速・速度データレコード
B113: № | C113: Ldﾚｺｰﾄﾞ№ | D113: =MassDataLink!B2 -> ｱｸﾁｭｴｰﾀ姿勢 | E113: =MassDataLink!C2 -> 搬送負荷質量 | F113: =MassDataLink!D2 -> 加減速・速度ﾃﾞｰﾀ | G113: =MassDataLink!E2 -> 前ﾃﾞｰﾀ№ | H113: =MassDataLink!F2 -> 次ﾃﾞｰﾀ№ | J113: № | K113: 搬送負荷質量 | L113: avﾚｺｰﾄﾞ№ | N113: 備考 | O113: =LOOKUP(O115,AccVelDataLink!$A$4:$A$618,AccVelDataLink!$F$4:$F$618) -> RCA-SA4C-20-2.5-水平
B114: 1 | C114: =LOOKUP(D35,B26:B33,E26:E33) -> 49 | D114: =LOOKUP(C114,MassDataLink!$A$4:$A$618,MassDataLink!$B$4:$B$618) -> 0 | E114: =LOOKUP(C114,MassDataLink!$A$4:$A$618,MassDataLink!$C$4:$C$618) -> 8000 | F114: =LOOKUP(C114,MassDataLink!$A$4:$A$618,MassDataLink!$D$4:$D$618) -> 49 | G114: =LOOKUP(C114,MassDataLink!$A$4:$A$618,MassDataLink!$E$4:$E$618) -> -1 | H114: =LOOKUP(C114,MassDataLink!$A$4:$A$618,MassDataLink!$F$4:$F$618) -> 50 | J114: 1 | K114: =IF(C114=-1,$L$112,IF($A$11=D114,ROUND((E114*$P$57),$R$57),$L$112)) -> 8 | L114: =IF(K114=$L$112,$L$112,F114) -> 49 | N114: № | O114: avﾚｺｰﾄﾞ№ | P114: 加速度 | Q114: 速度 | R114: 前ﾃﾞｰﾀ | S114: 次ﾃﾞｰﾀ
B115: =B114+1 -> 2 | C115: =IF(C114=-1,-1,H114) -> 50 | D115: =LOOKUP(C115,MassDataLink!$A$4:$A$618,MassDataLink!$B$4:$B$618) -> 1 | E115: =LOOKUP(C115,MassDataLink!$A$4:$A$618,MassDataLink!$C$4:$C$618) -> 4500 | F115: =LOOKUP(C115,MassDataLink!$A$4:$A$618,MassDataLink!$D$4:$D$618) -> 50 | G115: =LOOKUP(C115,MassDataLink!$A$4:$A$618,MassDataLink!$E$4:$E$618) -> 49 | H115: =LOOKUP(C115,MassDataLink!$A$4:$A$618,MassDataLink!$F$4:$F$618) -> -1 | J115: =J114+1 -> 2 | K115: =IF(C115=-1,$L$112,IF($A$11=D115,ROUND((E115*$P$57),$R$57),$L$112)) -> - - - | L115: =IF(K115=$L$112,$L$112,F115) -> - - - | N115: 1 | O115: =LOOKUP(A14,K114:K163,L114:L163) -> 49 | P115: =LOOKUP(O115,AccVelDataLink!$A$4:$A$618,AccVelDataLink!$B$4:$B$618) -> 1961330 | Q115: =LOOKUP(O115,AccVelDataLink!$A$4:$A$618,AccVelDataLink!$C$4:$C$618) -> 165 | R115: =LOOKUP(O115,AccVelDataLink!$A$4:$A$618,AccVelDataLink!$D$4:$D$618) -> -1 | S115: =LOOKUP(O115,AccVelDataLink!$A$4:$A$618,AccVelDataLink!$E$4:$E$618) -> -1
B116: =B115+1 -> 3 | C116: =IF(C115=-1,-1,H115) -> -1 | D116: =LOOKUP(C116,MassDataLink!$A$4:$A$618,MassDataLink!$B$4:$B$618) ->  | E116: =LOOKUP(C116,MassDataLink!$A$4:$A$618,MassDataLink!$C$4:$C$618) ->  | F116: =LOOKUP(C116,MassDataLink!$A$4:$A$618,MassDataLink!$D$4:$D$618) ->  | G116: =LOOKUP(C116,MassDataLink!$A$4:$A$618,MassDataLink!$E$4:$E$618) ->  | H116: =LOOKUP(C116,MassDataLink!$A$4:$A$618,MassDataLink!$F$4:$F$618) ->  | J116: =J115+1 -> 3 | K116: - - - | L116: - - - | N116: =N115+1 -> 2 | O116: =IF(O115=-1,-1,S115) -> -1 | P116: =LOOKUP(O116,AccVelDataLink!$A$4:$A$618,AccVelDataLink!$B$4:$B$618) ->  | Q116: =LOOKUP(O116,AccVelDataLink!$A$4:$A$618,AccVelDataLink!$C$4:$C$618) ->  | R116: =LOOKUP(O116,AccVelDataLink!$A$4:$A$618,AccVelDataLink!$D$4:$D$618) ->  | S116: =LOOKUP(O116,AccVelDataLink!$A$4:$A$618,AccVelDataLink!$E$4:$E$618) -> 
B117: =B116+1 -> 4 | C117: =IF(C116=-1,-1,H116) -> -1 | D117: =LOOKUP(C117,MassDataLink!$A$4:$A$618,MassDataLink!$B$4:$B$618) ->  | E117: =LOOKUP(C117,MassDataLink!$A$4:$A$618,MassDataLink!$C$4:$C$618) ->  | F117: =LOOKUP(C117,MassDataLink!$A$4:$A$618,MassDataLink!$D$4:$D$618) ->  | G117: =LOOKUP(C117,MassDataLink!$A$4:$A$618,MassDataLink!$E$4:$E$618) ->  | H117: =LOOKUP(C117,MassDataLink!$A$4:$A$618,MassDataLink!$F$4:$F$618) ->  | J117: =J116+1 -> 4 | K117: - - - | L117: - - - | N117: 3 | O117: =IF(O116=-1,-1,S116) -> -1 | P117: =LOOKUP(O117,AccVelDataLink!$A$4:$A$618,AccVelDataLink!$B$4:$B$618) ->  | Q117: =LOOKUP(O117,AccVelDataLink!$A$4:$A$618,AccVelDataLink!$C$4:$C$618) ->  | R117: =LOOKUP(O117,AccVelDataLink!$A$4:$A$618,AccVelDataLink!$D$4:$D$618) ->  | S117: =LOOKUP(O117,AccVelDataLink!$A$4:$A$618,AccVelDataLink!$E$4:$E$618) -> 
B118: =B117+1 -> 5 | C118: =IF(C117=-1,-1,H117) -> -1 | D118: =LOOKUP(C118,MassDataLink!$A$4:$A$618,MassDataLink!$B$4:$B$618) ->  | E118: =LOOKUP(C118,MassDataLink!$A$4:$A$618,MassDataLink!$C$4:$C$618) ->  | F118: =LOOKUP(C118,MassDataLink!$A$4:$A$618,MassDataLink!$D$4:$D$618) ->  | G118: =LOOKUP(C118,MassDataLink!$A$4:$A$618,MassDataLink!$E$4:$E$618) ->  | H118: =LOOKUP(C118,MassDataLink!$A$4:$A$618,MassDataLink!$F$4:$F$618) ->  | J118: =J117+1 -> 5 | K118: - - - | L118: - - - | N118: 4 | O118: -1 | P118: =LOOKUP(O118,AccVelDataLink!$A$4:$A$618,AccVelDataLink!$B$4:$B$618) ->  | Q118: =LOOKUP(O118,AccVelDataLink!$A$4:$A$618,AccVelDataLink!$C$4:$C$618) ->  | R118: =LOOKUP(O118,AccVelDataLink!$A$4:$A$618,AccVelDataLink!$D$4:$D$618) ->  | S118: =LOOKUP(O118,AccVelDataLink!$A$4:$A$618,AccVelDataLink!$E$4:$E$618) -> 
B119: =B118+1 -> 6 | C119: =IF(C118=-1,-1,H118) -> -1 | D119: =LOOKUP(C119,MassDataLink!$A$4:$A$618,MassDataLink!$B$4:$B$618) ->  | E119: =LOOKUP(C119,MassDataLink!$A$4:$A$618,MassDataLink!$C$4:$C$618) ->  | F119: =LOOKUP(C119,MassDataLink!$A$4:$A$618,MassDataLink!$D$4:$D$618) ->  | G119: =LOOKUP(C119,MassDataLink!$A$4:$A$618,MassDataLink!$E$4:$E$618) ->  | H119: =LOOKUP(C119,MassDataLink!$A$4:$A$618,MassDataLink!$F$4:$F$618) ->  | J119: =J118+1 -> 6 | K119: - - - | L119: - - - | N119: 5 | O119: -1 | P119: =LOOKUP(O119,AccVelDataLink!$A$4:$A$618,AccVelDataLink!$B$4:$B$618) ->  | Q119: =LOOKUP(O119,AccVelDataLink!$A$4:$A$618,AccVelDataLink!$C$4:$C$618) ->  | R119: =LOOKUP(O119,AccVelDataLink!$A$4:$A$618,AccVelDataLink!$D$4:$D$618) ->  | S119: =LOOKUP(O119,AccVelDataLink!$A$4:$A$618,AccVelDataLink!$E$4:$E$618) -> 
B120: 7 | C120: -1 | D120: =LOOKUP(C120,MassDataLink!$A$4:$A$618,MassDataLink!$B$4:$B$618) ->  | E120: =LOOKUP(C120,MassDataLink!$A$4:$A$618,MassDataLink!$C$4:$C$618) ->  | F120: =LOOKUP(C120,MassDataLink!$A$4:$A$618,MassDataLink!$D$4:$D$618) ->  | G120: =LOOKUP(C120,MassDataLink!$A$4:$A$618,MassDataLink!$E$4:$E$618) ->  | H120: =LOOKUP(C120,MassDataLink!$A$4:$A$618,MassDataLink!$F$4:$F$618) ->  | J120: 7 | K120: - - - | L120: - - - | N120: 6 | O120: -1 | P120: =LOOKUP(O120,AccVelDataLink!$A$4:$A$618,AccVelDataLink!$B$4:$B$618) ->  | Q120: =LOOKUP(O120,AccVelDataLink!$A$4:$A$618,AccVelDataLink!$C$4:$C$618) ->  | R120: =LOOKUP(O120,AccVelDataLink!$A$4:$A$618,AccVelDataLink!$D$4:$D$618) ->  | S120: =LOOKUP(O120,AccVelDataLink!$A$4:$A$618,AccVelDataLink!$E$4:$E$618) -> 
B121: 8 | C121: -1 | D121: =LOOKUP(C121,MassDataLink!$A$4:$A$618,MassDataLink!$B$4:$B$618) ->  | E121: =LOOKUP(C121,MassDataLink!$A$4:$A$618,MassDataLink!$C$4:$C$618) ->  | F121: =LOOKUP(C121,MassDataLink!$A$4:$A$618,MassDataLink!$D$4:$D$618) ->  | G121: =LOOKUP(C121,MassDataLink!$A$4:$A$618,MassDataLink!$E$4:$E$618) ->  | H121: =LOOKUP(C121,MassDataLink!$A$4:$A$618,MassDataLink!$F$4:$F$618) ->  | J121: 8 | K121: - - - | L121: - - - | N121: 7 | O121: -1 | P121: =LOOKUP(O121,AccVelDataLink!$A$4:$A$618,AccVelDataLink!$B$4:$B$618) ->  | Q121: =LOOKUP(O121,AccVelDataLink!$A$4:$A$618,AccVelDataLink!$C$4:$C$618) ->  | R121: =LOOKUP(O121,AccVelDataLink!$A$4:$A$618,AccVelDataLink!$D$4:$D$618) ->  | S121: =LOOKUP(O121,AccVelDataLink!$A$4:$A$618,AccVelDataLink!$E$4:$E$618) -> 
B122: 9 | C122: -1 | D122: =LOOKUP(C122,MassDataLink!$A$4:$A$618,MassDataLink!$B$4:$B$618) ->  | E122: =LOOKUP(C122,MassDataLink!$A$4:$A$618,MassDataLink!$C$4:$C$618) ->  | F122: =LOOKUP(C122,MassDataLink!$A$4:$A$618,MassDataLink!$D$4:$D$618) ->  | G122: =LOOKUP(C122,MassDataLink!$A$4:$A$618,MassDataLink!$E$4:$E$618) ->  | H122: =LOOKUP(C122,MassDataLink!$A$4:$A$618,MassDataLink!$F$4:$F$618) ->  | J122: 9 | K122: - - - | L122: - - - | N122: 8 | O122: -1 | P122: =LOOKUP(O122,AccVelDataLink!$A$4:$A$618,AccVelDataLink!$B$4:$B$618) ->  | Q122: =LOOKUP(O122,AccVelDataLink!$A$4:$A$618,AccVelDataLink!$C$4:$C$618) ->  | R122: =LOOKUP(O122,AccVelDataLink!$A$4:$A$618,AccVelDataLink!$D$4:$D$618) ->  | S122: =LOOKUP(O122,AccVelDataLink!$A$4:$A$618,AccVelDataLink!$E$4:$E$618) -> 
B123: 10 | C123: -1 | D123: =LOOKUP(C123,MassDataLink!$A$4:$A$618,MassDataLink!$B$4:$B$618) ->  | E123: =LOOKUP(C123,MassDataLink!$A$4:$A$618,MassDataLink!$C$4:$C$618) ->  | F123: =LOOKUP(C123,MassDataLink!$A$4:$A$618,MassDataLink!$D$4:$D$618) ->  | G123: =LOOKUP(C123,MassDataLink!$A$4:$A$618,MassDataLink!$E$4:$E$618) ->  | H123: =LOOKUP(C123,MassDataLink!$A$4:$A$618,MassDataLink!$F$4:$F$618) ->  | J123: 10 | K123: - - - | L123: - - - | N123: 9 | O123: -1 | P123: =LOOKUP(O123,AccVelDataLink!$A$4:$A$618,AccVelDataLink!$B$4:$B$618) ->  | Q123: =LOOKUP(O123,AccVelDataLink!$A$4:$A$618,AccVelDataLink!$C$4:$C$618) ->  | R123: =LOOKUP(O123,AccVelDataLink!$A$4:$A$618,AccVelDataLink!$D$4:$D$618) ->  | S123: =LOOKUP(O123,AccVelDataLink!$A$4:$A$618,AccVelDataLink!$E$4:$E$618) -> 
B124: 11 | C124: -1 | D124: =LOOKUP(C124,MassDataLink!$A$4:$A$618,MassDataLink!$B$4:$B$618) ->  | E124: =LOOKUP(C124,MassDataLink!$A$4:$A$618,MassDataLink!$C$4:$C$618) ->  | F124: =LOOKUP(C124,MassDataLink!$A$4:$A$618,MassDataLink!$D$4:$D$618) ->  | G124: =LOOKUP(C124,MassDataLink!$A$4:$A$618,MassDataLink!$E$4:$E$618) ->  | H124: =LOOKUP(C124,MassDataLink!$A$4:$A$618,MassDataLink!$F$4:$F$618) ->  | J124: 11 | K124: - - - | L124: - - - | N124: 10 | O124: -1 | P124: =LOOKUP(O124,AccVelDataLink!$A$4:$A$618,AccVelDataLink!$B$4:$B$618) ->  | Q124: =LOOKUP(O124,AccVelDataLink!$A$4:$A$618,AccVelDataLink!$C$4:$C$618) ->  | R124: =LOOKUP(O124,AccVelDataLink!$A$4:$A$618,AccVelDataLink!$D$4:$D$618) ->  | S124: =LOOKUP(O124,AccVelDataLink!$A$4:$A$618,AccVelDataLink!$E$4:$E$618) -> 
B125: 12 | C125: -1 | D125: =LOOKUP(C125,MassDataLink!$A$4:$A$618,MassDataLink!$B$4:$B$618) ->  | E125: =LOOKUP(C125,MassDataLink!$A$4:$A$618,MassDataLink!$C$4:$C$618) ->  | F125: =LOOKUP(C125,MassDataLink!$A$4:$A$618,MassDataLink!$D$4:$D$618) ->  | G125: =LOOKUP(C125,MassDataLink!$A$4:$A$618,MassDataLink!$E$4:$E$618) ->  | H125: =LOOKUP(C125,MassDataLink!$A$4:$A$618,MassDataLink!$F$4:$F$618) ->  | J125: 12 | K125: - - - | L125: - - - | O125: 加速度系数 | P125: 1e-06
B126: 13 | C126: -1 | D126: =LOOKUP(C126,MassDataLink!$A$4:$A$618,MassDataLink!$B$4:$B$618) ->  | E126: =LOOKUP(C126,MassDataLink!$A$4:$A$618,MassDataLink!$C$4:$C$618) ->  | F126: =LOOKUP(C126,MassDataLink!$A$4:$A$618,MassDataLink!$D$4:$D$618) ->  | G126: =LOOKUP(C126,MassDataLink!$A$4:$A$618,MassDataLink!$E$4:$E$618) ->  | H126: =LOOKUP(C126,MassDataLink!$A$4:$A$618,MassDataLink!$F$4:$F$618) ->  | J126: 13 | K126: - - - | L126: - - - | N126: G | O126: № | P126: 加速度 | Q126: 速度
B127: 14 | C127: -1 | D127: =LOOKUP(C127,MassDataLink!$A$4:$A$618,MassDataLink!$B$4:$B$618) ->  | E127: =LOOKUP(C127,MassDataLink!$A$4:$A$618,MassDataLink!$C$4:$C$618) ->  | F127: =LOOKUP(C127,MassDataLink!$A$4:$A$618,MassDataLink!$D$4:$D$618) ->  | G127: =LOOKUP(C127,MassDataLink!$A$4:$A$618,MassDataLink!$E$4:$E$618) ->  | H127: =LOOKUP(C127,MassDataLink!$A$4:$A$618,MassDataLink!$F$4:$F$618) ->  | J127: 14 | K127: - - - | L127: - - - | N127: =LeadData!A1 -> 9.80665 | O127: 1 | P127: =IF(O115=-1,$L$112,(P115/$N$127)*$P$125) -> 0.2 | Q127: =IF(O115=-1,$L$112,Q115) -> 165
B128: 15 | C128: -1 | D128: =LOOKUP(C128,MassDataLink!$A$4:$A$618,MassDataLink!$B$4:$B$618) ->  | E128: =LOOKUP(C128,MassDataLink!$A$4:$A$618,MassDataLink!$C$4:$C$618) ->  | F128: =LOOKUP(C128,MassDataLink!$A$4:$A$618,MassDataLink!$D$4:$D$618) ->  | G128: =LOOKUP(C128,MassDataLink!$A$4:$A$618,MassDataLink!$E$4:$E$618) ->  | H128: =LOOKUP(C128,MassDataLink!$A$4:$A$618,MassDataLink!$F$4:$F$618) ->  | J128: 15 | K128: - - - | L128: - - - | O128: =O127+1 -> 2 | P128: =IF(O116=-1,$L$112,(P116/$N$127)*$P$125) -> - - - | Q128: =IF(O116=-1,$L$112,Q116) -> - - -
B129: 16 | C129: -1 | D129: =LOOKUP(C129,MassDataLink!$A$4:$A$618,MassDataLink!$B$4:$B$618) ->  | E129: =LOOKUP(C129,MassDataLink!$A$4:$A$618,MassDataLink!$C$4:$C$618) ->  | F129: =LOOKUP(C129,MassDataLink!$A$4:$A$618,MassDataLink!$D$4:$D$618) ->  | G129: =LOOKUP(C129,MassDataLink!$A$4:$A$618,MassDataLink!$E$4:$E$618) ->  | H129: =LOOKUP(C129,MassDataLink!$A$4:$A$618,MassDataLink!$F$4:$F$618) ->  | J129: 16 | K129: - - - | L129: - - - | O129: 3 | P129: - - - | Q129: - - -
B130: 17 | C130: -1 | D130: =LOOKUP(C130,MassDataLink!$A$4:$A$618,MassDataLink!$B$4:$B$618) ->  | E130: =LOOKUP(C130,MassDataLink!$A$4:$A$618,MassDataLink!$C$4:$C$618) ->  | F130: =LOOKUP(C130,MassDataLink!$A$4:$A$618,MassDataLink!$D$4:$D$618) ->  | G130: =LOOKUP(C130,MassDataLink!$A$4:$A$618,MassDataLink!$E$4:$E$618) ->  | H130: =LOOKUP(C130,MassDataLink!$A$4:$A$618,MassDataLink!$F$4:$F$618) ->  | J130: 17 | K130: - - - | L130: - - - | O130: 4 | P130: - - - | Q130: - - -
B131: 18 | C131: -1 | D131: =LOOKUP(C131,MassDataLink!$A$4:$A$618,MassDataLink!$B$4:$B$618) ->  | E131: =LOOKUP(C131,MassDataLink!$A$4:$A$618,MassDataLink!$C$4:$C$618) ->  | F131: =LOOKUP(C131,MassDataLink!$A$4:$A$618,MassDataLink!$D$4:$D$618) ->  | G131: =LOOKUP(C131,MassDataLink!$A$4:$A$618,MassDataLink!$E$4:$E$618) ->  | H131: =LOOKUP(C131,MassDataLink!$A$4:$A$618,MassDataLink!$F$4:$F$618) ->  | J131: 18 | K131: - - - | L131: - - - | O131: 5 | P131: - - - | Q131: - - -
B132: 19 | C132: -1 | D132: =LOOKUP(C132,MassDataLink!$A$4:$A$618,MassDataLink!$B$4:$B$618) ->  | E132: =LOOKUP(C132,MassDataLink!$A$4:$A$618,MassDataLink!$C$4:$C$618) ->  | F132: =LOOKUP(C132,MassDataLink!$A$4:$A$618,MassDataLink!$D$4:$D$618) ->  | G132: =LOOKUP(C132,MassDataLink!$A$4:$A$618,MassDataLink!$E$4:$E$618) ->  | H132: =LOOKUP(C132,MassDataLink!$A$4:$A$618,MassDataLink!$F$4:$F$618) ->  | J132: 19 | K132: - - - | L132: - - - | O132: 6 | P132: - - - | Q132: - - -
B133: 20 | C133: -1 | D133: =LOOKUP(C133,MassDataLink!$A$4:$A$618,MassDataLink!$B$4:$B$618) ->  | E133: =LOOKUP(C133,MassDataLink!$A$4:$A$618,MassDataLink!$C$4:$C$618) ->  | F133: =LOOKUP(C133,MassDataLink!$A$4:$A$618,MassDataLink!$D$4:$D$618) ->  | G133: =LOOKUP(C133,MassDataLink!$A$4:$A$618,MassDataLink!$E$4:$E$618) ->  | H133: =LOOKUP(C133,MassDataLink!$A$4:$A$618,MassDataLink!$F$4:$F$618) ->  | J133: 20 | K133: - - - | L133: - - - | O133: 7 | P133: - - - | Q133: - - -
B134: 21 | C134: -1 | D134: =LOOKUP(C134,MassDataLink!$A$4:$A$618,MassDataLink!$B$4:$B$618) ->  | E134: =LOOKUP(C134,MassDataLink!$A$4:$A$618,MassDataLink!$C$4:$C$618) ->  | F134: =LOOKUP(C134,MassDataLink!$A$4:$A$618,MassDataLink!$D$4:$D$618) ->  | G134: =LOOKUP(C134,MassDataLink!$A$4:$A$618,MassDataLink!$E$4:$E$618) ->  | H134: =LOOKUP(C134,MassDataLink!$A$4:$A$618,MassDataLink!$F$4:$F$618) ->  | J134: 21 | K134: - - - | L134: - - - | O134: 8 | P134: - - - | Q134: - - -
B135: 22 | C135: -1 | D135: =LOOKUP(C135,MassDataLink!$A$4:$A$618,MassDataLink!$B$4:$B$618) ->  | E135: =LOOKUP(C135,MassDataLink!$A$4:$A$618,MassDataLink!$C$4:$C$618) ->  | F135: =LOOKUP(C135,MassDataLink!$A$4:$A$618,MassDataLink!$D$4:$D$618) ->  | G135: =LOOKUP(C135,MassDataLink!$A$4:$A$618,MassDataLink!$E$4:$E$618) ->  | H135: =LOOKUP(C135,MassDataLink!$A$4:$A$618,MassDataLink!$F$4:$F$618) ->  | J135: 22 | K135: - - - | L135: - - - | O135: 9 | P135: - - - | Q135: - - -
B136: 23 | C136: -1 | D136: =LOOKUP(C136,MassDataLink!$A$4:$A$618,MassDataLink!$B$4:$B$618) ->  | E136: =LOOKUP(C136,MassDataLink!$A$4:$A$618,MassDataLink!$C$4:$C$618) ->  | F136: =LOOKUP(C136,MassDataLink!$A$4:$A$618,MassDataLink!$D$4:$D$618) ->  | G136: =LOOKUP(C136,MassDataLink!$A$4:$A$618,MassDataLink!$E$4:$E$618) ->  | H136: =LOOKUP(C136,MassDataLink!$A$4:$A$618,MassDataLink!$F$4:$F$618) ->  | J136: 23 | K136: - - - | L136: - - - | O136: 10 | P136: - - - | Q136: - - -
B137: 24 | C137: -1 | D137: =LOOKUP(C137,MassDataLink!$A$4:$A$618,MassDataLink!$B$4:$B$618) ->  | E137: =LOOKUP(C137,MassDataLink!$A$4:$A$618,MassDataLink!$C$4:$C$618) ->  | F137: =LOOKUP(C137,MassDataLink!$A$4:$A$618,MassDataLink!$D$4:$D$618) ->  | G137: =LOOKUP(C137,MassDataLink!$A$4:$A$618,MassDataLink!$E$4:$E$618) ->  | H137: =LOOKUP(C137,MassDataLink!$A$4:$A$618,MassDataLink!$F$4:$F$618) ->  | J137: 24 | K137: - - - | L137: - - -
B138: 25 | C138: -1 | D138: =LOOKUP(C138,MassDataLink!$A$4:$A$618,MassDataLink!$B$4:$B$618) ->  | E138: =LOOKUP(C138,MassDataLink!$A$4:$A$618,MassDataLink!$C$4:$C$618) ->  | F138: =LOOKUP(C138,MassDataLink!$A$4:$A$618,MassDataLink!$D$4:$D$618) ->  | G138: =LOOKUP(C138,MassDataLink!$A$4:$A$618,MassDataLink!$E$4:$E$618) ->  | H138: =LOOKUP(C138,MassDataLink!$A$4:$A$618,MassDataLink!$F$4:$F$618) ->  | J138: 25 | K138: - - - | L138: - - -
B139: 26 | C139: -1 | D139: =LOOKUP(C139,MassDataLink!$A$4:$A$618,MassDataLink!$B$4:$B$618) ->  | E139: =LOOKUP(C139,MassDataLink!$A$4:$A$618,MassDataLink!$C$4:$C$618) ->  | F139: =LOOKUP(C139,MassDataLink!$A$4:$A$618,MassDataLink!$D$4:$D$618) ->  | G139: =LOOKUP(C139,MassDataLink!$A$4:$A$618,MassDataLink!$E$4:$E$618) ->  | H139: =LOOKUP(C139,MassDataLink!$A$4:$A$618,MassDataLink!$F$4:$F$618) ->  | J139: 26 | K139: - - - | L139: - - -
B140: 27 | C140: -1 | D140: =LOOKUP(C140,MassDataLink!$A$4:$A$618,MassDataLink!$B$4:$B$618) ->  | E140: =LOOKUP(C140,MassDataLink!$A$4:$A$618,MassDataLink!$C$4:$C$618) ->  | F140: =LOOKUP(C140,MassDataLink!$A$4:$A$618,MassDataLink!$D$4:$D$618) ->  | G140: =LOOKUP(C140,MassDataLink!$A$4:$A$618,MassDataLink!$E$4:$E$618) ->  | H140: =LOOKUP(C140,MassDataLink!$A$4:$A$618,MassDataLink!$F$4:$F$618) ->  | J140: 27 | K140: - - - | L140: - - -
B141: 28 | C141: -1 | D141: =LOOKUP(C141,MassDataLink!$A$4:$A$618,MassDataLink!$B$4:$B$618) ->  | E141: =LOOKUP(C141,MassDataLink!$A$4:$A$618,MassDataLink!$C$4:$C$618) ->  | F141: =LOOKUP(C141,MassDataLink!$A$4:$A$618,MassDataLink!$D$4:$D$618) ->  | G141: =LOOKUP(C141,MassDataLink!$A$4:$A$618,MassDataLink!$E$4:$E$618) ->  | H141: =LOOKUP(C141,MassDataLink!$A$4:$A$618,MassDataLink!$F$4:$F$618) ->  | J141: 28 | K141: - - - | L141: - - -
B142: 29 | C142: -1 | D142: =LOOKUP(C142,MassDataLink!$A$4:$A$618,MassDataLink!$B$4:$B$618) ->  | E142: =LOOKUP(C142,MassDataLink!$A$4:$A$618,MassDataLink!$C$4:$C$618) ->  | F142: =LOOKUP(C142,MassDataLink!$A$4:$A$618,MassDataLink!$D$4:$D$618) ->  | G142: =LOOKUP(C142,MassDataLink!$A$4:$A$618,MassDataLink!$E$4:$E$618) ->  | H142: =LOOKUP(C142,MassDataLink!$A$4:$A$618,MassDataLink!$F$4:$F$618) ->  | J142: 29 | K142: - - - | L142: - - -
B143: 30 | C143: -1 | D143: =LOOKUP(C143,MassDataLink!$A$4:$A$618,MassDataLink!$B$4:$B$618) ->  | E143: =LOOKUP(C143,MassDataLink!$A$4:$A$618,MassDataLink!$C$4:$C$618) ->  | F143: =LOOKUP(C143,MassDataLink!$A$4:$A$618,MassDataLink!$D$4:$D$618) ->  | G143: =LOOKUP(C143,MassDataLink!$A$4:$A$618,MassDataLink!$E$4:$E$618) ->  | H143: =LOOKUP(C143,MassDataLink!$A$4:$A$618,MassDataLink!$F$4:$F$618) ->  | J143: 30 | K143: - - - | L143: - - -
B144: 31 | C144: -1 | D144: =LOOKUP(C144,MassDataLink!$A$4:$A$618,MassDataLink!$B$4:$B$618) ->  | E144: =LOOKUP(C144,MassDataLink!$A$4:$A$618,MassDataLink!$C$4:$C$618) ->  | F144: =LOOKUP(C144,MassDataLink!$A$4:$A$618,MassDataLink!$D$4:$D$618) ->  | G144: =LOOKUP(C144,MassDataLink!$A$4:$A$618,MassDataLink!$E$4:$E$618) ->  | H144: =LOOKUP(C144,MassDataLink!$A$4:$A$618,MassDataLink!$F$4:$F$618) ->  | J144: 31 | K144: - - - | L144: - - -
B145: 32 | C145: -1 | D145: =LOOKUP(C145,MassDataLink!$A$4:$A$618,MassDataLink!$B$4:$B$618) ->  | E145: =LOOKUP(C145,MassDataLink!$A$4:$A$618,MassDataLink!$C$4:$C$618) ->  | F145: =LOOKUP(C145,MassDataLink!$A$4:$A$618,MassDataLink!$D$4:$D$618) ->  | G145: =LOOKUP(C145,MassDataLink!$A$4:$A$618,MassDataLink!$E$4:$E$618) ->  | H145: =LOOKUP(C145,MassDataLink!$A$4:$A$618,MassDataLink!$F$4:$F$618) ->  | J145: 32 | K145: - - - | L145: - - -
B146: 33 | C146: -1 | D146: =LOOKUP(C146,MassDataLink!$A$4:$A$618,MassDataLink!$B$4:$B$618) ->  | E146: =LOOKUP(C146,MassDataLink!$A$4:$A$618,MassDataLink!$C$4:$C$618) ->  | F146: =LOOKUP(C146,MassDataLink!$A$4:$A$618,MassDataLink!$D$4:$D$618) ->  | G146: =LOOKUP(C146,MassDataLink!$A$4:$A$618,MassDataLink!$E$4:$E$618) ->  | H146: =LOOKUP(C146,MassDataLink!$A$4:$A$618,MassDataLink!$F$4:$F$618) ->  | J146: 33 | K146: - - - | L146: - - -
B147: 34 | C147: -1 | D147: =LOOKUP(C147,MassDataLink!$A$4:$A$618,MassDataLink!$B$4:$B$618) ->  | E147: =LOOKUP(C147,MassDataLink!$A$4:$A$618,MassDataLink!$C$4:$C$618) ->  | F147: =LOOKUP(C147,MassDataLink!$A$4:$A$618,MassDataLink!$D$4:$D$618) ->  | G147: =LOOKUP(C147,MassDataLink!$A$4:$A$618,MassDataLink!$E$4:$E$618) ->  | H147: =LOOKUP(C147,MassDataLink!$A$4:$A$618,MassDataLink!$F$4:$F$618) ->  | J147: 34 | K147: - - - | L147: - - -
B148: 35 | C148: -1 | D148: =LOOKUP(C148,MassDataLink!$A$4:$A$618,MassDataLink!$B$4:$B$618) ->  | E148: =LOOKUP(C148,MassDataLink!$A$4:$A$618,MassDataLink!$C$4:$C$618) ->  | F148: =LOOKUP(C148,MassDataLink!$A$4:$A$618,MassDataLink!$D$4:$D$618) ->  | G148: =LOOKUP(C148,MassDataLink!$A$4:$A$618,MassDataLink!$E$4:$E$618) ->  | H148: =LOOKUP(C148,MassDataLink!$A$4:$A$618,MassDataLink!$F$4:$F$618) ->  | J148: 35 | K148: - - - | L148: - - -
B149: 36 | C149: -1 | D149: =LOOKUP(C149,MassDataLink!$A$4:$A$618,MassDataLink!$B$4:$B$618) ->  | E149: =LOOKUP(C149,MassDataLink!$A$4:$A$618,MassDataLink!$C$4:$C$618) ->  | F149: =LOOKUP(C149,MassDataLink!$A$4:$A$618,MassDataLink!$D$4:$D$618) ->  | G149: =LOOKUP(C149,MassDataLink!$A$4:$A$618,MassDataLink!$E$4:$E$618) ->  | H149: =LOOKUP(C149,MassDataLink!$A$4:$A$618,MassDataLink!$F$4:$F$618) ->  | J149: 36 | K149: - - - | L149: - - -
B150: 37 | C150: -1 | D150: =LOOKUP(C150,MassDataLink!$A$4:$A$618,MassDataLink!$B$4:$B$618) ->  | E150: =LOOKUP(C150,MassDataLink!$A$4:$A$618,MassDataLink!$C$4:$C$618) ->  | F150: =LOOKUP(C150,MassDataLink!$A$4:$A$618,MassDataLink!$D$4:$D$618) ->  | G150: =LOOKUP(C150,MassDataLink!$A$4:$A$618,MassDataLink!$E$4:$E$618) ->  | H150: =LOOKUP(C150,MassDataLink!$A$4:$A$618,MassDataLink!$F$4:$F$618) ->  | J150: 37 | K150: - - - | L150: - - -
B151: 38 | C151: -1 | D151: =LOOKUP(C151,MassDataLink!$A$4:$A$618,MassDataLink!$B$4:$B$618) ->  | E151: =LOOKUP(C151,MassDataLink!$A$4:$A$618,MassDataLink!$C$4:$C$618) ->  | F151: =LOOKUP(C151,MassDataLink!$A$4:$A$618,MassDataLink!$D$4:$D$618) ->  | G151: =LOOKUP(C151,MassDataLink!$A$4:$A$618,MassDataLink!$E$4:$E$618) ->  | H151: =LOOKUP(C151,MassDataLink!$A$4:$A$618,MassDataLink!$F$4:$F$618) ->  | J151: 38 | K151: - - - | L151: - - -
B152: 39 | C152: -1 | D152: =LOOKUP(C152,MassDataLink!$A$4:$A$618,MassDataLink!$B$4:$B$618) ->  | E152: =LOOKUP(C152,MassDataLink!$A$4:$A$618,MassDataLink!$C$4:$C$618) ->  | F152: =LOOKUP(C152,MassDataLink!$A$4:$A$618,MassDataLink!$D$4:$D$618) ->  | G152: =LOOKUP(C152,MassDataLink!$A$4:$A$618,MassDataLink!$E$4:$E$618) ->  | H152: =LOOKUP(C152,MassDataLink!$A$4:$A$618,MassDataLink!$F$4:$F$618) ->  | J152: 39 | K152: - - - | L152: - - -
B153: 40 | C153: -1 | D153: =LOOKUP(C153,MassDataLink!$A$4:$A$618,MassDataLink!$B$4:$B$618) ->  | E153: =LOOKUP(C153,MassDataLink!$A$4:$A$618,MassDataLink!$C$4:$C$618) ->  | F153: =LOOKUP(C153,MassDataLink!$A$4:$A$618,MassDataLink!$D$4:$D$618) ->  | G153: =LOOKUP(C153,MassDataLink!$A$4:$A$618,MassDataLink!$E$4:$E$618) ->  | H153: =LOOKUP(C153,MassDataLink!$A$4:$A$618,MassDataLink!$F$4:$F$618) ->  | J153: 40 | K153: - - - | L153: - - -
B154: 41 | C154: -1 | D154: =LOOKUP(C154,MassDataLink!$A$4:$A$618,MassDataLink!$B$4:$B$618) ->  | E154: =LOOKUP(C154,MassDataLink!$A$4:$A$618,MassDataLink!$C$4:$C$618) ->  | F154: =LOOKUP(C154,MassDataLink!$A$4:$A$618,MassDataLink!$D$4:$D$618) ->  | G154: =LOOKUP(C154,MassDataLink!$A$4:$A$618,MassDataLink!$E$4:$E$618) ->  | H154: =LOOKUP(C154,MassDataLink!$A$4:$A$618,MassDataLink!$F$4:$F$618) ->  | J154: 41 | K154: - - - | L154: - - -
B155: 42 | C155: -1 | D155: =LOOKUP(C155,MassDataLink!$A$4:$A$618,MassDataLink!$B$4:$B$618) ->  | E155: =LOOKUP(C155,MassDataLink!$A$4:$A$618,MassDataLink!$C$4:$C$618) ->  | F155: =LOOKUP(C155,MassDataLink!$A$4:$A$618,MassDataLink!$D$4:$D$618) ->  | G155: =LOOKUP(C155,MassDataLink!$A$4:$A$618,MassDataLink!$E$4:$E$618) ->  | H155: =LOOKUP(C155,MassDataLink!$A$4:$A$618,MassDataLink!$F$4:$F$618) ->  | J155: 42 | K155: - - - | L155: - - -
B156: 43 | C156: -1 | D156: =LOOKUP(C156,MassDataLink!$A$4:$A$618,MassDataLink!$B$4:$B$618) ->  | E156: =LOOKUP(C156,MassDataLink!$A$4:$A$618,MassDataLink!$C$4:$C$618) ->  | F156: =LOOKUP(C156,MassDataLink!$A$4:$A$618,MassDataLink!$D$4:$D$618) ->  | G156: =LOOKUP(C156,MassDataLink!$A$4:$A$618,MassDataLink!$E$4:$E$618) ->  | H156: =LOOKUP(C156,MassDataLink!$A$4:$A$618,MassDataLink!$F$4:$F$618) ->  | J156: 43 | K156: - - - | L156: - - -
B157: 44 | C157: -1 | D157: =LOOKUP(C157,MassDataLink!$A$4:$A$618,MassDataLink!$B$4:$B$618) ->  | E157: =LOOKUP(C157,MassDataLink!$A$4:$A$618,MassDataLink!$C$4:$C$618) ->  | F157: =LOOKUP(C157,MassDataLink!$A$4:$A$618,MassDataLink!$D$4:$D$618) ->  | G157: =LOOKUP(C157,MassDataLink!$A$4:$A$618,MassDataLink!$E$4:$E$618) ->  | H157: =LOOKUP(C157,MassDataLink!$A$4:$A$618,MassDataLink!$F$4:$F$618) ->  | J157: 44 | K157: - - - | L157: - - -
B158: 45 | C158: -1 | D158: =LOOKUP(C158,MassDataLink!$A$4:$A$618,MassDataLink!$B$4:$B$618) ->  | E158: =LOOKUP(C158,MassDataLink!$A$4:$A$618,MassDataLink!$C$4:$C$618) ->  | F158: =LOOKUP(C158,MassDataLink!$A$4:$A$618,MassDataLink!$D$4:$D$618) ->  | G158: =LOOKUP(C158,MassDataLink!$A$4:$A$618,MassDataLink!$E$4:$E$618) ->  | H158: =LOOKUP(C158,MassDataLink!$A$4:$A$618,MassDataLink!$F$4:$F$618) ->  | J158: 45 | K158: - - - | L158: - - -
B159: 46 | C159: -1 | D159: =LOOKUP(C159,MassDataLink!$A$4:$A$618,MassDataLink!$B$4:$B$618) ->  | E159: =LOOKUP(C159,MassDataLink!$A$4:$A$618,MassDataLink!$C$4:$C$618) ->  | F159: =LOOKUP(C159,MassDataLink!$A$4:$A$618,MassDataLink!$D$4:$D$618) ->  | G159: =LOOKUP(C159,MassDataLink!$A$4:$A$618,MassDataLink!$E$4:$E$618) ->  | H159: =LOOKUP(C159,MassDataLink!$A$4:$A$618,MassDataLink!$F$4:$F$618) ->  | J159: 46 | K159: - - - | L159: - - -
B160: 47 | C160: -1 | D160: =LOOKUP(C160,MassDataLink!$A$4:$A$618,MassDataLink!$B$4:$B$618) ->  | E160: =LOOKUP(C160,MassDataLink!$A$4:$A$618,MassDataLink!$C$4:$C$618) ->  | F160: =LOOKUP(C160,MassDataLink!$A$4:$A$618,MassDataLink!$D$4:$D$618) ->  | G160: =LOOKUP(C160,MassDataLink!$A$4:$A$618,MassDataLink!$E$4:$E$618) ->  | H160: =LOOKUP(C160,MassDataLink!$A$4:$A$618,MassDataLink!$F$4:$F$618) ->  | J160: 47 | K160: - - - | L160: - - -
B161: 48 | C161: -1 | D161: =LOOKUP(C161,MassDataLink!$A$4:$A$618,MassDataLink!$B$4:$B$618) ->  | E161: =LOOKUP(C161,MassDataLink!$A$4:$A$618,MassDataLink!$C$4:$C$618) ->  | F161: =LOOKUP(C161,MassDataLink!$A$4:$A$618,MassDataLink!$D$4:$D$618) ->  | G161: =LOOKUP(C161,MassDataLink!$A$4:$A$618,MassDataLink!$E$4:$E$618) ->  | H161: =LOOKUP(C161,MassDataLink!$A$4:$A$618,MassDataLink!$F$4:$F$618) ->  | J161: 48 | K161: - - - | L161: - - -
B162: 49 | C162: -1 | D162: =LOOKUP(C162,MassDataLink!$A$4:$A$618,MassDataLink!$B$4:$B$618) ->  | E162: =LOOKUP(C162,MassDataLink!$A$4:$A$618,MassDataLink!$C$4:$C$618) ->  | F162: =LOOKUP(C162,MassDataLink!$A$4:$A$618,MassDataLink!$D$4:$D$618) ->  | G162: =LOOKUP(C162,MassDataLink!$A$4:$A$618,MassDataLink!$E$4:$E$618) ->  | H162: =LOOKUP(C162,MassDataLink!$A$4:$A$618,MassDataLink!$F$4:$F$618) ->  | J162: 49 | K162: - - - | L162: - - -
B163: 50 | C163: -1 | D163: =LOOKUP(C163,MassDataLink!$A$4:$A$618,MassDataLink!$B$4:$B$618) ->  | E163: =LOOKUP(C163,MassDataLink!$A$4:$A$618,MassDataLink!$C$4:$C$618) ->  | F163: =LOOKUP(C163,MassDataLink!$A$4:$A$618,MassDataLink!$D$4:$D$618) ->  | G163: =LOOKUP(C163,MassDataLink!$A$4:$A$618,MassDataLink!$E$4:$E$618) ->  | H163: =LOOKUP(C163,MassDataLink!$A$4:$A$618,MassDataLink!$F$4:$F$618) ->  | J163: 50 | K163: - - - | L163: - - -
B164: =B163+1 -> 51 | C164: =IF(C163=-1,-1,H163) -> -1 | D164: =LOOKUP(C164,MassDataLink!$A$4:$A$618,MassDataLink!$B$4:$B$618) ->  | E164: =LOOKUP(C164,MassDataLink!$A$4:$A$618,MassDataLink!$C$4:$C$618) ->  | F164: =LOOKUP(C164,MassDataLink!$A$4:$A$618,MassDataLink!$D$4:$D$618) ->  | G164: =LOOKUP(C164,MassDataLink!$A$4:$A$618,MassDataLink!$E$4:$E$618) ->  | H164: =LOOKUP(C164,MassDataLink!$A$4:$A$618,MassDataLink!$F$4:$F$618) ->  | J164: =J163+1 -> 51 | K164: =IF(C164=-1,$L$112,IF($A$11=D164,ROUND((E164*$P$57),$R$57),$L$112)) -> - - - | L164: =IF(K164=$L$112,$L$112,F164) -> - - -
B165: 52 | C165: -1 | D165: =LOOKUP(C165,MassDataLink!$A$4:$A$618,MassDataLink!$B$4:$B$618) ->  | E165: =LOOKUP(C165,MassDataLink!$A$4:$A$618,MassDataLink!$C$4:$C$618) ->  | F165: =LOOKUP(C165,MassDataLink!$A$4:$A$618,MassDataLink!$D$4:$D$618) ->  | G165: =LOOKUP(C165,MassDataLink!$A$4:$A$618,MassDataLink!$E$4:$E$618) ->  | H165: =LOOKUP(C165,MassDataLink!$A$4:$A$618,MassDataLink!$F$4:$F$618) ->  | J165: 52 | K165: - - - | L165: - - -
B166: 53 | C166: -1 | D166: =LOOKUP(C166,MassDataLink!$A$4:$A$618,MassDataLink!$B$4:$B$618) ->  | E166: =LOOKUP(C166,MassDataLink!$A$4:$A$618,MassDataLink!$C$4:$C$618) ->  | F166: =LOOKUP(C166,MassDataLink!$A$4:$A$618,MassDataLink!$D$4:$D$618) ->  | G166: =LOOKUP(C166,MassDataLink!$A$4:$A$618,MassDataLink!$E$4:$E$618) ->  | H166: =LOOKUP(C166,MassDataLink!$A$4:$A$618,MassDataLink!$F$4:$F$618) ->  | J166: 53 | K166: - - - | L166: - - -
B167: 54 | C167: -1 | D167: =LOOKUP(C167,MassDataLink!$A$4:$A$618,MassDataLink!$B$4:$B$618) ->  | E167: =LOOKUP(C167,MassDataLink!$A$4:$A$618,MassDataLink!$C$4:$C$618) ->  | F167: =LOOKUP(C167,MassDataLink!$A$4:$A$618,MassDataLink!$D$4:$D$618) ->  | G167: =LOOKUP(C167,MassDataLink!$A$4:$A$618,MassDataLink!$E$4:$E$618) ->  | H167: =LOOKUP(C167,MassDataLink!$A$4:$A$618,MassDataLink!$F$4:$F$618) ->  | J167: 54 | K167: - - - | L167: - - -
B168: 55 | C168: -1 | D168: =LOOKUP(C168,MassDataLink!$A$4:$A$618,MassDataLink!$B$4:$B$618) ->  | E168: =LOOKUP(C168,MassDataLink!$A$4:$A$618,MassDataLink!$C$4:$C$618) ->  | F168: =LOOKUP(C168,MassDataLink!$A$4:$A$618,MassDataLink!$D$4:$D$618) ->  | G168: =LOOKUP(C168,MassDataLink!$A$4:$A$618,MassDataLink!$E$4:$E$618) ->  | H168: =LOOKUP(C168,MassDataLink!$A$4:$A$618,MassDataLink!$F$4:$F$618) ->  | J168: 55 | K168: - - - | L168: - - -
B169: 56 | C169: -1 | D169: =LOOKUP(C169,MassDataLink!$A$4:$A$618,MassDataLink!$B$4:$B$618) ->  | E169: =LOOKUP(C169,MassDataLink!$A$4:$A$618,MassDataLink!$C$4:$C$618) ->  | F169: =LOOKUP(C169,MassDataLink!$A$4:$A$618,MassDataLink!$D$4:$D$618) ->  | G169: =LOOKUP(C169,MassDataLink!$A$4:$A$618,MassDataLink!$E$4:$E$618) ->  | H169: =LOOKUP(C169,MassDataLink!$A$4:$A$618,MassDataLink!$F$4:$F$618) ->  | J169: 56 | K169: - - - | L169: - - -
B170: 57 | C170: -1 | D170: =LOOKUP(C170,MassDataLink!$A$4:$A$618,MassDataLink!$B$4:$B$618) ->  | E170: =LOOKUP(C170,MassDataLink!$A$4:$A$618,MassDataLink!$C$4:$C$618) ->  | F170: =LOOKUP(C170,MassDataLink!$A$4:$A$618,MassDataLink!$D$4:$D$618) ->  | G170: =LOOKUP(C170,MassDataLink!$A$4:$A$618,MassDataLink!$E$4:$E$618) ->  | H170: =LOOKUP(C170,MassDataLink!$A$4:$A$618,MassDataLink!$F$4:$F$618) ->  | J170: 57 | K170: - - - | L170: - - -
B171: 58 | C171: -1 | D171: =LOOKUP(C171,MassDataLink!$A$4:$A$618,MassDataLink!$B$4:$B$618) ->  | E171: =LOOKUP(C171,MassDataLink!$A$4:$A$618,MassDataLink!$C$4:$C$618) ->  | F171: =LOOKUP(C171,MassDataLink!$A$4:$A$618,MassDataLink!$D$4:$D$618) ->  | G171: =LOOKUP(C171,MassDataLink!$A$4:$A$618,MassDataLink!$E$4:$E$618) ->  | H171: =LOOKUP(C171,MassDataLink!$A$4:$A$618,MassDataLink!$F$4:$F$618) ->  | J171: 58 | K171: - - - | L171: - - -
B172: 59 | C172: -1 | D172: =LOOKUP(C172,MassDataLink!$A$4:$A$618,MassDataLink!$B$4:$B$618) ->  | E172: =LOOKUP(C172,MassDataLink!$A$4:$A$618,MassDataLink!$C$4:$C$618) ->  | F172: =LOOKUP(C172,MassDataLink!$A$4:$A$618,MassDataLink!$D$4:$D$618) ->  | G172: =LOOKUP(C172,MassDataLink!$A$4:$A$618,MassDataLink!$E$4:$E$618) ->  | H172: =LOOKUP(C172,MassDataLink!$A$4:$A$618,MassDataLink!$F$4:$F$618) ->  | J172: 59 | K172: - - - | L172: - - -
B173: 60 | C173: -1 | D173: =LOOKUP(C173,MassDataLink!$A$4:$A$618,MassDataLink!$B$4:$B$618) ->  | E173: =LOOKUP(C173,MassDataLink!$A$4:$A$618,MassDataLink!$C$4:$C$618) ->  | F173: =LOOKUP(C173,MassDataLink!$A$4:$A$618,MassDataLink!$D$4:$D$618) ->  | G173: =LOOKUP(C173,MassDataLink!$A$4:$A$618,MassDataLink!$E$4:$E$618) ->  | H173: =LOOKUP(C173,MassDataLink!$A$4:$A$618,MassDataLink!$F$4:$F$618) ->  | J173: 60 | K173: - - - | L173: - - -
B174: 61 | C174: -1 | D174: =LOOKUP(C174,MassDataLink!$A$4:$A$618,MassDataLink!$B$4:$B$618) ->  | E174: =LOOKUP(C174,MassDataLink!$A$4:$A$618,MassDataLink!$C$4:$C$618) ->  | F174: =LOOKUP(C174,MassDataLink!$A$4:$A$618,MassDataLink!$D$4:$D$618) ->  | G174: =LOOKUP(C174,MassDataLink!$A$4:$A$618,MassDataLink!$E$4:$E$618) ->  | H174: =LOOKUP(C174,MassDataLink!$A$4:$A$618,MassDataLink!$F$4:$F$618) ->  | J174: 61 | K174: - - - | L174: - - -
B175: 62 | C175: -1 | D175: =LOOKUP(C175,MassDataLink!$A$4:$A$618,MassDataLink!$B$4:$B$618) ->  | E175: =LOOKUP(C175,MassDataLink!$A$4:$A$618,MassDataLink!$C$4:$C$618) ->  | F175: =LOOKUP(C175,MassDataLink!$A$4:$A$618,MassDataLink!$D$4:$D$618) ->  | G175: =LOOKUP(C175,MassDataLink!$A$4:$A$618,MassDataLink!$E$4:$E$618) ->  | H175: =LOOKUP(C175,MassDataLink!$A$4:$A$618,MassDataLink!$F$4:$F$618) ->  | J175: 62 | K175: - - - | L175: - - -
B176: 63 | C176: -1 | D176: =LOOKUP(C176,MassDataLink!$A$4:$A$618,MassDataLink!$B$4:$B$618) ->  | E176: =LOOKUP(C176,MassDataLink!$A$4:$A$618,MassDataLink!$C$4:$C$618) ->  | F176: =LOOKUP(C176,MassDataLink!$A$4:$A$618,MassDataLink!$D$4:$D$618) ->  | G176: =LOOKUP(C176,MassDataLink!$A$4:$A$618,MassDataLink!$E$4:$E$618) ->  | H176: =LOOKUP(C176,MassDataLink!$A$4:$A$618,MassDataLink!$F$4:$F$618) ->  | J176: 63 | K176: - - - | L176: - - -
B177: 64 | C177: -1 | D177: =LOOKUP(C177,MassDataLink!$A$4:$A$618,MassDataLink!$B$4:$B$618) ->  | E177: =LOOKUP(C177,MassDataLink!$A$4:$A$618,MassDataLink!$C$4:$C$618) ->  | F177: =LOOKUP(C177,MassDataLink!$A$4:$A$618,MassDataLink!$D$4:$D$618) ->  | G177: =LOOKUP(C177,MassDataLink!$A$4:$A$618,MassDataLink!$E$4:$E$618) ->  | H177: =LOOKUP(C177,MassDataLink!$A$4:$A$618,MassDataLink!$F$4:$F$618) ->  | J177: 64 | K177: - - - | L177: - - -
B178: 65 | C178: -1 | D178: =LOOKUP(C178,MassDataLink!$A$4:$A$618,MassDataLink!$B$4:$B$618) ->  | E178: =LOOKUP(C178,MassDataLink!$A$4:$A$618,MassDataLink!$C$4:$C$618) ->  | F178: =LOOKUP(C178,MassDataLink!$A$4:$A$618,MassDataLink!$D$4:$D$618) ->  | G178: =LOOKUP(C178,MassDataLink!$A$4:$A$618,MassDataLink!$E$4:$E$618) ->  | H178: =LOOKUP(C178,MassDataLink!$A$4:$A$618,MassDataLink!$F$4:$F$618) ->  | J178: 65 | K178: - - - | L178: - - -
B179: 66 | C179: -1 | D179: =LOOKUP(C179,MassDataLink!$A$4:$A$618,MassDataLink!$B$4:$B$618) ->  | E179: =LOOKUP(C179,MassDataLink!$A$4:$A$618,MassDataLink!$C$4:$C$618) ->  | F179: =LOOKUP(C179,MassDataLink!$A$4:$A$618,MassDataLink!$D$4:$D$618) ->  | G179: =LOOKUP(C179,MassDataLink!$A$4:$A$618,MassDataLink!$E$4:$E$618) ->  | H179: =LOOKUP(C179,MassDataLink!$A$4:$A$618,MassDataLink!$F$4:$F$618) ->  | J179: 66 | K179: - - - | L179: - - -
B180: 67 | C180: -1 | D180: =LOOKUP(C180,MassDataLink!$A$4:$A$618,MassDataLink!$B$4:$B$618) ->  | E180: =LOOKUP(C180,MassDataLink!$A$4:$A$618,MassDataLink!$C$4:$C$618) ->  | F180: =LOOKUP(C180,MassDataLink!$A$4:$A$618,MassDataLink!$D$4:$D$618) ->  | G180: =LOOKUP(C180,MassDataLink!$A$4:$A$618,MassDataLink!$E$4:$E$618) ->  | H180: =LOOKUP(C180,MassDataLink!$A$4:$A$618,MassDataLink!$F$4:$F$618) ->  | J180: 67 | K180: - - - | L180: - - -
B181: 68 | C181: -1 | D181: =LOOKUP(C181,MassDataLink!$A$4:$A$618,MassDataLink!$B$4:$B$618) ->  | E181: =LOOKUP(C181,MassDataLink!$A$4:$A$618,MassDataLink!$C$4:$C$618) ->  | F181: =LOOKUP(C181,MassDataLink!$A$4:$A$618,MassDataLink!$D$4:$D$618) ->  | G181: =LOOKUP(C181,MassDataLink!$A$4:$A$618,MassDataLink!$E$4:$E$618) ->  | H181: =LOOKUP(C181,MassDataLink!$A$4:$A$618,MassDataLink!$F$4:$F$618) ->  | J181: 68 | K181: - - - | L181: - - -
B182: 69 | C182: -1 | D182: =LOOKUP(C182,MassDataLink!$A$4:$A$618,MassDataLink!$B$4:$B$618) ->  | E182: =LOOKUP(C182,MassDataLink!$A$4:$A$618,MassDataLink!$C$4:$C$618) ->  | F182: =LOOKUP(C182,MassDataLink!$A$4:$A$618,MassDataLink!$D$4:$D$618) ->  | G182: =LOOKUP(C182,MassDataLink!$A$4:$A$618,MassDataLink!$E$4:$E$618) ->  | H182: =LOOKUP(C182,MassDataLink!$A$4:$A$618,MassDataLink!$F$4:$F$618) ->  | J182: 69 | K182: - - - | L182: - - -
B183: 70 | C183: -1 | D183: =LOOKUP(C183,MassDataLink!$A$4:$A$618,MassDataLink!$B$4:$B$618) ->  | E183: =LOOKUP(C183,MassDataLink!$A$4:$A$618,MassDataLink!$C$4:$C$618) ->  | F183: =LOOKUP(C183,MassDataLink!$A$4:$A$618,MassDataLink!$D$4:$D$618) ->  | G183: =LOOKUP(C183,MassDataLink!$A$4:$A$618,MassDataLink!$E$4:$E$618) ->  | H183: =LOOKUP(C183,MassDataLink!$A$4:$A$618,MassDataLink!$F$4:$F$618) ->  | J183: 70 | K183: - - - | L183: - - -
B184: 71 | C184: -1 | D184: =LOOKUP(C184,MassDataLink!$A$4:$A$618,MassDataLink!$B$4:$B$618) ->  | E184: =LOOKUP(C184,MassDataLink!$A$4:$A$618,MassDataLink!$C$4:$C$618) ->  | F184: =LOOKUP(C184,MassDataLink!$A$4:$A$618,MassDataLink!$D$4:$D$618) ->  | G184: =LOOKUP(C184,MassDataLink!$A$4:$A$618,MassDataLink!$E$4:$E$618) ->  | H184: =LOOKUP(C184,MassDataLink!$A$4:$A$618,MassDataLink!$F$4:$F$618) ->  | J184: 71 | K184: - - - | L184: - - -
B185: 72 | C185: -1 | D185: =LOOKUP(C185,MassDataLink!$A$4:$A$618,MassDataLink!$B$4:$B$618) ->  | E185: =LOOKUP(C185,MassDataLink!$A$4:$A$618,MassDataLink!$C$4:$C$618) ->  | F185: =LOOKUP(C185,MassDataLink!$A$4:$A$618,MassDataLink!$D$4:$D$618) ->  | G185: =LOOKUP(C185,MassDataLink!$A$4:$A$618,MassDataLink!$E$4:$E$618) ->  | H185: =LOOKUP(C185,MassDataLink!$A$4:$A$618,MassDataLink!$F$4:$F$618) ->  | J185: 72 | K185: - - - | L185: - - -
B186: 73 | C186: -1 | D186: =LOOKUP(C186,MassDataLink!$A$4:$A$618,MassDataLink!$B$4:$B$618) ->  | E186: =LOOKUP(C186,MassDataLink!$A$4:$A$618,MassDataLink!$C$4:$C$618) ->  | F186: =LOOKUP(C186,MassDataLink!$A$4:$A$618,MassDataLink!$D$4:$D$618) ->  | G186: =LOOKUP(C186,MassDataLink!$A$4:$A$618,MassDataLink!$E$4:$E$618) ->  | H186: =LOOKUP(C186,MassDataLink!$A$4:$A$618,MassDataLink!$F$4:$F$618) ->  | J186: 73 | K186: - - - | L186: - - -
B187: 74 | C187: -1 | D187: =LOOKUP(C187,MassDataLink!$A$4:$A$618,MassDataLink!$B$4:$B$618) ->  | E187: =LOOKUP(C187,MassDataLink!$A$4:$A$618,MassDataLink!$C$4:$C$618) ->  | F187: =LOOKUP(C187,MassDataLink!$A$4:$A$618,MassDataLink!$D$4:$D$618) ->  | G187: =LOOKUP(C187,MassDataLink!$A$4:$A$618,MassDataLink!$E$4:$E$618) ->  | H187: =LOOKUP(C187,MassDataLink!$A$4:$A$618,MassDataLink!$F$4:$F$618) ->  | J187: 74 | K187: - - - | L187: - - -
B188: 75 | C188: -1 | D188: =LOOKUP(C188,MassDataLink!$A$4:$A$618,MassDataLink!$B$4:$B$618) ->  | E188: =LOOKUP(C188,MassDataLink!$A$4:$A$618,MassDataLink!$C$4:$C$618) ->  | F188: =LOOKUP(C188,MassDataLink!$A$4:$A$618,MassDataLink!$D$4:$D$618) ->  | G188: =LOOKUP(C188,MassDataLink!$A$4:$A$618,MassDataLink!$E$4:$E$618) ->  | H188: =LOOKUP(C188,MassDataLink!$A$4:$A$618,MassDataLink!$F$4:$F$618) ->  | J188: 75 | K188: - - - | L188: - - -
B189: 76 | C189: -1 | D189: =LOOKUP(C189,MassDataLink!$A$4:$A$618,MassDataLink!$B$4:$B$618) ->  | E189: =LOOKUP(C189,MassDataLink!$A$4:$A$618,MassDataLink!$C$4:$C$618) ->  | F189: =LOOKUP(C189,MassDataLink!$A$4:$A$618,MassDataLink!$D$4:$D$618) ->  | G189: =LOOKUP(C189,MassDataLink!$A$4:$A$618,MassDataLink!$E$4:$E$618) ->  | H189: =LOOKUP(C189,MassDataLink!$A$4:$A$618,MassDataLink!$F$4:$F$618) ->  | J189: 76 | K189: - - - | L189: - - -
B190: 77 | C190: -1 | D190: =LOOKUP(C190,MassDataLink!$A$4:$A$618,MassDataLink!$B$4:$B$618) ->  | E190: =LOOKUP(C190,MassDataLink!$A$4:$A$618,MassDataLink!$C$4:$C$618) ->  | F190: =LOOKUP(C190,MassDataLink!$A$4:$A$618,MassDataLink!$D$4:$D$618) ->  | G190: =LOOKUP(C190,MassDataLink!$A$4:$A$618,MassDataLink!$E$4:$E$618) ->  | H190: =LOOKUP(C190,MassDataLink!$A$4:$A$618,MassDataLink!$F$4:$F$618) ->  | J190: 77 | K190: - - - | L190: - - -
B191: 78 | C191: -1 | D191: =LOOKUP(C191,MassDataLink!$A$4:$A$618,MassDataLink!$B$4:$B$618) ->  | E191: =LOOKUP(C191,MassDataLink!$A$4:$A$618,MassDataLink!$C$4:$C$618) ->  | F191: =LOOKUP(C191,MassDataLink!$A$4:$A$618,MassDataLink!$D$4:$D$618) ->  | G191: =LOOKUP(C191,MassDataLink!$A$4:$A$618,MassDataLink!$E$4:$E$618) ->  | H191: =LOOKUP(C191,MassDataLink!$A$4:$A$618,MassDataLink!$F$4:$F$618) ->  | J191: 78 | K191: - - - | L191: - - -
B192: 79 | C192: -1 | D192: =LOOKUP(C192,MassDataLink!$A$4:$A$618,MassDataLink!$B$4:$B$618) ->  | E192: =LOOKUP(C192,MassDataLink!$A$4:$A$618,MassDataLink!$C$4:$C$618) ->  | F192: =LOOKUP(C192,MassDataLink!$A$4:$A$618,MassDataLink!$D$4:$D$618) ->  | G192: =LOOKUP(C192,MassDataLink!$A$4:$A$618,MassDataLink!$E$4:$E$618) ->  | H192: =LOOKUP(C192,MassDataLink!$A$4:$A$618,MassDataLink!$F$4:$F$618) ->  | J192: 79 | K192: - - - | L192: - - -
B193: 80 | C193: -1 | D193: =LOOKUP(C193,MassDataLink!$A$4:$A$618,MassDataLink!$B$4:$B$618) ->  | E193: =LOOKUP(C193,MassDataLink!$A$4:$A$618,MassDataLink!$C$4:$C$618) ->  | F193: =LOOKUP(C193,MassDataLink!$A$4:$A$618,MassDataLink!$D$4:$D$618) ->  | G193: =LOOKUP(C193,MassDataLink!$A$4:$A$618,MassDataLink!$E$4:$E$618) ->  | H193: =LOOKUP(C193,MassDataLink!$A$4:$A$618,MassDataLink!$F$4:$F$618) ->  | J193: 80 | K193: - - - | L193: - - -
B194: 81 | C194: -1 | D194: =LOOKUP(C194,MassDataLink!$A$4:$A$618,MassDataLink!$B$4:$B$618) ->  | E194: =LOOKUP(C194,MassDataLink!$A$4:$A$618,MassDataLink!$C$4:$C$618) ->  | F194: =LOOKUP(C194,MassDataLink!$A$4:$A$618,MassDataLink!$D$4:$D$618) ->  | G194: =LOOKUP(C194,MassDataLink!$A$4:$A$618,MassDataLink!$E$4:$E$618) ->  | H194: =LOOKUP(C194,MassDataLink!$A$4:$A$618,MassDataLink!$F$4:$F$618) ->  | J194: 81 | K194: - - - | L194: - - -
B195: 82 | C195: -1 | D195: =LOOKUP(C195,MassDataLink!$A$4:$A$618,MassDataLink!$B$4:$B$618) ->  | E195: =LOOKUP(C195,MassDataLink!$A$4:$A$618,MassDataLink!$C$4:$C$618) ->  | F195: =LOOKUP(C195,MassDataLink!$A$4:$A$618,MassDataLink!$D$4:$D$618) ->  | G195: =LOOKUP(C195,MassDataLink!$A$4:$A$618,MassDataLink!$E$4:$E$618) ->  | H195: =LOOKUP(C195,MassDataLink!$A$4:$A$618,MassDataLink!$F$4:$F$618) ->  | J195: 82 | K195: - - - | L195: - - -
B196: 83 | C196: -1 | D196: =LOOKUP(C196,MassDataLink!$A$4:$A$618,MassDataLink!$B$4:$B$618) ->  | E196: =LOOKUP(C196,MassDataLink!$A$4:$A$618,MassDataLink!$C$4:$C$618) ->  | F196: =LOOKUP(C196,MassDataLink!$A$4:$A$618,MassDataLink!$D$4:$D$618) ->  | G196: =LOOKUP(C196,MassDataLink!$A$4:$A$618,MassDataLink!$E$4:$E$618) ->  | H196: =LOOKUP(C196,MassDataLink!$A$4:$A$618,MassDataLink!$F$4:$F$618) ->  | J196: 83 | K196: - - - | L196: - - -
B197: 84 | C197: -1 | D197: =LOOKUP(C197,MassDataLink!$A$4:$A$618,MassDataLink!$B$4:$B$618) ->  | E197: =LOOKUP(C197,MassDataLink!$A$4:$A$618,MassDataLink!$C$4:$C$618) ->  | F197: =LOOKUP(C197,MassDataLink!$A$4:$A$618,MassDataLink!$D$4:$D$618) ->  | G197: =LOOKUP(C197,MassDataLink!$A$4:$A$618,MassDataLink!$E$4:$E$618) ->  | H197: =LOOKUP(C197,MassDataLink!$A$4:$A$618,MassDataLink!$F$4:$F$618) ->  | J197: 84 | K197: - - - | L197: - - -
B198: 85 | C198: -1 | D198: =LOOKUP(C198,MassDataLink!$A$4:$A$618,MassDataLink!$B$4:$B$618) ->  | E198: =LOOKUP(C198,MassDataLink!$A$4:$A$618,MassDataLink!$C$4:$C$618) ->  | F198: =LOOKUP(C198,MassDataLink!$A$4:$A$618,MassDataLink!$D$4:$D$618) ->  | G198: =LOOKUP(C198,MassDataLink!$A$4:$A$618,MassDataLink!$E$4:$E$618) ->  | H198: =LOOKUP(C198,MassDataLink!$A$4:$A$618,MassDataLink!$F$4:$F$618) ->  | J198: 85 | K198: - - - | L198: - - -
B199: 86 | C199: -1 | D199: =LOOKUP(C199,MassDataLink!$A$4:$A$618,MassDataLink!$B$4:$B$618) ->  | E199: =LOOKUP(C199,MassDataLink!$A$4:$A$618,MassDataLink!$C$4:$C$618) ->  | F199: =LOOKUP(C199,MassDataLink!$A$4:$A$618,MassDataLink!$D$4:$D$618) ->  | G199: =LOOKUP(C199,MassDataLink!$A$4:$A$618,MassDataLink!$E$4:$E$618) ->  | H199: =LOOKUP(C199,MassDataLink!$A$4:$A$618,MassDataLink!$F$4:$F$618) ->  | J199: 86 | K199: - - - | L199: - - -
B200: 87 | C200: -1 | D200: =LOOKUP(C200,MassDataLink!$A$4:$A$618,MassDataLink!$B$4:$B$618) ->  | E200: =LOOKUP(C200,MassDataLink!$A$4:$A$618,MassDataLink!$C$4:$C$618) ->  | F200: =LOOKUP(C200,MassDataLink!$A$4:$A$618,MassDataLink!$D$4:$D$618) ->  | G200: =LOOKUP(C200,MassDataLink!$A$4:$A$618,MassDataLink!$E$4:$E$618) ->  | H200: =LOOKUP(C200,MassDataLink!$A$4:$A$618,MassDataLink!$F$4:$F$618) ->  | J200: 87 | K200: - - - | L200: - - -
B201: 88 | C201: -1 | D201: =LOOKUP(C201,MassDataLink!$A$4:$A$618,MassDataLink!$B$4:$B$618) ->  | E201: =LOOKUP(C201,MassDataLink!$A$4:$A$618,MassDataLink!$C$4:$C$618) ->  | F201: =LOOKUP(C201,MassDataLink!$A$4:$A$618,MassDataLink!$D$4:$D$618) ->  | G201: =LOOKUP(C201,MassDataLink!$A$4:$A$618,MassDataLink!$E$4:$E$618) ->  | H201: =LOOKUP(C201,MassDataLink!$A$4:$A$618,MassDataLink!$F$4:$F$618) ->  | J201: 88 | K201: - - - | L201: - - -
B202: 89 | C202: -1 | D202: =LOOKUP(C202,MassDataLink!$A$4:$A$618,MassDataLink!$B$4:$B$618) ->  | E202: =LOOKUP(C202,MassDataLink!$A$4:$A$618,MassDataLink!$C$4:$C$618) ->  | F202: =LOOKUP(C202,MassDataLink!$A$4:$A$618,MassDataLink!$D$4:$D$618) ->  | G202: =LOOKUP(C202,MassDataLink!$A$4:$A$618,MassDataLink!$E$4:$E$618) ->  | H202: =LOOKUP(C202,MassDataLink!$A$4:$A$618,MassDataLink!$F$4:$F$618) ->  | J202: 89 | K202: - - - | L202: - - -
B203: 90 | C203: -1 | D203: =LOOKUP(C203,MassDataLink!$A$4:$A$618,MassDataLink!$B$4:$B$618) ->  | E203: =LOOKUP(C203,MassDataLink!$A$4:$A$618,MassDataLink!$C$4:$C$618) ->  | F203: =LOOKUP(C203,MassDataLink!$A$4:$A$618,MassDataLink!$D$4:$D$618) ->  | G203: =LOOKUP(C203,MassDataLink!$A$4:$A$618,MassDataLink!$E$4:$E$618) ->  | H203: =LOOKUP(C203,MassDataLink!$A$4:$A$618,MassDataLink!$F$4:$F$618) ->  | J203: 90 | K203: - - - | L203: - - -
B204: 91 | C204: -1 | D204: =LOOKUP(C204,MassDataLink!$A$4:$A$618,MassDataLink!$B$4:$B$618) ->  | E204: =LOOKUP(C204,MassDataLink!$A$4:$A$618,MassDataLink!$C$4:$C$618) ->  | F204: =LOOKUP(C204,MassDataLink!$A$4:$A$618,MassDataLink!$D$4:$D$618) ->  | G204: =LOOKUP(C204,MassDataLink!$A$4:$A$618,MassDataLink!$E$4:$E$618) ->  | H204: =LOOKUP(C204,MassDataLink!$A$4:$A$618,MassDataLink!$F$4:$F$618) ->  | J204: 91 | K204: - - - | L204: - - -
B205: 92 | C205: -1 | D205: =LOOKUP(C205,MassDataLink!$A$4:$A$618,MassDataLink!$B$4:$B$618) ->  | E205: =LOOKUP(C205,MassDataLink!$A$4:$A$618,MassDataLink!$C$4:$C$618) ->  | F205: =LOOKUP(C205,MassDataLink!$A$4:$A$618,MassDataLink!$D$4:$D$618) ->  | G205: =LOOKUP(C205,MassDataLink!$A$4:$A$618,MassDataLink!$E$4:$E$618) ->  | H205: =LOOKUP(C205,MassDataLink!$A$4:$A$618,MassDataLink!$F$4:$F$618) ->  | J205: 92 | K205: - - - | L205: - - -
... 133 more rows

Sheet ModelData (hidden)
B1: 1 | C1: 6 | D1: 7 | E1: 8 | F1: 10 | G1: 11 | H1: 12 | I1: 13 | J1: 14 | K1: 15 | L1: 16 | M1: 17 | N1: 18 | O1: 19 | P1: 20 | Q1: 21 | R1: 22 | S1: 23 | T1: 24 | U1: 25 | V1: 26 | W1: 27 | X1: 28 | Y1: 29 | Z1: 30 | AA1: 31 | AB1: 32 | AC1: 33
A2: データ№ | B2: ｱｸﾁｭｴｰﾀ型式 | C2: 最小ｽﾄﾛｰｸ | D2: 最大ｽﾄﾛｰｸ | E2: 動作種別 | F2: リンク[0] | I2: リンク[1] | L2: リンク[2] | O2: リンク[3] | R2: リンク[4] | U2: リンク[5] | X2: リンク[6] | AA2: リンク[7]
A3: 0 | C3: ㎜ | D3: ㎜ | E3: 1/0:回/直 | F3: ﾘｰﾄﾞ | G3: ｽﾄﾛｰｸ | H3: 搬送負荷 | I3: ﾘｰﾄﾞ | J3: ｽﾄﾛｰｸ | K3: 搬送負荷 | L3: ﾘｰﾄﾞ | M3: ｽﾄﾛｰｸ | N3: 搬送負荷 | O3: ﾘｰﾄﾞ | P3: ｽﾄﾛｰｸ | Q3: 搬送負荷 | R3: ﾘｰﾄﾞ | S3: ｽﾄﾛｰｸ | T3: 搬送負荷 | U3: ﾘｰﾄﾞ | V3: ｽﾄﾛｰｸ | W3: 搬送負荷 | X3: ﾘｰﾄﾞ | Y3: ｽﾄﾛｰｸ | Z3: 搬送負荷 | AA3: ﾘｰﾄﾞ | AB3: ｽﾄﾛｰｸ | AC3: 搬送負荷
A4: =A3+1 -> 1 | B4: RCA2-SA3C | C4: 50 | D4: 300 | E4: 0 | F4: =LeadData!A4 -> 1 | G4: =StrokeData!A4 -> 1 | H4: =MassDataLink!A4 -> 1 | I4: =LeadData!A5 -> 2 | J4: =StrokeData!A5 -> 2 | K4: =MassDataLink!A6 -> 3 | L4: =LeadData!A6 -> 3 | M4: =StrokeData!A6 -> 3 | N4: =MassDataLink!A8 -> 5 | O4: -1 | P4: -1 | Q4: -1 | R4: -1 | S4: -1 | T4: -1 | U4: -1 | V4: -1 | W4: -1 | X4: -1 | Y4: -1 | Z4: -1 | AA4: -1 | AB4: -1 | AC4: -1
A5: =A4+1 -> 2 | B5: RCA2-SA4C | C5: 50 | D5: 500 | E5: 0 | F5: =LeadData!A7 -> 4 | G5: =StrokeData!A7 -> 4 | H5: =MassDataLink!A10 -> 7 | I5: =LeadData!A8 -> 5 | J5: =StrokeData!A8 -> 5 | K5: =MassDataLink!A12 -> 9 | L5: =LeadData!A9 -> 6 | M5: =StrokeData!A9 -> 6 | N5: =MassDataLink!A14 -> 11 | O5: -1 | P5: -1 | Q5: -1 | R5: -1 | S5: -1 | T5: -1 | U5: -1 | V5: -1 | W5: -1 | X5: -1 | Y5: -1 | Z5: -1 | AA5: -1 | AB5: -1 | AC5: -1
A6: =A5+1 -> 3 | B6: RCA2-SA5C | C6: 50 | D6: 800 | E6: 0 | F6: =LeadData!A10 -> 7 | G6: =StrokeData!A10 -> 7 | H6: =MassDataLink!A16 -> 13 | I6: =LeadData!A11 -> 8 | J6: =StrokeData!A16 -> 13 | K6: =MassDataLink!A18 -> 15 | L6: =LeadData!A12 -> 9 | M6: =StrokeData!A22 -> 19 | N6: =MassDataLink!A20 -> 17 | O6: -1 | P6: -1 | Q6: -1 | R6: -1 | S6: -1 | T6: -1 | U6: -1 | V6: -1 | W6: -1 | X6: -1 | Y6: -1 | Z6: -1 | AA6: -1 | AB6: -1 | AC6: -1
A7: 4 | B7: RCA2-SA6C | C7: 50 | D7: 800 | E7: 0 | F7: =LeadData!A13 -> 10 | G7: =StrokeData!A28 -> 25 | H7: =MassDataLink!A22 -> 19 | I7: =LeadData!A14 -> 11 | J7: =StrokeData!A34 -> 31 | K7: =MassDataLink!A24 -> 21 | L7: =LeadData!A15 -> 12 | M7: =StrokeData!A40 -> 37 | N7: =MassDataLink!A26 -> 23 | O7: -1 | P7: -1 | Q7: -1 | R7: -1 | S7: -1 | T7: -1 | U7: -1 | V7: -1 | W7: -1 | X7: -1 | Y7: -1 | Z7: -1 | AA7: -1 | AB7: -1 | AC7: -1
A8: =A7+1 -> 5 | B8: RCA2-SA3R | C8: 50 | D8: 300 | E8: 0 | F8: =LeadData!A16 -> 13 | G8: =StrokeData!A46 -> 43 | H8: =MassDataLink!A28 -> 25 | I8: =LeadData!A17 -> 14 | J8: =StrokeData!A47 -> 44 | K8: =MassDataLink!A30 -> 27 | L8: =LeadData!A18 -> 15 | M8: =StrokeData!A48 -> 45 | N8: =MassDataLink!A32 -> 29 | O8: -1 | P8: -1 | Q8: -1 | R8: -1 | S8: -1 | T8: -1 | U8: -1 | V8: -1 | W8: -1 | X8: -1 | Y8: -1 | Z8: -1 | AA8: -1 | AB8: -1 | AC8: -1
A9: 6 | B9: RCA2-SA4R | C9: 50 | D9: 500 | E9: 0 | F9: =LeadData!A19 -> 16 | G9: =StrokeData!A49 -> 46 | H9: =MassDataLink!A34 -> 31 | I9: =LeadData!A20 -> 17 | J9: =StrokeData!A50 -> 47 | K9: =MassDataLink!A36 -> 33 | L9: =LeadData!A21 -> 18 | M9: =StrokeData!A51 -> 48 | N9: =MassDataLink!A38 -> 35 | O9: -1 | P9: -1 | Q9: -1 | R9: -1 | S9: -1 | T9: -1 | U9: -1 | V9: -1 | W9: -1 | X9: -1 | Y9: -1 | Z9: -1 | AA9: -1 | AB9: -1 | AC9: -1
A10: 7 | B10: RCA2-SA5R | C10: 50 | D10: 800 | E10: 0 | F10: =LeadData!A22 -> 19 | G10: =StrokeData!A52 -> 49 | H10: =MassDataLink!A40 -> 37 | I10: =LeadData!A23 -> 20 | J10: =StrokeData!A58 -> 55 | K10: =MassDataLink!A42 -> 39 | L10: =LeadData!A24 -> 21 | M10: =StrokeData!A64 -> 61 | N10: =MassDataLink!A44 -> 41 | O10: -1 | P10: -1 | Q10: -1 | R10: -1 | S10: -1 | T10: -1 | U10: -1 | V10: -1 | W10: -1 | X10: -1 | Y10: -1 | Z10: -1 | AA10: -1 | AB10: -1 | AC10: -1
A11: 8 | B11: RCA2-SA6R | C11: 50 | D11: 800 | E11: 0 | F11: =LeadData!A25 -> 22 | G11: =StrokeData!A70 -> 67 | H11: =MassDataLink!A46 -> 43 | I11: =LeadData!A26 -> 23 | J11: =StrokeData!A76 -> 73 | K11: =MassDataLink!A48 -> 45 | L11: =LeadData!A27 -> 24 | M11: =StrokeData!A82 -> 79 | N11: =MassDataLink!A50 -> 47 | O11: -1 | P11: -1 | Q11: -1 | R11: -1 | S11: -1 | T11: -1 | U11: -1 | V11: -1 | W11: -1 | X11: -1 | Y11: -1 | Z11: -1 | AA11: -1 | AB11: -1 | AC11: -1
A12: =A11+1 -> 9 | B12: RCA-SA4C-20 | C12: 50 | D12: 400 | E12: 0 | F12: =LeadData!A28 -> 25 | G12: =StrokeData!A88 -> 85 | H12: =MassDataLink!A52 -> 49 | I12: =LeadData!A29 -> 26 | J12: =StrokeData!A89 -> 86 | K12: =MassDataLink!A54 -> 51 | L12: =LeadData!A30 -> 27 | M12: =StrokeData!A90 -> 87 | N12: =MassDataLink!A56 -> 53 | O12: -1 | P12: -1 | Q12: -1 | R12: -1 | S12: -1 | T12: -1 | U12: -1 | V12: -1 | W12: -1 | X12: -1 | Y12: -1 | Z12: -1 | AA12: -1 | AB12: -1 | AC12: -1
A13: =A12+1 -> 10 | B13: RCA-SA5C-20 | C13: 50 | D13: 500 | E13: 0 | F13: =LeadData!A31 -> 28 | G13: =StrokeData!A91 -> 88 | H13: =MassDataLink!A58 -> 55 | I13: =LeadData!A32 -> 29 | J13: =StrokeData!A93 -> 90 | K13: =MassDataLink!A60 -> 57 | L13: =LeadData!A33 -> 30 | M13: =StrokeData!A95 -> 92 | N13: =MassDataLink!A62 -> 59 | O13: =LeadData!A34 -> 31 | P13: =StrokeData!A97 -> 94 | Q13: =MassDataLink!A64 -> 61 | R13: -1 | S13: -1 | T13: -1 | U13: -1 | V13: -1 | W13: -1 | X13: -1 | Y13: -1 | Z13: -1 | AA13: -1 | AB13: -1 | AC13: -1
A14: =A13+1 -> 11 | B14: RCA-SA6C-30 | C14: 50 | D14: 600 | E14: 0 | F14: =LeadData!A35 -> 32 | G14: =StrokeData!A98 -> 95 | H14: =MassDataLink!A66 -> 63 | I14: =LeadData!A36 -> 33 | J14: =StrokeData!A102 -> 99 | K14: =MassDataLink!A68 -> 65 | L14: =LeadData!A37 -> 34 | M14: =StrokeData!A106 -> 103 | N14: =MassDataLink!A70 -> 67 | O14: =LeadData!A38 -> 35 | P14: =StrokeData!A110 -> 107 | Q14: =MassDataLink!A72 -> 69 | R14: -1 | S14: -1 | T14: -1 | U14: -1 | V14: -1 | W14: -1 | X14: -1 | Y14: -1 | Z14: -1 | AA14: -1 | AB14: -1 | AC14: -1
A15: =A14+1 -> 12 | B15: RCA-SA4D-20 | C15: 50 | D15: 300 | E15: 0 | F15: =LeadData!A39 -> 36 | G15: =StrokeData!A113 -> 110 | H15: =MassDataLink!A74 -> 71 | I15: =LeadData!A40 -> 37 | J15: =StrokeData!A114 -> 111 | K15: =MassDataLink!A76 -> 73 | L15: =LeadData!A41 -> 38 | M15: =StrokeData!A115 -> 112 | N15: =MassDataLink!A78 -> 75 | O15: -1 | P15: -1 | Q15: -1 | R15: -1 | S15: -1 | T15: -1 | U15: -1 | V15: -1 | W15: -1 | X15: -1 | Y15: -1 | Z15: -1 | AA15: -1 | AB15: -1 | AC15: -1
A16: 13 | B16: RCA-SA5D-20 | C16: 50 | D16: 500 | E16: 0 | F16: =LeadData!A42 -> 39 | G16: =StrokeData!A116 -> 113 | H16: =MassDataLink!A80 -> 77 | I16: =LeadData!A43 -> 40 | J16: =StrokeData!A118 -> 115 | K16: =MassDataLink!A82 -> 79 | L16: =LeadData!A44 -> 41 | M16: =StrokeData!A120 -> 117 | N16: =MassDataLink!A84 -> 81 | O16: -1 | P16: -1 | Q16: -1 | R16: -1 | S16: -1 | T16: -1 | U16: -1 | V16: -1 | W16: -1 | X16: -1 | Y16: -1 | Z16: -1 | AA16: -1 | AB16: -1 | AC16: -1
A17: 14 | B17: RCA-SA6D-30 | C17: 50 | D17: 600 | E17: 0 | F17: =LeadData!A45 -> 42 | G17: =StrokeData!A122 -> 119 | H17: =MassDataLink!A86 -> 83 | I17: =LeadData!A46 -> 43 | J17: =StrokeData!A126 -> 123 | K17: =MassDataLink!A88 -> 85 | L17: =LeadData!A47 -> 44 | M17: =StrokeData!A130 -> 127 | N17: =MassDataLink!A90 -> 87 | O17: -1 | P17: -1 | Q17: -1 | R17: -1 | S17: -1 | T17: -1 | U17: -1 | V17: -1 | W17: -1 | X17: -1 | Y17: -1 | Z17: -1 | AA17: -1 | AB17: -1 | AC17: -1
A18: 15 | B18: RCA-SS4D-20 | C18: 50 | D18: 300 | E18: 0 | F18: =LeadData!A48 -> 45 | G18: =StrokeData!A134 -> 131 | H18: =MassDataLink!A92 -> 89 | I18: =LeadData!A49 -> 46 | J18: =StrokeData!A135 -> 132 | K18: =MassDataLink!A94 -> 91 | L18: =LeadData!A50 -> 47 | M18: =StrokeData!A136 -> 133 | N18: =MassDataLink!A96 -> 93 | O18: -1 | P18: -1 | Q18: -1 | R18: -1 | S18: -1 | T18: -1 | U18: -1 | V18: -1 | W18: -1 | X18: -1 | Y18: -1 | Z18: -1 | AA18: -1 | AB18: -1 | AC18: -1
A19: 16 | B19: RCA-SS5D-20 | C19: 50 | D19: 500 | E19: 0 | F19: =LeadData!A51 -> 48 | G19: =StrokeData!A137 -> 134 | H19: =MassDataLink!A98 -> 95 | I19: =LeadData!A52 -> 49 | J19: =StrokeData!A139 -> 136 | K19: =MassDataLink!A100 -> 97 | L19: =LeadData!A53 -> 50 | M19: =StrokeData!A141 -> 138 | N19: =MassDataLink!A102 -> 99 | O19: -1 | P19: -1 | Q19: -1 | R19: -1 | S19: -1 | T19: -1 | U19: -1 | V19: -1 | W19: -1 | X19: -1 | Y19: -1 | Z19: -1 | AA19: -1 | AB19: -1 | AC19: -1
A20: 17 | B20: RCA-SS6D-30 | C20: 50 | D20: 600 | E20: 0 | F20: =LeadData!A54 -> 51 | G20: =StrokeData!A143 -> 140 | H20: =MassDataLink!A104 -> 101 | I20: =LeadData!A55 -> 52 | J20: =StrokeData!A147 -> 144 | K20: =MassDataLink!A106 -> 103 | L20: =LeadData!A56 -> 53 | M20: =StrokeData!A151 -> 148 | N20: =MassDataLink!A108 -> 105 | O20: -1 | P20: -1 | Q20: -1 | R20: -1 | S20: -1 | T20: -1 | U20: -1 | V20: -1 | W20: -1 | X20: -1 | Y20: -1 | Z20: -1 | AA20: -1 | AB20: -1 | AC20: -1
A21: 18 | B21: RCA-SA4R-20 | C21: 50 | D21: 400 | E21: 0 | F21: =LeadData!A57 -> 54 | G21: =StrokeData!A155 -> 152 | H21: =MassDataLink!A110 -> 107 | I21: =LeadData!A58 -> 55 | J21: =StrokeData!A156 -> 153 | K21: =MassDataLink!A112 -> 109 | L21: =LeadData!A59 -> 56 | M21: =StrokeData!A157 -> 154 | N21: =MassDataLink!A114 -> 111 | O21: -1 | P21: -1 | Q21: -1 | R21: -1 | S21: -1 | T21: -1 | U21: -1 | V21: -1 | W21: -1 | X21: -1 | Y21: -1 | Z21: -1 | AA21: -1 | AB21: -1 | AC21: -1
A22: 19 | B22: RCA-SA5R-20 | C22: 50 | D22: 500 | E22: 0 | F22: =LeadData!A60 -> 57 | G22: =StrokeData!A158 -> 155 | H22: =MassDataLink!A116 -> 113 | I22: =LeadData!A61 -> 58 | J22: =StrokeData!A160 -> 157 | K22: =MassDataLink!A118 -> 115 | L22: =LeadData!A62 -> 59 | M22: =StrokeData!A162 -> 159 | N22: =MassDataLink!A120 -> 117 | O22: -1 | P22: -1 | Q22: -1 | R22: -1 | S22: -1 | T22: -1 | U22: -1 | V22: -1 | W22: -1 | X22: -1 | Y22: -1 | Z22: -1 | AA22: -1 | AB22: -1 | AC22: -1
A23: =A22+1 -> 20 | B23: RCA-SA6R-30 | C23: 50 | D23: 600 | E23: 0 | F23: =LeadData!A63 -> 60 | G23: =StrokeData!A164 -> 161 | H23: =MassDataLink!A122 -> 119 | I23: =LeadData!A64 -> 61 | J23: =StrokeData!A168 -> 165 | K23: =MassDataLink!A124 -> 121 | L23: =LeadData!A65 -> 62 | M23: =StrokeData!A172 -> 169 | N23: =MassDataLink!A126 -> 123 | O23: -1 | P23: -1 | Q23: -1 | R23: -1 | S23: -1 | T23: -1 | U23: -1 | V23: -1 | W23: -1 | X23: -1 | Y23: -1 | Z23: -1 | AA23: -1 | AB23: -1 | AC23: -1
A24: =A23+1 -> 21 | B24: RCA2-RN3NA-10 | C24: 30 | D24: 50 | E24: 0 | F24: =LeadData!A66 -> 63 | G24: =StrokeData!A176 -> 173 | H24: =MassDataLink!A128 -> 125 | I24: =LeadData!A67 -> 64 | J24: =StrokeData!A177 -> 174 | K24: =MassDataLink!A130 -> 127 | L24: =LeadData!A68 -> 65 | M24: =StrokeData!A178 -> 175 | N24: =MassDataLink!A132 -> 129 | O24: -1 | P24: -1 | Q24: -1 | R24: -1 | S24: -1 | T24: -1 | U24: -1 | V24: -1 | W24: -1 | X24: -1 | Y24: -1 | Z24: -1 | AA24: -1 | AB24: -1 | AC24: -1
A25: =A24+1 -> 22 | B25: RCA2-RN3NA-10-*S | C25: 30 | D25: 50 | E25: 0 | F25: =LeadData!A69 -> 66 | G25: =StrokeData!A179 -> 176 | H25: =MassDataLink!A134 -> 131 | I25: =LeadData!A70 -> 67 | J25: =StrokeData!A180 -> 177 | K25: =MassDataLink!A136 -> 133 | L25: =LeadData!A71 -> 68 | M25: =StrokeData!A181 -> 178 | N25: =MassDataLink!A138 -> 135 | O25: -1 | P25: -1 | Q25: -1 | R25: -1 | S25: -1 | T25: -1 | U25: -1 | V25: -1 | W25: -1 | X25: -1 | Y25: -1 | Z25: -1 | AA25: -1 | AB25: -1 | AC25: -1
A26: 23 | B26: RCA2-RN4NA-20 | C26: 30 | D26: 50 | E26: 0 | F26: =LeadData!A72 -> 69 | G26: =StrokeData!A182 -> 179 | H26: =MassDataLink!A140 -> 137 | I26: =LeadData!A73 -> 70 | J26: =StrokeData!A183 -> 180 | K26: =MassDataLink!A142 -> 139 | L26: =LeadData!A74 -> 71 | M26: =StrokeData!A184 -> 181 | N26: =MassDataLink!A144 -> 141 | O26: -1 | P26: -1 | Q26: -1 | R26: -1 | S26: -1 | T26: -1 | U26: -1 | V26: -1 | W26: -1 | X26: -1 | Y26: -1 | Z26: -1 | AA26: -1 | AB26: -1 | AC26: -1
A27: =A26+1 -> 24 | B27: RCA2-RN4NA-20-*S | C27: 30 | D27: 50 | E27: 0 | F27: =LeadData!A75 -> 72 | G27: =StrokeData!A185 -> 182 | H27: =MassDataLink!A146 -> 143 | I27: =LeadData!A76 -> 73 | J27: =StrokeData!A186 -> 183 | K27: =MassDataLink!A148 -> 145 | L27: =LeadData!A77 -> 74 | M27: =StrokeData!A187 -> 184 | N27: =MassDataLink!A150 -> 147 | O27: -1 | P27: -1 | Q27: -1 | R27: -1 | S27: -1 | T27: -1 | U27: -1 | V27: -1 | W27: -1 | X27: -1 | Y27: -1 | Z27: -1 | AA27: -1 | AB27: -1 | AC27: -1
A28: =A27+1 -> 25 | B28: RCA2-RP3NA-10 | C28: 30 | D28: 50 | E28: 0 | F28: =LeadData!A78 -> 75 | G28: =StrokeData!A188 -> 185 | H28: =MassDataLink!A152 -> 149 | I28: =LeadData!A79 -> 76 | J28: =StrokeData!A189 -> 186 | K28: =MassDataLink!A154 -> 151 | L28: =LeadData!A80 -> 77 | M28: =StrokeData!A190 -> 187 | N28: =MassDataLink!A156 -> 153 | O28: -1 | P28: -1 | Q28: -1 | R28: -1 | S28: -1 | T28: -1 | U28: -1 | V28: -1 | W28: -1 | X28: -1 | Y28: -1 | Z28: -1 | AA28: -1 | AB28: -1 | AC28: -1
A29: =A28+1 -> 26 | B29: RCA2-RP3NA-10-*S | C29: 30 | D29: 50 | E29: 0 | F29: =LeadData!A81 -> 78 | G29: =StrokeData!A191 -> 188 | H29: =MassDataLink!A158 -> 155 | I29: =LeadData!A82 -> 79 | J29: =StrokeData!A192 -> 189 | K29: =MassDataLink!A160 -> 157 | L29: =LeadData!A83 -> 80 | M29: =StrokeData!A193 -> 190 | N29: =MassDataLink!A162 -> 159 | O29: -1 | P29: -1 | Q29: -1 | R29: -1 | S29: -1 | T29: -1 | U29: -1 | V29: -1 | W29: -1 | X29: -1 | Y29: -1 | Z29: -1 | AA29: -1 | AB29: -1 | AC29: -1
A30: 27 | B30: RCA2-RP4NA-20 | C30: 30 | D30: 50 | E30: 0 | F30: =LeadData!A84 -> 81 | G30: =StrokeData!A194 -> 191 | H30: =MassDataLink!A164 -> 161 | I30: =LeadData!A85 -> 82 | J30: =StrokeData!A195 -> 192 | K30: =MassDataLink!A166 -> 163 | L30: =LeadData!A86 -> 83 | M30: =StrokeData!A196 -> 193 | N30: =MassDataLink!A168 -> 165 | O30: -1 | P30: -1 | Q30: -1 | R30: -1 | S30: -1 | T30: -1 | U30: -1 | V30: -1 | W30: -1 | X30: -1 | Y30: -1 | Z30: -1 | AA30: -1 | AB30: -1 | AC30: -1
A31: =A30+1 -> 28 | B31: RCA2-RP4NA-20-*S | C31: 30 | D31: 50 | E31: 0 | F31: =LeadData!A87 -> 84 | G31: =StrokeData!A197 -> 194 | H31: =MassDataLink!A170 -> 167 | I31: =LeadData!A88 -> 85 | J31: =StrokeData!A198 -> 195 | K31: =MassDataLink!A172 -> 169 | L31: =LeadData!A89 -> 86 | M31: =StrokeData!A199 -> 196 | N31: =MassDataLink!A174 -> 171 | O31: -1 | P31: -1 | Q31: -1 | R31: -1 | S31: -1 | T31: -1 | U31: -1 | V31: -1 | W31: -1 | X31: -1 | Y31: -1 | Z31: -1 | AA31: -1 | AB31: -1 | AC31: -1
A32: =A31+1 -> 29 | B32: RCA2-GS3NA-10 | C32: 30 | D32: 50 | E32: 0 | F32: =LeadData!A90 -> 87 | G32: =StrokeData!A200 -> 197 | H32: =MassDataLink!A176 -> 173 | I32: =LeadData!A91 -> 88 | J32: =StrokeData!A201 -> 198 | K32: =MassDataLink!A178 -> 175 | L32: =LeadData!A92 -> 89 | M32: =StrokeData!A202 -> 199 | N32: =MassDataLink!A180 -> 177 | O32: -1 | P32: -1 | Q32: -1 | R32: -1 | S32: -1 | T32: -1 | U32: -1 | V32: -1 | W32: -1 | X32: -1 | Y32: -1 | Z32: -1 | AA32: -1 | AB32: -1 | AC32: -1
A33: =A32+1 -> 30 | B33: RCA2-GS3NA-10-*S | C33: 30 | D33: 50 | E33: 0 | F33: =LeadData!A93 -> 90 | G33: =StrokeData!A203 -> 200 | H33: =MassDataLink!A182 -> 179 | I33: =LeadData!A94 -> 91 | J33: =StrokeData!A204 -> 201 | K33: =MassDataLink!A184 -> 181 | L33: =LeadData!A95 -> 92 | M33: =StrokeData!A205 -> 202 | N33: =MassDataLink!A186 -> 183 | O33: -1 | P33: -1 | Q33: -1 | R33: -1 | S33: -1 | T33: -1 | U33: -1 | V33: -1 | W33: -1 | X33: -1 | Y33: -1 | Z33: -1 | AA33: -1 | AB33: -1 | AC33: -1
A34: 31 | B34: RCA2-GS4NA-20 | C34: 30 | D34: 50 | E34: 0 | F34: =LeadData!A96 -> 93 | G34: =StrokeData!A206 -> 203 | H34: =MassDataLink!A188 -> 185 | I34: =LeadData!A97 -> 94 | J34: =StrokeData!A207 -> 204 | K34: =MassDataLink!A190 -> 187 | L34: =LeadData!A98 -> 95 | M34: =StrokeData!A208 -> 205 | N34: =MassDataLink!A192 -> 189 | O34: -1 | P34: -1 | Q34: -1 | R34: -1 | S34: -1 | T34: -1 | U34: -1 | V34: -1 | W34: -1 | X34: -1 | Y34: -1 | Z34: -1 | AA34: -1 | AB34: -1 | AC34: -1
A35: =A34+1 -> 32 | B35: RCA2-GS4NA-20-*S | C35: 30 | D35: 50 | E35: 0 | F35: =LeadData!A99 -> 96 | G35: =StrokeData!A209 -> 206 | H35: =MassDataLink!A194 -> 191 | I35: =LeadData!A100 -> 97 | J35: =StrokeData!A210 -> 207 | K35: =MassDataLink!A196 -> 193 | L35: =LeadData!A101 -> 98 | M35: =StrokeData!A211 -> 208 | N35: =MassDataLink!A198 -> 195 | O35: -1 | P35: -1 | Q35: -1 | R35: -1 | S35: -1 | T35: -1 | U35: -1 | V35: -1 | W35: -1 | X35: -1 | Y35: -1 | Z35: -1 | AA35: -1 | AB35: -1 | AC35: -1
A36: =A35+1 -> 33 | B36: RCA2-GD3NA-10 | C36: 30 | D36: 50 | E36: 0 | F36: =LeadData!A102 -> 99 | G36: =StrokeData!A212 -> 209 | H36: =MassDataLink!A200 -> 197 | I36: =LeadData!A103 -> 100 | J36: =StrokeData!A213 -> 210 | K36: =MassDataLink!A202 -> 199 | L36: =LeadData!A104 -> 101 | M36: =StrokeData!A214 -> 211 | N36: =MassDataLink!A204 -> 201 | O36: -1 | P36: -1 | Q36: -1 | R36: -1 | S36: -1 | T36: -1 | U36: -1 | V36: -1 | W36: -1 | X36: -1 | Y36: -1 | Z36: -1 | AA36: -1 | AB36: -1 | AC36: -1
A37: =A36+1 -> 34 | B37: RCA2-GD3NA-10-*S | C37: 30 | D37: 50 | E37: 0 | F37: =LeadData!A105 -> 102 | G37: =StrokeData!A215 -> 212 | H37: =MassDataLink!A206 -> 203 | I37: =LeadData!A106 -> 103 | J37: =StrokeData!A216 -> 213 | K37: =MassDataLink!A208 -> 205 | L37: =LeadData!A107 -> 104 | M37: =StrokeData!A217 -> 214 | N37: =MassDataLink!A210 -> 207 | O37: -1 | P37: -1 | Q37: -1 | R37: -1 | S37: -1 | T37: -1 | U37: -1 | V37: -1 | W37: -1 | X37: -1 | Y37: -1 | Z37: -1 | AA37: -1 | AB37: -1 | AC37: -1
A38: 35 | B38: RCA2-GD4NA-20 | C38: 30 | D38: 50 | E38: 0 | F38: =LeadData!A108 -> 105 | G38: =StrokeData!A218 -> 215 | H38: =MassDataLink!A212 -> 209 | I38: =LeadData!A109 -> 106 | J38: =StrokeData!A219 -> 216 | K38: =MassDataLink!A214 -> 211 | L38: =LeadData!A110 -> 107 | M38: =StrokeData!A220 -> 217 | N38: =MassDataLink!A216 -> 213 | O38: -1 | P38: -1 | Q38: -1 | R38: -1 | S38: -1 | T38: -1 | U38: -1 | V38: -1 | W38: -1 | X38: -1 | Y38: -1 | Z38: -1 | AA38: -1 | AB38: -1 | AC38: -1
A39: =A38+1 -> 36 | B39: RCA2-GD4NA-20-*S | C39: 30 | D39: 50 | E39: 0 | F39: =LeadData!A111 -> 108 | G39: =StrokeData!A221 -> 218 | H39: =MassDataLink!A218 -> 215 | I39: =LeadData!A112 -> 109 | J39: =StrokeData!A222 -> 219 | K39: =MassDataLink!A220 -> 217 | L39: =LeadData!A113 -> 110 | M39: =StrokeData!A223 -> 220 | N39: =MassDataLink!A222 -> 219 | O39: -1 | P39: -1 | Q39: -1 | R39: -1 | S39: -1 | T39: -1 | U39: -1 | V39: -1 | W39: -1 | X39: -1 | Y39: -1 | Z39: -1 | AA39: -1 | AB39: -1 | AC39: -1
A40: =A39+1 -> 37 | B40: RCA2-SD3NA-10 | C40: 25 | D40: 50 | E40: 0 | F40: =LeadData!A114 -> 111 | G40: =StrokeData!A224 -> 221 | H40: =MassDataLink!A224 -> 221 | I40: =LeadData!A115 -> 112 | J40: =StrokeData!A225 -> 222 | K40: =MassDataLink!A226 -> 223 | L40: =LeadData!A116 -> 113 | M40: =StrokeData!A226 -> 223 | N40: =MassDataLink!A228 -> 225 | O40: -1 | P40: -1 | Q40: -1 | R40: -1 | S40: -1 | T40: -1 | U40: -1 | V40: -1 | W40: -1 | X40: -1 | Y40: -1 | Z40: -1 | AA40: -1 | AB40: -1 | AC40: -1
A41: =A40+1 -> 38 | B41: RCA2-SD3NA-10-*S | C41: 25 | D41: 50 | E41: 0 | F41: =LeadData!A117 -> 114 | G41: =StrokeData!A227 -> 224 | H41: =MassDataLink!A230 -> 227 | I41: =LeadData!A118 -> 115 | J41: =StrokeData!A228 -> 225 | K41: =MassDataLink!A232 -> 229 | L41: =LeadData!A119 -> 116 | M41: =StrokeData!A229 -> 226 | N41: =MassDataLink!A234 -> 231 | O41: -1 | P41: -1 | Q41: -1 | R41: -1 | S41: -1 | T41: -1 | U41: -1 | V41: -1 | W41: -1 | X41: -1 | Y41: -1 | Z41: -1 | AA41: -1 | AB41: -1 | AC41: -1
A42: 39 | B42: RCA2-SD4NA-20 | C42: 25 | D42: 75 | E42: 0 | F42: =LeadData!A120 -> 117 | G42: =StrokeData!A230 -> 227 | H42: =MassDataLink!A236 -> 233 | I42: =LeadData!A121 -> 118 | J42: =StrokeData!A231 -> 228 | K42: =MassDataLink!A238 -> 235 | L42: =LeadData!A122 -> 119 | M42: =StrokeData!A232 -> 229 | N42: =MassDataLink!A240 -> 237 | O42: -1 | P42: -1 | Q42: -1 | R42: -1 | S42: -1 | T42: -1 | U42: -1 | V42: -1 | W42: -1 | X42: -1 | Y42: -1 | Z42: -1 | AA42: -1 | AB42: -1 | AC42: -1
A43: 40 | B43: RCA2-SD4NA-20-*S | C43: 25 | D43: 75 | E43: 0 | F43: =LeadData!A123 -> 120 | G43: =StrokeData!A233 -> 230 | H43: =MassDataLink!A242 -> 239 | I43: =LeadData!A124 -> 121 | J43: =StrokeData!A234 -> 231 | K43: =MassDataLink!A244 -> 241 | L43: =LeadData!A125 -> 122 | M43: =StrokeData!A235 -> 232 | N43: =MassDataLink!A246 -> 243 | O43: -1 | P43: -1 | Q43: -1 | R43: -1 | S43: -1 | T43: -1 | U43: -1 | V43: -1 | W43: -1 | X43: -1 | Y43: -1 | Z43: -1 | AA43: -1 | AB43: -1 | AC43: -1
A44: =A43+1 -> 41 | B44: RCA-RA3C-20 | C44: 50 | D44: 200 | E44: 0 | F44: =LeadData!A126 -> 123 | G44: =StrokeData!A236 -> 233 | H44: =MassDataLink!A248 -> 245 | I44: =LeadData!A127 -> 124 | J44: =StrokeData!A237 -> 234 | K44: =MassDataLink!A250 -> 247 | L44: =LeadData!A128 -> 125 | M44: =StrokeData!A238 -> 235 | N44: =MassDataLink!A252 -> 249 | O44: -1 | P44: -1 | Q44: -1 | R44: -1 | S44: -1 | T44: -1 | U44: -1 | V44: -1 | W44: -1 | X44: -1 | Y44: -1 | Z44: -1 | AA44: -1 | AB44: -1 | AC44: -1
A45: =A44+1 -> 42 | B45: RCA-RA4C-20 | C45: 50 | D45: 300 | E45: 0 | F45: =LeadData!A129 -> 126 | G45: =StrokeData!A239 -> 236 | H45: =MassDataLink!A254 -> 251 | I45: =LeadData!A130 -> 127 | J45: =StrokeData!A240 -> 237 | K45: =MassDataLink!A256 -> 253 | L45: =LeadData!A131 -> 128 | M45: =StrokeData!A241 -> 238 | N45: =MassDataLink!A258 -> 255 | O45: -1 | P45: -1 | Q45: -1 | R45: -1 | S45: -1 | T45: -1 | U45: -1 | V45: -1 | W45: -1 | X45: -1 | Y45: -1 | Z45: -1 | AA45: -1 | AB45: -1 | AC45: -1
A46: =A45+1 -> 43 | B46: RCA-RA4C-30 | C46: 50 | D46: 300 | E46: 0 | F46: =LeadData!A132 -> 129 | G46: =StrokeData!A242 -> 239 | H46: =MassDataLink!A260 -> 257 | I46: =LeadData!A133 -> 130 | J46: =StrokeData!A243 -> 240 | K46: =MassDataLink!A262 -> 259 | L46: =LeadData!A134 -> 131 | M46: =StrokeData!A244 -> 241 | N46: =MassDataLink!A264 -> 261 | O46: -1 | P46: -1 | Q46: -1 | R46: -1 | S46: -1 | T46: -1 | U46: -1 | V46: -1 | W46: -1 | X46: -1 | Y46: -1 | Z46: -1 | AA46: -1 | AB46: -1 | AC46: -1
A47: =A46+1 -> 44 | B47: RCA-RA3D-20 | C47: 50 | D47: 200 | E47: 0 | F47: =LeadData!A135 -> 132 | G47: =StrokeData!A245 -> 242 | H47: =MassDataLink!A266 -> 263 | I47: =LeadData!A136 -> 133 | J47: =StrokeData!A246 -> 243 | K47: =MassDataLink!A268 -> 265 | L47: =LeadData!A137 -> 134 | M47: =StrokeData!A247 -> 244 | N47: =MassDataLink!A270 -> 267 | O47: -1 | P47: -1 | Q47: -1 | R47: -1 | S47: -1 | T47: -1 | U47: -1 | V47: -1 | W47: -1 | X47: -1 | Y47: -1 | Z47: -1 | AA47: -1 | AB47: -1 | AC47: -1
A48: 45 | B48: RCA-RA4D-20 | C48: 50 | D48: 300 | E48: 0 | F48: =LeadData!A138 -> 135 | G48: =StrokeData!A248 -> 245 | H48: =MassDataLink!A272 -> 269 | I48: =LeadData!A139 -> 136 | J48: =StrokeData!A249 -> 246 | K48: =MassDataLink!A274 -> 271 | L48: =LeadData!A140 -> 137 | M48: =StrokeData!A250 -> 247 | N48: =MassDataLink!A276 -> 273 | O48: -1 | P48: -1 | Q48: -1 | R48: -1 | S48: -1 | T48: -1 | U48: -1 | V48: -1 | W48: -1 | X48: -1 | Y48: -1 | Z48: -1 | AA48: -1 | AB48: -1 | AC48: -1
A49: 46 | B49: RCA-RA4D-30 | C49: 50 | D49: 300 | E49: 0 | F49: =LeadData!A141 -> 138 | G49: =StrokeData!A251 -> 248 | H49: =MassDataLink!A278 -> 275 | I49: =LeadData!A142 -> 139 | J49: =StrokeData!A252 -> 249 | K49: =MassDataLink!A280 -> 277 | L49: =LeadData!A143 -> 140 | M49: =StrokeData!A253 -> 250 | N49: =MassDataLink!A282 -> 279 | O49: -1 | P49: -1 | Q49: -1 | R49: -1 | S49: -1 | T49: -1 | U49: -1 | V49: -1 | W49: -1 | X49: -1 | Y49: -1 | Z49: -1 | AA49: -1 | AB49: -1 | AC49: -1
A50: 47 | B50: RCA-RA3R-20 | C50: 50 | D50: 200 | E50: 0 | F50: =LeadData!A144 -> 141 | G50: =StrokeData!A254 -> 251 | H50: =MassDataLink!A284 -> 281 | I50: =LeadData!A145 -> 142 | J50: =StrokeData!A255 -> 252 | K50: =MassDataLink!A286 -> 283 | L50: =LeadData!A146 -> 143 | M50: =StrokeData!A256 -> 253 | N50: =MassDataLink!A288 -> 285 | O50: -1 | P50: -1 | Q50: -1 | R50: -1 | S50: -1 | T50: -1 | U50: -1 | V50: -1 | W50: -1 | X50: -1 | Y50: -1 | Z50: -1 | AA50: -1 | AB50: -1 | AC50: -1
A51: 48 | B51: RCA-RA4R-20 | C51: 50 | D51: 300 | E51: 0 | F51: =LeadData!A147 -> 144 | G51: =StrokeData!A257 -> 254 | H51: =MassDataLink!A290 -> 287 | I51: =LeadData!A148 -> 145 | J51: =StrokeData!A258 -> 255 | K51: =MassDataLink!A292 -> 289 | L51: =LeadData!A149 -> 146 | M51: =StrokeData!A259 -> 256 | N51: =MassDataLink!A294 -> 291 | O51: -1 | P51: -1 | Q51: -1 | R51: -1 | S51: -1 | T51: -1 | U51: -1 | V51: -1 | W51: -1 | X51: -1 | Y51: -1 | Z51: -1 | AA51: -1 | AB51: -1 | AC51: -1
A52: 49 | B52: RCA-RA4R-30 | C52: 50 | D52: 300 | E52: 0 | F52: =LeadData!A150 -> 147 | G52: =StrokeData!A260 -> 257 | H52: =MassDataLink!A296 -> 293 | I52: =LeadData!A151 -> 148 | J52: =StrokeData!A261 -> 258 | K52: =MassDataLink!A298 -> 295 | L52: =LeadData!A152 -> 149 | M52: =StrokeData!A262 -> 259 | N52: =MassDataLink!A300 -> 297 | O52: -1 | P52: -1 | Q52: -1 | R52: -1 | S52: -1 | T52: -1 | U52: -1 | V52: -1 | W52: -1 | X52: -1 | Y52: -1 | Z52: -1 | AA52: -1 | AB52: -1 | AC52: -1
A53: 50 | B53: RCA-SRA4R-20 | C53: 20 | D53: 200 | E53: 0 | F53: =LeadData!A153 -> 150 | G53: =StrokeData!A263 -> 260 | H53: =MassDataLink!A302 -> 299 | I53: =LeadData!A154 -> 151 | J53: =StrokeData!A264 -> 261 | K53: =MassDataLink!A304 -> 301 | L53: -1 | M53: -1 | N53: -1 | O53: -1 | P53: -1 | Q53: -1 | R53: -1 | S53: -1 | T53: -1 | U53: -1 | V53: -1 | W53: -1 | X53: -1 | Y53: -1 | Z53: -1 | AA53: -1 | AB53: -1 | AC53: -1
A54: =A53+1 -> 51 | B54: RCA-RGS3C-20 | C54: 50 | D54: 200 | E54: 0 | F54: =LeadData!A155 -> 152 | G54: =StrokeData!A265 -> 262 | H54: =MassDataLink!A306 -> 303 | I54: =LeadData!A156 -> 153 | J54: =StrokeData!A266 -> 263 | K54: =MassDataLink!A308 -> 305 | L54: =LeadData!A157 -> 154 | M54: =StrokeData!A267 -> 264 | N54: =MassDataLink!A310 -> 307 | O54: -1 | P54: -1 | Q54: -1 | R54: -1 | S54: -1 | T54: -1 | U54: -1 | V54: -1 | W54: -1 | X54: -1 | Y54: -1 | Z54: -1 | AA54: -1 | AB54: -1 | AC54: -1
A55: =A54+1 -> 52 | B55: RCA-RGS4C-20 | C55: 50 | D55: 300 | E55: 0 | F55: =LeadData!A158 -> 155 | G55: =StrokeData!A268 -> 265 | H55: =MassDataLink!A312 -> 309 | I55: =LeadData!A159 -> 156 | J55: =StrokeData!A269 -> 266 | K55: =MassDataLink!A314 -> 311 | L55: =LeadData!A160 -> 157 | M55: =StrokeData!A270 -> 267 | N55: =MassDataLink!A316 -> 313 | O55: -1 | P55: -1 | Q55: -1 | R55: -1 | S55: -1 | T55: -1 | U55: -1 | V55: -1 | W55: -1 | X55: -1 | Y55: -1 | Z55: -1 | AA55: -1 | AB55: -1 | AC55: -1
A56: =A55+1 -> 53 | B56: RCA-RGS4C-30 | C56: 50 | D56: 300 | E56: 0 | F56: =LeadData!A161 -> 158 | G56: =StrokeData!A271 -> 268 | H56: =MassDataLink!A318 -> 315 | I56: =LeadData!A162 -> 159 | J56: =StrokeData!A272 -> 269 | K56: =MassDataLink!A320 -> 317 | L56: =LeadData!A163 -> 160 | M56: =StrokeData!A273 -> 270 | N56: =MassDataLink!A322 -> 319 | O56: -1 | P56: -1 | Q56: -1 | R56: -1 | S56: -1 | T56: -1 | U56: -1 | V56: -1 | W56: -1 | X56: -1 | Y56: -1 | Z56: -1 | AA56: -1 | AB56: -1 | AC56: -1
A57: =A56+1 -> 54 | B57: RCA-RGS3D-20 | C57: 50 | D57: 200 | E57: 0 | F57: =LeadData!A164 -> 161 | G57: =StrokeData!A274 -> 271 | H57: =MassDataLink!A324 -> 321 | I57: =LeadData!A165 -> 162 | J57: =StrokeData!A275 -> 272 | K57: =MassDataLink!A326 -> 323 | L57: =LeadData!A166 -> 163 | M57: =StrokeData!A276 -> 273 | N57: =MassDataLink!A328 -> 325 | O57: -1 | P57: -1 | Q57: -1 | R57: -1 | S57: -1 | T57: -1 | U57: -1 | V57: -1 | W57: -1 | X57: -1 | Y57: -1 | Z57: -1 | AA57: -1 | AB57: -1 | AC57: -1
A58: 55 | B58: RCA-RGS4D-20 | C58: 50 | D58: 300 | E58: 0 | F58: =LeadData!A167 -> 164 | G58: =StrokeData!A277 -> 274 | H58: =MassDataLink!A330 -> 327 | I58: =LeadData!A168 -> 165 | J58: =StrokeData!A278 -> 275 | K58: =MassDataLink!A332 -> 329 | L58: =LeadData!A169 -> 166 | M58: =StrokeData!A279 -> 276 | N58: =MassDataLink!A334 -> 331 | O58: -1 | P58: -1 | Q58: -1 | R58: -1 | S58: -1 | T58: -1 | U58: -1 | V58: -1 | W58: -1 | X58: -1 | Y58: -1 | Z58: -1 | AA58: -1 | AB58: -1 | AC58: -1
A59: 56 | B59: RCA-RGS4D-30 | C59: 50 | D59: 300 | E59: 0 | F59: =LeadData!A170 -> 167 | G59: =StrokeData!A280 -> 277 | H59: =MassDataLink!A336 -> 333 | I59: =LeadData!A171 -> 168 | J59: =StrokeData!A281 -> 278 | K59: =MassDataLink!A338 -> 335 | L59: =LeadData!A172 -> 169 | M59: =StrokeData!A282 -> 279 | N59: =MassDataLink!A340 -> 337 | O59: -1 | P59: -1 | Q59: -1 | R59: -1 | S59: -1 | T59: -1 | U59: -1 | V59: -1 | W59: -1 | X59: -1 | Y59: -1 | Z59: -1 | AA59: -1 | AB59: -1 | AC59: -1
A60: 57 | B60: RCA-SRGS4R-20 | C60: 20 | D60: 200 | E60: 0 | F60: =LeadData!A173 -> 170 | G60: =StrokeData!A283 -> 280 | H60: =MassDataLink!A342 -> 339 | I60: =LeadData!A174 -> 171 | J60: =StrokeData!A284 -> 281 | K60: =MassDataLink!A344 -> 341 | L60: -1 | M60: -1 | N60: -1 | O60: -1 | P60: -1 | Q60: -1 | R60: -1 | S60: -1 | T60: -1 | U60: -1 | V60: -1 | W60: -1 | X60: -1 | Y60: -1 | Z60: -1 | AA60: -1 | AB60: -1 | AC60: -1
A61: =A60+1 -> 58 | B61: RCA-RGD3C-20 | C61: 50 | D61: 200 | E61: 0 | F61: =LeadData!A175 -> 172 | G61: =StrokeData!A285 -> 282 | H61: =MassDataLink!A346 -> 343 | I61: =LeadData!A176 -> 173 | J61: =StrokeData!A286 -> 283 | K61: =MassDataLink!A348 -> 345 | L61: =LeadData!A177 -> 174 | M61: =StrokeData!A287 -> 284 | N61: =MassDataLink!A350 -> 347 | O61: -1 | P61: -1 | Q61: -1 | R61: -1 | S61: -1 | T61: -1 | U61: -1 | V61: -1 | W61: -1 | X61: -1 | Y61: -1 | Z61: -1 | AA61: -1 | AB61: -1 | AC61: -1
A62: =A61+1 -> 59 | B62: RCA-RGD4C-20 | C62: 50 | D62: 300 | E62: 0 | F62: =LeadData!A178 -> 175 | G62: =StrokeData!A288 -> 285 | H62: =MassDataLink!A352 -> 349 | I62: =LeadData!A179 -> 176 | J62: =StrokeData!A289 -> 286 | K62: =MassDataLink!A354 -> 351 | L62: =LeadData!A180 -> 177 | M62: =StrokeData!A290 -> 287 | N62: =MassDataLink!A356 -> 353 | O62: -1 | P62: -1 | Q62: -1 | R62: -1 | S62: -1 | T62: -1 | U62: -1 | V62: -1 | W62: -1 | X62: -1 | Y62: -1 | Z62: -1 | AA62: -1 | AB62: -1 | AC62: -1
A63: =A62+1 -> 60 | B63: RCA-RGD4C-30 | C63: 50 | D63: 300 | E63: 0 | F63: =LeadData!A181 -> 178 | G63: =StrokeData!A291 -> 288 | H63: =MassDataLink!A358 -> 355 | I63: =LeadData!A182 -> 179 | J63: =StrokeData!A292 -> 289 | K63: =MassDataLink!A360 -> 357 | L63: =LeadData!A183 -> 180 | M63: =StrokeData!A293 -> 290 | N63: =MassDataLink!A362 -> 359 | O63: -1 | P63: -1 | Q63: -1 | R63: -1 | S63: -1 | T63: -1 | U63: -1 | V63: -1 | W63: -1 | X63: -1 | Y63: -1 | Z63: -1 | AA63: -1 | AB63: -1 | AC63: -1
A64: =A63+1 -> 61 | B64: RCA-RGD3D-20 | C64: 50 | D64: 200 | E64: 0 | F64: =LeadData!A184 -> 181 | G64: =StrokeData!A294 -> 291 | H64: =MassDataLink!A364 -> 361 | I64: =LeadData!A185 -> 182 | J64: =StrokeData!A295 -> 292 | K64: =MassDataLink!A366 -> 363 | L64: =LeadData!A186 -> 183 | M64: =StrokeData!A296 -> 293 | N64: =MassDataLink!A368 -> 365 | O64: -1 | P64: -1 | Q64: -1 | R64: -1 | S64: -1 | T64: -1 | U64: -1 | V64: -1 | W64: -1 | X64: -1 | Y64: -1 | Z64: -1 | AA64: -1 | AB64: -1 | AC64: -1
A65: 62 | B65: RCA-RGD4D-20 | C65: 50 | D65: 300 | E65: 0 | F65: =LeadData!A187 -> 184 | G65: =StrokeData!A297 -> 294 | H65: =MassDataLink!A370 -> 367 | I65: =LeadData!A188 -> 185 | J65: =StrokeData!A298 -> 295 | K65: =MassDataLink!A372 -> 369 | L65: =LeadData!A189 -> 186 | M65: =StrokeData!A299 -> 296 | N65: =MassDataLink!A374 -> 371 | O65: -1 | P65: -1 | Q65: -1 | R65: -1 | S65: -1 | T65: -1 | U65: -1 | V65: -1 | W65: -1 | X65: -1 | Y65: -1 | Z65: -1 | AA65: -1 | AB65: -1 | AC65: -1
A66: 63 | B66: RCA-RGD4D-30 | C66: 50 | D66: 300 | E66: 0 | F66: =LeadData!A190 -> 187 | G66: =StrokeData!A300 -> 297 | H66: =MassDataLink!A376 -> 373 | I66: =LeadData!A191 -> 188 | J66: =StrokeData!A301 -> 298 | K66: =MassDataLink!A378 -> 375 | L66: =LeadData!A192 -> 189 | M66: =StrokeData!A302 -> 299 | N66: =MassDataLink!A380 -> 377 | O66: -1 | P66: -1 | Q66: -1 | R66: -1 | S66: -1 | T66: -1 | U66: -1 | V66: -1 | W66: -1 | X66: -1 | Y66: -1 | Z66: -1 | AA66: -1 | AB66: -1 | AC66: -1
A67: 64 | B67: RCA-RGD3R-20 | C67: 50 | D67: 200 | E67: 0 | F67: =LeadData!A193 -> 190 | G67: =StrokeData!A303 -> 300 | H67: =MassDataLink!A382 -> 379 | I67: =LeadData!A194 -> 191 | J67: =StrokeData!A304 -> 301 | K67: =MassDataLink!A384 -> 381 | L67: =LeadData!A195 -> 192 | M67: =StrokeData!A305 -> 302 | N67: =MassDataLink!A386 -> 383 | O67: -1 | P67: -1 | Q67: -1 | R67: -1 | S67: -1 | T67: -1 | U67: -1 | V67: -1 | W67: -1 | X67: -1 | Y67: -1 | Z67: -1 | AA67: -1 | AB67: -1 | AC67: -1
A68: 65 | B68: RCA-RGD4R-20 | C68: 50 | D68: 300 | E68: 0 | F68: =LeadData!A196 -> 193 | G68: =StrokeData!A306 -> 303 | H68: =MassDataLink!A388 -> 385 | I68: =LeadData!A197 -> 194 | J68: =StrokeData!A307 -> 304 | K68: =MassDataLink!A390 -> 387 | L68: =LeadData!A198 -> 195 | M68: =StrokeData!A308 -> 305 | N68: =MassDataLink!A392 -> 389 | O68: -1 | P68: -1 | Q68: -1 | R68: -1 | S68: -1 | T68: -1 | U68: -1 | V68: -1 | W68: -1 | X68: -1 | Y68: -1 | Z68: -1 | AA68: -1 | AB68: -1 | AC68: -1
A69: 66 | B69: RCA-RGD4R-30 | C69: 50 | D69: 300 | E69: 0 | F69: =LeadData!A199 -> 196 | G69: =StrokeData!A309 -> 306 | H69: =MassDataLink!A394 -> 391 | I69: =LeadData!A200 -> 197 | J69: =StrokeData!A310 -> 307 | K69: =MassDataLink!A396 -> 393 | L69: =LeadData!A201 -> 198 | M69: =StrokeData!A311 -> 308 | N69: =MassDataLink!A398 -> 395 | O69: -1 | P69: -1 | Q69: -1 | R69: -1 | S69: -1 | T69: -1 | U69: -1 | V69: -1 | W69: -1 | X69: -1 | Y69: -1 | Z69: -1 | AA69: -1 | AB69: -1 | AC69: -1
A70: =A69+1 -> 67 | B70: RCA-SRGD4R-20 | C70: 20 | D70: 200 | E70: 0 | F70: =LeadData!A202 -> 199 | G70: =StrokeData!A312 -> 309 | H70: =MassDataLink!A400 -> 397 | I70: =LeadData!A203 -> 200 | J70: =StrokeData!A313 -> 310 | K70: =MassDataLink!A402 -> 399 | L70: -1 | M70: -1 | N70: -1 | O70: -1 | P70: -1 | Q70: -1 | R70: -1 | S70: -1 | T70: -1 | U70: -1 | V70: -1 | W70: -1 | X70: -1 | Y70: -1 | Z70: -1 | AA70: -1 | AB70: -1 | AC70: -1
A71: =A70+1 -> 68 | B71: RCA2-TCA3NA-10 | C71: 30 | D71: 50 | E71: 0 | F71: =LeadData!A204 -> 201 | G71: =StrokeData!A314 -> 311 | H71: =MassDataLink!A404 -> 401 | I71: =LeadData!A205 -> 202 | J71: =StrokeData!A315 -> 312 | K71: =MassDataLink!A406 -> 403 | L71: =LeadData!A206 -> 203 | M71: =StrokeData!A316 -> 313 | N71: =MassDataLink!A408 -> 405 | O71: -1 | P71: -1 | Q71: -1 | R71: -1 | S71: -1 | T71: -1 | U71: -1 | V71: -1 | W71: -1 | X71: -1 | Y71: -1 | Z71: -1 | AA71: -1 | AB71: -1 | AC71: -1
A72: =A71+1 -> 69 | B72: RCA2-TCA3NA-10-*S | C72: 30 | D72: 50 | E72: 0 | F72: =LeadData!A207 -> 204 | G72: =StrokeData!A317 -> 314 | H72: =MassDataLink!A410 -> 407 | I72: =LeadData!A208 -> 205 | J72: =StrokeData!A318 -> 315 | K72: =MassDataLink!A412 -> 409 | L72: =LeadData!A209 -> 206 | M72: =StrokeData!A319 -> 316 | N72: =MassDataLink!A414 -> 411 | O72: -1 | P72: -1 | Q72: -1 | R72: -1 | S72: -1 | T72: -1 | U72: -1 | V72: -1 | W72: -1 | X72: -1 | Y72: -1 | Z72: -1 | AA72: -1 | AB72: -1 | AC72: -1
A73: =A72+1 -> 70 | B73: RCA2-TCA4NA-20 | C73: 30 | D73: 50 | E73: 0 | F73: =LeadData!A210 -> 207 | G73: =StrokeData!A320 -> 317 | H73: =MassDataLink!A416 -> 413 | I73: =LeadData!A211 -> 208 | J73: =StrokeData!A321 -> 318 | K73: =MassDataLink!A418 -> 415 | L73: =LeadData!A212 -> 209 | M73: =StrokeData!A322 -> 319 | N73: =MassDataLink!A420 -> 417 | O73: -1 | P73: -1 | Q73: -1 | R73: -1 | S73: -1 | T73: -1 | U73: -1 | V73: -1 | W73: -1 | X73: -1 | Y73: -1 | Z73: -1 | AA73: -1 | AB73: -1 | AC73: -1
A74: =A73+1 -> 71 | B74: RCA2-TCA4NA-20-*S | C74: 30 | D74: 50 | E74: 0 | F74: =LeadData!A213 -> 210 | G74: =StrokeData!A323 -> 320 | H74: =MassDataLink!A422 -> 419 | I74: =LeadData!A214 -> 211 | J74: =StrokeData!A324 -> 321 | K74: =MassDataLink!A424 -> 421 | L74: =LeadData!A215 -> 212 | M74: =StrokeData!A325 -> 322 | N74: =MassDataLink!A426 -> 423 | O74: -1 | P74: -1 | Q74: -1 | R74: -1 | S74: -1 | T74: -1 | U74: -1 | V74: -1 | W74: -1 | X74: -1 | Y74: -1 | Z74: -1 | AA74: -1 | AB74: -1 | AC74: -1
A75: =A74+1 -> 72 | B75: RCA2-TWA3NA-10 | C75: 30 | D75: 50 | E75: 0 | F75: =LeadData!A216 -> 213 | G75: =StrokeData!A326 -> 323 | H75: =MassDataLink!A428 -> 425 | I75: =LeadData!A217 -> 214 | J75: =StrokeData!A327 -> 324 | K75: =MassDataLink!A430 -> 427 | L75: =LeadData!A218 -> 215 | M75: =StrokeData!A328 -> 325 | N75: =MassDataLink!A432 -> 429 | O75: -1 | P75: -1 | Q75: -1 | R75: -1 | S75: -1 | T75: -1 | U75: -1 | V75: -1 | W75: -1 | X75: -1 | Y75: -1 | Z75: -1 | AA75: -1 | AB75: -1 | AC75: -1
A76: =A75+1 -> 73 | B76: RCA2-TWA3NA-10-*S | C76: 30 | D76: 50 | E76: 0 | F76: =LeadData!A219 -> 216 | G76: =StrokeData!A329 -> 326 | H76: =MassDataLink!A434 -> 431 | I76: =LeadData!A220 -> 217 | J76: =StrokeData!A330 -> 327 | K76: =MassDataLink!A436 -> 433 | L76: =LeadData!A221 -> 218 | M76: =StrokeData!A331 -> 328 | N76: =MassDataLink!A438 -> 435 | O76: -1 | P76: -1 | Q76: -1 | R76: -1 | S76: -1 | T76: -1 | U76: -1 | V76: -1 | W76: -1 | X76: -1 | Y76: -1 | Z76: -1 | AA76: -1 | AB76: -1 | AC76: -1
A77: 74 | B77: RCA2-TWA4NA-20 | C77: 30 | D77: 50 | E77: 0 | F77: =LeadData!A222 -> 219 | G77: =StrokeData!A332 -> 329 | H77: =MassDataLink!A440 -> 437 | I77: =LeadData!A223 -> 220 | J77: =StrokeData!A333 -> 330 | K77: =MassDataLink!A442 -> 439 | L77: =LeadData!A224 -> 221 | M77: =StrokeData!A334 -> 331 | N77: =MassDataLink!A444 -> 441 | O77: -1 | P77: -1 | Q77: -1 | R77: -1 | S77: -1 | T77: -1 | U77: -1 | V77: -1 | W77: -1 | X77: -1 | Y77: -1 | Z77: -1 | AA77: -1 | AB77: -1 | AC77: -1
A78: =A77+1 -> 75 | B78: RCA2-TWA4NA-20-*S | C78: 30 | D78: 50 | E78: 0 | F78: =LeadData!A225 -> 222 | G78: =StrokeData!A335 -> 332 | H78: =MassDataLink!A446 -> 443 | I78: =LeadData!A226 -> 223 | J78: =StrokeData!A336 -> 333 | K78: =MassDataLink!A448 -> 445 | L78: =LeadData!A227 -> 224 | M78: =StrokeData!A337 -> 334 | N78: =MassDataLink!A450 -> 447 | O78: -1 | P78: -1 | Q78: -1 | R78: -1 | S78: -1 | T78: -1 | U78: -1 | V78: -1 | W78: -1 | X78: -1 | Y78: -1 | Z78: -1 | AA78: -1 | AB78: -1 | AC78: -1
A79: =A78+1 -> 76 | B79: RCA2-TFA3NA-10 | C79: 30 | D79: 50 | E79: 0 | F79: =LeadData!A228 -> 225 | G79: =StrokeData!A338 -> 335 | H79: =MassDataLink!A452 -> 449 | I79: =LeadData!A229 -> 226 | J79: =StrokeData!A339 -> 336 | K79: =MassDataLink!A454 -> 451 | L79: =LeadData!A230 -> 227 | M79: =StrokeData!A340 -> 337 | N79: =MassDataLink!A456 -> 453 | O79: -1 | P79: -1 | Q79: -1 | R79: -1 | S79: -1 | T79: -1 | U79: -1 | V79: -1 | W79: -1 | X79: -1 | Y79: -1 | Z79: -1 | AA79: -1 | AB79: -1 | AC79: -1
A80: =A79+1 -> 77 | B80: RCA2-TFA3NA-10-*S | C80: 30 | D80: 50 | E80: 0 | F80: =LeadData!A231 -> 228 | G80: =StrokeData!A341 -> 338 | H80: =MassDataLink!A458 -> 455 | I80: =LeadData!A232 -> 229 | J80: =StrokeData!A342 -> 339 | K80: =MassDataLink!A460 -> 457 | L80: =LeadData!A233 -> 230 | M80: =StrokeData!A343 -> 340 | N80: =MassDataLink!A462 -> 459 | O80: -1 | P80: -1 | Q80: -1 | R80: -1 | S80: -1 | T80: -1 | U80: -1 | V80: -1 | W80: -1 | X80: -1 | Y80: -1 | Z80: -1 | AA80: -1 | AB80: -1 | AC80: -1
A81: 78 | B81: RCA2-TFA4NA-20 | C81: 30 | D81: 50 | E81: 0 | F81: =LeadData!A234 -> 231 | G81: =StrokeData!A344 -> 341 | H81: =MassDataLink!A464 -> 461 | I81: =LeadData!A235 -> 232 | J81: =StrokeData!A345 -> 342 | K81: =MassDataLink!A466 -> 463 | L81: =LeadData!A236 -> 233 | M81: =StrokeData!A346 -> 343 | N81: =MassDataLink!A468 -> 465 | O81: -1 | P81: -1 | Q81: -1 | R81: -1 | S81: -1 | T81: -1 | U81: -1 | V81: -1 | W81: -1 | X81: -1 | Y81: -1 | Z81: -1 | AA81: -1 | AB81: -1 | AC81: -1
A82: 79 | B82: RCA2-TFA4NA-20-*S | C82: 30 | D82: 50 | E82: 0 | F82: =LeadData!A237 -> 234 | G82: =StrokeData!A347 -> 344 | H82: =MassDataLink!A470 -> 467 | I82: =LeadData!A238 -> 235 | J82: =StrokeData!A348 -> 345 | K82: =MassDataLink!A472 -> 469 | L82: =LeadData!A239 -> 236 | M82: =StrokeData!A349 -> 346 | N82: =MassDataLink!A474 -> 471 | O82: -1 | P82: -1 | Q82: -1 | R82: -1 | S82: -1 | T82: -1 | U82: -1 | V82: -1 | W82: -1 | X82: -1 | Y82: -1 | Z82: -1 | AA82: -1 | AB82: -1 | AC82: -1
A83: 80 | B83: RCA2-TA4C | C83: 20 | D83: 100 | E83: 0 | F83: =LeadData!A240 -> 237 | G83: =StrokeData!A350 -> 347 | H83: =MassDataLink!A476 -> 473 | I83: =LeadData!A241 -> 238 | J83: =StrokeData!A351 -> 348 | K83: =MassDataLink!A478 -> 475 | L83: =LeadData!A242 -> 239 | M83: =StrokeData!A352 -> 349 | N83: =MassDataLink!A480 -> 477 | O83: -1 | P83: -1 | Q83: -1 | R83: -1 | S83: -1 | T83: -1 | U83: -1 | V83: -1 | W83: -1 | X83: -1 | Y83: -1 | Z83: -1 | AA83: -1 | AB83: -1 | AC83: -1
A84: 81 | B84: RCA2-TA5C | C84: 25 | D84: 100 | E84: 0 | F84: =LeadData!A243 -> 240 | G84: =StrokeData!A353 -> 350 | H84: =MassDataLink!A482 -> 479 | I84: =LeadData!A244 -> 241 | J84: =StrokeData!A354 -> 351 | K84: =MassDataLink!A484 -> 481 | L84: =LeadData!A245 -> 242 | M84: =StrokeData!A355 -> 352 | N84: =MassDataLink!A486 -> 483 | O84: -1 | P84: -1 | Q84: -1 | R84: -1 | S84: -1 | T84: -1 | U84: -1 | V84: -1 | W84: -1 | X84: -1 | Y84: -1 | Z84: -1 | AA84: -1 | AB84: -1 | AC84: -1
A85: 82 | B85: RCA2-TA6C | C85: 25 | D85: 150 | E85: 0 | F85: =LeadData!A246 -> 243 | G85: =StrokeData!A356 -> 353 | H85: =MassDataLink!A488 -> 485 | I85: =LeadData!A247 -> 244 | J85: =StrokeData!A357 -> 354 | K85: =MassDataLink!A490 -> 487 | L85: =LeadData!A248 -> 245 | M85: =StrokeData!A358 -> 355 | N85: =MassDataLink!A492 -> 489 | O85: -1 | P85: -1 | Q85: -1 | R85: -1 | S85: -1 | T85: -1 | U85: -1 | V85: -1 | W85: -1 | X85: -1 | Y85: -1 | Z85: -1 | AA85: -1 | AB85: -1 | AC85: -1
A86: 83 | B86: RCA2-TA7C | C86: 25 | D86: 200 | E86: 0 | F86: =LeadData!A249 -> 246 | G86: =StrokeData!A359 -> 356 | H86: =MassDataLink!A494 -> 491 | I86: =LeadData!A250 -> 247 | J86: =StrokeData!A360 -> 357 | K86: =MassDataLink!A496 -> 493 | L86: =LeadData!A251 -> 248 | M86: =StrokeData!A361 -> 358 | N86: =MassDataLink!A498 -> 495 | O86: -1 | P86: -1 | Q86: -1 | R86: -1 | S86: -1 | T86: -1 | U86: -1 | V86: -1 | W86: -1 | X86: -1 | Y86: -1 | Z86: -1 | AA86: -1 | AB86: -1 | AC86: -1
A87: 84 | B87: RCA2-TA4R | C87: 20 | D87: 100 | E87: 0 | F87: =LeadData!A252 -> 249 | G87: =StrokeData!A362 -> 359 | H87: =MassDataLink!A500 -> 497 | I87: =LeadData!A253 -> 250 | J87: =StrokeData!A363 -> 360 | K87: =MassDataLink!A502 -> 499 | L87: =LeadData!A254 -> 251 | M87: =StrokeData!A364 -> 361 | N87: =MassDataLink!A504 -> 501 | O87: -1 | P87: -1 | Q87: -1 | R87: -1 | S87: -1 | T87: -1 | U87: -1 | V87: -1 | W87: -1 | X87: -1 | Y87: -1 | Z87: -1 | AA87: -1 | AB87: -1 | AC87: -1
A88: 85 | B88: RCA2-TA5R | C88: 25 | D88: 100 | E88: 0 | F88: =LeadData!A255 -> 252 | G88: =StrokeData!A365 -> 362 | H88: =MassDataLink!A506 -> 503 | I88: =LeadData!A256 -> 253 | J88: =StrokeData!A366 -> 363 | K88: =MassDataLink!A508 -> 505 | L88: =LeadData!A257 -> 254 | M88: =StrokeData!A367 -> 364 | N88: =MassDataLink!A510 -> 507 | O88: -1 | P88: -1 | Q88: -1 | R88: -1 | S88: -1 | T88: -1 | U88: -1 | V88: -1 | W88: -1 | X88: -1 | Y88: -1 | Z88: -1 | AA88: -1 | AB88: -1 | AC88: -1
A89: 86 | B89: RCA2-TA6R | C89: 25 | D89: 150 | E89: 0 | F89: =LeadData!A258 -> 255 | G89: =StrokeData!A368 -> 365 | H89: =MassDataLink!A512 -> 509 | I89: =LeadData!A259 -> 256 | J89: =StrokeData!A369 -> 366 | K89: =MassDataLink!A514 -> 511 | L89: =LeadData!A260 -> 257 | M89: =StrokeData!A370 -> 367 | N89: =MassDataLink!A516 -> 513 | O89: -1 | P89: -1 | Q89: -1 | R89: -1 | S89: -1 | T89: -1 | U89: -1 | V89: -1 | W89: -1 | X89: -1 | Y89: -1 | Z89: -1 | AA89: -1 | AB89: -1 | AC89: -1
A90: 87 | B90: RCA2-TA7R | C90: 25 | D90: 200 | E90: 0 | F90: =LeadData!A261 -> 258 | G90: =StrokeData!A371 -> 368 | H90: =MassDataLink!A518 -> 515 | I90: =LeadData!A262 -> 259 | J90: =StrokeData!A372 -> 369 | K90: =MassDataLink!A520 -> 517 | L90: =LeadData!A263 -> 260 | M90: =StrokeData!A373 -> 370 | N90: =MassDataLink!A522 -> 519 | O90: -1 | P90: -1 | Q90: -1 | R90: -1 | S90: -1 | T90: -1 | U90: -1 | V90: -1 | W90: -1 | X90: -1 | Y90: -1 | Z90: -1 | AA90: -1 | AB90: -1 | AC90: -1
A91: 88 | B91: RCA-A4R-20 | C91: 50 | D91: 200 | E91: 0 | F91: =LeadData!A264 -> 261 | G91: =StrokeData!A374 -> 371 | H91: =MassDataLink!A524 -> 521 | I91: =LeadData!A265 -> 262 | J91: =StrokeData!A375 -> 372 | K91: =MassDataLink!A525 -> 522 | L91: -1 | M91: -1 | N91: -1 | O91: -1 | P91: -1 | Q91: -1 | R91: -1 | S91: -1 | T91: -1 | U91: -1 | V91: -1 | W91: -1 | X91: -1 | Y91: -1 | Z91: -1 | AA91: -1 | AB91: -1 | AC91: -1
A92: 89 | B92: RCA-A5R-20 | C92: 50 | D92: 200 | E92: 0 | F92: =LeadData!A266 -> 263 | G92: =StrokeData!A376 -> 373 | H92: =MassDataLink!A526 -> 523 | I92: =LeadData!A267 -> 264 | J92: =StrokeData!A377 -> 374 | K92: =MassDataLink!A527 -> 524 | L92: -1 | M92: -1 | N92: -1 | O92: -1 | P92: -1 | Q92: -1 | R92: -1 | S92: -1 | T92: -1 | U92: -1 | V92: -1 | W92: -1 | X92: -1 | Y92: -1 | Z92: -1 | AA92: -1 | AB92: -1 | AC92: -1
A93: 90 | B93: RCA-A6R-30 | C93: 50 | D93: 200 | E93: 0 | F93: =LeadData!A268 -> 265 | G93: =StrokeData!A378 -> 375 | H93: =MassDataLink!A528 -> 525 | I93: =LeadData!A269 -> 266 | J93: =StrokeData!A379 -> 376 | K93: =MassDataLink!A529 -> 526 | L93: -1 | M93: -1 | N93: -1 | O93: -1 | P93: -1 | Q93: -1 | R93: -1 | S93: -1 | T93: -1 | U93: -1 | V93: -1 | W93: -1 | X93: -1 | Y93: -1 | Z93: -1 | AA93: -1 | AB93: -1 | AC93: -1
A94: 91 | B94: RCL-SA1L | C94: 40 | D94: 40 | E94: 0 | F94: =LeadData!A270 -> 267 | G94: =StrokeData!A380 -> 377 | H94: =MassDataLink!A530 -> 527 | I94: -1 | J94: -1 | K94: -1 | L94: -1 | M94: -1 | N94: -1 | O94: -1 | P94: -1 | Q94: -1 | R94: -1 | S94: -1 | T94: -1 | U94: -1 | V94: -1 | W94: -1 | X94: -1 | Y94: -1 | Z94: -1 | AA94: -1 | AB94: -1 | AC94: -1
A95: 92 | B95: RCL-SA2L | C95: 48 | D95: 48 | E95: 0 | F95: =LeadData!A271 -> 268 | G95: =StrokeData!A381 -> 378 | H95: =MassDataLink!A535 -> 532 | I95: -1 | J95: -1 | K95: -1 | L95: -1 | M95: -1 | N95: -1 | O95: -1 | P95: -1 | Q95: -1 | R95: -1 | S95: -1 | T95: -1 | U95: -1 | V95: -1 | W95: -1 | X95: -1 | Y95: -1 | Z95: -1 | AA95: -1 | AB95: -1 | AC95: -1
A96: 93 | B96: RCL-SA3L | C96: 64 | D96: 64 | E96: 0 | F96: =LeadData!A272 -> 269 | G96: =StrokeData!A382 -> 379 | H96: =MassDataLink!A540 -> 537 | I96: -1 | J96: -1 | K96: -1 | L96: -1 | M96: -1 | N96: -1 | O96: -1 | P96: -1 | Q96: -1 | R96: -1 | S96: -1 | T96: -1 | U96: -1 | V96: -1 | W96: -1 | X96: -1 | Y96: -1 | Z96: -1 | AA96: -1 | AB96: -1 | AC96: -1
A97: 94 | B97: RCL-SA4L | C97: 30 | D97: 180 | E97: 0 | F97: =LeadData!A273 -> 270 | G97: =StrokeData!A383 -> 380 | H97: =MassDataLink!A545 -> 542 | I97: -1 | J97: -1 | K97: -1 | L97: -1 | M97: -1 | N97: -1 | O97: -1 | P97: -1 | Q97: -1 | R97: -1 | S97: -1 | T97: -1 | U97: -1 | V97: -1 | W97: -1 | X97: -1 | Y97: -1 | Z97: -1 | AA97: -1 | AB97: -1 | AC97: -1
A98: 95 | B98: RCL-SM4L | C98: 30 | D98: 120 | E98: 0 | F98: =LeadData!A274 -> 271 | G98: =StrokeData!A384 -> 381 | H98: =MassDataLink!A550 -> 547 | I98: -1 | J98: -1 | K98: -1 | L98: -1 | M98: -1 | N98: -1 | O98: -1 | P98: -1 | Q98: -1 | R98: -1 | S98: -1 | T98: -1 | U98: -1 | V98: -1 | W98: -1 | X98: -1 | Y98: -1 | Z98: -1 | AA98: -1 | AB98: -1 | AC98: -1
A99: 96 | B99: RCL-SA5L | C99: 36 | D99: 216 | E99: 0 | F99: =LeadData!A275 -> 272 | G99: =StrokeData!A385 -> 382 | H99: =MassDataLink!A555 -> 552 | I99: -1 | J99: -1 | K99: -1 | L99: -1 | M99: -1 | N99: -1 | O99: -1 | P99: -1 | Q99: -1 | R99: -1 | S99: -1 | T99: -1 | U99: -1 | V99: -1 | W99: -1 | X99: -1 | Y99: -1 | Z99: -1 | AA99: -1 | AB99: -1 | AC99: -1
A100: 97 | B100: RCL-SM5L | C100: 36 | D100: 144 | E100: 0 | F100: =LeadData!A276 -> 273 | G100: =StrokeData!A386 -> 383 | H100: =MassDataLink!A560 -> 557 | I100: -1 | J100: -1 | K100: -1 | L100: -1 | M100: -1 | N100: -1 | O100: -1 | P100: -1 | Q100: -1 | R100: -1 | S100: -1 | T100: -1 | U100: -1 | V100: -1 | W100: -1 | X100: -1 | Y100: -1 | Z100: -1 | AA100: -1 | AB100: -1 | AC100: -1
A101: 98 | B101: RCL-SA6L | C101: 48 | D101: 288 | E101: 0 | F101: =LeadData!A277 -> 274 | G101: =StrokeData!A387 -> 384 | H101: =MassDataLink!A565 -> 562 | I101: -1 | J101: -1 | K101: -1 | L101: -1 | M101: -1 | N101: -1 | O101: -1 | P101: -1 | Q101: -1 | R101: -1 | S101: -1 | T101: -1 | U101: -1 | V101: -1 | W101: -1 | X101: -1 | Y101: -1 | Z101: -1 | AA101: -1 | AB101: -1 | AC101: -1
A102: 99 | B102: RCL-SM6L | C102: 48 | D102: 192 | E102: 0 | F102: =LeadData!A278 -> 275 | G102: =StrokeData!A388 -> 385 | H102: =MassDataLink!A570 -> 567 | I102: -1 | J102: -1 | K102: -1 | L102: -1 | M102: -1 | N102: -1 | O102: -1 | P102: -1 | Q102: -1 | R102: -1 | S102: -1 | T102: -1 | U102: -1 | V102: -1 | W102: -1 | X102: -1 | Y102: -1 | Z102: -1 | AA102: -1 | AB102: -1 | AC102: -1
A103: 100 | B103: RCL-RA1L | C103: 25 | D103: 25 | E103: 0 | F103: =LeadData!A279 -> 276 | G103: =StrokeData!A389 -> 386 | H103: =MassDataLink!A575 -> 572 | I103: -1 | J103: -1 | K103: -1 | L103: -1 | M103: -1 | N103: -1 | O103: -1 | P103: -1 | Q103: -1 | R103: -1 | S103: -1 | T103: -1 | U103: -1 | V103: -1 | W103: -1 | X103: -1 | Y103: -1 | Z103: -1 | AA103: -1 | AB103: -1 | AC103: -1
A104: 101 | B104: RCL-RA2L | C104: 30 | D104: 30 | E104: 0 | F104: =LeadData!A280 -> 277 | G104: =StrokeData!A390 -> 387 | H104: =MassDataLink!A581 -> 578 | I104: -1 | J104: -1 | K104: -1 | L104: -1 | M104: -1 | N104: -1 | O104: -1 | P104: -1 | Q104: -1 | R104: -1 | S104: -1 | T104: -1 | U104: -1 | V104: -1 | W104: -1 | X104: -1 | Y104: -1 | Z104: -1 | AA104: -1 | AB104: -1 | AC104: -1
A105: 102 | B105: RCL-RA3L | C105: 40 | D105: 40 | E105: 0 | F105: =LeadData!A281 -> 278 | G105: =StrokeData!A391 -> 388 | H105: =MassDataLink!A587 -> 584 | I105: -1 | J105: -1 | K105: -1 | L105: -1 | M105: -1 | N105: -1 | O105: -1 | P105: -1 | Q105: -1 | R105: -1 | S105: -1 | T105: -1 | U105: -1 | V105: -1 | W105: -1 | X105: -1 | Y105: -1 | Z105: -1 | AA105: -1 | AB105: -1 | AC105: -1
A106: 103 | B106: RCA2-SA2AC | C106: 25 | D106: 100 | E106: 0 | F106: =LeadData!A282 -> 279 | G106: =StrokeData!A392 -> 389 | H106: =MassDataLink!A593 -> 590 | I106: =LeadData!A283 -> 280 | J106: =StrokeData!A393 -> 390 | K106: =MassDataLink!A595 -> 592 | L106: =LeadData!A284 -> 281 | M106: =StrokeData!A394 -> 391 | N106: =MassDataLink!A597 -> 594 | O106: -1 | P106: -1 | Q106: -1 | R106: -1 | S106: -1 | T106: -1 | U106: -1 | V106: -1 | W106: -1 | X106: -1 | Y106: -1 | Z106: -1 | AA106: -1 | AB106: -1 | AC106: -1
A107: 104 | B107: RCA2-SA2AR | C107: 25 | D107: 100 | E107: 0 | F107: =LeadData!A285 -> 282 | G107: =StrokeData!A395 -> 392 | H107: =MassDataLink!A599 -> 596 | I107: =LeadData!A286 -> 283 | J107: =StrokeData!A396 -> 393 | K107: =MassDataLink!A601 -> 598 | L107: =LeadData!A287 -> 284 | M107: =StrokeData!A397 -> 394 | N107: =MassDataLink!A603 -> 600 | O107: -1 | P107: -1 | Q107: -1 | R107: -1 | S107: -1 | T107: -1 | U107: -1 | V107: -1 | W107: -1 | X107: -1 | Y107: -1 | Z107: -1 | AA107: -1 | AB107: -1 | AC107: -1
A108: 105 | B108: RCA2-RA2AC | C108: 25 | D108: 100 | E108: 0 | F108: =LeadData!A288 -> 285 | G108: =StrokeData!A398 -> 395 | H108: =MassDataLink!A605 -> 602 | I108: =LeadData!A289 -> 286 | J108: =StrokeData!A399 -> 396 | K108: =MassDataLink!A607 -> 604 | L108: =LeadData!A290 -> 287 | M108: =StrokeData!A400 -> 397 | N108: =MassDataLink!A609 -> 606 | O108: -1 | P108: -1 | Q108: -1 | R108: -1 | S108: -1 | T108: -1 | U108: -1 | V108: -1 | W108: -1 | X108: -1 | Y108: -1 | Z108: -1 | AA108: -1 | AB108: -1 | AC108: -1
A109: 106 | B109: RCA2-RA2AR | C109: 25 | D109: 100 | E109: 0 | F109: =LeadData!A291 -> 288 | G109: =StrokeData!A401 -> 398 | H109: =MassDataLink!A611 -> 608 | I109: =LeadData!A292 -> 289 | J109: =StrokeData!A402 -> 399 | K109: =MassDataLink!A613 -> 610 | L109: =LeadData!A293 -> 290 | M109: =StrokeData!A403 -> 400 | N109: =MassDataLink!A615 -> 612 | O109: -1 | P109: -1 | Q109: -1 | R109: -1 | S109: -1 | T109: -1 | U109: -1 | V109: -1 | W109: -1 | X109: -1 | Y109: -1 | Z109: -1 | AA109: -1 | AB109: -1 | AC109: -1
A110: 107 | B110: RCD-RA1D | C110: 10 | D110: 30 | E110: 0 | F110: =LeadData!A294 -> 291 | G110: =StrokeData!A404 -> 401 | H110: =MassDataLink!A617 -> 614 | I110: -1 | J110: -1 | K110: -1 | L110: -1 | M110: -1 | N110: -1 | O110: -1 | P110: -1 | Q110: -1 | R110: -1 | S110: -1 | T110: -1 | U110: -1 | V110: -1 | W110: -1 | X110: -1 | Y110: -1 | Z110: -1 | AA110: -1 | AB110: -1 | AC110: -1

Sheet LeadData (hidden)
A1: 9.80665 | B1: 1 | C1: 3 | D1: 4 | E1: 5 | F1: 6 | G1: 10 | H1: 11 | I1: 13
A2: データ№ | B2: ﾘｰﾄﾞ長 | C2: 水平定格加速度 | D2: 垂直定格加速度 | E2: 水平最大加速度 | F2: 垂直最大加速度 | G2: ｷﾞｱ比分子 | H2: ｷﾞｱ比分母 | I2: ｽﾄﾛｰｸ刻み | J2: 備考
A3: =ModelData!A3 -> 0 | B3: 0.001㎜ | C3: 0.001mm/s^2 | D3: 0.001mm/s^2 | E3: 0.001mm/s^2 | F3: 0.001mm/s^2 | I3: mm
A4: =A3+1 -> 1 | B4: 2000 | C4: =$A$1*1000^2*0.2 -> 1961330 | D4: =$A$1*1000^2*0.2 -> 1961330 | E4: =$A$1*1000^2*0.2 -> 1961330 | F4: =$A$1*1000^2*0.2 -> 1961330 | G4: 1 | H4: 1 | I4: 50 | J4: RCA2-SA3C
A5: =A4+1 -> 2 | B5: 4000 | C5: =$A$1*1000^2*0.3 -> 2941995 | D5: =$A$1*1000^2*0.2 -> 1961330 | E5: =$A$1*1000^2*0.3 -> 2941995 | F5: =$A$1*1000^2*0.2 -> 1961330 | G5: 1 | H5: 1 | I5: 50
A6: =A5+1 -> 3 | B6: 6000 | C6: =$A$1*1000^2*0.3 -> 2941995 | D6: 1961330 | E6: =$A$1*1000^2*0.3 -> 2941995 | F6: 1961330 | G6: 1 | H6: 1 | I6: 50
A7: 4 | B7: 2500 | C7: =$A$1*1000^2*0.2 -> 1961330 | D7: 1961330 | E7: =$A$1*1000^2*0.2 -> 1961330 | F7: 1961330 | G7: 1 | H7: 1 | I7: 50 | J7: RCA2-SA4C
A8: 5 | B8: 5000 | C8: =$A$1*1000^2*0.3 -> 2941995 | D8: 1961330 | E8: =$A$1*1000^2*0.3 -> 2941995 | F8: 1961330 | G8: 1 | H8: 1 | I8: 50
A9: 6 | B9: 10000 | C9: =$A$1*1000^2*0.3 -> 2941995 | D9: 1961330 | E9: =$A$1*1000^2*0.3 -> 2941995 | F9: 1961330 | G9: 1 | H9: 1 | I9: 50
A10: 7 | B10: 3000 | C10: =$A$1*1000^2*0.2 -> 1961330 | D10: 1961330 | E10: =$A$1*1000^2*0.2 -> 1961330 | F10: 1961330 | G10: 1 | H10: 1 | I10: 50 | J10: RCA2-SA5C
A11: 8 | B11: 6000 | C11: =$A$1*1000^2*0.3 -> 2941995 | D11: 1961330 | E11: =$A$1*1000^2*0.3 -> 2941995 | F11: 1961330 | G11: 1 | H11: 1 | I11: 50
A12: 9 | B12: 12000 | C12: =$A$1*1000^2*0.3 -> 2941995 | D12: 1961330 | E12: =$A$1*1000^2*0.3 -> 2941995 | F12: 1961330 | G12: 1 | H12: 1 | I12: 50
A13: 10 | B13: 3000 | C13: =$A$1*1000^2*0.2 -> 1961330 | D13: 1961330 | E13: =$A$1*1000^2*0.2 -> 1961330 | F13: 1961330 | G13: 1 | H13: 1 | I13: 50 | J13: RCA2-SA6C
A14: 11 | B14: 6000 | C14: =$A$1*1000^2*0.3 -> 2941995 | D14: 1961330 | E14: =$A$1*1000^2*0.3 -> 2941995 | F14: 1961330 | G14: 1 | H14: 1 | I14: 50
A15: 12 | B15: 12000 | C15: =$A$1*1000^2*0.3 -> 2941995 | D15: 1961330 | E15: =$A$1*1000^2*0.3 -> 2941995 | F15: 1961330 | G15: 1 | H15: 1 | I15: 50
A16: 13 | B16: 2000 | C16: =$A$1*1000^2*0.2 -> 1961330 | D16: 1961330 | E16: =$A$1*1000^2*0.2 -> 1961330 | F16: 1961330 | G16: 1 | H16: 1 | I16: 50 | J16: RCA2-SA3R
A17: 14 | B17: 4000 | C17: =$A$1*1000^2*0.3 -> 2941995 | D17: 1961330 | E17: =$A$1*1000^2*0.3 -> 2941995 | F17: 1961330 | G17: 1 | H17: 1 | I17: 50
A18: 15 | B18: 6000 | C18: =$A$1*1000^2*0.3 -> 2941995 | D18: 1961330 | E18: =$A$1*1000^2*0.3 -> 2941995 | F18: 1961330 | G18: 1 | H18: 1 | I18: 50
A19: 16 | B19: 2500 | C19: =$A$1*1000^2*0.2 -> 1961330 | D19: 1961330 | E19: =$A$1*1000^2*0.2 -> 1961330 | F19: 1961330 | G19: 1 | H19: 1 | I19: 50 | J19: RCA2-SA4R
A20: 17 | B20: 5000 | C20: =$A$1*1000^2*0.3 -> 2941995 | D20: 1961330 | E20: =$A$1*1000^2*0.3 -> 2941995 | F20: 1961330 | G20: 1 | H20: 1 | I20: 50
A21: 18 | B21: 10000 | C21: =$A$1*1000^2*0.3 -> 2941995 | D21: 1961330 | E21: =$A$1*1000^2*0.3 -> 2941995 | F21: 1961330 | G21: 1 | H21: 1 | I21: 50
A22: 19 | B22: 3000 | C22: =$A$1*1000^2*0.2 -> 1961330 | D22: 1961330 | E22: =$A$1*1000^2*0.2 -> 1961330 | F22: 1961330 | G22: 1 | H22: 1 | I22: 50 | J22: RCA2-SA5R
A23: 20 | B23: 6000 | C23: =$A$1*1000^2*0.3 -> 2941995 | D23: 1961330 | E23: =$A$1*1000^2*0.3 -> 2941995 | F23: 1961330 | G23: 1 | H23: 1 | I23: 50
A24: 21 | B24: 12000 | C24: =$A$1*1000^2*0.3 -> 2941995 | D24: 1961330 | E24: =$A$1*1000^2*0.3 -> 2941995 | F24: 1961330 | G24: 1 | H24: 1 | I24: 50
A25: 22 | B25: 3000 | C25: =$A$1*1000^2*0.2 -> 1961330 | D25: 1961330 | E25: =$A$1*1000^2*0.2 -> 1961330 | F25: 1961330 | G25: 1 | H25: 1 | I25: 50 | J25: RCA2-SA6R
A26: 23 | B26: 6000 | C26: =$A$1*1000^2*0.3 -> 2941995 | D26: 1961330 | E26: =$A$1*1000^2*0.3 -> 2941995 | F26: 1961330 | G26: 1 | H26: 1 | I26: 50
A27: 24 | B27: 12000 | C27: =$A$1*1000^2*0.3 -> 2941995 | D27: 1961330 | E27: =$A$1*1000^2*0.3 -> 2941995 | F27: 1961330 | G27: 1 | H27: 1 | I27: 50
A28: 25 | B28: 2500 | C28: =$A$1*1000^2*0.2 -> 1961330 | D28: 1961330 | E28: =$A$1*1000^2*0.2 -> 1961330 | F28: 1961330 | G28: 1 | H28: 1 | I28: 50 | J28: RCA-SA4C-20
A29: 26 | B29: 5000 | C29: =$A$1*1000^2*0.3 -> 2941995 | D29: 2941995 | E29: 2941995 | F29: 2941995 | G29: 1 | H29: 1 | I29: 50
A30: =A29+1 -> 27 | B30: 10000 | C30: 2941995 | D30: 2941995 | E30: 2941995 | F30: 2941995 | G30: 1 | H30: 1 | I30: 50
A31: =A30+1 -> 28 | B31: 3000 | C31: =$A$1*1000^2*0.2 -> 1961330 | D31: =$A$1*1000^2*0.2 -> 1961330 | E31: =$A$1*1000^2*0.2 -> 1961330 | F31: =$A$1*1000^2*0.2 -> 1961330 | G31: 1 | H31: 1 | I31: 50 | J31: RCA-SA5C-20
A32: 29 | B32: 6000 | C32: =$A$1*1000^2*0.3 -> 2941995 | D32: 2941995 | E32: 2941995 | F32: 2941995 | G32: 1 | H32: 1 | I32: 50
A33: =A32+1 -> 30 | B33: 12000 | C33: 2941995 | D33: 2941995 | E33: 2941995 | F33: 2941995 | G33: 1 | H33: 1 | I33: 50
A34: =A33+1 -> 31 | B34: 20000 | C34: =$A$1*1000^2*0.3 -> 2941995 | D34: =$A$1*1000^2*0.3 -> 2941995 | E34: =$A$1*1000^2*0.3 -> 2941995 | F34: =$A$1*1000^2*0.3 -> 2941995 | G34: 1 | H34: 1 | I34: 50
A35: =A34+1 -> 32 | B35: 3000 | C35: =$A$1*1000^2*0.2 -> 1961330 | D35: =$A$1*1000^2*0.2 -> 1961330 | E35: =$A$1*1000^2*0.2 -> 1961330 | F35: =$A$1*1000^2*0.2 -> 1961330 | G35: 1 | H35: 1 | I35: 50 | J35: RCA-SA6C-30
A36: 33 | B36: 6000 | C36: =$A$1*1000^2*0.3 -> 2941995 | D36: 2941995 | E36: 2941995 | F36: 2941995 | G36: 1 | H36: 1 | I36: 50
A37: =A36+1 -> 34 | B37: 12000 | C37: 2941995 | D37: 2941995 | E37: 2941995 | F37: 2941995 | G37: 1 | H37: 1 | I37: 50
A38: =A37+1 -> 35 | B38: 20000 | C38: =$A$1*1000^2*0.3 -> 2941995 | D38: =$A$1*1000^2*0.3 -> 2941995 | E38: =$A$1*1000^2*0.3 -> 2941995 | F38: =$A$1*1000^2*0.3 -> 2941995 | G38: 1 | H38: 1 | I38: 50
A39: =A38+1 -> 36 | B39: 2500 | C39: =$A$1*1000^2*0.2 -> 1961330 | D39: =$A$1*1000^2*0.2 -> 1961330 | E39: =$A$1*1000^2*0.2 -> 1961330 | F39: =$A$1*1000^2*0.2 -> 1961330 | G39: 1 | H39: 1 | I39: 50 | J39: RCA-SA4D-20
A40: 37 | B40: 5000 | C40: =$A$1*1000^2*0.3 -> 2941995 | D40: 2941995 | E40: 2941995 | F40: 2941995 | G40: 1 | H40: 1 | I40: 50
A41: 38 | B41: 10000 | C41: 2941995 | D41: 2941995 | E41: 2941995 | F41: 2941995 | G41: 1 | H41: 1 | I41: 50
A42: 39 | B42: 3000 | C42: =$A$1*1000^2*0.2 -> 1961330 | D42: =$A$1*1000^2*0.2 -> 1961330 | E42: =$A$1*1000^2*0.2 -> 1961330 | F42: =$A$1*1000^2*0.2 -> 1961330 | G42: 1 | H42: 1 | I42: 50 | J42: RCA-SA5D-20
A43: 40 | B43: 6000 | C43: =$A$1*1000^2*0.3 -> 2941995 | D43: 2941995 | E43: 2941995 | F43: 2941995 | G43: 1 | H43: 1 | I43: 50
A44: 41 | B44: 12000 | C44: 2941995 | D44: 2941995 | E44: 2941995 | F44: 2941995 | G44: 1 | H44: 1 | I44: 50
A45: 42 | B45: 3000 | C45: =$A$1*1000^2*0.2 -> 1961330 | D45: =$A$1*1000^2*0.2 -> 1961330 | E45: =$A$1*1000^2*0.2 -> 1961330 | F45: =$A$1*1000^2*0.2 -> 1961330 | G45: 1 | H45: 1 | I45: 50 | J45: RCA-SA6D-30
A46: 43 | B46: 6000 | C46: =$A$1*1000^2*0.3 -> 2941995 | D46: 2941995 | E46: 2941995 | F46: 2941995 | G46: 1 | H46: 1 | I46: 50
A47: 44 | B47: 12000 | C47: 2941995 | D47: 2941995 | E47: 2941995 | F47: 2941995 | G47: 1 | H47: 1 | I47: 50
A48: 45 | B48: 2500 | C48: =$A$1*1000^2*0.2 -> 1961330 | D48: =$A$1*1000^2*0.2 -> 1961330 | E48: =$A$1*1000^2*0.2 -> 1961330 | F48: =$A$1*1000^2*0.2 -> 1961330 | G48: 1 | H48: 1 | I48: 50 | J48: RCA-SS4D-20
A49: 46 | B49: 5000 | C49: =$A$1*1000^2*0.3 -> 2941995 | D49: 2941995 | E49: 2941995 | F49: 2941995 | G49: 1 | H49: 1 | I49: 50
A50: 47 | B50: 10000 | C50: 2941995 | D50: 2941995 | E50: 2941995 | F50: 2941995 | G50: 1 | H50: 1 | I50: 50
A51: 48 | B51: 3000 | C51: =$A$1*1000^2*0.2 -> 1961330 | D51: =$A$1*1000^2*0.2 -> 1961330 | E51: =$A$1*1000^2*0.2 -> 1961330 | F51: =$A$1*1000^2*0.2 -> 1961330 | G51: 1 | H51: 1 | I51: 50 | J51: RCA-SS5D-20
A52: 49 | B52: 6000 | C52: =$A$1*1000^2*0.3 -> 2941995 | D52: 2941995 | E52: 2941995 | F52: 2941995 | G52: 1 | H52: 1 | I52: 50
A53: 50 | B53: 12000 | C53: 2941995 | D53: 2941995 | E53: 2941995 | F53: 2941995 | G53: 1 | H53: 1 | I53: 50
A54: 51 | B54: 3000 | C54: =$A$1*1000^2*0.2 -> 1961330 | D54: =$A$1*1000^2*0.2 -> 1961330 | E54: =$A$1*1000^2*0.2 -> 1961330 | F54: =$A$1*1000^2*0.2 -> 1961330 | G54: 1 | H54: 1 | I54: 50 | J54: RCA-SS6D-30
A55: 52 | B55: 6000 | C55: =$A$1*1000^2*0.3 -> 2941995 | D55: 2941995 | E55: 2941995 | F55: 2941995 | G55: 1 | H55: 1 | I55: 50
A56: 53 | B56: 12000 | C56: 2941995 | D56: 2941995 | E56: 2941995 | F56: 2941995 | G56: 1 | H56: 1 | I56: 50
A57: 54 | B57: 2500 | C57: =$A$1*1000^2*0.2 -> 1961330 | D57: =$A$1*1000^2*0.2 -> 1961330 | E57: =$A$1*1000^2*0.2 -> 1961330 | F57: =$A$1*1000^2*0.2 -> 1961330 | G57: 1 | H57: 1 | I57: 50 | J57: RCA-SA4R-20
A58: 55 | B58: 5000 | C58: =$A$1*1000^2*0.3 -> 2941995 | D58: 2941995 | E58: 2941995 | F58: 2941995 | G58: 1 | H58: 1 | I58: 50
A59: 56 | B59: 10000 | C59: 2941995 | D59: 2941995 | E59: 2941995 | F59: 2941995 | G59: 1 | H59: 1 | I59: 50
A60: 57 | B60: 3000 | C60: =$A$1*1000^2*0.2 -> 1961330 | D60: =$A$1*1000^2*0.2 -> 1961330 | E60: =$A$1*1000^2*0.2 -> 1961330 | F60: =$A$1*1000^2*0.2 -> 1961330 | G60: 1 | H60: 1 | I60: 50 | J60: RCA-SA5R-20
A61: 58 | B61: 6000 | C61: =$A$1*1000^2*0.3 -> 2941995 | D61: 2941995 | E61: 2941995 | F61: 2941995 | G61: 1 | H61: 1 | I61: 50
A62: 59 | B62: 12000 | C62: 2941995 | D62: 2941995 | E62: 2941995 | F62: 2941995 | G62: 1 | H62: 1 | I62: 50
A63: 60 | B63: 3000 | C63: =$A$1*1000^2*0.2 -> 1961330 | D63: =$A$1*1000^2*0.2 -> 1961330 | E63: =$A$1*1000^2*0.2 -> 1961330 | F63: =$A$1*1000^2*0.2 -> 1961330 | G63: 1 | H63: 1 | I63: 50 | J63: RCA-SA6R-30
A64: 61 | B64: 6000 | C64: =$A$1*1000^2*0.3 -> 2941995 | D64: 2941995 | E64: 2941995 | F64: 2941995 | G64: 1 | H64: 1 | I64: 50
A65: =A64+1 -> 62 | B65: 12000 | C65: 2941995 | D65: 2941995 | E65: 2941995 | F65: 2941995 | G65: 1 | H65: 1 | I65: 50
A66: =A65+1 -> 63 | B66: 1000 | C66: =$A$1*1000^2*0.2 -> 1961330 | D66: =$A$1*1000^2*0.2 -> 1961330 | E66: =$A$1*1000^2*0.2 -> 1961330 | F66: =$A$1*1000^2*0.2 -> 1961330 | G66: 1 | H66: 1 | I66: 20 | J66: RCA2-RN3NA-10
A67: =A66+1 -> 64 | B67: 2000 | C67: =$A$1*1000^2*0.3 -> 2941995 | D67: =$A$1*1000^2*0.2 -> 1961330 | E67: =$A$1*1000^2*0.3 -> 2941995 | F67: =$A$1*1000^2*0.2 -> 1961330 | G67: 1 | H67: 1 | I67: 20
A68: =A67+1 -> 65 | B68: 4000 | C68: =$A$1*1000^2*0.3 -> 2941995 | D68: 1961330 | E68: =$A$1*1000^2*0.3 -> 2941995 | F68: 1961330 | G68: 1 | H68: 1 | I68: 20
A69: =A68+1 -> 66 | B69: 1000 | C69: =$A$1*1000^2*0.2 -> 1961330 | D69: 1961330 | E69: =$A$1*1000^2*0.2 -> 1961330 | F69: 1961330 | G69: 1 | H69: 1 | I69: 20 | J69: RCA2-RN3NA-10-*S
A70: 67 | B70: 2000 | C70: =$A$1*1000^2*0.2 -> 1961330 | D70: 1961330 | E70: =$A$1*1000^2*0.2 -> 1961330 | F70: 1961330 | G70: 1 | H70: 1 | I70: 20
A71: 68 | B71: 4000 | C71: =$A$1*1000^2*0.2 -> 1961330 | D71: 1961330 | E71: =$A$1*1000^2*0.2 -> 1961330 | F71: 1961330 | G71: 1 | H71: 1 | I71: 20
A72: =A71+1 -> 69 | B72: 2000 | C72: =$A$1*1000^2*0.2 -> 1961330 | D72: 1961330 | E72: =$A$1*1000^2*0.2 -> 1961330 | F72: 1961330 | G72: 1 | H72: 1 | I72: 20 | J72: RCA2-RN4NA-20
A73: 70 | B73: 4000 | C73: =$A$1*1000^2*0.3 -> 2941995 | D73: 1961330 | E73: =$A$1*1000^2*0.3 -> 2941995 | F73: 1961330 | G73: 1 | H73: 1 | I73: 20
A74: 71 | B74: 6000 | C74: =$A$1*1000^2*0.3 -> 2941995 | D74: 1961330 | E74: =$A$1*1000^2*0.3 -> 2941995 | F74: 1961330 | G74: 1 | H74: 1 | I74: 20
A75: 72 | B75: 2000 | C75: =$A$1*1000^2*0.2 -> 1961330 | D75: 1961330 | E75: =$A$1*1000^2*0.2 -> 1961330 | F75: 1961330 | G75: 1 | H75: 1 | I75: 20 | J75: RCA2-RN4NA-20-*S
A76: 73 | B76: 4000 | C76: =$A$1*1000^2*0.2 -> 1961330 | D76: 1961330 | E76: =$A$1*1000^2*0.2 -> 1961330 | F76: 1961330 | G76: 1 | H76: 1 | I76: 20
A77: =A76+1 -> 74 | B77: 6000 | C77: =$A$1*1000^2*0.2 -> 1961330 | D77: 1961330 | E77: =$A$1*1000^2*0.2 -> 1961330 | F77: 1961330 | G77: 1 | H77: 1 | I77: 20
A78: =A77+1 -> 75 | B78: 1000 | C78: =$A$1*1000^2*0.2 -> 1961330 | D78: 1961330 | E78: =$A$1*1000^2*0.2 -> 1961330 | F78: 1961330 | G78: 1 | H78: 1 | I78: 20 | J78: RCA2-RP3NA-10
A79: =A78+1 -> 76 | B79: 2000 | C79: =$A$1*1000^2*0.3 -> 2941995 | D79: 1961330 | E79: =$A$1*1000^2*0.3 -> 2941995 | F79: 1961330 | G79: 1 | H79: 1 | I79: 20
A80: =A79+1 -> 77 | B80: 4000 | C80: =$A$1*1000^2*0.3 -> 2941995 | D80: 1961330 | E80: =$A$1*1000^2*0.3 -> 2941995 | F80: 1961330 | G80: 1 | H80: 1 | I80: 20
A81: =A80+1 -> 78 | B81: 1000 | C81: =$A$1*1000^2*0.2 -> 1961330 | D81: 1961330 | E81: =$A$1*1000^2*0.2 -> 1961330 | F81: 1961330 | G81: 1 | H81: 1 | I81: 20 | J81: RCA2-RP3NA-10-*S
A82: 79 | B82: 2000 | C82: =$A$1*1000^2*0.2 -> 1961330 | D82: 1961330 | E82: =$A$1*1000^2*0.2 -> 1961330 | F82: 1961330 | G82: 1 | H82: 1 | I82: 20
A83: 80 | B83: 4000 | C83: =$A$1*1000^2*0.2 -> 1961330 | D83: 1961330 | E83: =$A$1*1000^2*0.2 -> 1961330 | F83: 1961330 | G83: 1 | H83: 1 | I83: 20
A84: 81 | B84: 2000 | C84: =$A$1*1000^2*0.2 -> 1961330 | D84: 1961330 | E84: =$A$1*1000^2*0.2 -> 1961330 | F84: 1961330 | G84: 1 | H84: 1 | I84: 20 | J84: RCA2-RP4NA-20
A85: 82 | B85: 4000 | C85: =$A$1*1000^2*0.3 -> 2941995 | D85: 1961330 | E85: =$A$1*1000^2*0.3 -> 2941995 | F85: 1961330 | G85: 1 | H85: 1 | I85: 20
A86: 83 | B86: 6000 | C86: =$A$1*1000^2*0.3 -> 2941995 | D86: 1961330 | E86: =$A$1*1000^2*0.3 -> 2941995 | F86: 1961330 | G86: 1 | H86: 1 | I86: 20
A87: 84 | B87: 2000 | C87: =$A$1*1000^2*0.2 -> 1961330 | D87: 1961330 | E87: =$A$1*1000^2*0.2 -> 1961330 | F87: 1961330 | G87: 1 | H87: 1 | I87: 20 | J87: RCA2-RP4NA-20-*S
A88: 85 | B88: 4000 | C88: =$A$1*1000^2*0.2 -> 1961330 | D88: 1961330 | E88: =$A$1*1000^2*0.2 -> 1961330 | F88: 1961330 | G88: 1 | H88: 1 | I88: 20
A89: =A88+1 -> 86 | B89: 6000 | C89: =$A$1*1000^2*0.2 -> 1961330 | D89: 1961330 | E89: =$A$1*1000^2*0.2 -> 1961330 | F89: 1961330 | G89: 1 | H89: 1 | I89: 20
A90: =A89+1 -> 87 | B90: 1000 | C90: =$A$1*1000^2*0.2 -> 1961330 | D90: 1961330 | E90: =$A$1*1000^2*0.2 -> 1961330 | F90: 1961330 | G90: 1 | H90: 1 | I90: 20 | J90: RCA2-GS3NA-10
A91: =A90+1 -> 88 | B91: 2000 | C91: =$A$1*1000^2*0.3 -> 2941995 | D91: 1961330 | E91: =$A$1*1000^2*0.3 -> 2941995 | F91: 1961330 | G91: 1 | H91: 1 | I91: 20
A92: =A91+1 -> 89 | B92: 4000 | C92: =$A$1*1000^2*0.3 -> 2941995 | D92: 1961330 | E92: =$A$1*1000^2*0.3 -> 2941995 | F92: 1961330 | G92: 1 | H92: 1 | I92: 20
A93: =A92+1 -> 90 | B93: 1000 | C93: =$A$1*1000^2*0.2 -> 1961330 | D93: 1961330 | E93: =$A$1*1000^2*0.2 -> 1961330 | F93: 1961330 | G93: 1 | H93: 1 | I93: 20 | J93: RCA2-GS3NA-10-*S
A94: 91 | B94: 2000 | C94: =$A$1*1000^2*0.2 -> 1961330 | D94: 1961330 | E94: =$A$1*1000^2*0.2 -> 1961330 | F94: 1961330 | G94: 1 | H94: 1 | I94: 20
A95: 92 | B95: 4000 | C95: =$A$1*1000^2*0.2 -> 1961330 | D95: 1961330 | E95: =$A$1*1000^2*0.2 -> 1961330 | F95: 1961330 | G95: 1 | H95: 1 | I95: 20
A96: 93 | B96: 2000 | C96: =$A$1*1000^2*0.2 -> 1961330 | D96: 1961330 | E96: =$A$1*1000^2*0.2 -> 1961330 | F96: 1961330 | G96: 1 | H96: 1 | I96: 20 | J96: RCA2-GS4NA-20
A97: 94 | B97: 4000 | C97: =$A$1*1000^2*0.3 -> 2941995 | D97: 1961330 | E97: =$A$1*1000^2*0.3 -> 2941995 | F97: 1961330 | G97: 1 | H97: 1 | I97: 20
A98: 95 | B98: 6000 | C98: =$A$1*1000^2*0.3 -> 2941995 | D98: 1961330 | E98: =$A$1*1000^2*0.3 -> 2941995 | F98: 1961330 | G98: 1 | H98: 1 | I98: 20
A99: 96 | B99: 2000 | C99: =$A$1*1000^2*0.2 -> 1961330 | D99: =$A$1*1000^2*0.2 -> 1961330 | E99: =$A$1*1000^2*0.2 -> 1961330 | F99: =$A$1*1000^2*0.2 -> 1961330 | G99: 1 | H99: 1 | I99: 20 | J99: RCA2-GS4NA-20-*S
A100: 97 | B100: 4000 | C100: =$A$1*1000^2*0.2 -> 1961330 | D100: 1961330 | E100: =$A$1*1000^2*0.2 -> 1961330 | F100: 1961330 | G100: 1 | H100: 1 | I100: 20
A101: =A100+1 -> 98 | B101: 6000 | C101: =$A$1*1000^2*0.2 -> 1961330 | D101: 1961330 | E101: =$A$1*1000^2*0.2 -> 1961330 | F101: 1961330 | G101: 1 | H101: 1 | I101: 20
A102: =A101+1 -> 99 | B102: 1000 | C102: =$A$1*1000^2*0.2 -> 1961330 | D102: 1961330 | E102: =$A$1*1000^2*0.2 -> 1961330 | F102: 1961330 | G102: 1 | H102: 1 | I102: 20 | J102: RCA2-GD3NA-10
A103: =A102+1 -> 100 | B103: 2000 | C103: =$A$1*1000^2*0.3 -> 2941995 | D103: 1961330 | E103: =$A$1*1000^2*0.3 -> 2941995 | F103: 1961330 | G103: 1 | H103: 1 | I103: 20
A104: =A103+1 -> 101 | B104: 4000 | C104: =$A$1*1000^2*0.3 -> 2941995 | D104: 1961330 | E104: =$A$1*1000^2*0.3 -> 2941995 | F104: 1961330 | G104: 1 | H104: 1 | I104: 20
A105: =A104+1 -> 102 | B105: 1000 | C105: =$A$1*1000^2*0.2 -> 1961330 | D105: 1961330 | E105: =$A$1*1000^2*0.2 -> 1961330 | F105: 1961330 | G105: 1 | H105: 1 | I105: 20 | J105: RCA2-GD3NA-10-*S
A106: 103 | B106: 2000 | C106: =$A$1*1000^2*0.2 -> 1961330 | D106: 1961330 | E106: =$A$1*1000^2*0.2 -> 1961330 | F106: 1961330 | G106: 1 | H106: 1 | I106: 20
A107: 104 | B107: 4000 | C107: =$A$1*1000^2*0.2 -> 1961330 | D107: 1961330 | E107: =$A$1*1000^2*0.2 -> 1961330 | F107: 1961330 | G107: 1 | H107: 1 | I107: 20
A108: 105 | B108: 2000 | C108: =$A$1*1000^2*0.2 -> 1961330 | D108: 1961330 | E108: =$A$1*1000^2*0.2 -> 1961330 | F108: 1961330 | G108: 1 | H108: 1 | I108: 20 | J108: RCA2-GD4NA-20
A109: 106 | B109: 4000 | C109: =$A$1*1000^2*0.3 -> 2941995 | D109: 1961330 | E109: =$A$1*1000^2*0.3 -> 2941995 | F109: 1961330 | G109: 1 | H109: 1 | I109: 20
A110: 107 | B110: 6000 | C110: =$A$1*1000^2*0.3 -> 2941995 | D110: 1961330 | E110: =$A$1*1000^2*0.3 -> 2941995 | F110: 1961330 | G110: 1 | H110: 1 | I110: 20
A111: 108 | B111: 2000 | C111: =$A$1*1000^2*0.2 -> 1961330 | D111: 1961330 | E111: =$A$1*1000^2*0.2 -> 1961330 | F111: 1961330 | G111: 1 | H111: 1 | I111: 20 | J111: RCA2-GD4NA-20-*S
A112: 109 | B112: 4000 | C112: =$A$1*1000^2*0.2 -> 1961330 | D112: 1961330 | E112: =$A$1*1000^2*0.2 -> 1961330 | F112: 1961330 | G112: 1 | H112: 1 | I112: 20
A113: =A112+1 -> 110 | B113: 6000 | C113: =$A$1*1000^2*0.2 -> 1961330 | D113: 1961330 | E113: =$A$1*1000^2*0.2 -> 1961330 | F113: 1961330 | G113: 1 | H113: 1 | I113: 20
A114: =A113+1 -> 111 | B114: 1000 | C114: =$A$1*1000^2*0.2 -> 1961330 | D114: 1961330 | E114: =$A$1*1000^2*0.2 -> 1961330 | F114: 1961330 | G114: 1 | H114: 1 | I114: 25 | J114: RCA2-SD3NA-10
A115: =A114+1 -> 112 | B115: 2000 | C115: =$A$1*1000^2*0.3 -> 2941995 | D115: 1961330 | E115: =$A$1*1000^2*0.3 -> 2941995 | F115: 1961330 | G115: 1 | H115: 1 | I115: 25
A116: =A115+1 -> 113 | B116: 4000 | C116: =$A$1*1000^2*0.3 -> 2941995 | D116: 1961330 | E116: =$A$1*1000^2*0.3 -> 2941995 | F116: 1961330 | G116: 1 | H116: 1 | I116: 25
A117: =A116+1 -> 114 | B117: 1000 | C117: =$A$1*1000^2*0.2 -> 1961330 | D117: 1961330 | E117: =$A$1*1000^2*0.2 -> 1961330 | F117: 1961330 | G117: 1 | H117: 1 | I117: 25 | J117: RCA2-SD3NA-10-*S
A118: 115 | B118: 2000 | C118: =$A$1*1000^2*0.2 -> 1961330 | D118: 1961330 | E118: =$A$1*1000^2*0.2 -> 1961330 | F118: 1961330 | G118: 1 | H118: 1 | I118: 25
A119: 116 | B119: 4000 | C119: =$A$1*1000^2*0.2 -> 1961330 | D119: 1961330 | E119: =$A$1*1000^2*0.2 -> 1961330 | F119: 1961330 | G119: 1 | H119: 1 | I119: 25
A120: 117 | B120: 2000 | C120: =$A$1*1000^2*0.2 -> 1961330 | D120: 1961330 | E120: =$A$1*1000^2*0.2 -> 1961330 | F120: 1961330 | G120: 1 | H120: 1 | I120: 25 | J120: RCA2-SD4NA-20
A121: 118 | B121: 4000 | C121: =$A$1*1000^2*0.3 -> 2941995 | D121: 1961330 | E121: =$A$1*1000^2*0.3 -> 2941995 | F121: 1961330 | G121: 1 | H121: 1 | I121: 25
A122: 119 | B122: 6000 | C122: =$A$1*1000^2*0.3 -> 2941995 | D122: 1961330 | E122: =$A$1*1000^2*0.3 -> 2941995 | F122: 1961330 | G122: 1 | H122: 1 | I122: 25
A123: 120 | B123: 2000 | C123: =$A$1*1000^2*0.2 -> 1961330 | D123: 1961330 | E123: =$A$1*1000^2*0.2 -> 1961330 | F123: 1961330 | G123: 1 | H123: 1 | I123: 25 | J123: RCA2-SD4NA-20-*S
A124: 121 | B124: 4000 | C124: =$A$1*1000^2*0.2 -> 1961330 | D124: 1961330 | E124: =$A$1*1000^2*0.2 -> 1961330 | F124: 1961330 | G124: 1 | H124: 1 | I124: 25
A125: 122 | B125: 6000 | C125: =$A$1*1000^2*0.2 -> 1961330 | D125: 1961330 | E125: =$A$1*1000^2*0.2 -> 1961330 | F125: 1961330 | G125: 1 | H125: 1 | I125: 25
A126: 123 | B126: 2500 | C126: =$A$1*1000^2*0.2 -> 1961330 | D126: 1961330 | E126: =$A$1*1000^2*0.2 -> 1961330 | F126: 1961330 | G126: 1 | H126: 1 | I126: 50 | J126: RCA-RA3C-20
A127: 124 | B127: 5000 | C127: =$A$1*1000^2*0.3 -> 2941995 | D127: 2941995 | E127: 2941995 | F127: 2941995 | G127: 1 | H127: 1 | I127: 50
A128: =A127+1 -> 125 | B128: 10000 | C128: 2941995 | D128: 2941995 | E128: 2941995 | F128: 2941995 | G128: 1 | H128: 1 | I128: 50
A129: =A128+1 -> 126 | B129: 3000 | C129: =$A$1*1000^2*0.2 -> 1961330 | D129: =$A$1*1000^2*0.2 -> 1961330 | E129: =$A$1*1000^2*0.2 -> 1961330 | F129: =$A$1*1000^2*0.2 -> 1961330 | G129: 1 | H129: 1 | I129: 50 | J129: RCA-RA4C-20
A130: 127 | B130: 6000 | C130: =$A$1*1000^2*0.3 -> 2941995 | D130: 2941995 | E130: 2941995 | F130: 2941995 | G130: 1 | H130: 1 | I130: 50
A131: 128 | B131: 12000 | C131: 2941995 | D131: 2941995 | E131: 2941995 | F131: 2941995 | G131: 1 | H131: 1 | I131: 50
A132: 129 | B132: 3000 | C132: =$A$1*1000^2*0.2 -> 1961330 | D132: =$A$1*1000^2*0.2 -> 1961330 | E132: =$A$1*1000^2*0.2 -> 1961330 | F132: =$A$1*1000^2*0.2 -> 1961330 | G132: 1 | H132: 1 | I132: 50 | J132: RCA-RA4C-30
A133: 130 | B133: 6000 | C133: =$A$1*1000^2*0.3 -> 2941995 | D133: 2941995 | E133: 2941995 | F133: 2941995 | G133: 1 | H133: 1 | I133: 50
A134: =A133+1 -> 131 | B134: 12000 | C134: 2941995 | D134: 2941995 | E134: 2941995 | F134: 2941995 | G134: 1 | H134: 1 | I134: 50
A135: =A134+1 -> 132 | B135: 2500 | C135: =$A$1*1000^2*0.2 -> 1961330 | D135: =$A$1*1000^2*0.2 -> 1961330 | E135: =$A$1*1000^2*0.2 -> 1961330 | F135: =$A$1*1000^2*0.2 -> 1961330 | G135: 1 | H135: 1 | I135: 50 | J135: RCA-RA3D-20
A136: 133 | B136: 5000 | C136: =$A$1*1000^2*0.3 -> 2941995 | D136: 2941995 | E136: 2941995 | F136: 2941995 | G136: 1 | H136: 1 | I136: 50
A137: 134 | B137: 10000 | C137: 2941995 | D137: 2941995 | E137: 2941995 | F137: 2941995 | G137: 1 | H137: 1 | I137: 50
A138: 135 | B138: 3000 | C138: =$A$1*1000^2*0.2 -> 1961330 | D138: =$A$1*1000^2*0.2 -> 1961330 | E138: =$A$1*1000^2*0.2 -> 1961330 | F138: =$A$1*1000^2*0.2 -> 1961330 | G138: 1 | H138: 1 | I138: 50 | J138: RCA-RA4D-20
A139: 136 | B139: 6000 | C139: =$A$1*1000^2*0.3 -> 2941995 | D139: 2941995 | E139: 2941995 | F139: 2941995 | G139: 1 | H139: 1 | I139: 50
A140: 137 | B140: 12000 | C140: 2941995 | D140: 2941995 | E140: 2941995 | F140: 2941995 | G140: 1 | H140: 1 | I140: 50
A141: 138 | B141: 3000 | C141: =$A$1*1000^2*0.2 -> 1961330 | D141: =$A$1*1000^2*0.2 -> 1961330 | E141: =$A$1*1000^2*0.2 -> 1961330 | F141: =$A$1*1000^2*0.2 -> 1961330 | G141: 1 | H141: 1 | I141: 50 | J141: RCA-RA4D-30
A142: 139 | B142: 6000 | C142: =$A$1*1000^2*0.3 -> 2941995 | D142: 2941995 | E142: 2941995 | F142: 2941995 | G142: 1 | H142: 1 | I142: 50
A143: 140 | B143: 12000 | C143: 2941995 | D143: 2941995 | E143: 2941995 | F143: 2941995 | G143: 1 | H143: 1 | I143: 50
A144: =A143+1 -> 141 | B144: 2500 | C144: =$A$1*1000^2*0.2 -> 1961330 | D144: =$A$1*1000^2*0.2 -> 1961330 | E144: =$A$1*1000^2*0.2 -> 1961330 | F144: =$A$1*1000^2*0.2 -> 1961330 | G144: 1 | H144: 1 | I144: 50 | J144: RCA-RA3R-20
A145: 142 | B145: 5000 | C145: =$A$1*1000^2*0.3 -> 2941995 | D145: 2941995 | E145: 2941995 | F145: 2941995 | G145: 1 | H145: 1 | I145: 50
A146: 143 | B146: 10000 | C146: 2941995 | D146: 2941995 | E146: 2941995 | F146: 2941995 | G146: 1 | H146: 1 | I146: 50
A147: 144 | B147: 3000 | C147: =$A$1*1000^2*0.2 -> 1961330 | D147: =$A$1*1000^2*0.2 -> 1961330 | E147: =$A$1*1000^2*0.2 -> 1961330 | F147: =$A$1*1000^2*0.2 -> 1961330 | G147: 1 | H147: 1 | I147: 50 | J147: RCA-RA4R-20
A148: 145 | B148: 6000 | C148: =$A$1*1000^2*0.3 -> 2941995 | D148: 2941995 | E148: 2941995 | F148: 2941995 | G148: 1 | H148: 1 | I148: 50
A149: 146 | B149: 12000 | C149: 2941995 | D149: 2941995 | E149: 2941995 | F149: 2941995 | G149: 1 | H149: 1 | I149: 50
A150: 147 | B150: 3000 | C150: =$A$1*1000^2*0.2 -> 1961330 | D150: =$A$1*1000^2*0.2 -> 1961330 | E150: =$A$1*1000^2*0.2 -> 1961330 | F150: =$A$1*1000^2*0.2 -> 1961330 | G150: 1 | H150: 1 | I150: 50 | J150: RCA-RA4R-30
A151: 148 | B151: 6000 | C151: =$A$1*1000^2*0.3 -> 2941995 | D151: 2941995 | E151: 2941995 | F151: 2941995 | G151: 1 | H151: 1 | I151: 50
A152: 149 | B152: 12000 | C152: 2941995 | D152: 2941995 | E152: 2941995 | F152: 2941995 | G152: 1 | H152: 1 | I152: 50
A153: 150 | B153: 2500 | C153: =$A$1*1000^2*0.2 -> 1961330 | D153: =$A$1*1000^2*0.2 -> 1961330 | E153: =$A$1*1000^2*0.2 -> 1961330 | F153: =$A$1*1000^2*0.2 -> 1961330 | G153: 1 | H153: 1 | I153: 10 | J153: RCA-SRA4R-20
A154: 151 | B154: 5000 | C154: =$A$1*1000^2*0.3 -> 2941995 | D154: =$A$1*1000^2*0.2 -> 1961330 | E154: =$A$1*1000^2*0.3 -> 2941995 | F154: =$A$1*1000^2*0.2 -> 1961330 | G154: 1 | H154: 1 | I154: 10
A155: 152 | B155: 2500 | C155: =$A$1*1000^2*0.2 -> 1961330 | D155: =$A$1*1000^2*0.2 -> 1961330 | E155: =$A$1*1000^2*0.2 -> 1961330 | F155: =$A$1*1000^2*0.2 -> 1961330 | G155: 1 | H155: 1 | I155: 50 | J155: RCA-RGS3C-20
A156: 153 | B156: 5000 | C156: =$A$1*1000^2*0.3 -> 2941995 | D156: 2941995 | E156: 2941995 | F156: 2941995 | G156: 1 | H156: 1 | I156: 50
A157: =A156+1 -> 154 | B157: 10000 | C157: 2941995 | D157: 2941995 | E157: 2941995 | F157: 2941995 | G157: 1 | H157: 1 | I157: 50
A158: =A157+1 -> 155 | B158: 3000 | C158: =$A$1*1000^2*0.2 -> 1961330 | D158: =$A$1*1000^2*0.2 -> 1961330 | E158: =$A$1*1000^2*0.2 -> 1961330 | F158: =$A$1*1000^2*0.2 -> 1961330 | G158: 1 | H158: 1 | I158: 50 | J158: RCA-RGS4C-20
A159: 156 | B159: 6000 | C159: =$A$1*1000^2*0.3 -> 2941995 | D159: 2941995 | E159: 2941995 | F159: 2941995 | G159: 1 | H159: 1 | I159: 50
A160: 157 | B160: 12000 | C160: 2941995 | D160: 2941995 | E160: 2941995 | F160: 2941995 | G160: 1 | H160: 1 | I160: 50
A161: 158 | B161: 3000 | C161: =$A$1*1000^2*0.2 -> 1961330 | D161: =$A$1*1000^2*0.2 -> 1961330 | E161: =$A$1*1000^2*0.2 -> 1961330 | F161: =$A$1*1000^2*0.2 -> 1961330 | G161: 1 | H161: 1 | I161: 50 | J161: RCA-RGS4C-30
A162: 159 | B162: 6000 | C162: =$A$1*1000^2*0.3 -> 2941995 | D162: 2941995 | E162: 2941995 | F162: 2941995 | G162: 1 | H162: 1 | I162: 50
A163: =A162+1 -> 160 | B163: 12000 | C163: 2941995 | D163: 2941995 | E163: 2941995 | F163: 2941995 | G163: 1 | H163: 1 | I163: 50
A164: =A163+1 -> 161 | B164: 2500 | C164: =$A$1*1000^2*0.2 -> 1961330 | D164: =$A$1*1000^2*0.2 -> 1961330 | E164: =$A$1*1000^2*0.2 -> 1961330 | F164: =$A$1*1000^2*0.2 -> 1961330 | G164: 1 | H164: 1 | I164: 50 | J164: RCA-RGS3D-20
A165: 162 | B165: 5000 | C165: =$A$1*1000^2*0.3 -> 2941995 | D165: 2941995 | E165: 2941995 | F165: 2941995 | G165: 1 | H165: 1 | I165: 50
A166: 163 | B166: 10000 | C166: 2941995 | D166: 2941995 | E166: 2941995 | F166: 2941995 | G166: 1 | H166: 1 | I166: 50
A167: 164 | B167: 3000 | C167: =$A$1*1000^2*0.2 -> 1961330 | D167: =$A$1*1000^2*0.2 -> 1961330 | E167: =$A$1*1000^2*0.2 -> 1961330 | F167: =$A$1*1000^2*0.2 -> 1961330 | G167: 1 | H167: 1 | I167: 50 | J167: RCA-RGS4D-20
A168: 165 | B168: 6000 | C168: =$A$1*1000^2*0.3 -> 2941995 | D168: 2941995 | E168: 2941995 | F168: 2941995 | G168: 1 | H168: 1 | I168: 50
A169: 166 | B169: 12000 | C169: 2941995 | D169: 2941995 | E169: 2941995 | F169: 2941995 | G169: 1 | H169: 1 | I169: 50
A170: 167 | B170: 3000 | C170: =$A$1*1000^2*0.2 -> 1961330 | D170: =$A$1*1000^2*0.2 -> 1961330 | E170: =$A$1*1000^2*0.2 -> 1961330 | F170: =$A$1*1000^2*0.2 -> 1961330 | G170: 1 | H170: 1 | I170: 50 | J170: RCA-RGS4D-30
A171: 168 | B171: 6000 | C171: =$A$1*1000^2*0.3 -> 2941995 | D171: 2941995 | E171: 2941995 | F171: 2941995 | G171: 1 | H171: 1 | I171: 50
A172: 169 | B172: 12000 | C172: 2941995 | D172: 2941995 | E172: 2941995 | F172: 2941995 | G172: 1 | H172: 1 | I172: 50
A173: 170 | B173: 2500 | C173: =$A$1*1000^2*0.2 -> 1961330 | D173: =$A$1*1000^2*0.2 -> 1961330 | E173: =$A$1*1000^2*0.2 -> 1961330 | F173: =$A$1*1000^2*0.2 -> 1961330 | G173: 1 | H173: 1 | I173: 10 | J173: RCA-SRGS4R-20
A174: 171 | B174: 5000 | C174: =$A$1*1000^2*0.3 -> 2941995 | D174: =$A$1*1000^2*0.2 -> 1961330 | E174: =$A$1*1000^2*0.3 -> 2941995 | F174: =$A$1*1000^2*0.2 -> 1961330 | G174: 1 | H174: 1 | I174: 10
A175: 172 | B175: 2500 | C175: =$A$1*1000^2*0.2 -> 1961330 | D175: =$A$1*1000^2*0.2 -> 1961330 | E175: =$A$1*1000^2*0.2 -> 1961330 | F175: =$A$1*1000^2*0.2 -> 1961330 | G175: 1 | H175: 1 | I175: 50 | J175: RCA-RGD3C-20
A176: 173 | B176: 5000 | C176: =$A$1*1000^2*0.3 -> 2941995 | D176: 2941995 | E176: 2941995 | F176: 2941995 | G176: 1 | H176: 1 | I176: 50
A177: =A176+1 -> 174 | B177: 10000 | C177: 2941995 | D177: 2941995 | E177: 2941995 | F177: 2941995 | G177: 1 | H177: 1 | I177: 50
A178: =A177+1 -> 175 | B178: 3000 | C178: =$A$1*1000^2*0.2 -> 1961330 | D178: =$A$1*1000^2*0.2 -> 1961330 | E178: =$A$1*1000^2*0.2 -> 1961330 | F178: =$A$1*1000^2*0.2 -> 1961330 | G178: 1 | H178: 1 | I178: 50 | J178: RCA-RGD4C-20
A179: 176 | B179: 6000 | C179: =$A$1*1000^2*0.3 -> 2941995 | D179: 2941995 | E179: 2941995 | F179: 2941995 | G179: 1 | H179: 1 | I179: 50
A180: 177 | B180: 12000 | C180: 2941995 | D180: 2941995 | E180: 2941995 | F180: 2941995 | G180: 1 | H180: 1 | I180: 50
A181: 178 | B181: 3000 | C181: =$A$1*1000^2*0.2 -> 1961330 | D181: =$A$1*1000^2*0.2 -> 1961330 | E181: =$A$1*1000^2*0.2 -> 1961330 | F181: =$A$1*1000^2*0.2 -> 1961330 | G181: 1 | H181: 1 | I181: 50 | J181: RCA-RGD4C-30
A182: 179 | B182: 6000 | C182: =$A$1*1000^2*0.3 -> 2941995 | D182: 2941995 | E182: 2941995 | F182: 2941995 | G182: 1 | H182: 1 | I182: 50
A183: =A182+1 -> 180 | B183: 12000 | C183: 2941995 | D183: 2941995 | E183: 2941995 | F183: 2941995 | G183: 1 | H183: 1 | I183: 50
A184: =A183+1 -> 181 | B184: 2500 | C184: =$A$1*1000^2*0.2 -> 1961330 | D184: =$A$1*1000^2*0.2 -> 1961330 | E184: =$A$1*1000^2*0.2 -> 1961330 | F184: =$A$1*1000^2*0.2 -> 1961330 | G184: 1 | H184: 1 | I184: 50 | J184: RCA-RGD3D-20
A185: 182 | B185: 5000 | C185: =$A$1*1000^2*0.3 -> 2941995 | D185: 2941995 | E185: 2941995 | F185: 2941995 | G185: 1 | H185: 1 | I185: 50
A186: 183 | B186: 10000 | C186: 2941995 | D186: 2941995 | E186: 2941995 | F186: 2941995 | G186: 1 | H186: 1 | I186: 50
A187: 184 | B187: 3000 | C187: =$A$1*1000^2*0.2 -> 1961330 | D187: =$A$1*1000^2*0.2 -> 1961330 | E187: =$A$1*1000^2*0.2 -> 1961330 | F187: =$A$1*1000^2*0.2 -> 1961330 | G187: 1 | H187: 1 | I187: 50 | J187: RCA-RGD4D-20
A188: 185 | B188: 6000 | C188: =$A$1*1000^2*0.3 -> 2941995 | D188: 2941995 | E188: 2941995 | F188: 2941995 | G188: 1 | H188: 1 | I188: 50
A189: 186 | B189: 12000 | C189: 2941995 | D189: 2941995 | E189: 2941995 | F189: 2941995 | G189: 1 | H189: 1 | I189: 50
A190: 187 | B190: 3000 | C190: =$A$1*1000^2*0.2 -> 1961330 | D190: =$A$1*1000^2*0.2 -> 1961330 | E190: =$A$1*1000^2*0.2 -> 1961330 | F190: =$A$1*1000^2*0.2 -> 1961330 | G190: 1 | H190: 1 | I190: 50 | J190: RCA-RGD4D-30
A191: 188 | B191: 6000 | C191: =$A$1*1000^2*0.3 -> 2941995 | D191: 2941995 | E191: 2941995 | F191: 2941995 | G191: 1 | H191: 1 | I191: 50
A192: 189 | B192: 12000 | C192: 2941995 | D192: 2941995 | E192: 2941995 | F192: 2941995 | G192: 1 | H192: 1 | I192: 50
A193: 190 | B193: 2500 | C193: =$A$1*1000^2*0.2 -> 1961330 | D193: =$A$1*1000^2*0.2 -> 1961330 | E193: =$A$1*1000^2*0.2 -> 1961330 | F193: =$A$1*1000^2*0.2 -> 1961330 | G193: 1 | H193: 1 | I193: 50 | J193: RCA-RGD3R-20
A194: 191 | B194: 5000 | C194: =$A$1*1000^2*0.3 -> 2941995 | D194: 2941995 | E194: 2941995 | F194: 2941995 | G194: 1 | H194: 1 | I194: 50
A195: 192 | B195: 10000 | C195: 2941995 | D195: 2941995 | E195: 2941995 | F195: 2941995 | G195: 1 | H195: 1 | I195: 50
A196: 193 | B196: 3000 | C196: =$A$1*1000^2*0.2 -> 1961330 | D196: =$A$1*1000^2*0.2 -> 1961330 | E196: =$A$1*1000^2*0.2 -> 1961330 | F196: =$A$1*1000^2*0.2 -> 1961330 | G196: 1 | H196: 1 | I196: 50 | J196: RCA-RGD4R-20
A197: 194 | B197: 6000 | C197: =$A$1*1000^2*0.3 -> 2941995 | D197: 2941995 | E197: 2941995 | F197: 2941995 | G197: 1 | H197: 1 | I197: 50
A198: 195 | B198: 12000 | C198: 2941995 | D198: 2941995 | E198: 2941995 | F198: 2941995 | G198: 1 | H198: 1 | I198: 50
A199: 196 | B199: 3000 | C199: =$A$1*1000^2*0.2 -> 1961330 | D199: =$A$1*1000^2*0.2 -> 1961330 | E199: =$A$1*1000^2*0.2 -> 1961330 | F199: =$A$1*1000^2*0.2 -> 1961330 | G199: 1 | H199: 1 | I199: 50 | J199: RCA-RGD4R-30
A200: =A199+1 -> 197 | B200: 6000 | C200: =$A$1*1000^2*0.3 -> 2941995 | D200: 2941995 | E200: 2941995 | F200: 2941995 | G200: 1 | H200: 1 | I200: 50
... 94 more rows

Sheet StrokeData (hidden)
B1: 1 | C1: 2 | D1: 4 | E1: 5 | F1: 6 | G1: 7 | H1: 8 | I1: 9 | J1: 10 | K1: 16 | L1: 17
A2: ﾃﾞｰﾀ№ | B2: ｽﾄﾛｰｸ長 | C2: 有効ｽﾄﾛｰｸ補正 | D2: 基準ｹﾞｲﾝ用搬送質量 | E2: 水平可搬質量 | F2: 垂直可搬質量 | G2: 最大速度 | H2: 位置ｹﾞｲﾝ | I2: FFｹﾞｲﾝ | J2: 速度制御帯域 | K2: 前ﾃﾞｰﾀ№ | L2: 次ﾃﾞｰﾀ№ | M2: 備考
A3: =ModelData!A3 -> 0 | B3: ㎜ | C3: ㎜ | D3: 1g | E3: 1g | F3: 1g | G3: ㎜/s | H3: 1/s | I3: % | J3: rad/s
A4: =A3+1 -> 1 | B4: 300 | C4: 0 | D4: 3000 | E4: 3000 | F4: 1500 | G4: 100 | H4: 30 | I4: 0 | J4: 200 | K4: -1 | L4: -1 | M4: RCS2-SA3C-10-2
A5: 2 | B5: 300 | C5: 0 | D5: 2000 | E5: 2000 | F5: 1000 | G5: 200 | H5: 30 | I5: 0 | J5: 160 | K5: -1 | L5: -1 | M5: RCS2-SA3C-10-4
A6: 3 | B6: 300 | C6: 0 | D6: 1000 | E6: 1000 | F6: 500 | G6: 300 | H6: 30 | I6: 0 | J6: 160 | K6: -1 | L6: -1 | M6: RCS2-SA3C-10-6
A7: 4 | B7: 500 | C7: 0 | D7: 6000 | E7: 6000 | F7: 3000 | G7: 125 | H7: 30 | I7: 0 | J7: 200 | K7: -1 | L7: -1 | M7: RCA2-SA4C-20-2.5
A8: 5 | B8: 500 | C8: 0 | D8: 4000 | E8: 4000 | F8: 1500 | G8: 250 | H8: 30 | I8: 0 | J8: 160 | K8: -1 | L8: -1 | M8: RCA2-SA4C-20-5
A9: 6 | B9: 500 | C9: 0 | D9: 2000 | E9: 2000 | F9: 1000 | G9: 500 | H9: 30 | I9: 0 | J9: 160 | K9: -1 | L9: -1 | M9: RCA2-SA4C-20-10
A10: 7 | B10: 550 | C10: 0 | D10: 8000 | E10: 9000 | F10: 3000 | G10: 150 | H10: 30 | I10: 0 | J10: 160 | K10: -1 | L10: =A11 -> 8 | M10: RCA2-SA5C-20-3
A11: 8 | B11: 600 | C11: 0 | D11: 8000 | E11: 9000 | F11: 3000 | G11: 140 | H11: 30 | I11: 0 | J11: 160 | K11: =A10 -> 7 | L11: =A12 -> 9
A12: 9 | B12: 650 | C12: 0 | D12: 8000 | E12: 9000 | F12: 3000 | G12: 120 | H12: 30 | I12: 0 | J12: 160 | K12: =A11 -> 8 | L12: =A13 -> 10
A13: 10 | B13: 700 | C13: 0 | D13: 8000 | E13: 9000 | F13: 3000 | G13: 105 | H13: 30 | I13: 0 | J13: 160 | K13: =A12 -> 9 | L13: =A14 -> 11
A14: 11 | B14: 750 | C14: 0 | D14: 8000 | E14: 9000 | F14: 3000 | G14: 90 | H14: 30 | I14: 0 | J14: 160 | K14: =A13 -> 10 | L14: =A15 -> 12
A15: 12 | B15: 800 | C15: 0 | D15: 8000 | E15: 9000 | F15: 3000 | G15: 80 | H15: 30 | I15: 0 | J15: 160 | K15: =A14 -> 11 | L15: -1
A16: 13 | B16: 550 | C16: 0 | D16: 6000 | E16: 6000 | F16: 1500 | G16: 300 | H16: 30 | I16: 0 | J16: 160 | K16: -1 | L16: =A17 -> 14 | M16: RCA2-SA5C-20-6
A17: 14 | B17: 600 | C17: 0 | D17: 6000 | E17: 6000 | F17: 1500 | G17: 285 | H17: 30 | I17: 0 | J17: 160 | K17: =A16 -> 13 | L17: =A18 -> 15
A18: 15 | B18: 650 | C18: 0 | D18: 6000 | E18: 6000 | F18: 1500 | G18: 245 | H18: 30 | I18: 0 | J18: 160 | K18: =A17 -> 14 | L18: =A19 -> 16
A19: 16 | B19: 700 | C19: 0 | D19: 6000 | E19: 6000 | F19: 1500 | G19: 210 | H19: 30 | I19: 0 | J19: 160 | K19: =A18 -> 15 | L19: =A20 -> 17
A20: 17 | B20: 750 | C20: 0 | D20: 6000 | E20: 6000 | F20: 1500 | G20: 185 | H20: 30 | I20: 0 | J20: 160 | K20: =A19 -> 16 | L20: =A21 -> 18
A21: 18 | B21: 800 | C21: 0 | D21: 6000 | E21: 6000 | F21: 1500 | G21: 165 | H21: 30 | I21: 0 | J21: 160 | K21: =A20 -> 17 | L21: -1
A22: 19 | B22: 550 | C22: 0 | D22: 3000 | E22: 3000 | F22: 1000 | G22: 600 | H22: 30 | I22: 0 | J22: 160 | K22: -1 | L22: =A23 -> 20 | M22: RCA2-SA5C-20-12
A23: 20 | B23: 600 | C23: 0 | D23: 3000 | E23: 3000 | F23: 1000 | G23: 570 | H23: 30 | I23: 0 | J23: 160 | K23: =A22 -> 19 | L23: =A24 -> 21
A24: 21 | B24: 650 | C24: 0 | D24: 3000 | E24: 3000 | F24: 1000 | G24: 490 | H24: 30 | I24: 0 | J24: 160 | K24: =A23 -> 20 | L24: =A25 -> 22
A25: 22 | B25: 700 | C25: 0 | D25: 3000 | E25: 3000 | F25: 1000 | G25: 425 | H25: 30 | I25: 0 | J25: 160 | K25: =A24 -> 21 | L25: =A26 -> 23
A26: 23 | B26: 750 | C26: 0 | D26: 3000 | E26: 3000 | F26: 1000 | G26: 370 | H26: 30 | I26: 0 | J26: 160 | K26: =A25 -> 22 | L26: =A27 -> 24
A27: 24 | B27: 800 | C27: 0 | D27: 3000 | E27: 3000 | F27: 1000 | G27: 330 | H27: 30 | I27: 0 | J27: 160 | K27: =A26 -> 23 | L27: -1
A28: 25 | B28: 550 | C28: 0 | D28: 12000 | E28: 10000 | F28: 4000 | G28: 150 | H28: 30 | I28: 0 | J28: 160 | K28: -1 | L28: =A29 -> 26 | M28: RCA2-SA6C-30-3
A29: 26 | B29: 600 | C29: 0 | D29: 12000 | E29: 10000 | F29: 4000 | G29: 140 | H29: 30 | I29: 0 | J29: 160 | K29: =A28 -> 25 | L29: =A30 -> 27
A30: 27 | B30: 650 | C30: 0 | D30: 12000 | E30: 10000 | F30: 4000 | G30: 120 | H30: 30 | I30: 0 | J30: 160 | K30: =A29 -> 26 | L30: =A31 -> 28
A31: 28 | B31: 700 | C31: 0 | D31: 12000 | E31: 10000 | F31: 4000 | G31: 105 | H31: 30 | I31: 0 | J31: 160 | K31: =A30 -> 27 | L31: =A32 -> 29
A32: 29 | B32: 750 | C32: 0 | D32: 12000 | E32: 10000 | F32: 4000 | G32: 90 | H32: 30 | I32: 0 | J32: 160 | K32: =A31 -> 28 | L32: =A33 -> 30
A33: 30 | B33: 800 | C33: 0 | D33: 12000 | E33: 10000 | F33: 4000 | G33: 80 | H33: 30 | I33: 0 | J33: 160 | K33: =A32 -> 29 | L33: -1
A34: 31 | B34: 550 | C34: 0 | D34: 8000 | E34: 7000 | F34: 2000 | G34: 300 | H34: 30 | I34: 0 | J34: 160 | K34: -1 | L34: =A35 -> 32 | M34: RCA2-SA6C-30-6
A35: 32 | B35: 600 | C35: 0 | D35: 8000 | E35: 7000 | F35: 2000 | G35: 285 | H35: 30 | I35: 0 | J35: 160 | K35: =A34 -> 31 | L35: =A36 -> 33
A36: 33 | B36: 650 | C36: 0 | D36: 8000 | E36: 7000 | F36: 2000 | G36: 245 | H36: 30 | I36: 0 | J36: 160 | K36: =A35 -> 32 | L36: =A37 -> 34
A37: 34 | B37: 700 | C37: 0 | D37: 8000 | E37: 7000 | F37: 2000 | G37: 210 | H37: 30 | I37: 0 | J37: 160 | K37: =A36 -> 33 | L37: =A38 -> 35
A38: 35 | B38: 750 | C38: 0 | D38: 8000 | E38: 7000 | F38: 2000 | G38: 185 | H38: 30 | I38: 0 | J38: 160 | K38: =A37 -> 34 | L38: =A39 -> 36
A39: 36 | B39: 800 | C39: 0 | D39: 8000 | E39: 7000 | F39: 2000 | G39: 165 | H39: 30 | I39: 0 | J39: 160 | K39: =A38 -> 35 | L39: -1
A40: 37 | B40: 550 | C40: 0 | D40: 5000 | E40: 4000 | F40: 1500 | G40: 600 | H40: 30 | I40: 0 | J40: 160 | K40: -1 | L40: =A41 -> 38 | M40: RCA2-SA6C-30-12
A41: 38 | B41: 600 | C41: 0 | D41: 5000 | E41: 4000 | F41: 1500 | G41: 570 | H41: 30 | I41: 0 | J41: 160 | K41: =A40 -> 37 | L41: =A42 -> 39
A42: 39 | B42: 650 | C42: 0 | D42: 5000 | E42: 4000 | F42: 1500 | G42: 490 | H42: 30 | I42: 0 | J42: 160 | K42: =A41 -> 38 | L42: =A43 -> 40
A43: 40 | B43: 700 | C43: 0 | D43: 5000 | E43: 4000 | F43: 1500 | G43: 425 | H43: 30 | I43: 0 | J43: 160 | K43: =A42 -> 39 | L43: =A44 -> 41
A44: 41 | B44: 750 | C44: 0 | D44: 5000 | E44: 4000 | F44: 1500 | G44: 370 | H44: 30 | I44: 0 | J44: 160 | K44: =A43 -> 40 | L44: =A45 -> 42
A45: 42 | B45: 800 | C45: 0 | D45: 5000 | E45: 4000 | F45: 1500 | G45: 330 | H45: 30 | I45: 0 | J45: 160 | K45: =A44 -> 41 | L45: -1
A46: 43 | B46: 300 | C46: 0 | D46: 3000 | E46: 3000 | F46: 1500 | G46: 100 | H46: 30 | I46: 0 | J46: 200 | K46: -1 | L46: -1 | M46: RCS2-SA3R-10-2
A47: 44 | B47: 300 | C47: 0 | D47: 2000 | E47: 2000 | F47: 1000 | G47: 200 | H47: 30 | I47: 0 | J47: 160 | K47: -1 | L47: -1 | M47: RCS2-SA3R-10-4
A48: 45 | B48: 300 | C48: 0 | D48: 1000 | E48: 1000 | F48: 500 | G48: 300 | H48: 30 | I48: 0 | J48: 160 | K48: -1 | L48: -1 | M48: RCS2-SA3R-10-6
A49: 46 | B49: 500 | C49: 0 | D49: 6000 | E49: 6000 | F49: 3000 | G49: 125 | H49: 30 | I49: 0 | J49: 200 | K49: -1 | L49: -1 | M49: RCA2-SA4R-20-2.5
A50: 47 | B50: 500 | C50: 0 | D50: 4000 | E50: 4000 | F50: 1500 | G50: 250 | H50: 30 | I50: 0 | J50: 160 | K50: -1 | L50: -1 | M50: RCA2-SA4R-20-5
A51: 48 | B51: 500 | C51: 0 | D51: 2000 | E51: 2000 | F51: 1000 | G51: 500 | H51: 30 | I51: 0 | J51: 160 | K51: -1 | L51: -1 | M51: RCA2-SA4R-20-10
A52: 49 | B52: 550 | C52: 0 | D52: 8000 | E52: 9000 | F52: 3000 | G52: 150 | H52: 30 | I52: 0 | J52: 160 | K52: -1 | L52: =A53 -> 50 | M52: RCA2-SA5R-20-3
A53: 50 | B53: 600 | C53: 0 | D53: 8000 | E53: 9000 | F53: 3000 | G53: 140 | H53: 30 | I53: 0 | J53: 160 | K53: =A52 -> 49 | L53: =A54 -> 51
A54: 51 | B54: 650 | C54: 0 | D54: 8000 | E54: 9000 | F54: 3000 | G54: 120 | H54: 30 | I54: 0 | J54: 160 | K54: =A53 -> 50 | L54: =A55 -> 52
A55: 52 | B55: 700 | C55: 0 | D55: 8000 | E55: 9000 | F55: 3000 | G55: 105 | H55: 30 | I55: 0 | J55: 160 | K55: =A54 -> 51 | L55: =A56 -> 53
A56: 53 | B56: 750 | C56: 0 | D56: 8000 | E56: 9000 | F56: 3000 | G56: 90 | H56: 30 | I56: 0 | J56: 160 | K56: =A55 -> 52 | L56: =A57 -> 54
A57: 54 | B57: 800 | C57: 0 | D57: 8000 | E57: 9000 | F57: 3000 | G57: 80 | H57: 30 | I57: 0 | J57: 160 | K57: =A56 -> 53 | L57: -1
A58: 55 | B58: 550 | C58: 0 | D58: 6000 | E58: 6000 | F58: 1500 | G58: 300 | H58: 30 | I58: 0 | J58: 160 | K58: -1 | L58: =A59 -> 56 | M58: RCA2-SA5R-20-6
A59: 56 | B59: 600 | C59: 0 | D59: 6000 | E59: 6000 | F59: 1500 | G59: 285 | H59: 30 | I59: 0 | J59: 160 | K59: =A58 -> 55 | L59: =A60 -> 57
A60: 57 | B60: 650 | C60: 0 | D60: 6000 | E60: 6000 | F60: 1500 | G60: 245 | H60: 30 | I60: 0 | J60: 160 | K60: =A59 -> 56 | L60: =A61 -> 58
A61: 58 | B61: 700 | C61: 0 | D61: 6000 | E61: 6000 | F61: 1500 | G61: 210 | H61: 30 | I61: 0 | J61: 160 | K61: =A60 -> 57 | L61: =A62 -> 59
A62: 59 | B62: 750 | C62: 0 | D62: 6000 | E62: 6000 | F62: 1500 | G62: 185 | H62: 30 | I62: 0 | J62: 160 | K62: =A61 -> 58 | L62: =A63 -> 60
A63: 60 | B63: 800 | C63: 0 | D63: 6000 | E63: 6000 | F63: 1500 | G63: 165 | H63: 30 | I63: 0 | J63: 160 | K63: =A62 -> 59 | L63: -1
A64: 61 | B64: 550 | C64: 0 | D64: 3000 | E64: 3000 | F64: 1000 | G64: 600 | H64: 30 | I64: 0 | J64: 160 | K64: -1 | L64: =A65 -> 62 | M64: RCA2-SA5R-20-12
A65: 62 | B65: 600 | C65: 0 | D65: 3000 | E65: 3000 | F65: 1000 | G65: 570 | H65: 30 | I65: 0 | J65: 160 | K65: =A64 -> 61 | L65: =A66 -> 63
A66: 63 | B66: 650 | C66: 0 | D66: 3000 | E66: 3000 | F66: 1000 | G66: 490 | H66: 30 | I66: 0 | J66: 160 | K66: =A65 -> 62 | L66: =A67 -> 64
A67: 64 | B67: 700 | C67: 0 | D67: 3000 | E67: 3000 | F67: 1000 | G67: 425 | H67: 30 | I67: 0 | J67: 160 | K67: =A66 -> 63 | L67: =A68 -> 65
A68: =A67+1 -> 65 | B68: 750 | C68: 0 | D68: 3000 | E68: 3000 | F68: 1000 | G68: 370 | H68: 30 | I68: 0 | J68: 160 | K68: =A67 -> 64 | L68: =A69 -> 66
A69: 66 | B69: 800 | C69: 0 | D69: 3000 | E69: 3000 | F69: 1000 | G69: 330 | H69: 30 | I69: 0 | J69: 160 | K69: =A68 -> 65 | L69: -1
A70: 67 | B70: 550 | C70: 0 | D70: 12000 | E70: 10000 | F70: 4000 | G70: 150 | H70: 30 | I70: 0 | J70: 160 | K70: -1 | L70: =A71 -> 68 | M70: RCA2-SA6R-30-3
A71: 68 | B71: 600 | C71: 0 | D71: 12000 | E71: 10000 | F71: 4000 | G71: 140 | H71: 30 | I71: 0 | J71: 160 | K71: =A70 -> 67 | L71: =A72 -> 69
A72: 69 | B72: 650 | C72: 0 | D72: 12000 | E72: 10000 | F72: 4000 | G72: 120 | H72: 30 | I72: 0 | J72: 160 | K72: =A71 -> 68 | L72: =A73 -> 70
A73: 70 | B73: 700 | C73: 0 | D73: 12000 | E73: 10000 | F73: 4000 | G73: 105 | H73: 30 | I73: 0 | J73: 160 | K73: =A72 -> 69 | L73: =A74 -> 71
A74: 71 | B74: 750 | C74: 0 | D74: 12000 | E74: 10000 | F74: 4000 | G74: 90 | H74: 30 | I74: 0 | J74: 160 | K74: =A73 -> 70 | L74: =A75 -> 72
A75: 72 | B75: 800 | C75: 0 | D75: 12000 | E75: 10000 | F75: 4000 | G75: 80 | H75: 30 | I75: 0 | J75: 160 | K75: =A74 -> 71 | L75: -1
A76: 73 | B76: 550 | C76: 0 | D76: 8000 | E76: 7000 | F76: 2000 | G76: 300 | H76: 30 | I76: 0 | J76: 160 | K76: -1 | L76: =A77 -> 74 | M76: RCA2-SA6R-30-6
A77: 74 | B77: 600 | C77: 0 | D77: 8000 | E77: 7000 | F77: 2000 | G77: 285 | H77: 30 | I77: 0 | J77: 160 | K77: =A76 -> 73 | L77: =A78 -> 75
A78: 75 | B78: 650 | C78: 0 | D78: 8000 | E78: 7000 | F78: 2000 | G78: 245 | H78: 30 | I78: 0 | J78: 160 | K78: =A77 -> 74 | L78: =A79 -> 76
A79: 76 | B79: 700 | C79: 0 | D79: 8000 | E79: 7000 | F79: 2000 | G79: 210 | H79: 30 | I79: 0 | J79: 160 | K79: =A78 -> 75 | L79: =A80 -> 77
A80: 77 | B80: 750 | C80: 0 | D80: 8000 | E80: 7000 | F80: 2000 | G80: 185 | H80: 30 | I80: 0 | J80: 160 | K80: =A79 -> 76 | L80: =A81 -> 78
A81: 78 | B81: 800 | C81: 0 | D81: 8000 | E81: 7000 | F81: 2000 | G81: 165 | H81: 30 | I81: 0 | J81: 160 | K81: =A80 -> 77 | L81: -1
A82: 79 | B82: 550 | C82: 0 | D82: 5000 | E82: 4000 | F82: 1500 | G82: 600 | H82: 30 | I82: 0 | J82: 160 | K82: -1 | L82: =A83 -> 80 | M82: RCA2-SA6R-30-12
A83: 80 | B83: 600 | C83: 0 | D83: 5000 | E83: 4000 | F83: 1500 | G83: 570 | H83: 30 | I83: 0 | J83: 160 | K83: =A82 -> 79 | L83: =A84 -> 81
A84: 81 | B84: 650 | C84: 0 | D84: 5000 | E84: 4000 | F84: 1500 | G84: 490 | H84: 30 | I84: 0 | J84: 160 | K84: =A83 -> 80 | L84: =A85 -> 82
A85: 82 | B85: 700 | C85: 0 | D85: 5000 | E85: 4000 | F85: 1500 | G85: 425 | H85: 30 | I85: 0 | J85: 160 | K85: =A84 -> 81 | L85: =A86 -> 83
A86: 83 | B86: 750 | C86: 0 | D86: 5000 | E86: 4000 | F86: 1500 | G86: 370 | H86: 30 | I86: 0 | J86: 160 | K86: =A85 -> 82 | L86: =A87 -> 84
A87: 84 | B87: 800 | C87: 0 | D87: 5000 | E87: 4000 | F87: 1500 | G87: 330 | H87: 30 | I87: 0 | J87: 160 | K87: =A86 -> 83 | L87: -1
A88: 85 | B88: 400 | C88: 0 | D88: 8000 | E88: 8000 | F88: 4500 | G88: 165 | H88: 30 | I88: 0 | J88: 160 | K88: -1 | L88: -1 | M88: RCA-SA4C-20-2.5
A89: 86 | B89: 400 | C89: 0 | D89: 6000 | E89: 6000 | F89: 2500 | G89: 330 | H89: 30 | I89: 0 | J89: 160 | K89: -1 | L89: -1 | M89: RCA-SA4C-20-5
A90: 87 | B90: 400 | C90: 0 | D90: 4000 | E90: 4000 | F90: 1000 | G90: 665 | H90: 30 | I90: 0 | J90: 160 | K90: -1 | L90: -1 | M90: RCA-SA4C-20-10
A91: 88 | B91: 450 | C91: 0 | D91: 12000 | E91: 12000 | F91: 4000 | G91: 200 | H91: 30 | I91: 0 | J91: 160 | K91: -1 | L91: =A92 -> 89 | M91: RCA-SA5C-20-3
A92: 89 | B92: 500 | C92: 0 | D92: 12000 | E92: 12000 | F92: 4000 | G92: 190 | H92: 30 | I92: 0 | J92: 160 | K92: =A91 -> 88 | L92: -1
A93: 90 | B93: 450 | C93: 0 | D93: 8000 | E93: 8000 | F93: 2000 | G93: 400 | H93: 30 | I93: 0 | J93: 160 | K93: -1 | L93: =A94 -> 91 | M93: RCA-SA5C-20-6
A94: 91 | B94: 500 | C94: 0 | D94: 8000 | E94: 8000 | F94: 2000 | G94: 380 | H94: 30 | I94: 0 | J94: 160 | K94: =A93 -> 90 | L94: -1
A95: 92 | B95: 450 | C95: 0 | D95: 4000 | E95: 4000 | F95: 1000 | G95: 800 | H95: 30 | I95: 0 | J95: 120 | K95: -1 | L95: =A96 -> 93 | M95: RCA-SA5C-20-12
A96: 93 | B96: 500 | C96: 0 | D96: 4000 | E96: 4000 | F96: 1000 | G96: 760 | H96: 30 | I96: 0 | J96: 120 | K96: =A95 -> 92 | L96: -1
A97: 94 | B97: 500 | C97: 0 | D97: 2000 | E97: 2000 | F97: 500 | G97: 1300 | H97: 30 | I97: 0 | J97: 120 | K97: -1 | L97: -1 | M97: RCA-SA5C-20-20
A98: 95 | B98: 450 | C98: 0 | D98: 18000 | E98: 18000 | F98: 6000 | G98: 200 | H98: 30 | I98: 0 | J98: 160 | K98: -1 | L98: =A99 -> 96 | M98: RCA-SA6C-30-3
A99: 96 | B99: 500 | C99: 0 | D99: 18000 | E99: 18000 | F99: 6000 | G99: 190 | H99: 30 | I99: 0 | J99: 160 | K99: =A98 -> 95 | L99: =A100 -> 97
A100: 97 | B100: 550 | C100: 0 | D100: 18000 | E100: 18000 | F100: 6000 | G100: 160 | H100: 30 | I100: 0 | J100: 160 | K100: =A99 -> 96 | L100: =A101 -> 98
A101: 98 | B101: 600 | C101: 0 | D101: 18000 | E101: 18000 | F101: 6000 | G101: 135 | H101: 30 | I101: 0 | J101: 160 | K101: =A100 -> 97 | L101: -1
A102: 99 | B102: 450 | C102: 0 | D102: 12000 | E102: 12000 | F102: 3000 | G102: 400 | H102: 30 | I102: 0 | J102: 160 | K102: -1 | L102: =A103 -> 100 | M102: RCA-SA6C-30-6
A103: 100 | B103: 500 | C103: 0 | D103: 12000 | E103: 12000 | F103: 3000 | G103: 380 | H103: 30 | I103: 0 | J103: 160 | K103: =A102 -> 99 | L103: =A104 -> 101
A104: 101 | B104: 550 | C104: 0 | D104: 12000 | E104: 12000 | F104: 3000 | G104: 320 | H104: 30 | I104: 0 | J104: 160 | K104: =A103 -> 100 | L104: =A105 -> 102
A105: 102 | B105: 600 | C105: 0 | D105: 12000 | E105: 12000 | F105: 3000 | G105: 270 | H105: 30 | I105: 0 | J105: 160 | K105: =A104 -> 101 | L105: -1
A106: 103 | B106: 450 | C106: 0 | D106: 6000 | E106: 6000 | F106: 1500 | G106: 800 | H106: 30 | I106: 0 | J106: 160 | K106: -1 | L106: =A107 -> 104 | M106: RCA-SA6C-30-12
A107: 104 | B107: 500 | C107: 0 | D107: 6000 | E107: 6000 | F107: 1500 | G107: 760 | H107: 30 | I107: 0 | J107: 160 | K107: =A106 -> 103 | L107: =A108 -> 105
A108: 105 | B108: 550 | C108: 0 | D108: 6000 | E108: 6000 | F108: 1500 | G108: 640 | H108: 30 | I108: 0 | J108: 160 | K108: =A107 -> 104 | L108: =A109 -> 106
A109: 106 | B109: 600 | C109: 0 | D109: 6000 | E109: 6000 | F109: 1500 | G109: 540 | H109: 30 | I109: 0 | J109: 160 | K109: =A108 -> 105 | L109: -1
A110: 107 | B110: 500 | C110: 0 | D110: 3000 | E110: 3000 | F110: 500 | G110: 1300 | H110: 30 | I110: 0 | J110: 120 | K110: -1 | L110: =A111 -> 108 | M110: RCA-SA6C-20-20
A111: 108 | B111: 550 | C111: 0 | D111: 3000 | E111: 3000 | F111: 500 | G111: 1160 | H111: 30 | I111: 0 | J111: 120 | K111: =A110 -> 107 | L111: =A112 -> 109
A112: 109 | B112: 600 | C112: 0 | D112: 3000 | E112: 3000 | F112: 500 | G112: 990 | H112: 30 | I112: 0 | J112: 120 | K112: =A111 -> 108 | L112: -1
A113: 110 | B113: 300 | C113: 0 | D113: 8000 | E113: 8000 | F113: 4500 | G113: 165 | H113: 30 | I113: 0 | J113: 160 | K113: -1 | L113: -1 | M113: RCA-SA4D-20-2.5
A114: 111 | B114: 300 | C114: 0 | D114: 6000 | E114: 6000 | F114: 2500 | G114: 330 | H114: 30 | I114: 0 | J114: 160 | K114: -1 | L114: -1 | M114: RCA-SA4D-20-5
A115: 112 | B115: 300 | C115: 0 | D115: 4000 | E115: 4000 | F115: 1000 | G115: 665 | H115: 30 | I115: 0 | J115: 160 | K115: -1 | L115: -1 | M115: RCA-SA4D-20-10
A116: 113 | B116: 450 | C116: 0 | D116: 12000 | E116: 12000 | F116: 4000 | G116: 200 | H116: 30 | I116: 0 | J116: 160 | K116: -1 | L116: =A117 -> 114 | M116: RCA-SA5D-20-3
A117: 114 | B117: 500 | C117: 0 | D117: 12000 | E117: 12000 | F117: 4000 | G117: 190 | H117: 30 | I117: 0 | J117: 160 | K117: =A116 -> 113 | L117: -1
A118: 115 | B118: 450 | C118: 0 | D118: 8000 | E118: 8000 | F118: 2000 | G118: 400 | H118: 30 | I118: 0 | J118: 160 | K118: -1 | L118: =A119 -> 116 | M118: RCA-SA5D-20-6
A119: 116 | B119: 500 | C119: 0 | D119: 8000 | E119: 8000 | F119: 2000 | G119: 380 | H119: 30 | I119: 0 | J119: 160 | K119: =A118 -> 115 | L119: -1
A120: 117 | B120: 450 | C120: 0 | D120: 4000 | E120: 4000 | F120: 1000 | G120: 800 | H120: 30 | I120: 0 | J120: 120 | K120: -1 | L120: =A121 -> 118 | M120: RCA-SA5D-20-12
A121: 118 | B121: 500 | C121: 0 | D121: 4000 | E121: 4000 | F121: 1000 | G121: 760 | H121: 30 | I121: 0 | J121: 120 | K121: =A120 -> 117 | L121: -1
A122: 119 | B122: 450 | C122: 0 | D122: 18000 | E122: 18000 | F122: 6000 | G122: 200 | H122: 30 | I122: 0 | J122: 160 | K122: -1 | L122: =A123 -> 120 | M122: RCA-SA6D-30-3
A123: 120 | B123: 500 | C123: 0 | D123: 18000 | E123: 18000 | F123: 6000 | G123: 190 | H123: 30 | I123: 0 | J123: 160 | K123: =A122 -> 119 | L123: =A124 -> 121
A124: 121 | B124: 550 | C124: 0 | D124: 18000 | E124: 18000 | F124: 6000 | G124: 160 | H124: 30 | I124: 0 | J124: 160 | K124: =A123 -> 120 | L124: =A125 -> 122
A125: 122 | B125: 600 | C125: 0 | D125: 18000 | E125: 18000 | F125: 6000 | G125: 135 | H125: 30 | I125: 0 | J125: 160 | K125: =A124 -> 121 | L125: -1
A126: 123 | B126: 450 | C126: 0 | D126: 12000 | E126: 12000 | F126: 3000 | G126: 400 | H126: 30 | I126: 0 | J126: 160 | K126: -1 | L126: =A127 -> 124 | M126: RCA-SA6D-30-6
A127: 124 | B127: 500 | C127: 0 | D127: 12000 | E127: 12000 | F127: 3000 | G127: 380 | H127: 30 | I127: 0 | J127: 160 | K127: =A126 -> 123 | L127: =A128 -> 125
A128: 125 | B128: 550 | C128: 0 | D128: 12000 | E128: 12000 | F128: 3000 | G128: 320 | H128: 30 | I128: 0 | J128: 160 | K128: =A127 -> 124 | L128: =A129 -> 126
A129: 126 | B129: 600 | C129: 0 | D129: 12000 | E129: 12000 | F129: 3000 | G129: 270 | H129: 30 | I129: 0 | J129: 160 | K129: =A128 -> 125 | L129: -1
A130: 127 | B130: 450 | C130: 0 | D130: 6000 | E130: 6000 | F130: 1500 | G130: 800 | H130: 30 | I130: 0 | J130: 160 | K130: -1 | L130: =A131 -> 128 | M130: RCA-SA6D-30-12
A131: 128 | B131: 500 | C131: 0 | D131: 6000 | E131: 6000 | F131: 1500 | G131: 760 | H131: 30 | I131: 0 | J131: 160 | K131: =A130 -> 127 | L131: =A132 -> 129
A132: =A131+1 -> 129 | B132: 550 | C132: 0 | D132: 6000 | E132: 6000 | F132: 1500 | G132: 640 | H132: 30 | I132: 0 | J132: 160 | K132: =A131 -> 128 | L132: =A133 -> 130
A133: 130 | B133: 600 | C133: 0 | D133: 6000 | E133: 6000 | F133: 1500 | G133: 540 | H133: 30 | I133: 0 | J133: 160 | K133: =A132 -> 129 | L133: -1
A134: 131 | B134: 300 | C134: 0 | D134: 8000 | E134: 8000 | F134: 4500 | G134: 165 | H134: 30 | I134: 0 | J134: 160 | K134: -1 | L134: -1 | M134: RCA-SS4D-20-2.5
A135: 132 | B135: 300 | C135: 0 | D135: 6000 | E135: 6000 | F135: 2500 | G135: 330 | H135: 30 | I135: 0 | J135: 160 | K135: -1 | L135: -1 | M135: RCA-SS4D-20-5
A136: 133 | B136: 300 | C136: 0 | D136: 4000 | E136: 4000 | F136: 1000 | G136: 665 | H136: 30 | I136: 0 | J136: 160 | K136: -1 | L136: -1 | M136: RCA-SS4D-20-10
A137: 134 | B137: 450 | C137: 0 | D137: 12000 | E137: 12000 | F137: 4000 | G137: 200 | H137: 30 | I137: 0 | J137: 160 | K137: -1 | L137: =A138 -> 135 | M137: RCA-SS5D-20-3
A138: 135 | B138: 500 | C138: 0 | D138: 12000 | E138: 12000 | F138: 4000 | G138: 190 | H138: 30 | I138: 0 | J138: 160 | K138: =A137 -> 134 | L138: -1
A139: 136 | B139: 450 | C139: 0 | D139: 8000 | E139: 8000 | F139: 2000 | G139: 400 | H139: 30 | I139: 0 | J139: 160 | K139: -1 | L139: =A140 -> 137 | M139: RCA-SS5D-20-6
A140: 137 | B140: 500 | C140: 0 | D140: 8000 | E140: 8000 | F140: 2000 | G140: 380 | H140: 30 | I140: 0 | J140: 160 | K140: =A139 -> 136 | L140: -1
A141: 138 | B141: 450 | C141: 0 | D141: 4000 | E141: 4000 | F141: 1000 | G141: 800 | H141: 30 | I141: 0 | J141: 120 | K141: -1 | L141: =A142 -> 139 | M141: RCA-SS5D-20-12
A142: 139 | B142: 500 | C142: 0 | D142: 4000 | E142: 4000 | F142: 1000 | G142: 760 | H142: 30 | I142: 0 | J142: 120 | K142: =A141 -> 138 | L142: -1
A143: 140 | B143: 450 | C143: 0 | D143: 18000 | E143: 18000 | F143: 6000 | G143: 200 | H143: 30 | I143: 0 | J143: 160 | K143: -1 | L143: =A144 -> 141 | M143: RCA-SS6D-30-3
A144: 141 | B144: 500 | C144: 0 | D144: 18000 | E144: 18000 | F144: 6000 | G144: 190 | H144: 30 | I144: 0 | J144: 160 | K144: =A143 -> 140 | L144: =A145 -> 142
A145: 142 | B145: 550 | C145: 0 | D145: 18000 | E145: 18000 | F145: 6000 | G145: 160 | H145: 30 | I145: 0 | J145: 160 | K145: =A144 -> 141 | L145: =A146 -> 143
A146: 143 | B146: 600 | C146: 0 | D146: 18000 | E146: 18000 | F146: 6000 | G146: 135 | H146: 30 | I146: 0 | J146: 160 | K146: =A145 -> 142 | L146: -1
A147: 144 | B147: 450 | C147: 0 | D147: 12000 | E147: 12000 | F147: 3000 | G147: 400 | H147: 30 | I147: 0 | J147: 160 | K147: -1 | L147: =A148 -> 145 | M147: RCA-SS6D-30-6
A148: 145 | B148: 500 | C148: 0 | D148: 12000 | E148: 12000 | F148: 3000 | G148: 380 | H148: 30 | I148: 0 | J148: 160 | K148: =A147 -> 144 | L148: =A149 -> 146
A149: 146 | B149: 550 | C149: 0 | D149: 12000 | E149: 12000 | F149: 3000 | G149: 320 | H149: 30 | I149: 0 | J149: 160 | K149: =A148 -> 145 | L149: =A150 -> 147
A150: 147 | B150: 600 | C150: 0 | D150: 12000 | E150: 12000 | F150: 3000 | G150: 270 | H150: 30 | I150: 0 | J150: 160 | K150: =A149 -> 146 | L150: -1
A151: 148 | B151: 450 | C151: 0 | D151: 6000 | E151: 6000 | F151: 1500 | G151: 800 | H151: 30 | I151: 0 | J151: 160 | K151: -1 | L151: =A152 -> 149 | M151: RCA-SS6D-30-12
A152: 149 | B152: 500 | C152: 0 | D152: 6000 | E152: 6000 | F152: 1500 | G152: 760 | H152: 30 | I152: 0 | J152: 160 | K152: =A151 -> 148 | L152: =A153 -> 150
A153: 150 | B153: 550 | C153: 0 | D153: 6000 | E153: 6000 | F153: 1500 | G153: 640 | H153: 30 | I153: 0 | J153: 160 | K153: =A152 -> 149 | L153: =A154 -> 151
A154: 151 | B154: 600 | C154: 0 | D154: 6000 | E154: 6000 | F154: 1500 | G154: 540 | H154: 30 | I154: 0 | J154: 160 | K154: =A153 -> 150 | L154: -1
A155: 152 | B155: 400 | C155: 0 | D155: 8000 | E155: 8000 | F155: 4500 | G155: 165 | H155: 30 | I155: 0 | J155: 160 | K155: -1 | L155: -1 | M155: RCA-SA4R-20-2.5
A156: 153 | B156: 400 | C156: 0 | D156: 6000 | E156: 6000 | F156: 2500 | G156: 330 | H156: 30 | I156: 0 | J156: 160 | K156: -1 | L156: -1 | M156: RCA-SA4R-20-5
A157: 154 | B157: 400 | C157: 0 | D157: 4000 | E157: 4000 | F157: 1000 | G157: 665 | H157: 30 | I157: 0 | J157: 160 | K157: -1 | L157: -1 | M157: RCA-SA4R-20-10
A158: 155 | B158: 450 | C158: 0 | D158: 12000 | E158: 12000 | F158: 4000 | G158: 200 | H158: 30 | I158: 0 | J158: 160 | K158: -1 | L158: =A159 -> 156 | M158: RCA-SA5R-20-3
A159: 156 | B159: 500 | C159: 0 | D159: 12000 | E159: 12000 | F159: 4000 | G159: 190 | H159: 30 | I159: 0 | J159: 160 | K159: =A158 -> 155 | L159: -1
A160: 157 | B160: 450 | C160: 0 | D160: 8000 | E160: 8000 | F160: 2000 | G160: 400 | H160: 30 | I160: 0 | J160: 160 | K160: -1 | L160: =A161 -> 158 | M160: RCA-SA5R-20-6
A161: 158 | B161: 500 | C161: 0 | D161: 8000 | E161: 8000 | F161: 2000 | G161: 380 | H161: 30 | I161: 0 | J161: 160 | K161: =A160 -> 157 | L161: -1
A162: 159 | B162: 450 | C162: 0 | D162: 4000 | E162: 4000 | F162: 1000 | G162: 800 | H162: 30 | I162: 0 | J162: 120 | K162: -1 | L162: =A163 -> 160 | M162: RCA-SA5R-20-12
A163: 160 | B163: 500 | C163: 0 | D163: 4000 | E163: 4000 | F163: 1000 | G163: 760 | H163: 30 | I163: 0 | J163: 120 | K163: =A162 -> 159 | L163: -1
A164: 161 | B164: 450 | C164: 0 | D164: 18000 | E164: 18000 | F164: 6000 | G164: 200 | H164: 30 | I164: 0 | J164: 160 | K164: -1 | L164: =A165 -> 162 | M164: RCA-SA6R-30-3
A165: 162 | B165: 500 | C165: 0 | D165: 18000 | E165: 18000 | F165: 6000 | G165: 190 | H165: 30 | I165: 0 | J165: 160 | K165: =A164 -> 161 | L165: =A166 -> 163
A166: 163 | B166: 550 | C166: 0 | D166: 18000 | E166: 18000 | F166: 6000 | G166: 160 | H166: 30 | I166: 0 | J166: 160 | K166: =A165 -> 162 | L166: =A167 -> 164
A167: 164 | B167: 600 | C167: 0 | D167: 18000 | E167: 18000 | F167: 6000 | G167: 135 | H167: 30 | I167: 0 | J167: 160 | K167: =A166 -> 163 | L167: -1
A168: 165 | B168: 450 | C168: 0 | D168: 12000 | E168: 12000 | F168: 3000 | G168: 400 | H168: 30 | I168: 0 | J168: 160 | K168: -1 | L168: =A169 -> 166 | M168: RCA-SA6R-30-6
A169: 166 | B169: 500 | C169: 0 | D169: 12000 | E169: 12000 | F169: 3000 | G169: 380 | H169: 30 | I169: 0 | J169: 160 | K169: =A168 -> 165 | L169: =A170 -> 167
A170: 167 | B170: 550 | C170: 0 | D170: 12000 | E170: 12000 | F170: 3000 | G170: 320 | H170: 30 | I170: 0 | J170: 160 | K170: =A169 -> 166 | L170: =A171 -> 168
A171: 168 | B171: 600 | C171: 0 | D171: 12000 | E171: 12000 | F171: 3000 | G171: 270 | H171: 30 | I171: 0 | J171: 160 | K171: =A170 -> 167 | L171: -1
A172: 169 | B172: 450 | C172: 0 | D172: 6000 | E172: 6000 | F172: 1500 | G172: 800 | H172: 30 | I172: 0 | J172: 160 | K172: -1 | L172: =A173 -> 170 | M172: RCA-SA6R-30-12
A173: 170 | B173: 500 | C173: 0 | D173: 6000 | E173: 6000 | F173: 1500 | G173: 760 | H173: 30 | I173: 0 | J173: 160 | K173: =A172 -> 169 | L173: =A174 -> 171
A174: 171 | B174: 550 | C174: 0 | D174: 6000 | E174: 6000 | F174: 1500 | G174: 640 | H174: 30 | I174: 0 | J174: 160 | K174: =A173 -> 170 | L174: =A175 -> 172
A175: 172 | B175: 600 | C175: 0 | D175: 6000 | E175: 6000 | F175: 1500 | G175: 540 | H175: 30 | I175: 0 | J175: 160 | K175: =A174 -> 171 | L175: -1
A176: 173 | B176: 50 | C176: 0 | D176: 1000 | E176: 3000 | F176: 1000 | G176: 50 | H176: 30 | I176: 0 | J176: 300 | K176: -1 | L176: -1 | M176: RCS2-RN3NA-10-1
A177: 174 | B177: 50 | C177: 0 | D177: 500 | E177: 1500 | F177: 500 | G177: 100 | H177: 30 | I177: 0 | J177: 300 | K177: -1 | L177: -1 | M177: RCS2-RN3NA-10-2
A178: 175 | B178: 50 | C178: 0 | D178: 250 | E178: 750 | F178: 250 | G178: 200 | H178: 50 | I178: 50 | J178: 300 | K178: -1 | L178: -1 | M178: RCS2-RN3NA-10-4
A179: 176 | B179: 50 | C179: 0 | D179: 1000 | E179: 1000 | F179: 500 | G179: 50 | H179: 30 | I179: 0 | J179: 300 | K179: -1 | L179: -1 | M179: RCS2-RN3NA-10-1S
A180: 177 | B180: 50 | C180: 0 | D180: 500 | E180: 500 | F180: 250 | G180: 100 | H180: 30 | I180: 0 | J180: 300 | K180: -1 | L180: -1 | M180: RCS2-RN3NA-10-2S
A181: 178 | B181: 50 | C181: 0 | D181: 250 | E181: 250 | F181: 125 | G181: 200 | H181: 50 | I181: 50 | J181: 300 | K181: -1 | L181: -1 | M181: RCS2-RN3NA-10-4S
A182: 179 | B182: 50 | C182: 0 | D182: 6000 | E182: 6000 | F182: 1500 | G182: 100 | H182: 30 | I182: 0 | J182: 280 | K182: -1 | L182: -1 | M182: RCS2-RN4NA-20-2
A183: 180 | B183: 50 | C183: 0 | D183: 3000 | E183: 3000 | F183: 750 | G183: 200 | H183: 50 | I183: 50 | J183: 280 | K183: -1 | L183: -1 | M183: RCS2-RN4NA-20-4
A184: 181 | B184: 50 | C184: 0 | D184: 2000 | E184: 2000 | F184: 500 | G184: 300 | H184: 50 | I184: 50 | J184: 280 | K184: -1 | L184: -1 | M184: RCS2-RN4NA-20-6
A185: 182 | B185: 50 | C185: 0 | D185: 1000 | E185: 1000 | F185: 500 | G185: 100 | H185: 30 | I185: 0 | J185: 280 | K185: -1 | L185: -1 | M185: RCS2-RN4NA-20-2S
A186: 183 | B186: 50 | C186: 0 | D186: 500 | E186: 500 | F186: 250 | G186: 200 | H186: 50 | I186: 50 | J186: 280 | K186: -1 | L186: -1 | M186: RCS2-RN4NA-20-4S
A187: 184 | B187: 50 | C187: 0 | D187: 250 | E187: 250 | F187: 125 | G187: 300 | H187: 50 | I187: 50 | J187: 280 | K187: -1 | L187: -1 | M187: RCS2-RN4NA-20-6S
A188: 185 | B188: 50 | C188: 0 | D188: 1000 | E188: 3000 | F188: 1000 | G188: 50 | H188: 30 | I188: 0 | J188: 300 | K188: -1 | L188: -1 | M188: RCS2-RP3NA-10-1
A189: 186 | B189: 50 | C189: 0 | D189: 500 | E189: 1500 | F189: 500 | G189: 100 | H189: 30 | I189: 0 | J189: 300 | K189: -1 | L189: -1 | M189: RCS2-RP3NA-10-2
A190: 187 | B190: 50 | C190: 0 | D190: 250 | E190: 750 | F190: 250 | G190: 200 | H190: 50 | I190: 50 | J190: 300 | K190: -1 | L190: -1 | M190: RCS2-RP3NA-10-4
A191: 188 | B191: 50 | C191: 0 | D191: 1000 | E191: 1000 | F191: 500 | G191: 50 | H191: 30 | I191: 0 | J191: 300 | K191: -1 | L191: -1 | M191: RCS2-RP3NA-10-1S
A192: 189 | B192: 50 | C192: 0 | D192: 500 | E192: 500 | F192: 250 | G192: 100 | H192: 30 | I192: 0 | J192: 300 | K192: -1 | L192: -1 | M192: RCS2-RP3NA-10-2S
A193: 190 | B193: 50 | C193: 0 | D193: 250 | E193: 250 | F193: 125 | G193: 200 | H193: 50 | I193: 50 | J193: 300 | K193: -1 | L193: -1 | M193: RCS2-RP3NA-10-4S
A194: 191 | B194: 50 | C194: 0 | D194: 6000 | E194: 6000 | F194: 1500 | G194: 100 | H194: 30 | I194: 0 | J194: 280 | K194: -1 | L194: -1 | M194: RCS2-RP4NA-20-2
A195: 192 | B195: 50 | C195: 0 | D195: 3000 | E195: 3000 | F195: 750 | G195: 200 | H195: 50 | I195: 50 | J195: 280 | K195: -1 | L195: -1 | M195: RCS2-RP4NA-20-4
A196: =A195+1 -> 193 | B196: 50 | C196: 0 | D196: 2000 | E196: 2000 | F196: 500 | G196: 300 | H196: 50 | I196: 50 | J196: 280 | K196: -1 | L196: -1 | M196: RCS2-RP4NA-20-6
A197: 194 | B197: 50 | C197: 0 | D197: 1000 | E197: 1000 | F197: 500 | G197: 100 | H197: 30 | I197: 0 | J197: 280 | K197: -1 | L197: -1 | M197: RCS2-RP4NA-20-2S
A198: 195 | B198: 50 | C198: 0 | D198: 500 | E198: 500 | F198: 250 | G198: 200 | H198: 50 | I198: 50 | J198: 280 | K198: -1 | L198: -1 | M198: RCS2-RP4NA-20-4S
A199: 196 | B199: 50 | C199: 0 | D199: 250 | E199: 250 | F199: 125 | G199: 300 | H199: 50 | I199: 50 | J199: 280 | K199: -1 | L199: -1 | M199: RCS2-RP4NA-20-6S
A200: 197 | B200: 50 | C200: 0 | D200: 1000 | E200: 3000 | F200: 1000 | G200: 50 | H200: 30 | I200: 0 | J200: 300 | K200: -1 | L200: -1 | M200: RCS2-GS3NA-10-1
... 204 more rows

Sheet MassDataLink (hidden)
B1: 1 | C1: 2 | D1: 3 | E1: 4 | F1: 5 | H1: 1000
A2: ﾃﾞｰﾀ№ | B2: ｱｸﾁｭｴｰﾀ姿勢 | C2: 搬送負荷質量 | D2: 加減速・速度ﾃﾞｰﾀ | E2: 前ﾃﾞｰﾀ№ | F2: 次ﾃﾞｰﾀ№ | G2: 備考
A3: =ModelData!A3 -> 0 | B3: 0/1 | C3: 1g | D3: ﾚｺｰﾄﾞ№ | E3: ﾚｺｰﾄﾞ№ | F3: ﾚｺｰﾄﾞ№ | G3: 型式-姿勢 | H3: 質量 | I3: 前№ﾁｪｯｸ | J3: 後№ﾁｪｯｸ
A4: =A3+1 -> 1 | B4: 0 | C4: =H4*$H$1 -> 3000 | D4: =AccVelDataLink!A4 -> 1 | E4: -1 | F4: =A5 -> 2 | G4: =AccVelDataLink!F4 -> RCS2-SA3C-10-2-水平 | H4: =AccVelDataLink!G4 -> 3 | I4: =IF(E4=A3,"○",IF(G4=0,"つなぎまちがい","先頭")) -> 先頭 | J4: =IF(F4=A5,"○",IF(F4<>E5,"つなぎまちがい","終端")) -> ○
A5: 2 | B5: 1 | C5: 1500 | D5: =AccVelDataLink!A5 -> 2 | E5: =A4 -> 1 | F5: -1 | G5: =AccVelDataLink!F5 -> RCS2-SA3C-10-2-垂直 | H5: =AccVelDataLink!G5 -> 1.5 | I5: ○ | J5: 終端
A6: 3 | B6: 0 | C6: 2000 | D6: =AccVelDataLink!A6 -> 3 | E6: -1 | F6: 4 | G6: =AccVelDataLink!F6 -> RCS2-SA3C-10-4-水平 | H6: =AccVelDataLink!G6 -> 2 | I6: 先頭 | J6: ○
A7: 4 | B7: 1 | C7: 1000 | D7: =AccVelDataLink!A7 -> 4 | E7: 3 | F7: -1 | G7: =AccVelDataLink!F7 -> RCS2-SA3C-10-4-垂直 | H7: =AccVelDataLink!G7 -> 1 | I7: ○ | J7: 終端
A8: 5 | B8: 0 | C8: 1000 | D8: =AccVelDataLink!A8 -> 5 | E8: -1 | F8: 6 | G8: =AccVelDataLink!F8 -> RCS2-SA3C-10-6-水平 | H8: =AccVelDataLink!G8 -> 1 | I8: 先頭 | J8: ○
A9: 6 | B9: 1 | C9: 500 | D9: =AccVelDataLink!A9 -> 6 | E9: 5 | F9: -1 | G9: =AccVelDataLink!F9 -> RCS2-SA3C-10-6-垂直 | H9: =AccVelDataLink!G9 -> 0.5 | I9: ○ | J9: 終端
A10: 7 | B10: 0 | C10: 6000 | D10: =AccVelDataLink!A10 -> 7 | E10: -1 | F10: 8 | G10: =AccVelDataLink!F10 -> RCA2-SA4C-20-2.5-水平 | H10: =AccVelDataLink!G10 -> 6 | I10: 先頭 | J10: ○
A11: 8 | B11: 1 | C11: 3000 | D11: =AccVelDataLink!A11 -> 8 | E11: 7 | F11: -1 | G11: =AccVelDataLink!F11 -> RCA2-SA4C-20-2.5-垂直 | H11: =AccVelDataLink!G11 -> 3 | I11: ○ | J11: 終端
A12: 9 | B12: 0 | C12: 4000 | D12: =AccVelDataLink!A12 -> 9 | E12: -1 | F12: 10 | G12: =AccVelDataLink!F12 -> RCA2-SA4C-20-5-水平 | H12: =AccVelDataLink!G12 -> 4 | I12: 先頭 | J12: ○
A13: 10 | B13: 1 | C13: 1500 | D13: =AccVelDataLink!A13 -> 10 | E13: 9 | F13: -1 | G13: =AccVelDataLink!F13 -> RCA2-SA4C-20-5-垂直 | H13: =AccVelDataLink!G13 -> 1.5 | I13: ○ | J13: 終端
A14: 11 | B14: 0 | C14: 2000 | D14: =AccVelDataLink!A14 -> 11 | E14: -1 | F14: 12 | G14: =AccVelDataLink!F14 -> RCA2-SA4C-20-10-水平 | H14: =AccVelDataLink!G14 -> 2 | I14: 先頭 | J14: ○
A15: 12 | B15: 1 | C15: 1000 | D15: =AccVelDataLink!A15 -> 12 | E15: 11 | F15: -1 | G15: =AccVelDataLink!F15 -> RCA2-SA4C-20-10-垂直 | H15: =AccVelDataLink!G15 -> 1 | I15: ○ | J15: 終端
A16: 13 | B16: 0 | C16: 9000 | D16: =AccVelDataLink!A16 -> 13 | E16: -1 | F16: 14 | G16: =AccVelDataLink!F16 -> RCA2-SA5C-20-3-水平 | H16: =AccVelDataLink!G16 -> 9 | I16: 先頭 | J16: ○
A17: 14 | B17: 1 | C17: 3000 | D17: =AccVelDataLink!A17 -> 14 | E17: 13 | F17: -1 | G17: =AccVelDataLink!F17 -> RCA2-SA5C-20-3-垂直 | H17: =AccVelDataLink!G17 -> 3 | I17: ○ | J17: 終端
A18: 15 | B18: 0 | C18: 6000 | D18: =AccVelDataLink!A18 -> 15 | E18: -1 | F18: 16 | G18: =AccVelDataLink!F18 -> RCA2-SA5C-20-6-水平 | H18: =AccVelDataLink!G18 -> 6 | I18: 先頭 | J18: ○
A19: 16 | B19: 1 | C19: 1500 | D19: =AccVelDataLink!A19 -> 16 | E19: 15 | F19: -1 | G19: =AccVelDataLink!F19 -> RCA2-SA5C-20-6-垂直 | H19: =AccVelDataLink!G19 -> 1.5 | I19: ○ | J19: 終端
A20: 17 | B20: 0 | C20: 3000 | D20: =AccVelDataLink!A20 -> 17 | E20: -1 | F20: 18 | G20: =AccVelDataLink!F20 -> RCA2-SA5C-20-12-水平 | H20: =AccVelDataLink!G20 -> 3 | I20: 先頭 | J20: ○
A21: 18 | B21: 1 | C21: 1000 | D21: =AccVelDataLink!A21 -> 18 | E21: 17 | F21: -1 | G21: =AccVelDataLink!F21 -> RCA2-SA5C-20-12-垂直 | H21: =AccVelDataLink!G21 -> 1 | I21: ○ | J21: 終端
A22: 19 | B22: 0 | C22: 10000 | D22: =AccVelDataLink!A22 -> 19 | E22: -1 | F22: 20 | G22: =AccVelDataLink!F22 -> RCA2-SA6C-30-3-水平 | H22: =AccVelDataLink!G22 -> 10 | I22: 先頭 | J22: ○
A23: 20 | B23: 1 | C23: 4000 | D23: =AccVelDataLink!A23 -> 20 | E23: 19 | F23: -1 | G23: =AccVelDataLink!F23 -> RCA2-SA6C-30-3-垂直 | H23: =AccVelDataLink!G23 -> 4 | I23: ○ | J23: 終端
A24: 21 | B24: 0 | C24: 7000 | D24: =AccVelDataLink!A24 -> 21 | E24: -1 | F24: 22 | G24: =AccVelDataLink!F24 -> RCA2-SA6C-30-6-水平 | H24: =AccVelDataLink!G24 -> 7 | I24: 先頭 | J24: ○
A25: 22 | B25: 1 | C25: 2000 | D25: =AccVelDataLink!A25 -> 22 | E25: 21 | F25: -1 | G25: =AccVelDataLink!F25 -> RCA2-SA6C-30-6-垂直 | H25: =AccVelDataLink!G25 -> 2 | I25: ○ | J25: 終端
A26: 23 | B26: 0 | C26: 4000 | D26: =AccVelDataLink!A26 -> 23 | E26: -1 | F26: 24 | G26: =AccVelDataLink!F26 -> RCA2-SA6C-30-12-水平 | H26: =AccVelDataLink!G26 -> 4 | I26: 先頭 | J26: ○
A27: 24 | B27: 1 | C27: 1500 | D27: =AccVelDataLink!A27 -> 24 | E27: 23 | F27: -1 | G27: =AccVelDataLink!F27 -> RCA2-SA6C-30-12-垂直 | H27: =AccVelDataLink!G27 -> 1.5 | I27: ○ | J27: 終端
A28: 25 | B28: 0 | C28: 3000 | D28: =AccVelDataLink!A28 -> 25 | E28: -1 | F28: 26 | G28: =AccVelDataLink!F28 -> RCS2-SA3R-10-2-水平 | H28: =AccVelDataLink!G28 -> 3 | I28: 先頭 | J28: ○
A29: 26 | B29: 1 | C29: 1500 | D29: =AccVelDataLink!A29 -> 26 | E29: 25 | F29: -1 | G29: =AccVelDataLink!F29 -> RCS2-SA3R-10-2-垂直 | H29: =AccVelDataLink!G29 -> 1.5 | I29: ○ | J29: 終端
A30: 27 | B30: 0 | C30: 2000 | D30: =AccVelDataLink!A30 -> 27 | E30: -1 | F30: 28 | G30: =AccVelDataLink!F30 -> RCS2-SA3R-10-4-水平 | H30: =AccVelDataLink!G30 -> 2 | I30: 先頭 | J30: ○
A31: 28 | B31: 1 | C31: 1000 | D31: =AccVelDataLink!A31 -> 28 | E31: 27 | F31: -1 | G31: =AccVelDataLink!F31 -> RCS2-SA3R-10-4-垂直 | H31: =AccVelDataLink!G31 -> 1 | I31: ○ | J31: 終端
A32: 29 | B32: 0 | C32: 1000 | D32: =AccVelDataLink!A32 -> 29 | E32: -1 | F32: 30 | G32: =AccVelDataLink!F32 -> RCS2-SA3R-10-6-水平 | H32: =AccVelDataLink!G32 -> 1 | I32: 先頭 | J32: ○
A33: 30 | B33: 1 | C33: 500 | D33: =AccVelDataLink!A33 -> 30 | E33: 29 | F33: -1 | G33: =AccVelDataLink!F33 -> RCS2-SA3R-10-6-垂直 | H33: =AccVelDataLink!G33 -> 0.5 | I33: ○ | J33: 終端
A34: 31 | B34: 0 | C34: 6000 | D34: =AccVelDataLink!A34 -> 31 | E34: -1 | F34: 32 | G34: =AccVelDataLink!F34 -> RCA2-SA4R-20-2.5-水平 | H34: =AccVelDataLink!G34 -> 6 | I34: 先頭 | J34: ○
A35: 32 | B35: 1 | C35: 3000 | D35: =AccVelDataLink!A35 -> 32 | E35: 31 | F35: -1 | G35: =AccVelDataLink!F35 -> RCA2-SA4R-20-2.5-垂直 | H35: =AccVelDataLink!G35 -> 3 | I35: ○ | J35: 終端
A36: 33 | B36: 0 | C36: 4000 | D36: =AccVelDataLink!A36 -> 33 | E36: -1 | F36: 34 | G36: =AccVelDataLink!F36 -> RCA2-SA4R-20-5-水平 | H36: =AccVelDataLink!G36 -> 4 | I36: 先頭 | J36: ○
A37: 34 | B37: 1 | C37: 1500 | D37: =AccVelDataLink!A37 -> 34 | E37: 33 | F37: -1 | G37: =AccVelDataLink!F37 -> RCA2-SA4R-20-5-垂直 | H37: =AccVelDataLink!G37 -> 1.5 | I37: ○ | J37: 終端
A38: 35 | B38: 0 | C38: 2000 | D38: =AccVelDataLink!A38 -> 35 | E38: -1 | F38: 36 | G38: =AccVelDataLink!F38 -> RCA2-SA4R-20-10-水平 | H38: =AccVelDataLink!G38 -> 2 | I38: 先頭 | J38: ○
A39: 36 | B39: 1 | C39: 1000 | D39: =AccVelDataLink!A39 -> 36 | E39: 35 | F39: -1 | G39: =AccVelDataLink!F39 -> RCA2-SA4R-20-10-垂直 | H39: =AccVelDataLink!G39 -> 1 | I39: ○ | J39: 終端
A40: 37 | B40: 0 | C40: 9000 | D40: =AccVelDataLink!A40 -> 37 | E40: -1 | F40: 38 | G40: =AccVelDataLink!F40 -> RCA2-SA5R-20-3-水平 | H40: =AccVelDataLink!G40 -> 9 | I40: 先頭 | J40: ○
A41: 38 | B41: 1 | C41: 3000 | D41: =AccVelDataLink!A41 -> 38 | E41: 37 | F41: -1 | G41: =AccVelDataLink!F41 -> RCA2-SA5R-20-3-垂直 | H41: =AccVelDataLink!G41 -> 3 | I41: ○ | J41: 終端
A42: 39 | B42: 0 | C42: 6000 | D42: =AccVelDataLink!A42 -> 39 | E42: -1 | F42: 40 | G42: =AccVelDataLink!F42 -> RCA2-SA5R-20-6-水平 | H42: =AccVelDataLink!G42 -> 6 | I42: 先頭 | J42: ○
A43: 40 | B43: 1 | C43: 1500 | D43: =AccVelDataLink!A43 -> 40 | E43: 39 | F43: -1 | G43: =AccVelDataLink!F43 -> RCA2-SA5R-20-6-垂直 | H43: =AccVelDataLink!G43 -> 1.5 | I43: ○ | J43: 終端
A44: 41 | B44: 0 | C44: 3000 | D44: =AccVelDataLink!A44 -> 41 | E44: -1 | F44: 42 | G44: =AccVelDataLink!F44 -> RCA2-SA5R-20-12-水平 | H44: =AccVelDataLink!G44 -> 3 | I44: 先頭 | J44: ○
A45: 42 | B45: 1 | C45: 1000 | D45: =AccVelDataLink!A45 -> 42 | E45: 41 | F45: -1 | G45: =AccVelDataLink!F45 -> RCA2-SA5R-20-12-垂直 | H45: =AccVelDataLink!G45 -> 1 | I45: ○ | J45: 終端
A46: 43 | B46: 0 | C46: 10000 | D46: =AccVelDataLink!A46 -> 43 | E46: -1 | F46: 44 | G46: =AccVelDataLink!F46 -> RCA2-SA6R-30-3-水平 | H46: =AccVelDataLink!G46 -> 10 | I46: 先頭 | J46: ○
A47: 44 | B47: 1 | C47: 4000 | D47: =AccVelDataLink!A47 -> 44 | E47: 43 | F47: -1 | G47: =AccVelDataLink!F47 -> RCA2-SA6R-30-3-垂直 | H47: =AccVelDataLink!G47 -> 4 | I47: ○ | J47: 終端
A48: 45 | B48: 0 | C48: 7000 | D48: =AccVelDataLink!A48 -> 45 | E48: -1 | F48: 46 | G48: =AccVelDataLink!F48 -> RCA2-SA6R-30-6-水平 | H48: =AccVelDataLink!G48 -> 7 | I48: 先頭 | J48: ○
A49: 46 | B49: 1 | C49: 2000 | D49: =AccVelDataLink!A49 -> 46 | E49: 45 | F49: -1 | G49: =AccVelDataLink!F49 -> RCA2-SA6R-30-6-垂直 | H49: =AccVelDataLink!G49 -> 2 | I49: ○ | J49: 終端
A50: 47 | B50: 0 | C50: 4000 | D50: =AccVelDataLink!A50 -> 47 | E50: -1 | F50: 48 | G50: =AccVelDataLink!F50 -> RCA2-SA6R-30-12-水平 | H50: =AccVelDataLink!G50 -> 4 | I50: 先頭 | J50: ○
A51: 48 | B51: 1 | C51: 1500 | D51: =AccVelDataLink!A51 -> 48 | E51: 47 | F51: -1 | G51: =AccVelDataLink!F51 -> RCA2-SA6R-30-12-垂直 | H51: =AccVelDataLink!G51 -> 1.5 | I51: ○ | J51: 終端
A52: 49 | B52: 0 | C52: 8000 | D52: =AccVelDataLink!A52 -> 49 | E52: -1 | F52: 50 | G52: =AccVelDataLink!F52 -> RCA-SA4C-20-2.5-水平 | H52: =AccVelDataLink!G52 -> 8 | I52: 先頭 | J52: ○
A53: 50 | B53: 1 | C53: 4500 | D53: =AccVelDataLink!A53 -> 50 | E53: 49 | F53: -1 | G53: =AccVelDataLink!F53 -> RCA-SA4C-20-2.5-垂直 | H53: =AccVelDataLink!G53 -> 4.5 | I53: ○ | J53: 終端
A54: 51 | B54: 0 | C54: 6000 | D54: =AccVelDataLink!A54 -> 51 | E54: -1 | F54: 52 | G54: =AccVelDataLink!F54 -> RCA-SA4C-20-5-水平 | H54: =AccVelDataLink!G54 -> 6 | I54: 先頭 | J54: ○
A55: 52 | B55: 1 | C55: 2500 | D55: =AccVelDataLink!A55 -> 52 | E55: 51 | F55: -1 | G55: =AccVelDataLink!F55 -> RCA-SA4C-20-5-垂直 | H55: =AccVelDataLink!G55 -> 2.5 | I55: ○ | J55: 終端
A56: 53 | B56: 0 | C56: 4000 | D56: =AccVelDataLink!A56 -> 53 | E56: -1 | F56: 54 | G56: =AccVelDataLink!F56 -> RCA-SA4C-20-10-水平 | H56: =AccVelDataLink!G56 -> 4 | I56: 先頭 | J56: ○
A57: 54 | B57: 1 | C57: 1000 | D57: =AccVelDataLink!A57 -> 54 | E57: 53 | F57: -1 | G57: =AccVelDataLink!F57 -> RCA-SA4C-20-10-垂直 | H57: =AccVelDataLink!G57 -> 1 | I57: ○ | J57: 終端
A58: 55 | B58: 0 | C58: 12000 | D58: =AccVelDataLink!A58 -> 55 | E58: -1 | F58: 56 | G58: =AccVelDataLink!F58 -> RCA-SA5C-20-3-水平 | H58: =AccVelDataLink!G58 -> 12 | I58: 先頭 | J58: ○
A59: 56 | B59: 1 | C59: 4000 | D59: =AccVelDataLink!A59 -> 56 | E59: 55 | F59: -1 | G59: =AccVelDataLink!F59 -> RCA-SA5C-20-3-垂直 | H59: =AccVelDataLink!G59 -> 4 | I59: ○ | J59: 終端
A60: 57 | B60: 0 | C60: 8000 | D60: =AccVelDataLink!A60 -> 57 | E60: -1 | F60: 58 | G60: =AccVelDataLink!F60 -> RCA-SA5C-20-6-水平 | H60: =AccVelDataLink!G60 -> 8 | I60: 先頭 | J60: ○
A61: 58 | B61: 1 | C61: 2000 | D61: =AccVelDataLink!A61 -> 58 | E61: 57 | F61: -1 | G61: =AccVelDataLink!F61 -> RCA-SA5C-20-6-垂直 | H61: =AccVelDataLink!G61 -> 2 | I61: ○ | J61: 終端
A62: 59 | B62: 0 | C62: 4000 | D62: =AccVelDataLink!A62 -> 59 | E62: -1 | F62: 60 | G62: =AccVelDataLink!F62 -> RCA-SA5C-20-12-水平 | H62: =AccVelDataLink!G62 -> 4 | I62: 先頭 | J62: ○
A63: 60 | B63: 1 | C63: 1000 | D63: =AccVelDataLink!A63 -> 60 | E63: 59 | F63: -1 | G63: =AccVelDataLink!F63 -> RCA-SA5C-20-12-垂直 | H63: =AccVelDataLink!G63 -> 1 | I63: ○ | J63: 終端
A64: 61 | B64: 0 | C64: =H64*$H$1 -> 2000 | D64: =AccVelDataLink!A64 -> 61 | E64: -1 | F64: =A65 -> 62 | G64: =AccVelDataLink!F64 -> RCA-SA5C-20-20-水平 | H64: =AccVelDataLink!G64 -> 2 | I64: 先頭 | J64: ○
A65: 62 | B65: 1 | C65: =H65*$H$1 -> 500 | D65: =AccVelDataLink!A65 -> 62 | E65: =A64 -> 61 | F65: -1 | G65: =AccVelDataLink!F65 -> RCA-SA5C-20-20-垂直 | H65: =AccVelDataLink!G65 -> 0.5 | I65: ○ | J65: 終端
A66: 63 | B66: 0 | C66: 18000 | D66: =AccVelDataLink!A66 -> 63 | E66: -1 | F66: 64 | G66: =AccVelDataLink!F66 -> RCA-SA6C-30-3-水平 | H66: =AccVelDataLink!G66 -> 18 | I66: 先頭 | J66: ○
A67: 64 | B67: 1 | C67: 6000 | D67: =AccVelDataLink!A67 -> 64 | E67: 63 | F67: -1 | G67: =AccVelDataLink!F67 -> RCA-SA6C-30-3-垂直 | H67: =AccVelDataLink!G67 -> 6 | I67: ○ | J67: 終端
A68: =A67+1 -> 65 | B68: 0 | C68: 12000 | D68: =AccVelDataLink!A68 -> 65 | E68: -1 | F68: 66 | G68: =AccVelDataLink!F68 -> RCA-SA6C-30-6-水平 | H68: =AccVelDataLink!G68 -> 12 | I68: =IF(E68=A67,"○",IF(G68=0,"つなぎまちがい","先頭")) -> 先頭 | J68: =IF(F68=A69,"○",IF(F68<>E69,"つなぎまちがい","終端")) -> ○
A69: 66 | B69: 1 | C69: 3000 | D69: =AccVelDataLink!A69 -> 66 | E69: 65 | F69: -1 | G69: =AccVelDataLink!F69 -> RCA-SA6C-30-6-垂直 | H69: =AccVelDataLink!G69 -> 3 | I69: ○ | J69: 終端
A70: 67 | B70: 0 | C70: =H70*$H$1 -> 6000 | D70: =AccVelDataLink!A70 -> 67 | E70: -1 | F70: =A71 -> 68 | G70: =AccVelDataLink!F70 -> RCA-SA6C-30-12-水平 | H70: =AccVelDataLink!G70 -> 6 | I70: 先頭 | J70: ○
A71: 68 | B71: 1 | C71: 1500 | D71: =AccVelDataLink!A71 -> 68 | E71: =A70 -> 67 | F71: -1 | G71: =AccVelDataLink!F71 -> RCA-SA6C-30-12-垂直 | H71: =AccVelDataLink!G71 -> 1.5 | I71: ○ | J71: 終端
A72: 69 | B72: 0 | C72: =H72*$H$1 -> 3000 | D72: =AccVelDataLink!A72 -> 69 | E72: -1 | F72: =A73 -> 70 | G72: =AccVelDataLink!F72 -> RCA-SA6C-30-20-水平 | H72: =AccVelDataLink!G72 -> 3 | I72: 先頭 | J72: ○
A73: 70 | B73: 1 | C73: =H73*$H$1 -> 500 | D73: =AccVelDataLink!A73 -> 70 | E73: =A72 -> 69 | F73: -1 | G73: =AccVelDataLink!F73 -> RCA-SA6C-30-20-垂直 | H73: =AccVelDataLink!G73 -> 0.5 | I73: ○ | J73: 終端
A74: 71 | B74: 0 | C74: 8000 | D74: =AccVelDataLink!A74 -> 71 | E74: -1 | F74: 72 | G74: =AccVelDataLink!F74 -> RCA-SA4D-20-2.5-水平 | H74: =AccVelDataLink!G74 -> 8 | I74: 先頭 | J74: ○
A75: 72 | B75: 1 | C75: 4500 | D75: =AccVelDataLink!A75 -> 72 | E75: 71 | F75: -1 | G75: =AccVelDataLink!F75 -> RCA-SA4D-20-2.5-垂直 | H75: =AccVelDataLink!G75 -> 4.5 | I75: ○ | J75: 終端
A76: 73 | B76: 0 | C76: 6000 | D76: =AccVelDataLink!A76 -> 73 | E76: -1 | F76: 74 | G76: =AccVelDataLink!F76 -> RCA-SA4D-20-5-水平 | H76: =AccVelDataLink!G76 -> 6 | I76: 先頭 | J76: ○
A77: 74 | B77: 1 | C77: 2500 | D77: =AccVelDataLink!A77 -> 74 | E77: 73 | F77: -1 | G77: =AccVelDataLink!F77 -> RCA-SA4D-20-5-垂直 | H77: =AccVelDataLink!G77 -> 2.5 | I77: ○ | J77: 終端
A78: 75 | B78: 0 | C78: 4000 | D78: =AccVelDataLink!A78 -> 75 | E78: -1 | F78: 76 | G78: =AccVelDataLink!F78 -> RCA-SA4D-20-10-水平 | H78: =AccVelDataLink!G78 -> 4 | I78: 先頭 | J78: ○
A79: 76 | B79: 1 | C79: 1000 | D79: =AccVelDataLink!A79 -> 76 | E79: 75 | F79: -1 | G79: =AccVelDataLink!F79 -> RCA-SA4D-20-10-垂直 | H79: =AccVelDataLink!G79 -> 1 | I79: ○ | J79: 終端
A80: 77 | B80: 0 | C80: 12000 | D80: =AccVelDataLink!A80 -> 77 | E80: -1 | F80: 78 | G80: =AccVelDataLink!F80 -> RCA-SA5D-20-3-水平 | H80: =AccVelDataLink!G80 -> 12 | I80: 先頭 | J80: ○
A81: 78 | B81: 1 | C81: 4000 | D81: =AccVelDataLink!A81 -> 78 | E81: 77 | F81: -1 | G81: =AccVelDataLink!F81 -> RCA-SA5D-20-3-垂直 | H81: =AccVelDataLink!G81 -> 4 | I81: ○ | J81: 終端
A82: 79 | B82: 0 | C82: 8000 | D82: =AccVelDataLink!A82 -> 79 | E82: -1 | F82: 80 | G82: =AccVelDataLink!F82 -> RCA-SA5D-20-6-水平 | H82: =AccVelDataLink!G82 -> 8 | I82: 先頭 | J82: ○
A83: 80 | B83: 1 | C83: 2000 | D83: =AccVelDataLink!A83 -> 80 | E83: 79 | F83: -1 | G83: =AccVelDataLink!F83 -> RCA-SA5D-20-6-垂直 | H83: =AccVelDataLink!G83 -> 2 | I83: ○ | J83: 終端
A84: 81 | B84: 0 | C84: 4000 | D84: =AccVelDataLink!A84 -> 81 | E84: -1 | F84: 82 | G84: =AccVelDataLink!F84 -> RCA-SA5D-20-12-水平 | H84: =AccVelDataLink!G84 -> 4 | I84: 先頭 | J84: ○
A85: 82 | B85: 1 | C85: 1000 | D85: =AccVelDataLink!A85 -> 82 | E85: 81 | F85: -1 | G85: =AccVelDataLink!F85 -> RCA-SA5D-20-12-垂直 | H85: =AccVelDataLink!G85 -> 1 | I85: ○ | J85: 終端
A86: 83 | B86: 0 | C86: 18000 | D86: =AccVelDataLink!A86 -> 83 | E86: -1 | F86: 84 | G86: =AccVelDataLink!F86 -> RCA-SA6D-30-3-水平 | H86: =AccVelDataLink!G86 -> 18 | I86: 先頭 | J86: ○
A87: 84 | B87: 1 | C87: 6000 | D87: =AccVelDataLink!A87 -> 84 | E87: 83 | F87: -1 | G87: =AccVelDataLink!F87 -> RCA-SA6D-30-3-垂直 | H87: =AccVelDataLink!G87 -> 6 | I87: ○ | J87: 終端
A88: 85 | B88: 0 | C88: 12000 | D88: =AccVelDataLink!A88 -> 85 | E88: -1 | F88: 86 | G88: =AccVelDataLink!F88 -> RCA-SA6D-30-6-水平 | H88: =AccVelDataLink!G88 -> 12 | I88: 先頭 | J88: ○
A89: 86 | B89: 1 | C89: 3000 | D89: =AccVelDataLink!A89 -> 86 | E89: 85 | F89: -1 | G89: =AccVelDataLink!F89 -> RCA-SA6D-30-6-垂直 | H89: =AccVelDataLink!G89 -> 3 | I89: ○ | J89: 終端
A90: 87 | B90: 0 | C90: 6000 | D90: =AccVelDataLink!A90 -> 87 | E90: -1 | F90: 88 | G90: =AccVelDataLink!F90 -> RCA-SA6D-30-12-水平 | H90: =AccVelDataLink!G90 -> 6 | I90: 先頭 | J90: ○
A91: 88 | B91: 1 | C91: 1500 | D91: =AccVelDataLink!A91 -> 88 | E91: 87 | F91: -1 | G91: =AccVelDataLink!F91 -> RCA-SA6D-30-12-垂直 | H91: =AccVelDataLink!G91 -> 1.5 | I91: ○ | J91: 終端
A92: 89 | B92: 0 | C92: 8000 | D92: =AccVelDataLink!A92 -> 89 | E92: -1 | F92: 90 | G92: =AccVelDataLink!F92 -> RCA-SS4D-20-2.5-水平 | H92: =AccVelDataLink!G92 -> 8 | I92: 先頭 | J92: ○
A93: 90 | B93: 1 | C93: 4500 | D93: =AccVelDataLink!A93 -> 90 | E93: 89 | F93: -1 | G93: =AccVelDataLink!F93 -> RCA-SS4D-20-2.5-垂直 | H93: =AccVelDataLink!G93 -> 4.5 | I93: ○ | J93: 終端
A94: 91 | B94: 0 | C94: 6000 | D94: =AccVelDataLink!A94 -> 91 | E94: -1 | F94: 92 | G94: =AccVelDataLink!F94 -> RCA-SS4D-20-5-水平 | H94: =AccVelDataLink!G94 -> 6 | I94: 先頭 | J94: ○
A95: 92 | B95: 1 | C95: 2500 | D95: =AccVelDataLink!A95 -> 92 | E95: 91 | F95: -1 | G95: =AccVelDataLink!F95 -> RCA-SS4D-20-5-垂直 | H95: =AccVelDataLink!G95 -> 2.5 | I95: ○ | J95: 終端
A96: 93 | B96: 0 | C96: 4000 | D96: =AccVelDataLink!A96 -> 93 | E96: -1 | F96: 94 | G96: =AccVelDataLink!F96 -> RCA-SS4D-20-10-水平 | H96: =AccVelDataLink!G96 -> 4 | I96: 先頭 | J96: ○
A97: 94 | B97: 1 | C97: 1000 | D97: =AccVelDataLink!A97 -> 94 | E97: 93 | F97: -1 | G97: =AccVelDataLink!F97 -> RCA-SS4D-20-10-垂直 | H97: =AccVelDataLink!G97 -> 1 | I97: ○ | J97: 終端
A98: 95 | B98: 0 | C98: 12000 | D98: =AccVelDataLink!A98 -> 95 | E98: -1 | F98: 96 | G98: =AccVelDataLink!F98 -> RCA-SS5D-20-3-水平 | H98: =AccVelDataLink!G98 -> 12 | I98: 先頭 | J98: ○
A99: 96 | B99: 1 | C99: 4000 | D99: =AccVelDataLink!A99 -> 96 | E99: 95 | F99: -1 | G99: =AccVelDataLink!F99 -> RCA-SS5D-20-3-垂直 | H99: =AccVelDataLink!G99 -> 4 | I99: ○ | J99: 終端
A100: 97 | B100: 0 | C100: 8000 | D100: =AccVelDataLink!A100 -> 97 | E100: -1 | F100: 98 | G100: =AccVelDataLink!F100 -> RCA-SS5D-20-6-水平 | H100: =AccVelDataLink!G100 -> 8 | I100: 先頭 | J100: ○
A101: 98 | B101: 1 | C101: 2000 | D101: =AccVelDataLink!A101 -> 98 | E101: 97 | F101: -1 | G101: =AccVelDataLink!F101 -> RCA-SS5D-20-6-垂直 | H101: =AccVelDataLink!G101 -> 2 | I101: ○ | J101: 終端
A102: 99 | B102: 0 | C102: 4000 | D102: =AccVelDataLink!A102 -> 99 | E102: -1 | F102: 100 | G102: =AccVelDataLink!F102 -> RCA-SS5D-20-12-水平 | H102: =AccVelDataLink!G102 -> 4 | I102: 先頭 | J102: ○
A103: 100 | B103: 1 | C103: 1000 | D103: =AccVelDataLink!A103 -> 100 | E103: 99 | F103: -1 | G103: =AccVelDataLink!F103 -> RCA-SS5D-20-12-垂直 | H103: =AccVelDataLink!G103 -> 1 | I103: ○ | J103: 終端
A104: 101 | B104: 0 | C104: 18000 | D104: =AccVelDataLink!A104 -> 101 | E104: -1 | F104: 102 | G104: =AccVelDataLink!F104 -> RCA-SS6D-30-3-水平 | H104: =AccVelDataLink!G104 -> 18 | I104: 先頭 | J104: ○
A105: 102 | B105: 1 | C105: 6000 | D105: =AccVelDataLink!A105 -> 102 | E105: 101 | F105: -1 | G105: =AccVelDataLink!F105 -> RCA-SS6D-30-3-垂直 | H105: =AccVelDataLink!G105 -> 6 | I105: ○ | J105: 終端
A106: 103 | B106: 0 | C106: 12000 | D106: =AccVelDataLink!A106 -> 103 | E106: -1 | F106: 104 | G106: =AccVelDataLink!F106 -> RCA-SS6D-30-6-水平 | H106: =AccVelDataLink!G106 -> 12 | I106: 先頭 | J106: ○
A107: 104 | B107: 1 | C107: 3000 | D107: =AccVelDataLink!A107 -> 104 | E107: 103 | F107: -1 | G107: =AccVelDataLink!F107 -> RCA-SS6D-30-6-垂直 | H107: =AccVelDataLink!G107 -> 3 | I107: ○ | J107: 終端
A108: 105 | B108: 0 | C108: 6000 | D108: =AccVelDataLink!A108 -> 105 | E108: -1 | F108: 106 | G108: =AccVelDataLink!F108 -> RCA-SS6D-30-12-水平 | H108: =AccVelDataLink!G108 -> 6 | I108: 先頭 | J108: ○
A109: 106 | B109: 1 | C109: 1500 | D109: =AccVelDataLink!A109 -> 106 | E109: 105 | F109: -1 | G109: =AccVelDataLink!F109 -> RCA-SS6D-30-12-垂直 | H109: =AccVelDataLink!G109 -> 1.5 | I109: ○ | J109: 終端
A110: 107 | B110: 0 | C110: 8000 | D110: =AccVelDataLink!A110 -> 107 | E110: -1 | F110: 108 | G110: =AccVelDataLink!F110 -> RCA-SA4R-20-2.5-水平 | H110: =AccVelDataLink!G110 -> 8 | I110: 先頭 | J110: ○
A111: 108 | B111: 1 | C111: 4500 | D111: =AccVelDataLink!A111 -> 108 | E111: 107 | F111: -1 | G111: =AccVelDataLink!F111 -> RCA-SA4R-20-2.5-垂直 | H111: =AccVelDataLink!G111 -> 4.5 | I111: ○ | J111: 終端
A112: 109 | B112: 0 | C112: 6000 | D112: =AccVelDataLink!A112 -> 109 | E112: -1 | F112: 110 | G112: =AccVelDataLink!F112 -> RCA-SA4R-20-5-水平 | H112: =AccVelDataLink!G112 -> 6 | I112: 先頭 | J112: ○
A113: 110 | B113: 1 | C113: 2500 | D113: =AccVelDataLink!A113 -> 110 | E113: 109 | F113: -1 | G113: =AccVelDataLink!F113 -> RCA-SA4R-20-5-垂直 | H113: =AccVelDataLink!G113 -> 2.5 | I113: ○ | J113: 終端
A114: 111 | B114: 0 | C114: 4000 | D114: =AccVelDataLink!A114 -> 111 | E114: -1 | F114: 112 | G114: =AccVelDataLink!F114 -> RCA-SA4R-20-10-水平 | H114: =AccVelDataLink!G114 -> 4 | I114: 先頭 | J114: ○
A115: 112 | B115: 1 | C115: 1000 | D115: =AccVelDataLink!A115 -> 112 | E115: 111 | F115: -1 | G115: =AccVelDataLink!F115 -> RCA-SA4R-20-10-垂直 | H115: =AccVelDataLink!G115 -> 1 | I115: ○ | J115: 終端
A116: 113 | B116: 0 | C116: 12000 | D116: =AccVelDataLink!A116 -> 113 | E116: -1 | F116: 114 | G116: =AccVelDataLink!F116 -> RCA-SA5R-20-3-水平 | H116: =AccVelDataLink!G116 -> 12 | I116: 先頭 | J116: ○
A117: 114 | B117: 1 | C117: 4000 | D117: =AccVelDataLink!A117 -> 114 | E117: 113 | F117: -1 | G117: =AccVelDataLink!F117 -> RCA-SA5R-20-3-垂直 | H117: =AccVelDataLink!G117 -> 4 | I117: ○ | J117: 終端
A118: 115 | B118: 0 | C118: 8000 | D118: =AccVelDataLink!A118 -> 115 | E118: -1 | F118: 116 | G118: =AccVelDataLink!F118 -> RCA-SA5R-20-6-水平 | H118: =AccVelDataLink!G118 -> 8 | I118: 先頭 | J118: ○
A119: 116 | B119: 1 | C119: 2000 | D119: =AccVelDataLink!A119 -> 116 | E119: 115 | F119: -1 | G119: =AccVelDataLink!F119 -> RCA-SA5R-20-6-垂直 | H119: =AccVelDataLink!G119 -> 2 | I119: ○ | J119: 終端
A120: 117 | B120: 0 | C120: 4000 | D120: =AccVelDataLink!A120 -> 117 | E120: -1 | F120: 118 | G120: =AccVelDataLink!F120 -> RCA-SA5R-20-12-水平 | H120: =AccVelDataLink!G120 -> 4 | I120: 先頭 | J120: ○
A121: 118 | B121: 1 | C121: 1000 | D121: =AccVelDataLink!A121 -> 118 | E121: 117 | F121: -1 | G121: =AccVelDataLink!F121 -> RCA-SA5R-20-12-垂直 | H121: =AccVelDataLink!G121 -> 1 | I121: ○ | J121: 終端
A122: 119 | B122: 0 | C122: 18000 | D122: =AccVelDataLink!A122 -> 119 | E122: -1 | F122: 120 | G122: =AccVelDataLink!F122 -> RCA-SA6R-30-3-水平 | H122: =AccVelDataLink!G122 -> 18 | I122: 先頭 | J122: ○
A123: 120 | B123: 1 | C123: 6000 | D123: =AccVelDataLink!A123 -> 120 | E123: 119 | F123: -1 | G123: =AccVelDataLink!F123 -> RCA-SA6R-30-3-垂直 | H123: =AccVelDataLink!G123 -> 6 | I123: ○ | J123: 終端
A124: 121 | B124: 0 | C124: 12000 | D124: =AccVelDataLink!A124 -> 121 | E124: -1 | F124: 122 | G124: =AccVelDataLink!F124 -> RCA-SA6R-30-6-水平 | H124: =AccVelDataLink!G124 -> 12 | I124: 先頭 | J124: ○
A125: 122 | B125: 1 | C125: 3000 | D125: =AccVelDataLink!A125 -> 122 | E125: 121 | F125: -1 | G125: =AccVelDataLink!F125 -> RCA-SA6R-30-6-垂直 | H125: =AccVelDataLink!G125 -> 3 | I125: ○ | J125: 終端
A126: 123 | B126: 0 | C126: 6000 | D126: =AccVelDataLink!A126 -> 123 | E126: -1 | F126: 124 | G126: =AccVelDataLink!F126 -> RCA-SA6R-30-12-水平 | H126: =AccVelDataLink!G126 -> 6 | I126: 先頭 | J126: ○
A127: 124 | B127: 1 | C127: 1500 | D127: =AccVelDataLink!A127 -> 124 | E127: 123 | F127: -1 | G127: =AccVelDataLink!F127 -> RCA-SA6R-30-12-垂直 | H127: =AccVelDataLink!G127 -> 1.5 | I127: ○ | J127: 終端
A128: 125 | B128: 0 | C128: 3000 | D128: =AccVelDataLink!A128 -> 125 | E128: -1 | F128: 126 | G128: =AccVelDataLink!F128 -> RCS2-RN3NA-10-1-水平 | H128: =AccVelDataLink!G128 -> 3 | I128: 先頭 | J128: ○
A129: 126 | B129: 1 | C129: 1000 | D129: =AccVelDataLink!A129 -> 126 | E129: 125 | F129: -1 | G129: =AccVelDataLink!F129 -> RCS2-RN3NA-10-1-垂直 | H129: =AccVelDataLink!G129 -> 1 | I129: ○ | J129: 終端
A130: 127 | B130: 0 | C130: 1500 | D130: =AccVelDataLink!A130 -> 127 | E130: -1 | F130: 128 | G130: =AccVelDataLink!F130 -> RCS2-RN3NA-10-2-水平 | H130: =AccVelDataLink!G130 -> 1.5 | I130: 先頭 | J130: ○
A131: 128 | B131: 1 | C131: 500 | D131: =AccVelDataLink!A131 -> 128 | E131: 127 | F131: -1 | G131: =AccVelDataLink!F131 -> RCS2-RN3NA-10-2-垂直 | H131: =AccVelDataLink!G131 -> 0.5 | I131: ○ | J131: 終端
A132: =A131+1 -> 129 | B132: 0 | C132: 750 | D132: =AccVelDataLink!A132 -> 129 | E132: -1 | F132: 130 | G132: =AccVelDataLink!F132 -> RCS2-RN3NA-10-4-水平 | H132: =AccVelDataLink!G132 -> 0.75 | I132: =IF(E132=A131,"○",IF(G132=0,"つなぎまちがい","先頭")) -> 先頭 | J132: =IF(F132=A133,"○",IF(F132<>E133,"つなぎまちがい","終端")) -> ○
A133: 130 | B133: 1 | C133: 250 | D133: =AccVelDataLink!A133 -> 130 | E133: 129 | F133: -1 | G133: =AccVelDataLink!F133 -> RCS2-RN3NA-10-4-垂直 | H133: =AccVelDataLink!G133 -> 0.25 | I133: ○ | J133: 終端
A134: 131 | B134: 0 | C134: 1000 | D134: =AccVelDataLink!A134 -> 131 | E134: -1 | F134: 132 | G134: =AccVelDataLink!F134 -> RCS2-RN3NA-10-1S-水平 | H134: =AccVelDataLink!G134 -> 1 | I134: 先頭 | J134: ○
A135: 132 | B135: 1 | C135: 500 | D135: =AccVelDataLink!A135 -> 132 | E135: 131 | F135: -1 | G135: =AccVelDataLink!F135 -> RCS2-RN3NA-10-1S-垂直 | H135: =AccVelDataLink!G135 -> 0.5 | I135: ○ | J135: 終端
A136: 133 | B136: 0 | C136: =H136*$H$1 -> 500 | D136: =AccVelDataLink!A136 -> 133 | E136: -1 | F136: =A137 -> 134 | G136: =AccVelDataLink!F136 -> RCS2-RN3NA-10-2S-水平 | H136: =AccVelDataLink!G136 -> 0.5 | I136: 先頭 | J136: ○
A137: 134 | B137: 1 | C137: 250 | D137: =AccVelDataLink!A137 -> 134 | E137: =A136 -> 133 | F137: -1 | G137: =AccVelDataLink!F137 -> RCS2-RN3NA-10-2S-垂直 | H137: =AccVelDataLink!G137 -> 0.25 | I137: ○ | J137: 終端
A138: 135 | B138: 0 | C138: 250 | D138: =AccVelDataLink!A138 -> 135 | E138: -1 | F138: 136 | G138: =AccVelDataLink!F138 -> RCS2-RN3NA-10-4S-水平 | H138: =AccVelDataLink!G138 -> 0.25 | I138: 先頭 | J138: ○
A139: 136 | B139: 1 | C139: 125 | D139: =AccVelDataLink!A139 -> 136 | E139: 135 | F139: -1 | G139: =AccVelDataLink!F139 -> RCS2-RN3NA-10-4S-垂直 | H139: =AccVelDataLink!G139 -> 0.125 | I139: ○ | J139: 終端
A140: 137 | B140: 0 | C140: 6000 | D140: =AccVelDataLink!A140 -> 137 | E140: -1 | F140: 138 | G140: =AccVelDataLink!F140 -> RCS2-RN4NA-20-2-水平 | H140: =AccVelDataLink!G140 -> 6 | I140: 先頭 | J140: ○
A141: 138 | B141: 1 | C141: 1500 | D141: =AccVelDataLink!A141 -> 138 | E141: 137 | F141: -1 | G141: =AccVelDataLink!F141 -> RCS2-RN4NA-20-2-垂直 | H141: =AccVelDataLink!G141 -> 1.5 | I141: ○ | J141: 終端
A142: 139 | B142: 0 | C142: 3000 | D142: =AccVelDataLink!A142 -> 139 | E142: -1 | F142: 140 | G142: =AccVelDataLink!F142 -> RCS2-RN4NA-20-4-水平 | H142: =AccVelDataLink!G142 -> 3 | I142: 先頭 | J142: ○
A143: 140 | B143: 1 | C143: 750 | D143: =AccVelDataLink!A143 -> 140 | E143: 139 | F143: -1 | G143: =AccVelDataLink!F143 -> RCS2-RN4NA-20-4-垂直 | H143: =AccVelDataLink!G143 -> 0.75 | I143: ○ | J143: 終端
A144: 141 | B144: 0 | C144: 2000 | D144: =AccVelDataLink!A144 -> 141 | E144: -1 | F144: 142 | G144: =AccVelDataLink!F144 -> RCS2-RN4NA-20-6-水平 | H144: =AccVelDataLink!G144 -> 2 | I144: 先頭 | J144: ○
A145: 142 | B145: 1 | C145: 500 | D145: =AccVelDataLink!A145 -> 142 | E145: 141 | F145: -1 | G145: =AccVelDataLink!F145 -> RCS2-RN4NA-20-6-垂直 | H145: =AccVelDataLink!G145 -> 0.5 | I145: ○ | J145: 終端
A146: 143 | B146: 0 | C146: 1000 | D146: =AccVelDataLink!A146 -> 143 | E146: -1 | F146: 144 | G146: =AccVelDataLink!F146 -> RCS2-RN4NA-20-2S-水平 | H146: =AccVelDataLink!G146 -> 1 | I146: 先頭 | J146: ○
A147: 144 | B147: 1 | C147: 500 | D147: =AccVelDataLink!A147 -> 144 | E147: 143 | F147: -1 | G147: =AccVelDataLink!F147 -> RCS2-RN4NA-20-2S-垂直 | H147: =AccVelDataLink!G147 -> 0.5 | I147: ○ | J147: 終端
A148: 145 | B148: 0 | C148: 500 | D148: =AccVelDataLink!A148 -> 145 | E148: -1 | F148: 146 | G148: =AccVelDataLink!F148 -> RCS2-RN4NA-20-4S-水平 | H148: =AccVelDataLink!G148 -> 0.5 | I148: 先頭 | J148: ○
A149: 146 | B149: 1 | C149: 250 | D149: =AccVelDataLink!A149 -> 146 | E149: 145 | F149: -1 | G149: =AccVelDataLink!F149 -> RCS2-RN4NA-20-4S-垂直 | H149: =AccVelDataLink!G149 -> 0.25 | I149: ○ | J149: 終端
A150: 147 | B150: 0 | C150: 250 | D150: =AccVelDataLink!A150 -> 147 | E150: -1 | F150: 148 | G150: =AccVelDataLink!F150 -> RCS2-RN4NA-20-6S-水平 | H150: =AccVelDataLink!G150 -> 0.25 | I150: 先頭 | J150: ○
A151: 148 | B151: 1 | C151: 125 | D151: =AccVelDataLink!A151 -> 148 | E151: 147 | F151: -1 | G151: =AccVelDataLink!F151 -> RCS2-RN4NA-20-6S-垂直 | H151: =AccVelDataLink!G151 -> 0.125 | I151: ○ | J151: 終端
A152: 149 | B152: 0 | C152: 3000 | D152: =AccVelDataLink!A152 -> 149 | E152: -1 | F152: 150 | G152: =AccVelDataLink!F152 -> RCS2-RP3NA-10-1-水平 | H152: =AccVelDataLink!G152 -> 3 | I152: 先頭 | J152: ○
A153: 150 | B153: 1 | C153: 1000 | D153: =AccVelDataLink!A153 -> 150 | E153: 149 | F153: -1 | G153: =AccVelDataLink!F153 -> RCS2-RP3NA-10-1-垂直 | H153: =AccVelDataLink!G153 -> 1 | I153: ○ | J153: 終端
A154: 151 | B154: 0 | C154: 1500 | D154: =AccVelDataLink!A154 -> 151 | E154: -1 | F154: 152 | G154: =AccVelDataLink!F154 -> RCS2-RP3NA-10-2-水平 | H154: =AccVelDataLink!G154 -> 1.5 | I154: 先頭 | J154: ○
A155: 152 | B155: 1 | C155: 500 | D155: =AccVelDataLink!A155 -> 152 | E155: 151 | F155: -1 | G155: =AccVelDataLink!F155 -> RCS2-RP3NA-10-2-垂直 | H155: =AccVelDataLink!G155 -> 0.5 | I155: ○ | J155: 終端
A156: 153 | B156: 0 | C156: 750 | D156: =AccVelDataLink!A156 -> 153 | E156: -1 | F156: 154 | G156: =AccVelDataLink!F156 -> RCS2-RP3NA-10-4-水平 | H156: =AccVelDataLink!G156 -> 0.75 | I156: 先頭 | J156: ○
A157: 154 | B157: 1 | C157: 250 | D157: =AccVelDataLink!A157 -> 154 | E157: 153 | F157: -1 | G157: =AccVelDataLink!F157 -> RCS2-RP3NA-10-4-垂直 | H157: =AccVelDataLink!G157 -> 0.25 | I157: ○ | J157: 終端
A158: 155 | B158: 0 | C158: 1000 | D158: =AccVelDataLink!A158 -> 155 | E158: -1 | F158: 156 | G158: =AccVelDataLink!F158 -> RCS2-RP3NA-10-1S-水平 | H158: =AccVelDataLink!G158 -> 1 | I158: 先頭 | J158: ○
A159: 156 | B159: 1 | C159: 500 | D159: =AccVelDataLink!A159 -> 156 | E159: 155 | F159: -1 | G159: =AccVelDataLink!F159 -> RCS2-RP3NA-10-1S-垂直 | H159: =AccVelDataLink!G159 -> 0.5 | I159: ○ | J159: 終端
A160: 157 | B160: 0 | C160: 500 | D160: =AccVelDataLink!A160 -> 157 | E160: -1 | F160: 158 | G160: =AccVelDataLink!F160 -> RCS2-RP3NA-10-2S-水平 | H160: =AccVelDataLink!G160 -> 0.5 | I160: 先頭 | J160: ○
A161: 158 | B161: 1 | C161: 250 | D161: =AccVelDataLink!A161 -> 158 | E161: 157 | F161: -1 | G161: =AccVelDataLink!F161 -> RCS2-RP3NA-10-2S-垂直 | H161: =AccVelDataLink!G161 -> 0.25 | I161: ○ | J161: 終端
A162: 159 | B162: 0 | C162: 250 | D162: =AccVelDataLink!A162 -> 159 | E162: -1 | F162: 160 | G162: =AccVelDataLink!F162 -> RCS2-RP3NA-10-4S-水平 | H162: =AccVelDataLink!G162 -> 0.25 | I162: 先頭 | J162: ○
A163: 160 | B163: 1 | C163: 125 | D163: =AccVelDataLink!A163 -> 160 | E163: 159 | F163: -1 | G163: =AccVelDataLink!F163 -> RCS2-RP3NA-10-4S-垂直 | H163: =AccVelDataLink!G163 -> 0.125 | I163: ○ | J163: 終端
A164: 161 | B164: 0 | C164: 6000 | D164: =AccVelDataLink!A164 -> 161 | E164: -1 | F164: 162 | G164: =AccVelDataLink!F164 -> RCS2-RP4NA-20-2-水平 | H164: =AccVelDataLink!G164 -> 6 | I164: 先頭 | J164: ○
A165: 162 | B165: 1 | C165: 1500 | D165: =AccVelDataLink!A165 -> 162 | E165: 161 | F165: -1 | G165: =AccVelDataLink!F165 -> RCS2-RP4NA-20-2-垂直 | H165: =AccVelDataLink!G165 -> 1.5 | I165: ○ | J165: 終端
A166: 163 | B166: 0 | C166: 3000 | D166: =AccVelDataLink!A166 -> 163 | E166: -1 | F166: 164 | G166: =AccVelDataLink!F166 -> RCS2-RP4NA-20-4-水平 | H166: =AccVelDataLink!G166 -> 3 | I166: 先頭 | J166: ○
A167: 164 | B167: 1 | C167: 750 | D167: =AccVelDataLink!A167 -> 164 | E167: 163 | F167: -1 | G167: =AccVelDataLink!F167 -> RCS2-RP4NA-20-4-垂直 | H167: =AccVelDataLink!G167 -> 0.75 | I167: ○ | J167: 終端
A168: 165 | B168: 0 | C168: 2000 | D168: =AccVelDataLink!A168 -> 165 | E168: -1 | F168: 166 | G168: =AccVelDataLink!F168 -> RCS2-RP4NA-20-6-水平 | H168: =AccVelDataLink!G168 -> 2 | I168: 先頭 | J168: ○
A169: 166 | B169: 1 | C169: 500 | D169: =AccVelDataLink!A169 -> 166 | E169: 165 | F169: -1 | G169: =AccVelDataLink!F169 -> RCS2-RP4NA-20-6-垂直 | H169: =AccVelDataLink!G169 -> 0.5 | I169: ○ | J169: 終端
A170: 167 | B170: 0 | C170: 1000 | D170: =AccVelDataLink!A170 -> 167 | E170: -1 | F170: 168 | G170: =AccVelDataLink!F170 -> RCS2-RP4NA-20-2S-水平 | H170: =AccVelDataLink!G170 -> 1 | I170: 先頭 | J170: ○
A171: 168 | B171: 1 | C171: 500 | D171: =AccVelDataLink!A171 -> 168 | E171: 167 | F171: -1 | G171: =AccVelDataLink!F171 -> RCS2-RP4NA-20-2S-垂直 | H171: =AccVelDataLink!G171 -> 0.5 | I171: ○ | J171: 終端
A172: 169 | B172: 0 | C172: 500 | D172: =AccVelDataLink!A172 -> 169 | E172: -1 | F172: 170 | G172: =AccVelDataLink!F172 -> RCS2-RP4NA-20-4S-水平 | H172: =AccVelDataLink!G172 -> 0.5 | I172: 先頭 | J172: ○
A173: 170 | B173: 1 | C173: 250 | D173: =AccVelDataLink!A173 -> 170 | E173: 169 | F173: -1 | G173: =AccVelDataLink!F173 -> RCS2-RP4NA-20-4S-垂直 | H173: =AccVelDataLink!G173 -> 0.25 | I173: ○ | J173: 終端
A174: 171 | B174: 0 | C174: 250 | D174: =AccVelDataLink!A174 -> 171 | E174: -1 | F174: 172 | G174: =AccVelDataLink!F174 -> RCS2-RP4NA-20-6S-水平 | H174: =AccVelDataLink!G174 -> 0.25 | I174: 先頭 | J174: ○
A175: 172 | B175: 1 | C175: 125 | D175: =AccVelDataLink!A175 -> 172 | E175: 171 | F175: -1 | G175: =AccVelDataLink!F175 -> RCS2-RP4NA-20-6S-垂直 | H175: =AccVelDataLink!G175 -> 0.125 | I175: ○ | J175: 終端
A176: 173 | B176: 0 | C176: 3000 | D176: =AccVelDataLink!A176 -> 173 | E176: -1 | F176: 174 | G176: =AccVelDataLink!F176 -> RCS2-GS3NA-10-1-水平 | H176: =AccVelDataLink!G176 -> 3 | I176: 先頭 | J176: ○
A177: 174 | B177: 1 | C177: 1000 | D177: =AccVelDataLink!A177 -> 174 | E177: 173 | F177: -1 | G177: =AccVelDataLink!F177 -> RCS2-GS3NA-10-1-垂直 | H177: =AccVelDataLink!G177 -> 1 | I177: ○ | J177: 終端
A178: 175 | B178: 0 | C178: 1500 | D178: =AccVelDataLink!A178 -> 175 | E178: -1 | F178: 176 | G178: =AccVelDataLink!F178 -> RCS2-GS3NA-10-2-水平 | H178: =AccVelDataLink!G178 -> 1.5 | I178: 先頭 | J178: ○
A179: 176 | B179: 1 | C179: 500 | D179: =AccVelDataLink!A179 -> 176 | E179: 175 | F179: -1 | G179: =AccVelDataLink!F179 -> RCS2-GS3NA-10-2-垂直 | H179: =AccVelDataLink!G179 -> 0.5 | I179: ○ | J179: 終端
A180: 177 | B180: 0 | C180: 750 | D180: =AccVelDataLink!A180 -> 177 | E180: -1 | F180: 178 | G180: =AccVelDataLink!F180 -> RCS2-GS3NA-10-4-水平 | H180: =AccVelDataLink!G180 -> 0.75 | I180: 先頭 | J180: ○
A181: 178 | B181: 1 | C181: 250 | D181: =AccVelDataLink!A181 -> 178 | E181: 177 | F181: -1 | G181: =AccVelDataLink!F181 -> RCS2-GS3NA-10-4-垂直 | H181: =AccVelDataLink!G181 -> 0.25 | I181: ○ | J181: 終端
A182: 179 | B182: 0 | C182: 1000 | D182: =AccVelDataLink!A182 -> 179 | E182: -1 | F182: 180 | G182: =AccVelDataLink!F182 -> RCS2-GS3NA-10-1S-水平 | H182: =AccVelDataLink!G182 -> 1 | I182: 先頭 | J182: ○
A183: 180 | B183: 1 | C183: 500 | D183: =AccVelDataLink!A183 -> 180 | E183: 179 | F183: -1 | G183: =AccVelDataLink!F183 -> RCS2-GS3NA-10-1S-垂直 | H183: =AccVelDataLink!G183 -> 0.5 | I183: ○ | J183: 終端
A184: 181 | B184: 0 | C184: 500 | D184: =AccVelDataLink!A184 -> 181 | E184: -1 | F184: 182 | G184: =AccVelDataLink!F184 -> RCS2-GS3NA-10-2S-水平 | H184: =AccVelDataLink!G184 -> 0.5 | I184: 先頭 | J184: ○
A185: 182 | B185: 1 | C185: 250 | D185: =AccVelDataLink!A185 -> 182 | E185: 181 | F185: -1 | G185: =AccVelDataLink!F185 -> RCS2-GS3NA-10-2S-垂直 | H185: =AccVelDataLink!G185 -> 0.25 | I185: ○ | J185: 終端
A186: 183 | B186: 0 | C186: 250 | D186: =AccVelDataLink!A186 -> 183 | E186: -1 | F186: 184 | G186: =AccVelDataLink!F186 -> RCS2-GS3NA-10-4S-水平 | H186: =AccVelDataLink!G186 -> 0.25 | I186: 先頭 | J186: ○
A187: 184 | B187: 1 | C187: 125 | D187: =AccVelDataLink!A187 -> 184 | E187: 183 | F187: -1 | G187: =AccVelDataLink!F187 -> RCS2-GS3NA-10-4S-垂直 | H187: =AccVelDataLink!G187 -> 0.125 | I187: ○ | J187: 終端
A188: 185 | B188: 0 | C188: 6000 | D188: =AccVelDataLink!A188 -> 185 | E188: -1 | F188: 186 | G188: =AccVelDataLink!F188 -> RCS2-GS4NA-20-2-水平 | H188: =AccVelDataLink!G188 -> 6 | I188: 先頭 | J188: ○
A189: 186 | B189: 1 | C189: 1500 | D189: =AccVelDataLink!A189 -> 186 | E189: 185 | F189: -1 | G189: =AccVelDataLink!F189 -> RCS2-GS4NA-20-2-垂直 | H189: =AccVelDataLink!G189 -> 1.5 | I189: ○ | J189: 終端
A190: 187 | B190: 0 | C190: 3000 | D190: =AccVelDataLink!A190 -> 187 | E190: -1 | F190: 188 | G190: =AccVelDataLink!F190 -> RCS2-GS4NA-20-4-水平 | H190: =AccVelDataLink!G190 -> 3 | I190: 先頭 | J190: ○
A191: 188 | B191: 1 | C191: 750 | D191: =AccVelDataLink!A191 -> 188 | E191: 187 | F191: -1 | G191: =AccVelDataLink!F191 -> RCS2-GS4NA-20-4-垂直 | H191: =AccVelDataLink!G191 -> 0.75 | I191: ○ | J191: 終端
A192: 189 | B192: 0 | C192: 2000 | D192: =AccVelDataLink!A192 -> 189 | E192: -1 | F192: 190 | G192: =AccVelDataLink!F192 -> RCS2-GS4NA-20-6-水平 | H192: =AccVelDataLink!G192 -> 2 | I192: 先頭 | J192: ○
A193: 190 | B193: 1 | C193: 500 | D193: =AccVelDataLink!A193 -> 190 | E193: 189 | F193: -1 | G193: =AccVelDataLink!F193 -> RCS2-GS4NA-20-6-垂直 | H193: =AccVelDataLink!G193 -> 0.5 | I193: ○ | J193: 終端
A194: 191 | B194: 0 | C194: 1000 | D194: =AccVelDataLink!A194 -> 191 | E194: -1 | F194: 192 | G194: =AccVelDataLink!F194 -> RCS2-GS4NA-20-2S-水平 | H194: =AccVelDataLink!G194 -> 1 | I194: 先頭 | J194: ○
A195: 192 | B195: 1 | C195: 500 | D195: =AccVelDataLink!A195 -> 192 | E195: 191 | F195: -1 | G195: =AccVelDataLink!F195 -> RCS2-GS4NA-20-2S-垂直 | H195: =AccVelDataLink!G195 -> 0.5 | I195: ○ | J195: 終端
A196: =A195+1 -> 193 | B196: 0 | C196: 500 | D196: =AccVelDataLink!A196 -> 193 | E196: -1 | F196: 194 | G196: =AccVelDataLink!F196 -> RCS2-GS4NA-20-4S-水平 | H196: =AccVelDataLink!G196 -> 0.5 | I196: =IF(E196=A195,"○",IF(G196=0,"つなぎまちがい","先頭")) -> 先頭 | J196: =IF(F196=A197,"○",IF(F196<>E197,"つなぎまちがい","終端")) -> ○
A197: 194 | B197: 1 | C197: 250 | D197: =AccVelDataLink!A197 -> 194 | E197: 193 | F197: -1 | G197: =AccVelDataLink!F197 -> RCS2-GS4NA-20-4S-垂直 | H197: =AccVelDataLink!G197 -> 0.25 | I197: ○ | J197: 終端
A198: 195 | B198: 0 | C198: 250 | D198: =AccVelDataLink!A198 -> 195 | E198: -1 | F198: 196 | G198: =AccVelDataLink!F198 -> RCS2-GS4NA-20-6S-水平 | H198: =AccVelDataLink!G198 -> 0.25 | I198: 先頭 | J198: ○
A199: 196 | B199: 1 | C199: 125 | D199: =AccVelDataLink!A199 -> 196 | E199: 195 | F199: -1 | G199: =AccVelDataLink!F199 -> RCS2-GS4NA-20-6S-垂直 | H199: =AccVelDataLink!G199 -> 0.125 | I199: ○ | J199: 終端
A200: 197 | B200: 0 | C200: =H200*$H$1 -> 3000 | D200: =AccVelDataLink!A200 -> 197 | E200: -1 | F200: =A201 -> 198 | G200: =AccVelDataLink!F200 -> RCS2-GD3NA-10-1-水平 | H200: =AccVelDataLink!G200 -> 3 | I200: 先頭 | J200: ○
... 418 more rows

Sheet AccVelDataLink (hidden)
A1: =LeadData!A1 -> 9.80665 | B1: 1 | C1: 2 | D1: 3 | E1: 4
A2: ﾃﾞｰﾀ№ | B2: 水平定格加速度 | C2: 最高速度 | D2: 前ﾃﾞｰﾀ№ | E2: 次ﾃﾞｰﾀ№ | F2: 備考
A3: =ModelData!A3 -> 0 | B3: 0.001mm/s^2 | C3: ㎜/s | D3: ﾚｺｰﾄﾞ№ | E3: ﾚｺｰﾄﾞ№ | F3: 型式-姿勢 | G3: kg | H3: G | I3: mm/s | J3: 前№ﾁｪｯｸ | K3: 後№ﾁｪｯｸ
A4: =A3+1 -> 1 | B4: =H4*$A$1*1000*1000 -> 1961330 | C4: =I4 -> 100 | D4: -1 | E4: -1 | F4: RCS2-SA3C-10-2-水平 | G4: 3 | H4: 0.2 | I4: 100 | J4: =IF(G4=0,IF(D4<>A3,"ﾘﾝｸ不正","○"),"○") -> ○ | K4: =IF(D5<>-1,IF(E4<>A5,"ﾘﾝｸ不正","○"),"○") -> ○
A5: 2 | B5: 1961330 | C5: 100 | D5: -1 | E5: -1 | F5: RCS2-SA3C-10-2-垂直 | G5: 1.5 | H5: 0.2 | I5: 100 | J5: ○ | K5: ○
A6: 3 | B6: 2941995 | C6: 200 | D6: -1 | E6: -1 | F6: RCS2-SA3C-10-4-水平 | G6: 2 | H6: 0.3 | I6: 200 | J6: ○ | K6: ○
A7: 4 | B7: 1961330 | C7: 200 | D7: -1 | E7: -1 | F7: RCS2-SA3C-10-4-垂直 | G7: 1 | H7: 0.2 | I7: 200 | J7: ○ | K7: ○
A8: 5 | B8: 2941995 | C8: 300 | D8: -1 | E8: -1 | F8: RCS2-SA3C-10-6-水平 | G8: 1 | H8: 0.3 | I8: 300 | J8: ○ | K8: ○
A9: 6 | B9: 1961330 | C9: 300 | D9: -1 | E9: -1 | F9: RCS2-SA3C-10-6-垂直 | G9: 0.5 | H9: 0.2 | I9: 300 | J9: ○ | K9: ○
A10: 7 | B10: 1961330 | C10: 125 | D10: -1 | E10: -1 | F10: RCA2-SA4C-20-2.5-水平 | G10: 6 | H10: 0.2 | I10: 125 | J10: ○ | K10: ○
A11: 8 | B11: 1961330 | C11: 125 | D11: -1 | E11: -1 | F11: RCA2-SA4C-20-2.5-垂直 | G11: 3 | H11: 0.2 | I11: 125 | J11: ○ | K11: ○
A12: 9 | B12: 2941995 | C12: 250 | D12: -1 | E12: -1 | F12: RCA2-SA4C-20-5-水平 | G12: 4 | H12: 0.3 | I12: 250 | J12: ○ | K12: ○
A13: 10 | B13: 1961330 | C13: 250 | D13: -1 | E13: -1 | F13: RCA2-SA4C-20-5-垂直 | G13: 1.5 | H13: 0.2 | I13: 250 | J13: ○ | K13: ○
A14: 11 | B14: 2941995 | C14: 500 | D14: -1 | E14: -1 | F14: RCA2-SA4C-20-10-水平 | G14: 2 | H14: 0.3 | I14: 500 | J14: ○ | K14: ○
A15: 12 | B15: 1961330 | C15: 500 | D15: -1 | E15: -1 | F15: RCA2-SA4C-20-10-垂直 | G15: 1 | H15: 0.2 | I15: 500 | J15: ○ | K15: ○
A16: 13 | B16: 1961330 | C16: 150 | D16: -1 | E16: -1 | F16: RCA2-SA5C-20-3-水平 | G16: 9 | H16: 0.2 | I16: 150 | J16: ○ | K16: ○
A17: 14 | B17: 1961330 | C17: 150 | D17: -1 | E17: -1 | F17: RCA2-SA5C-20-3-垂直 | G17: 3 | H17: 0.2 | I17: 150 | J17: ○ | K17: ○
A18: 15 | B18: 2941995 | C18: 300 | D18: -1 | E18: -1 | F18: RCA2-SA5C-20-6-水平 | G18: 6 | H18: 0.3 | I18: 300 | J18: ○ | K18: ○
A19: 16 | B19: 1961330 | C19: 300 | D19: -1 | E19: -1 | F19: RCA2-SA5C-20-6-垂直 | G19: 1.5 | H19: 0.2 | I19: 300 | J19: ○ | K19: ○
A20: 17 | B20: 2941995 | C20: 600 | D20: -1 | E20: -1 | F20: RCA2-SA5C-20-12-水平 | G20: 3 | H20: 0.3 | I20: 600 | J20: ○ | K20: ○
A21: 18 | B21: 1961330 | C21: 600 | D21: -1 | E21: -1 | F21: RCA2-SA5C-20-12-垂直 | G21: 1 | H21: 0.2 | I21: 600 | J21: ○ | K21: ○
A22: 19 | B22: 1961330 | C22: 150 | D22: -1 | E22: -1 | F22: RCA2-SA6C-30-3-水平 | G22: 10 | H22: 0.2 | I22: 150 | J22: ○ | K22: ○
A23: 20 | B23: 1961330 | C23: 150 | D23: -1 | E23: -1 | F23: RCA2-SA6C-30-3-垂直 | G23: 4 | H23: 0.2 | I23: 150 | J23: ○ | K23: ○
A24: 21 | B24: 2941995 | C24: 300 | D24: -1 | E24: -1 | F24: RCA2-SA6C-30-6-水平 | G24: 7 | H24: 0.3 | I24: 300 | J24: ○ | K24: ○
A25: 22 | B25: 1961330 | C25: 300 | D25: -1 | E25: -1 | F25: RCA2-SA6C-30-6-垂直 | G25: 2 | H25: 0.2 | I25: 300 | J25: ○ | K25: ○
A26: 23 | B26: 2941995 | C26: 600 | D26: -1 | E26: -1 | F26: RCA2-SA6C-30-12-水平 | G26: 4 | H26: 0.3 | I26: 600 | J26: ○ | K26: ○
A27: 24 | B27: 1961330 | C27: 600 | D27: -1 | E27: -1 | F27: RCA2-SA6C-30-12-垂直 | G27: 1.5 | H27: 0.2 | I27: 600 | J27: ○ | K27: ○
A28: 25 | B28: 1961330 | C28: 100 | D28: -1 | E28: -1 | F28: RCS2-SA3R-10-2-水平 | G28: 3 | H28: 0.2 | I28: 100 | J28: ○ | K28: ○
A29: 26 | B29: 1961330 | C29: 100 | D29: -1 | E29: -1 | F29: RCS2-SA3R-10-2-垂直 | G29: 1.5 | H29: 0.2 | I29: 100 | J29: ○ | K29: ○
A30: 27 | B30: 2941995 | C30: 200 | D30: -1 | E30: -1 | F30: RCS2-SA3R-10-4-水平 | G30: 2 | H30: 0.3 | I30: 200 | J30: ○ | K30: ○
A31: 28 | B31: 1961330 | C31: 200 | D31: -1 | E31: -1 | F31: RCS2-SA3R-10-4-垂直 | G31: 1 | H31: 0.2 | I31: 200 | J31: ○ | K31: ○
A32: 29 | B32: 2941995 | C32: 300 | D32: -1 | E32: -1 | F32: RCS2-SA3R-10-6-水平 | G32: 1 | H32: 0.3 | I32: 300 | J32: ○ | K32: ○
A33: 30 | B33: 1961330 | C33: 300 | D33: -1 | E33: -1 | F33: RCS2-SA3R-10-6-垂直 | G33: 0.5 | H33: 0.2 | I33: 300 | J33: ○ | K33: ○
A34: 31 | B34: 1961330 | C34: 125 | D34: -1 | E34: -1 | F34: RCA2-SA4R-20-2.5-水平 | G34: 6 | H34: 0.2 | I34: 125 | J34: ○ | K34: ○
A35: 32 | B35: 1961330 | C35: 125 | D35: -1 | E35: -1 | F35: RCA2-SA4R-20-2.5-垂直 | G35: 3 | H35: 0.2 | I35: 125 | J35: ○ | K35: ○
A36: 33 | B36: 2941995 | C36: 250 | D36: -1 | E36: -1 | F36: RCA2-SA4R-20-5-水平 | G36: 4 | H36: 0.3 | I36: 250 | J36: ○ | K36: ○
A37: 34 | B37: 1961330 | C37: 250 | D37: -1 | E37: -1 | F37: RCA2-SA4R-20-5-垂直 | G37: 1.5 | H37: 0.2 | I37: 250 | J37: ○ | K37: ○
A38: 35 | B38: 2941995 | C38: 500 | D38: -1 | E38: -1 | F38: RCA2-SA4R-20-10-水平 | G38: 2 | H38: 0.3 | I38: 500 | J38: ○ | K38: ○
A39: 36 | B39: 1961330 | C39: 500 | D39: -1 | E39: -1 | F39: RCA2-SA4R-20-10-垂直 | G39: 1 | H39: 0.2 | I39: 500 | J39: ○ | K39: ○
A40: 37 | B40: 1961330 | C40: 150 | D40: -1 | E40: -1 | F40: RCA2-SA5R-20-3-水平 | G40: 9 | H40: 0.2 | I40: 150 | J40: ○ | K40: ○
A41: 38 | B41: 1961330 | C41: 150 | D41: -1 | E41: -1 | F41: RCA2-SA5R-20-3-垂直 | G41: 3 | H41: 0.2 | I41: 150 | J41: ○ | K41: ○
A42: 39 | B42: 2941995 | C42: 300 | D42: -1 | E42: -1 | F42: RCA2-SA5R-20-6-水平 | G42: 6 | H42: 0.3 | I42: 300 | J42: ○ | K42: ○
A43: 40 | B43: 1961330 | C43: 300 | D43: -1 | E43: -1 | F43: RCA2-SA5R-20-6-垂直 | G43: 1.5 | H43: 0.2 | I43: 300 | J43: ○ | K43: ○
A44: 41 | B44: 2941995 | C44: 600 | D44: -1 | E44: -1 | F44: RCA2-SA5R-20-12-水平 | G44: 3 | H44: 0.3 | I44: 600 | J44: ○ | K44: ○
A45: 42 | B45: 1961330 | C45: 600 | D45: -1 | E45: -1 | F45: RCA2-SA5R-20-12-垂直 | G45: 1 | H45: 0.2 | I45: 600 | J45: ○ | K45: ○
A46: 43 | B46: 1961330 | C46: 150 | D46: -1 | E46: -1 | F46: RCA2-SA6R-30-3-水平 | G46: 10 | H46: 0.2 | I46: 150 | J46: ○ | K46: ○
A47: 44 | B47: 1961330 | C47: 150 | D47: -1 | E47: -1 | F47: RCA2-SA6R-30-3-垂直 | G47: 4 | H47: 0.2 | I47: 150 | J47: ○ | K47: ○
A48: 45 | B48: 2941995 | C48: 300 | D48: -1 | E48: -1 | F48: RCA2-SA6R-30-6-水平 | G48: 7 | H48: 0.3 | I48: 300 | J48: ○ | K48: ○
A49: 46 | B49: 1961330 | C49: 300 | D49: -1 | E49: -1 | F49: RCA2-SA6R-30-6-垂直 | G49: 2 | H49: 0.2 | I49: 300 | J49: ○ | K49: ○
A50: 47 | B50: 2941995 | C50: 600 | D50: -1 | E50: -1 | F50: RCA2-SA6R-30-12-水平 | G50: 4 | H50: 0.3 | I50: 600 | J50: ○ | K50: ○
A51: 48 | B51: 1961330 | C51: 600 | D51: -1 | E51: -1 | F51: RCA2-SA6R-30-12-垂直 | G51: 1.5 | H51: 0.2 | I51: 600 | J51: ○ | K51: ○
A52: 49 | B52: 1961330 | C52: 165 | D52: -1 | E52: -1 | F52: RCA-SA4C-20-2.5-水平 | G52: 8 | H52: 0.2 | I52: 165 | J52: ○ | K52: ○
A53: 50 | B53: 1961330 | C53: 165 | D53: -1 | E53: -1 | F53: RCA-SA4C-20-2.5-垂直 | G53: 4.5 | H53: 0.2 | I53: 165 | J53: ○ | K53: ○
A54: 51 | B54: 2941995 | C54: 330 | D54: -1 | E54: -1 | F54: RCA-SA4C-20-5-水平 | G54: 6 | H54: 0.3 | I54: 330 | J54: ○ | K54: ○
A55: 52 | B55: 2941995 | C55: 330 | D55: -1 | E55: -1 | F55: RCA-SA4C-20-5-垂直 | G55: 2.5 | H55: 0.3 | I55: 330 | J55: ○ | K55: ○
A56: 53 | B56: 2941995 | C56: 665 | D56: -1 | E56: -1 | F56: RCA-SA4C-20-10-水平 | G56: 4 | H56: 0.3 | I56: 665 | J56: ○ | K56: ○
A57: 54 | B57: 2941995 | C57: 665 | D57: -1 | E57: -1 | F57: RCA-SA4C-20-10-垂直 | G57: 1 | H57: 0.3 | I57: 665 | J57: ○ | K57: ○
A58: 55 | B58: 1961330 | C58: 200 | D58: -1 | E58: -1 | F58: RCA-SA5C-20-3-水平 | G58: 12 | H58: 0.2 | I58: 200 | J58: ○ | K58: ○
A59: 56 | B59: 1961330 | C59: 200 | D59: -1 | E59: -1 | F59: RCA-SA5C-20-3-垂直 | G59: 4 | H59: 0.2 | I59: 200 | J59: ○ | K59: ○
A60: 57 | B60: 2941995 | C60: 400 | D60: -1 | E60: -1 | F60: RCA-SA5C-20-6-水平 | G60: 8 | H60: 0.3 | I60: 400 | J60: ○ | K60: ○
A61: 58 | B61: 2941995 | C61: 400 | D61: -1 | E61: -1 | F61: RCA-SA5C-20-6-垂直 | G61: 2 | H61: 0.3 | I61: 400 | J61: ○ | K61: ○
A62: 59 | B62: 2941995 | C62: 800 | D62: -1 | E62: -1 | F62: RCA-SA5C-20-12-水平 | G62: 4 | H62: 0.3 | I62: 800 | J62: ○ | K62: ○
